Workbook

Sheet Audit Data Collection
A2: Key: | B2: Required Inputs | C2: Required input for Recommended Upgrades
B3: Optional Inputs
A5: Auditor's Name
A6: Company Name
A7: Audit Date
A10: Customer Information
A11: Name
A12: Address
A13: City
A14: State | B14: NY | D14: Weather station used:
A15: Zip | D15: =WeatherFile -> No Match
A16: Phone Number (Primary)
A17: Email Address (Primary)
A20: Annual Electric Consumption (kWh) | B20: 6961 | C20: 6,961 is NY State average
A21: Basic Building & Demographic Information | B21: =IF(COUNTA(B22:B28)=0,"Section MUST be complete","") -> Section MUST be complete
A22: Year House Built | C22: =IF(AND(COUNTA($B$22:$B$28)>0,COUNTA($B$22:$B$28)<5,B22=""),"Ensure '"&A22&"' is entered","") -> 
A23: Type of building | C23: =IF(AND(COUNTA($B$22:$B$28)>0,COUNTA($B$22:$B$28)<5,B23=""),"Ensure '"&A23&"' is entered","") -> 
A24: Front of Building faces
A25: Number of Bedrooms
A26: Total Living Area (sq. ft)
A27: Stories
A28: Number of Full-Time Occupants | F28: Recommended Upgrade Measures:
A30: Estimated Amount of Attic Ventilation | B30: 1 - Code | F30: =IF(OR('[11]Inputs-Results'!G41>0, '[11]Inputs-Results'!G44>0),"Upgrade Attic Ventilation","") -> Upgrade Attic Ventilation
A31: Air Infiltration | F31: Air Sealing (Y/N)
A32: Infiltration | F32: Target Infiltration Improvement %
A34: Insulation | B34: Insulation R-value | C34: Area (sq. ft.)
A35: Attic / Roof #1 | D35: Notes | F35: =A35 -> Attic / Roof #1
A36: Attic / Roof #2 | F36: =A36 -> Attic / Roof #2
A37: Attic / Roof #3 | F37: Attic / Roof #3
A38: Walls: Exposed to Exterior & Band Joist | F38: Walls: Exposed to Exterior & Band Joist
A39: Walls: masonry | F39: Walls: masonry
A40: Walls: Adjoining Enclosed Space | F40: Walls: Adjoining Enclosed Space
A41: Floors: Exposed to Exterior & Band Joist | F41: Floors: Exposed to Exterior & Band Joist
A42: Floors: Adjoining Enclosed Space | F42: Floors: Adjoining Enclosed Space
A43: Foundation | B43: Insulation R-value | C43: Perimeter (linear ft.)
A44: Basement Walls | E44: =IF(COUNTA(B44:C44)=1,"Enter R-Value and linear feet","") ->  | F44: =A44 -> Basement Walls
A45: Slab Edge | F45: =A45 -> Slab Edge
A46: Crawlspace Walls | E46: =IF(COUNTA(B46:C46)=1,"Enter R-Value and linear feet","") ->  | F46: =A46 -> Crawlspace Walls
A47: Crawlspace Vapor Barrier | B47: Inadequate or Needs Repair
A49: Windows | B49: =IF(COUNTA(B50)=0,"Section MUST be complete","") -> Section MUST be complete
A50: Predominant Type | E50: Replacement Windows | F50: U-Value
A51: % of wall that is windows or Sq Ft of windows: | B51: % | C51: Area (sq. ft.) | D51: Notes | F51: SHGC ("Solar Heat Gain Co-eff")
A52: North | B52: 0.15 | E52: or | G52: or | I52: ='Audit Summary Report'!$N$32 -> n/a
A53: South | B53: 0.15 | E53: Storm Windows | F53: Add Storms
A54: East | B54: 0.15
A55: West | B55: 0.15 | F55: % of Windows Being Upgraded | I55: Fuel Switch | J55: No
G56: =IF(AND(G53="yes",Raw_Window_Prc_Upgraded=""),"You MUST enter the % Windows Being Upgraded with Storm Windows","") -> 
A57: Primary Heating and Cooling Equipment | B57: =CONCATENATE(IF(AND(System1_Type="Furnace",Raw_Sys1_H_Efficiency_Existing<72),"*Furnace efficiency MUST be at least 72%",IF(AND(System1_Type="Boiler",Raw_Sys1_H_Efficiency_Existing<60),"*Boiler efficiency MUST be at least 60%",IF(AND(System1_Type="Heat Pump",Raw_Sys1_H_Efficiency_Existing<6.5),"*Heat pump HSPF MUST be at least 6.5",""))),IF(AND((IF(AND(System1_Type="Furnace",Raw_Sys1_H_Efficiency_Existing<72),"*Furnace efficiency MUST be at least 72%",IF(AND(System1_Type="Boiler",Raw_Sys1_H_Efficiency_Existing<60),"*Boiler efficiency MUST be at least 60%",IF(AND(System1_Type="Heat Pump",Raw_Sys1_H_Efficiency_Existing<6.5),"*Heat pump HSPF MUST be at least 6.5",""))))<>"",IF(Raw_Sys1_C_Efficiency_Existing<9,"Primary A/C SEER MUST be 9 or above","")<>""),"; ",""),IF(Raw_Sys1_C_Efficiency_Existing<9,"Primary A/C SEER MUST be 9 or above","")) -> Primary A/C SEER MUST be 9 or above
A58: Primary Heating Fuel | C58: Notes | E58: Complete applicable upgrade options below | O58: New Heating Fuel Type | P58: Electricity | Q58: Furnace
A59: Primary Heating System Type | E59: Option: Upgrade heating system with same fuel type | F59: =IF(System1_Type<>"Electric Baseboard or Wall","Replacement Unit " & IF(OR(B59=$A$271,B59=$A$273), "AFUE", "HSPF"),"SAME FUEL UPGRADE NOT APPLICABLE") -> Replacement Unit HSPF | H59: =IF(AND(System1_Type="Electric Baseboard or Wall",Raw_Sys1_H_Efficiency_New<>""),"Leave this field blank - electric baseboard upgrade with same fuel is not applicable","") -> 
A60: Primary Heat System Capacity (btu/h) | E60: =IF(Raw_HVAC_1_Heating_Fuel="Oil","Option: Upgrade oil heat to gas heat","") ->  | F60: =IF(Raw_HVAC_1_Heating_Fuel="Oil","New Gas Unit AFUE","") ->  | O60: Heating System Type | P60: Electric Baseboard or Wall | Q60: Heat Pump
A61: =IF(OR(B59=$A$270,B59=$A$274), "",IF(OR(B59=$A$271,B59=$A$273), "Primary "&B59 & " AFUE", B59 & " HSPF")) -> HSPF | E61: Option: Upgrade Heating & Cooling with Air-Source Heat Pump (ASHP) | F61: ASHP Size (rated cooling capacity Btu/h) | O61: Btu/h
A62: =IF(System1_Type="Furnace","Primary Furnace variable speed fan?","") ->  | F62: Number of Outdoor Units | O62: Heat Sys Capacity (btu/h) | P62: 65000 | Q62: Boiler
A63: Primary heating system year of mfg | F63: ASHP COP | O63: Primary Sys Capacity Cooling (btu/h) | P63: 45000 | Q63: Electric Baseboard or Wall
A64: Primary A/C Capacity (btu/h) | E64: Upgrade Central A/C With Like Unit | F64: Replacement A/C SEER
A65: Primary A/C SEER | G65: =IF(AND(Raw_Sys1_C_Efficiency_New<>"",Raw_Sys1_C_Efficiency_Existing=""),"If A/C is being upgraded, you MUST ALSO enter the existing efficiency to the left","") ->  | P65: 72
A67: Primary System Ducts
A68: Primary Unconditioned Supply Location
A69: Primary Unconditioned Return Location
A70: Supply Insulation Rval
A71: Return Insulation Rval
A72: Ducts currently sealed adequately? | F72: Duct Sealing
A74: Secondary Heating Equipment | B74: =IF(AND(System2_Type="Furnace",Raw_Sys2_H_Efficiency_Existing<72),"*Furnace efficiency MUST be at least 72%",IF(AND(System2_Type="Boiler",Raw_Sys2_H_Efficiency_Existing<60),"*Boiler efficiency MUST be at least 60%",IF(AND(System2_Type="Heat Pump",Raw_Sys2_H_Efficiency_Existing<6.5),"*Heat pump HSPF MUST be at least 6.5",""))) ->  | E74: =IF(AND(Raw_Sys2_H_Efficiency_New<>"",System2_Type="Furnace",Raw_Sys2_H_Efficiency_New<72),"*Replacement furnace efficiency MUST be at least 72%",IF(AND(Raw_Sys2_H_Efficiency_New<>"",System2_Type="Boiler",Raw_Sys2_H_Efficiency_New<60),"*Replacement boiler efficiency MUST be at least 60%",IF(AND(Raw_Sys2_H_Efficiency_New<>"",System2_Type="Heat Pump",Raw_Sys2_H_Efficiency_New<6.5),"*Replacement heat pump HSPF MUST be at least 6.5",""))) -> 
A75: Secondary Heating System Type | C75: Notes
A76: Secondary Heat System Capacity (btu/h)
A77: Secondary System Capacity Cooling (btu/h) | F77: HVAC tune-up | G77: No
A78: =IF(OR(B75=$A$270,B75=$A$274), "",IF(OR(B75=$A$271,B75=$A$273), "Secondary "&B75 & " AFUE", B75 & " HSPF")) -> HSPF | F78: ="Replacement " & IF(OR(B75=$A$271,B75=$A$273), "AFUE", "HSPF") -> Replacement HSPF
A79: Secondary Cool System SEER | E79: =IF(AND(Raw_Sys2_C_Efficiency_Existing<>"",Raw_Sys2_C_Efficiency_Existing<9),"*Existing cooling System SEER must be at least 9","") ->  | F79: Replacement SEER | H79: =IF(AND(Raw_Sys2_C_Efficiency_New<>"",Raw_Sys2_C_Efficiency_New<9),"*Replacement cooling System SEER must be at least 9","") -> 
A80: =IF(System2_Type="Furnace","Secondary Furnace variable speed fan?","") ->  | G80: =IF(AND(G77="Yes",G79<>""),"You cannot both Tune Up and","") -> 
A81: Secondary heating system year of mfg | G81: =IF(AND(G77="Yes",G79<>""),"recommend Replacing HVAC systems","") -> 
A82: Secondary System Ducts
A83: Primary Unconditioned Supply Location | B83: Attic (Well vented) | F83: Duct Sealing | G83: No
A84: Primary Unconditioned Return Location | B84: Attic (Well vented) | E84: Notes
A85: Supply Insulation Rval | B85: 0
A86: Return Insulation Rval | B86: 0
A88: Thermostat:
A89: Current Thermostat | F89: New Thermostat
A97: Room / Window Air Conditioner:
A98: Room A/C Present?
A99: Existing Room A/C CEER | B99: 9 | F99: New Room A/C CEER
A101: Water Heating and Water Usage | B101: =IF(AND(Raw_Water_Heating_System_Type_Existing="Storage",OR(Raw_Water_Heating_Fuel_Existing="Natural Gas",Raw_Water_Heating_Fuel_Existing="Propane"),Raw_Water_Heating_Efficiency_Existing<0.5),Raw_Water_Heating_Fuel_Existing&" storage water heater efficiency must be at least .5",IF(AND(Raw_Water_Heating_System_Type_Existing="Storage",Raw_Water_Heating_Fuel_Existing="Oil",Raw_Water_Heating_Efficiency_Existing<0.45),"Oil storage water heater efficiency must be at least .45",IF(AND(Raw_Water_Heating_System_Type_Existing="Storage",Raw_Water_Heating_Fuel_Existing="Electricity",Raw_Water_Heating_Efficiency_Existing<0.86),"Electric storage water heater efficiency must be at least .86",""))) -> 
A102: Water Heating Fuel | C102: Notes | F102: Water Heating Fuel
A103: System Type | F103: Replacement Type
A104: Tank wrap R-Value | F104: UEF
A105: Water Heater EF | F105: 3' sections of pipe insulation
A106: Size (gallons) | B106: 40 | F106: Water Heater Wrap
A107: Year of Mfg. (Year of mfg (vintage)) | B107: 1990
A108: Location | B108: Basement
A110: Appliances | B110: =IF(AND(COUNTA(B115:B117)<3,COUNTA(B115:B117)>0),"Enter Dehumidifier Energy Factor, Vintage, and Pints/Day","") -> 
A111: Existing Primary Refrigerator Efficiency | C111: Notes | F111: New Primary Refrigerator Efficiency
A112: Existing Secondary Refrigerator/ Standalone Freezer Efficiency | E112: New Secondary Refrigerator/ Standalone Freezer Efficiency
A113: Existing Clothes Washer Efficiency | F113: New Clothes Washer Efficiency
A114: Existing Dishwasher Efficiency | F114: New Dishwasher Efficiency
A115: Existing Dehumidifier Energy Factor | F115: New Dehumidifier Energy Factor
A116: Existing Dehumidifier Vintage
A117: Existing Dehumidifier Pints Per Day
A119: Lighting | B119: =IF(OR(SUM(B120:B122)<0.99,SUM(B120:B122)>1),"All Lighting must add to 100%","") -> All Lighting must add to 100% | F119: Upgraded Lighting | G119: =IF(CONCATENATE(Raw_New_Not_CFL_LED_Prc_of_Lighting,Raw_New_CFL_Prc_of_Lighting,Raw_New_LED_Prc_of_Lighting)="","",IF(OR(SUM(G120:G122)<0.99,SUM(G120:G122)>1),"All Lighting must add to 100%","")) -> 
A120: Existing Incandescent % of Lighting | B120: 0.5 | C120: Notes | F120: Incandescent % of Lighting
A121: Existing CFL % of Lighting | F121: CFL % of Lighting
A122: Existing LED % of Lighting | F122: LED % of Lighting
A124: Water
A125: Existing Showerheads | C125: Notes | F125: New Showerheads
A126: Existing Faucet Aerators | F126: New Faucet Aerators
A129: Document any other finding and/or any potential hazards or health & safety issues, with recommendations on how to resolve:
A141: Version 3-11-2020
A143: For questions or comments about this tool, contact homeaudits@nyserda.ny.gov.
A167: DHW Locations
A168: Basement
A169: Garage
A170: Crawlspace
A171: Closet
A172: Other
B173: Is Fossil? | C173: Capacity input? | D173: Eff Input? | E173: Has Cooling? | F173: Cool cap? | G173: SEER input?
A174: System 1 | B174: =OR(System1_Type = "Boiler", System1_Type = "Furnace") -> FALSE | C174: =OR(System1_Capacity_H,0) -> FALSE | D174: =OR(Raw_Sys1_H_Efficiency_Existing,0) -> FALSE | E174: =IF(B65>0,TRUE,FALSE) -> FALSE | F174: =OR(B64,0) -> FALSE | G174: =OR(B65>0,0) -> FALSE
A175: System 2 | B175: =OR(System2_Type = "Boiler", System2_Type = "Furnace") -> FALSE | C175: =OR(B76,0) -> FALSE | D175: =OR(B78,0) -> FALSE | E175: =IF(B79>0,TRUE,FALSE) -> FALSE | F175: =OR(B77,0) -> FALSE | G175: =OR(B79>0,0) -> FALSE
A178: Column1 | B178: SHGC | C178: U-Value | D178: Storm Addon lookups
A179: 1a: Single, Metal | B179: 0.8 | C179: 1.31 | D179: =B182 -> 0.7 | E179: 0.8
A180: 1b: Single, Metal with Thermal Break | B180: 0.73 | C180: 1.09 | D180: 0.7 | E180: 0.65
A181: 1c: Single, Wood | B181: 0.65 | C181: 0.9 | D181: 0.58 | E181: 0.49 | G181: 0.27,0.28,0.29,0.30
A182: 1d: Single with Storm, Metal | B182: 0.7 | C182: 0.8
A183: 1e: Single with Storm, Metal with Thermal Break | B183: 0.7 | C183: 0.65
A184: 1f: Single with Storm, Wood | B184: 0.58 | C184: 0.49 | G184: 0.32,0.37,0.42
A185: 2a: Double, Metal | B185: 0.73 | C185: 0.87
A186: 2b: Double, Metal with Thermal Break | B186: 0.66 | C186: 0.65
A187: 2c: Double, Vinyl | B187: 0.57 | C187: 0.46
A188: 2e: Double, Wood | B188: 0.58 | C188: 0.49
A189: 2f: Double Low-e, Metal with Thermal Break | B189: 0.52 | C189: 0.53
A190: 2g: Double Low-e, Vinyl | B190: 0.45 | C190: 0.36
A191: 2h: Double Low-e, Wood | B191: 0.45 | C191: 0.39
A192: 2i: Double with Storm, Metal with Thermal Break | B192: 0.6 | C192: 0.53
A193: 2j: Double with Storm, Vinyl | B193: 0.52 | C193: 0.36
A194: 2k: Double with Storm, Wood | B194: 0.53 | C194: 0.39
A195: 3a: Triple, Metal with Thermal Break | B195: 0.6 | C195: 0.53
A196: 3b: Triple, Vinyl | B196: 0.52 | C196: 0.36
A197: 3c: Triple, Wood | B197: 0.53 | C197: 0.39
A198: 3d: Triple Low-e, Metal with Thermal Break | B198: 0.52 | C198: 0.43
A199: 3e: Triple Low-e, Vinyl | B199: 0.45 | C199: 0.26
A200: 3f: Triple Low-e, Wood | B200: 0.45 | C200: 0.3
A203: 0: 50% bug screen | B203: 0.8
A204: 1: 100% bug screen | B204: 0.65
A205: 2: Solar screen | B205: 0.5
A207: Window Film | B207: 0.6
B209: Interior | C209: Exterior
A210: 0.25 | B210: 0.9 | C210: 0.75
A211: 0.5 | B211: 0.8 | C211: 0.5
A212: 0.75 | B212: 0.7 | C212: 0.25
A213: 1 | B213: 0.6 | C213: 0.1
A215: Type of Building
A216: Conventional
A217: Modular Home
A218: Manufactured Home (HUD)
A219: Other
A221: Attic/Roof
A222: 1: None | B222: 0
A223: 2. R-5 | B223: 5
A224: 3: R-11 | B224: 11
A225: 4: R-19 | B225: 19
A226: 5: R-30+ | B226: 30
A227: 6: Unknown | B227: 19
A228: Walls
A229: 1: None | B229: 1
A230: 2: R-5 | B230: 5
A231: 3: R-11 | B231: 11
A232: 4: R-13 | B232: 13
A233: 5: R-19 | B233: 19
A234: 6: Unknown | B234: 5
A238: Venting
A239: 0 - High | B239: 0
A240: 1 - Code | B240: 1
A241: 2 - Low | B241: 2
A242: 3 - None | B242: 3
A244: Low
A245: Medium
A246: High
A248: Yes
A249: No
A251: Duct Location
A252: Attic (Poorly Vented) | B252: 1
A253: Attic (Well vented) | B253: 0
A254: Basement, Insulated Ceiling | B254: 11
A255: Basement, Insulated Walls | B255: 12
A256: Basement, Uninsulated | B256: 10
A257: Conditioned Space (all ducts) | B257: 14
A258: Crawlspace, Unvented, Insulated crawlspace walls | B258: 4
A259: Crawlspace, Unvented, Insulated Floor only | B259: 5
A260: Crawlspace, Unvented, Uninsulated | B260: 3
A261: Crawlspace, Vented, Insulated crawlspace walls | B261: 7
A262: Crawlspace, Vented, Insulated Floor only | B262: 8
A263: Crawlspace, Vented, Uninsulated | B263: 6
A264: Exterior Walls | B264: 13
A265: Garage | B265: 2
A266: Manufactured Home Belly | B266: 15
A267: Under Slab | B267: 9
A269: HVACEquip
A270: Electric Furnace | B270: 0
A271: Furnace | B271: 1
A272: Heat Pump | B272: 2
A273: Boiler
A274: Electric Baseboard or Wall
A276: N
... 248 more rows

Sheet Audit Summary Report
A1: Residential Energy Audit Summary Report
A2: ________________________________________________________________________________________________________
A4: Name: | B4: =Customer_Name -> 0 | J4: Auditor's Name: | K4: =IF(Auditor<>"", Auditor, "") -> 
A5: Address: | B5: =Customer_Address -> 0 | J5: Company Name: | K5: =IF(Auditor_Company_Name<>"", Auditor_Company_Name, "") -> 
B6: =CONCATENATE(Customer_City, ", ", Customer_State, " ", Customer_Zip) -> , NY | J6: Date: | K6: =IF(Audit_Date<>"", Audit_Date, "") -> 
A8: ________________________________________________________________________________________________________
A10: Envelope Improvements
N11: Estimated
D12: Below | J12: Existing | L12: Recommended | N12: Annual
A13: Measure | D13: Average | G13: Best Option | J13: Values | L13: Upgrade | N13: Savings
A14: Air Leakage | J14: =IF('Audit Data Collection'!B32="","n/a",'Audit Data Collection'!B32) -> n/a | L14: =IF(OR(J14="Low",'Inputs-Results'!G29<>"Yes"), "Not Recommended", "Air Sealing") -> Not Recommended | N14: =IF(ISNUMBER((IF(J14="Low", "n/a", IF(Output!L38<0.01,"<1%",Output!L38)))),(IF(J14="Low", "n/a", IF(Output!L38<0.01,"<1%",Output!L38))),"n/a") -> n/a
D15: High Air Leakage | H15: Low Air Leakage
B17: Area #1 | J17: =IF('Audit Data Collection'!B35 = Roof_RVal_unknown, "Unknown","R-" & Roof_Rvalue_Pre) -> R- | L17: =IF(Roof_Rvalue_Pre = Roof_Rvalue_Post, "Not Recommended", "R-" & Roof_Rvalue_Post) -> Not Recommended | N17: =IF(ISNUMBER((IF(Output!L39=0, "n/a", IF(Output!L39<0.01,"<1%",Output!L39)))),(IF(Output!L39=0, "n/a", IF(Output!L39<0.01,"<1%",Output!L39))),"n/a") -> n/a
A18: Attic/Roof Insulation | B18: Area #2 | D18: R-0 | E18: R-11 | F18: R-19 | H18: R-60 | J18: =IF('Audit Data Collection'!B36=Roof_RVal_unknown,"Unknown",IF(Roof2_Area=0,"n/a","R-"&Roof2_Rvalue_Pre)) -> n/a | L18: =IF(Roof2_Area=0,"Not Recommended",IF(Roof2_Rvalue_Pre=Roof2_Rvalue_Post,"Not Recommended",IF(Roof2_Rvalue_Post="","Not Recommended","R-"&Roof2_Rvalue_Post))) -> Not Recommended | P18: Before pressing print, ensure that the correct printer is chosen using the print dialogue.
A19: (R-value) | B19: Area #3 | J19: =IF('Audit Data Collection'!B37=Roof_RVal_unknown,"Unknown",IF(Roof3_Area=0,"n/a","R-"&Roof3_Rvalue_Pre)) -> n/a | L19: =IF(Roof3_Area=0,"Not Recommended",IF(Roof3_Rvalue_Pre=Roof3_Rvalue_Post,"Not Recommended",IF(Roof3_Rvalue_Post="","Not Recommended","R-"&Roof3_Rvalue_Post))) -> Not Recommended
A21: Wall Insulation | B21: Exposed to Exterior & Rim Joist | J21: =IF('Audit Data Collection'!B38=Wall_RVal_Unknown,"Unknown",IF(Wall_Area=0,"n/a",IF(Wall_Rvalue_Pre=1,"R-0","R-"&Wall_Rvalue_Pre))) -> n/a | L21: =IF(Wall_Area = 0, "Not Recommended", IF(Wall_Rvalue_Pre = Wall_Rvalue_Post, "Not Recommended", "R-" & Wall_Rvalue_Post)) -> Not Recommended | N21: =IF(ISNUMBER((IF(Output!L40=0, "n/a", IF(Output!L40<0.01,"<1%",Output!L40)))),(IF(Output!L40=0, "n/a", IF(Output!L40<0.01,"<1%",Output!L40))),"n/a") -> n/a
B22: Walls: masonry | D22: R-0 | F22: R-11 | H22: R-23 | J22: =IF('Audit Data Collection'!B39=Wall_RVal_Unknown,"Unknown",IF(WallMasonary_Area=0,"n/a",IF(WallMasonary_Rvalue_Pre=1,"R-0","R-"&WallMasonary_Rvalue_Pre))) -> n/a | L22: =IF(WallMasonary_Area = 0, "Not Recommended", IF(WallMasonary_Rvalue_Pre = WallMasonary_Rvalue_Post, "Not Recommended", "R-" & WallMasonary_Rvalue_Post)) -> Not Recommended
A23: (R-value) | B23: Adjoining Enclosed Space | J23: =IF(BufferedWall_Area_Pre = 0, "n/a", IF(BufferedWall_Rvalue_Pre=1, "R-0", "R-" & BufferedWall_Rvalue_Pre)) -> n/a | L23: =IF(BufferedWall_Area_Pre = 0, "Not Recommended", IF(BufferedWall_Rvalue_Pre = BufferedWall_Rvalue_Post, "Not Recommended", "R-" & BufferedWall_Rvalue_Post)) -> Not Recommended
A25: Floor Insulation | B25: Over Exterior | J25: =IF('Audit Data Collection'!B41=Wall_RVal_Unknown,"Unknown",IF(OR(Floor_Exposed_Area=0,Floor_Exposed_Area=""),"n/a","R-"&Floor_Exposed_Rvalue_Pre)) -> n/a | L25: =IF(OR(Floor_Exposed_Area = 0, Floor_Exposed_Area = ""), "Not Recommended", IF(Floor_Exposed_Rvalue_Pre = Floor_Exposed_Rvalue_Post, "Not Recommended", "R-" & Floor_Exposed_Rvalue_Post)) -> Not Recommended | N25: =IF(ISNUMBER((IF(Output!L42=0, "n/a", IF(Output!L42<0.01,"<1%",Output!L42)))),(IF(Output!L42=0, "n/a", IF(Output!L42<0.01,"<1%",Output!L42))),"n/a") -> n/a
A26: (R-value) | B26: Over Enclosed Space | D26: R-0 | F26: R-19 | H26: R-39 | J26: =IF('Audit Data Collection'!B42=Wall_RVal_Unknown,"Unknown",IF(OR(Floor_Over_Area=0,Floor_Over_Area=""),"n/a","R-"&Floor_Over_Rvalue_Pre)) -> n/a | L26: =IF(OR(Floor_Over_Area = 0, Floor_Over_Area = ""), "Not Recommended", IF(Floor_Over_Rvalue_Pre = Floor_Over_Rvalue_Post, "Not Recommended", "R-" & Floor_Over_Rvalue_Post)) -> Not Recommended
A28: Foundation Insulation | B28: Basement | J28: =IF('Audit Data Collection'!B44=Wall_RVal_Unknown,"Unknown",IF(OR(Foundation_Basement_Perim=0,Foundation_Basement_Perim=""),"n/a","R-"&Foundation_Basement_Rvalue_Pre)) -> n/a | L28: =IF(OR(Foundation_Basement_Perim = 0, Foundation_Basement_Perim = ""), "Not Recommended", IF(Foundation_Basement_Rvalue_Pre = Foundation_Basement_Rvalue_Post, "Not Recommended", "R-"&Foundation_Basement_Rvalue_Post)) -> Not Recommended | N28: =IF(OR(AND(ISNUMBER(Output!L41),'Audit Data Collection'!$C$44<>"",'Audit Data Collection'!$C$44>0,'Audit Data Collection'!$B$44<>""),AND(ISNUMBER(Output!L41),'Audit Data Collection'!$C$46<>"",'Audit Data Collection'!$C$46>0,'Audit Data Collection'!$B$46<>"")),(IF(Output!L41=0, "n/a", IF(Output!L41<0.01,"<1%",Output!L41))),"n/a") -> n/a
B29: Slab | D29: R-0 | F29: R-11 | H29: R-23 | J29: =IF('Audit Data Collection'!B45=Wall_RVal_Unknown,"Unknown",IF(OR(Foundation_Slab_Perim=0,Foundation_Slab_Perim=""),"n/a","R-"&Foundation_Slab_Rvalue_Pre)) -> n/a | L29: =IF(OR(Foundation_Slab_Perim=0, Foundation_Slab_Perim=""),"Not Recommended", IF(Foundation_Slab_Rvalue_Pre = Foundation_Slab_Rvalue_Post,"Not Recommended","R-"&Foundation_Slab_Rvalue_Post)) -> Not Recommended
A30: (R-value) | B30: Crawlspace | J30: =IF('Audit Data Collection'!B46=Wall_RVal_Unknown,"Unknown",IF(OR(Foundation_Crawlspace_Perim=0,Foundation_Crawlspace_Perim=""),"n/a","R-"&Foundation_Crawlspace_Rvalue_Pre)) -> n/a | L30: =IF(OR(Foundation_Crawlspace_Perim = 0, Foundation_Crawlspace_Perim = ""), "Not Recommended", IF(Foundation_Crawlspace_Rvalue_Pre = Foundation_Crawlspace_Rvalue_Post, "Not Recommended", "R-" & Foundation_Crawlspace_Rvalue_Post)) -> Not Recommended
A32: =IF('Audit Data Collection'!G53="Yes", "Storm", "Replacement") & " Windows" -> Replacement Windows | L32: =IF(Raw_Storm_Windows_New="Yes", "Add storm windows to",IF(AND(Raw_Window_Prc_Upgraded>0,Raw_Storm_Windows_New="No"),Raw_Window_Prc_Upgraded*100&"% Windows Upgraded","")) ->  | N32: =IF(ISERROR(Output!L43),"n/a",(IF(AND(Output!L43=0, 'Audit Data Collection'!G53<>"Yes"), "n/a", IF(Output!L43<0.01,"<1%",Output!L43)))) -> n/a
A33: (U-factor) | D33: 0.9 | H33: 0.27 | J33: =IF(ISERROR(Window_U_Pre),"n/a",Window_U_Pre) -> n/a | L33: =IF(Raw_Storm_Windows_New="Yes", FIXED(Raw_Window_Prc_Upgraded*100,0,)&"% of ", IF('Audit Data Collection'!G51<>"",'Audit Data Collection'!G50, "Not Recommended")) -> Not Recommended
A34: (SHGC) | D34: 0.8 | H34: 0.32 | J34: =IF(ISERROR(Window_SHGC_Pre),"n/a",Window_SHGC_Pre) -> n/a | L34: =IF(Raw_Storm_Windows_New="Yes", "existing windows", IF('Audit Data Collection'!G51<>"",'Audit Data Collection'!G51, "Not Recommended")) -> Not Recommended
A37: Heating and Cooling Improvements
A39: Primary Heating | J39: =IF(Raw_ASHP_COP_New>0,System1_Type,"n/a") -> n/a | L39: =IF(Raw_ASHP_COP_New>0,"Efficient Heat Pump","Not Recommended") -> Not Recommended | N39: =IF(Raw_ASHP_Size_New<>"",IF(AND(ISNUMBER((Savings_ASHP_Net_kWh)),(Savings_ASHP_Net_kWh)/'ASHP Calculator'!J61>0),IF((Savings_ASHP_Net_kWh)/'ASHP Calculator'!J61<0.01,"<1%",(Savings_ASHP_Net_kWh)/'ASHP Calculator'!J61),""),"n/a") -> n/a
A40: Upgrade to cold climate air source heat pump | D40: =IF(Raw_ASHP_COP_New>0,"Inefficient "&System1_Type,"") ->  | H40: =IF(Raw_ASHP_COP_New>0,"Efficient Heat Pump","") -> 
A42: ="Primary Heating: " & System1_Type -> Primary Heating: | J42: =IF(Raw_Sys1_H_Efficiency_Existing>0,Raw_Sys1_H_Efficiency_Existing,"n/a") -> n/a | L42: =IF('Audit Data Collection'!G59="", "Not Recommended", Raw_Sys1_H_Efficiency_New) -> Not Recommended | N42: =IF(L42="Not Recommended","n/a",(IF(ISNUMBER((IF(Heat_Sys_Save=0,"n/a",IF(Heat_Sys_Save<0.01,"<1%",Heat_Sys_Save)))),(IF(Heat_Sys_Save=0,"n/a",IF(Heat_Sys_Save<0.01,"<1%",Heat_Sys_Save))),"n/a"))) -> n/a
A43: Upgrade to new unit with same heating fuel | D43: =IF(OR(System1_Type="Boiler",System1_Type="Furnace"),70,IF(System1_Type="Heat Pump",7,"")) ->  | H43: =IF(OR(System1_Type="Boiler",System1_Type="Furnace"),98,IF(System1_Type="Heat Pump",15,"")) -> 
A45: =IF(Raw_AFUE_New_Switch_To_Gas<>"", "Primary Heating: " & System1_Type,"Fuel Switch to Gas (If Applicable)") -> Fuel Switch to Gas (If Applicable) | J45: =IF(Raw_AFUE_New_Switch_To_Gas<>"", Raw_Sys1_H_Efficiency_Existing,"n/a") -> n/a | L45: =IF(AND('Audit Data Collection'!G60>0,Raw_HVAC_1_Heating_Fuel="Oil"),'Audit Data Collection'!G60,"Not Recommended") -> Not Recommended | N45: =IF(L45<>"Not Recommended",(IF(ISNUMBER((((L45-J45)/100)*Calc_Heat_as_Prc_Total_Load)),IF((((L45-J45)/100)*Calc_Heat_as_Prc_Total_Load)<0.01,"<1%",(((L45-J45)/100)*Calc_Heat_as_Prc_Total_Load)),"n/a")),"n/a") -> n/a
A46: =IF(Raw_AFUE_New_Switch_To_Gas<>"", "Upgrade oil to natural gas","") ->  | D46: =IF(Raw_AFUE_New_Switch_To_Gas<>"", "70","") ->  | H46: =IF(Raw_AFUE_New_Switch_To_Gas<>"", "98","") -> 
A48: Duct Leakage | J48: =IF(AND(OR(System1_Type="Heat Pump",System1_Type="Furnace",System1_Capacity_c<>""),OR(Raw_System1_Duct_Seal_Pre="No",Raw_System1_Duct_Seal_Pre="")),"Ducts Not Sealed",IF(AND(System1_Type="Furnace",Raw_System1_Duct_Seal_Pre="Yes"),"Ducts Sealed","n/a")) -> n/a | L48: =IF(AND(Raw_System1_Duct_Sealing="Yes",Raw_System1_Duct_Seal_Pre="No"),"Sealed Ducts","Not Recommended") -> Not Recommended | N48: =IF(L48="Not Recommended","n/a",IF(OR(AND(ISNUMBER(Heat_Dist_Save),Heat_Dist_Save<>0,L48<>"Not Recommended"),AND(ISNUMBER(Cool_Dist_Save),Cool_Dist_Save<>0,L48<>"Not Recommended")),IF(AND((Heat_Dist_Save+Cool_Dist_Save)<0.006,(Heat_Dist_Save+Cool_Dist_Save)>0),"< 1%",(Heat_Dist_Save+Cool_Dist_Save)), "n/a")) -> n/a
D49: =IF(OR(System1_Type="Furnace",System1_Capacity_c<>""),"Leaky Ducts","") ->  | H49: =IF(OR(System1_Type="Furnace",System1_Capacity_c<>""),"Sealed Ducts","") -> 
J50: \
A51: Thermostat | J51: =IF(Raw_Existing_Thermostat="","n/a",Raw_Existing_Thermostat) -> n/a | L51: =IF(Raw_New_Thermostat="","Not Recommended",Raw_New_Thermostat) -> Not Recommended | N51: =IF(OR(Raw_Existing_Thermostat=Raw_New_Thermostat,Raw_New_Thermostat=""),"n/a",(IF(OR(System1_Type="Furnace",System1_Type="Boiler"),IF(FIXED(Savings_Thermostat_Therm_Prc*100,1,)<0.01,"<1%",FIXED(Savings_Thermostat_Therm_Prc*100,1,)&"%"),IF(FIXED(Savings_Thermostat_kWh_Prc*100,1,)<0.01,"<1%",FIXED(Savings_Thermostat_kWh_Prc*100,1,)&"%")))) -> n/a
D52: Manual | H52: Wifi / Learning
A54: ="Secondary Heating: " & IF(System2_Type="", "n/a", System2_Type) -> Secondary Heating: n/a | J54: =IF(A55= "(AFUE)", 'Inputs-Results'!B82*100 & "%", IF(A55= "(HSPF)",'Inputs-Results'!B81*3.41, "n/a")) -> n/a | L54: =IF(System2_Type="", "Not Recommended", IF('Audit Data Collection'!G78="", "Not Recommended", IF(A55= "(AFUE)", 'Audit Data Collection'!G78 & "%", IF(A55= "(HSPF)", 'Audit Data Collection'!G78, "Not Recommended")))) -> Not Recommended | N54: =IF(ISNUMBER((IF(System2_Type="", "n/a", IF(Heat_Sys_Save_Sys2 = 0,"n/a", IF(Heat_Sys_Save_Sys2<0.01,"<1%", Heat_Sys_Save_Sys2))))),(IF(System2_Type="", "n/a", IF(Heat_Sys_Save_Sys2 = 0,"n/a", IF(Heat_Sys_Save_Sys2<0.01,"<1%", Heat_Sys_Save_Sys2)))),"n/a") -> n/a
A55: =IF(System2_Type="", "", IF((System2_Type = "Electric Baseboard or Wall"), "(n/a)", IF(OR(System2_Type="Boiler", System2_Type="Furnace"), "(AFUE)", "(HSPF)"))) ->  | D55: =IF(A55= "(AFUE)", 70, IF(A55= "(HSPF)", 8, "")) ->  | E55: =IF(A55= "(AFUE)", 75, IF(A55= "(HSPF)", 8.5, "")) ->  | F55: =IF(A55= "(AFUE)", 80, IF(A55= "(HSPF)", 9, "")) ->  | G55: =IF(A55= "(AFUE)", 90, IF(A55= "(HSPF)", 9.5, "")) ->  | H55: =IF(A55= "(AFUE)", 95, IF(A55= "(HSPF)", 10, "")) -> 
A57: ="Central Cooling" & IF(Is_cooling_1, IF('Lookups (2)'!CY51="Yes",": Tune Up",""),": n/a") -> Central Cooling: n/a | J57: =IF(Is_cooling_1,EER,"n/a") -> n/a | L57: =IF(Raw_Sys1_C_Efficiency_New<>"",Raw_Sys1_C_Efficiency_New,"Not Recommended") -> Not Recommended | N57: =(IF(Is_cooling_1,IF(L57="Tune Up","<1%",IF(Cool_Sys_Save=0,"n/a",IF(Cool_Sys_Save<0.01,"<1%",Cool_Sys_Save))),"n/a")) -> n/a
B58: =IF(Is_cooling_1,"(SEER)","") ->  | D58: =IF(Is_cooling_1,10,"") ->  | E58: =IF(Is_cooling_1,13,"") ->  | F58: =IF(Is_cooling_1,16,"") ->  | G58: =IF(Is_cooling_1,19,"") ->  | H58: =IF(Is_cooling_1,22,"") -> 
A60: Room / Window Air Conditioner | J60: =IF(Raw_Room_AC_Present="Yes",Calc_CEER_Baseline,"n/a") -> n/a | L60: =IF(Raw_Room_AC_Present="Yes",(IF(OR(Raw_New_Room_AC_CEER="",Raw_New_Room_AC_CEER=0),"Not Recommended",Raw_New_Room_AC_CEER)),"Not Recommended") -> Not Recommended | N60: =IF(ISNUMBER((Savings_Room_AC_kWh_Prc)),IF((Savings_Room_AC_kWh_Prc)<0.01,"<1%",(Savings_Room_AC_kWh_Prc)),"n/a") -> n/a
B61: =IF(WaterHeaterWrap<>"Yes","(Efficiency Rating)","(R-value)") -> (Efficiency Rating) | D61: =IF(Raw_Room_AC_Present="Yes",Calc_CEER_Baseline,"") ->  | H61: =IF(Raw_Room_AC_Present="Yes",14,"") -> 
A64: Water Usage and Water Heating
N65: Estimated
D66: Below | J66: Existing | L66: Recommended | N66: Annual
A67: Measure | D67: Average | G67: Best Option | J67: Values | L67: Upgrade | N67: Savings
A68: =IF(WaterHeaterWrap<>"Yes","Water Heater","Electric Water Heater Wrap") -> Water Heater | J68: =IF(AND(Raw_Water_Heating_System_Type_Existing<>"",Raw_Water_Heating_Efficiency_Existing<>"",Raw_Water_Heating_Fuel_Existing<>""),IF(WaterHeaterWrap<>"Yes", IF('Audit Data Collection'!B105="", 'Inputs-Results'!C99, 'Audit Data Collection'!B105), IF('Audit Data Collection'!B104="", "n/a", "R-" & 'Audit Data Collection'!B104)),"n/a") -> n/a | L68: =IF(WaterHeaterWrap="Yes","Install Wrap",IF('Audit Data Collection'!G104<>"",'Audit Data Collection'!G104,"Not Recommended")) -> Not Recommended | N68: Energy Savings
A69: =IF(WaterHeaterWrap<>"Yes","(Efficiency Rating)","(R-value)") -> (Efficiency Rating) | D69: =IF(WaterHeaterWrap<>"Yes",IF('Audit Data Collection'!B102="Gas","0.58","0.80"),"R-0") -> 0.80 | H69: =IF(Raw_Water_Heating_System_Type_New="Heat Pump (independent)",3,IF(WaterHeaterWrap<>"Yes",IF('Audit Data Collection'!B102="Gas","0.85","0.95"),"R-0")) -> 0.95 | J69: =Raw_Water_Heating_Fuel_Existing&" - "&Raw_Water_Heating_System_Type_Existing -> - | L69: =Raw_Water_Heating_Fuel_New&" - "&Raw_Water_Heating_System_Type_New -> - | N69: =IF(L68="Not Recommended","n/a",IF(ISNUMBER((Output!D45-Output!J45)/Total_kWh_Input_Pre),IF(AND((Output!D45-Output!J45)/Total_kWh_Input_Pre<0.01,(Output!D45-Output!J45)/Total_kWh_Input_Pre>0),"<1%",(Output!D45-Output!J45)/Total_kWh_Input_Pre),"n/a")) -> n/a
A71: Showerheads | J71: =IF(Raw_Showerhead_Existing="","n/a",Raw_Showerhead_Existing) -> n/a | L71: =IF(Raw_Showerhead_New="","Not Recommended",Raw_Showerhead_New) -> Not Recommended | N71: Water Savings
A72: (Water Savings) | D72: Non-rated (not water saving) | G72: Water Sense (1.5 gal/min) | N72: =IF(ISNUMBER(Savings_Showerhead),Savings_Showerhead,"n/a") -> n/a
A74: Showerheads | J74: =IF(Raw_Showerhead_Existing="","n/a",Raw_Showerhead_Existing) -> n/a | L74: =IF(Raw_Showerhead_New="","Not Recommended",Raw_Showerhead_New) -> Not Recommended | N74: Energy Savings
A75: (Energy Savings) | D75: Non-rated (not water saving) | G75: Water Sense (1.5 gal/min) | N75: =IF(ISNUMBER(Savings_DHW_Showerhead),Savings_DHW_Showerhead,"n/a") -> n/a
A77: Faucet Aerators | J77: =IF(Raw_Faucet_Aerator_Existing="","n/a",(IF(Raw_Faucet_Aerator_Existing="No",D81,H81))) -> n/a | L77: =IF(Raw_Faucet_Aerator_New="Yes",H78,"Not Recommended") -> Not Recommended | N77: Water Savings
A78: (Water Savings) | D78: No Faucet Aerators | H78: Faucet Aerators | N78: =IF(AND(Raw_Faucet_Aerator_Existing="No",Raw_Faucet_Aerator_New="Yes"),Lookups_Faucet_Aerator_Savings_Constant,"n/a") -> n/a
A80: Faucet Aerators | J80: =IF(Raw_Faucet_Aerator_Existing="","n/a",(IF(Raw_Faucet_Aerator_Existing="No",D81,H81))) -> n/a | L80: =IF(AND(Raw_Faucet_Aerator_Existing="No",Raw_Faucet_Aerator_New="Yes"),H81,"Not Recommended") -> Not Recommended | N80: Energy Savings
A81: (Energy Savings) | D81: No Faucet Aerators | H81: Faucet Aerators | N81: =IF(AND(Raw_Faucet_Aerator_Existing="No",Raw_Faucet_Aerator_New="Yes"),Savings_Faucet_Aerator_Water_Heating,"n/a") -> n/a
A83: Appliances and Lighting
A85: Primary Refrigerator | J85: =IF(Raw_Primary_Existing_Fridge_Efficiency="","n/a",Raw_Primary_Existing_Fridge_Efficiency) -> n/a | L85: =IF(Raw_Primary_New_Fridge_Efficiency="","Not Recommended",Raw_Primary_New_Fridge_Efficiency) -> Not Recommended | N85: =IF(ISNUMBER(Savings_Primary_Refrigerator_kWh_Prc),IF(Savings_Primary_Refrigerator_kWh_Prc<0.1%,"<0.1%",Savings_Primary_Refrigerator_kWh_Prc),"n/a") -> n/a
A86: =IF(WaterHeaterWrap<>"Yes","(Efficiency Rating)","(R-value)") -> (Efficiency Rating) | D86: Not ENERGY STAR | H86: ENERGY STAR Most Efficient
A88: Secondary Refrigerator / Standalone Freezer | J88: =IF(Raw_Secondary_Existing_Fridge_Efficiency="","n/a",Raw_Secondary_Existing_Fridge_Efficiency) -> n/a | L88: =IF(Raw_Secondary_New_Fridge_Efficiency="","Not Recommended",Raw_Secondary_New_Fridge_Efficiency) -> Not Recommended | N88: =IF(ISNUMBER(Savings_Secondary_Refrigerator_Freezer_kWh_Prc),IF(Savings_Secondary_Refrigerator_Freezer_kWh_Prc<0.1%,"<0.1%",Savings_Secondary_Refrigerator_Freezer_kWh_Prc),"n/a") -> n/a
A89: =IF(WaterHeaterWrap<>"Yes","(Efficiency Rating)","(R-value)") -> (Efficiency Rating) | D89: Not ENERGY STAR | H89: ENERGY STAR Most Efficient
A91: Dishwasher | J91: =IF(Raw_Existing_Dishwasher_Efficiency="","n/a",Raw_Existing_Dishwasher_Efficiency) -> n/a | L91: =IF(Raw_New_Dishwasher_Efficiency="","Not Recommended",Raw_New_Dishwasher_Efficiency) -> Not Recommended | N91: =IF(ISNUMBER(Savings_Dishwasher_kWh_Prc),IF(Savings_Dishwasher_kWh_Prc<0.1%,"<0.1%",Savings_Dishwasher_kWh_Prc),"n/a") -> n/a
A92: =IF(WaterHeaterWrap<>"Yes","(Efficiency Rating)","(R-value)") -> (Efficiency Rating) | D92: Not ENERGY STAR | H92: ENERGY STAR
A94: Lighting | J94: =CONCATENATE(CONCATENATE("Incandescent",":",FIXED(Raw_Existing_Not_CFL_LED_Prc_of_Lighting,,)*100,"%"),CHAR(10), CONCATENATE("CFL",":",FIXED(Raw_Existing_CFL_Prc_of_Lighting,,)*100,"%"), CHAR(10),CONCATENATE("LED",":",FIXED(Raw_Existing_LED_Prc_of_Lighting,,)*100,"%")) -> Incandescent:50% CFL:0% LED:0% | L94: =CONCATENATE(CONCATENATE("Incandescent",":",FIXED(Raw_New_Not_CFL_LED_Prc_of_Lighting,,)*100,"%"),CHAR(10),CONCATENATE("CFL",":",FIXED(Raw_New_CFL_Prc_of_Lighting,,)*100,"%"), CHAR(10),CONCATENATE("LED",":",FIXED(Raw_New_LED_Prc_of_Lighting,,)*100,"%")) -> Incandescent:0% CFL:0% LED:0% | N94: =IF(ISNUMBER(Savings_Lighting_kWh_Prc),Savings_Lighting_kWh_Prc,"n/a") -> n/a
D95: Incandescent | H95: LED
A97: Clothes Washer | J97: =IF(Raw_Existing_Clothes_Washer_Efficiency="","n/a",Raw_Existing_Clothes_Washer_Efficiency) -> n/a | L97: =IF(Raw_New_Clothes_Washer_Efficiency="","Not Recommended",Raw_New_Clothes_Washer_Efficiency) -> Not Recommended | N97: =IF(ISNUMBER(Savings_Clothes_Washer_kWh_Prc),IF(Savings_Clothes_Washer_kWh_Prc<0.1%,"<0.1%",Savings_Clothes_Washer_kWh_Prc),"n/a") -> n/a
A98: (Efficiency Rating) | D98: Not ENERGY STAR | H98: ENERGY STAR Most Efficient
A100: Dehumidifier | J100: =IF(Raw_Existing_Dehumidifier_Efficiency="","n/a",Raw_Existing_Dehumidifier_Efficiency) -> n/a | L100: =IF(AND(Raw_New_Dehumidifier_Efficiency="",Raw_Existing_Dehumidifier_Efficiency<>""),"Not Recommended",IF(AND(Raw_New_Dehumidifier_Efficiency<>"",Raw_Existing_Dehumidifier_Efficiency<>"",Raw_Existing_Dehumidifier_Year_of_Mfg.__vintage<>"",Raw_Existing_Dehumidifier_Pints_Per_Day<>""),Raw_New_Dehumidifier_Efficiency,"Not Recommended")) -> Not Recommended | N100: =IF(ISNUMBER(Savings_Dehumidifier_kWh_Prc),IF(Savings_Dehumidifier_kWh_Prc<0.1%,"0.1%",Savings_Dehumidifier_kWh_Prc),"n/a") -> n/a
A101: =IF(WaterHeaterWrap<>"Yes","(Efficiency Rating)","(R-value)") -> (Efficiency Rating) | D101: 1 | H101: 3
A104: Additional Notes by Auditor
A105: =IF('Audit Data Collection'!A131="","",'Audit Data Collection'!A131) -> 
A106: =IF('Audit Data Collection'!A132="","",'Audit Data Collection'!A132) -> 
A107: =IF('Audit Data Collection'!A133="","",'Audit Data Collection'!A133) -> 
A108: =IF('Audit Data Collection'!A134="","",'Audit Data Collection'!A134) -> 
A109: =IF('Audit Data Collection'!A135="","",'Audit Data Collection'!A135) -> 
A110: =IF('Audit Data Collection'!A136="","",'Audit Data Collection'!A136) -> 
A111: =IF('Audit Data Collection'!A137="","",'Audit Data Collection'!A137) -> 
A112: =IF('Audit Data Collection'!A138="","",'Audit Data Collection'!A138) -> 
A113: =IF('Audit Data Collection'!A139="","",'Audit Data Collection'!A139) -> 
A114: =IF('Audit Data Collection'!A140="","",'Audit Data Collection'!A140) -> 
A117: This report documents your home's existing conditions and recommended upgrades related to the energy performance of your home. This report provides estimates of energy usage savings based on energy modeling for the purposes of prioritizing energy upgrades. Estimated annual savings is represented in energy unit savings, not dollar savings. Energy savings estimates may vary from actual results. These savings are not guaranteed by either the auditor or NYSERDA.

Sheet Do Yellow Tabs For Loans --->

Sheet Loan Application - Step 1
Z5: Assisted
AA6: Furnace – Natural Gas **1,2 | AB6: Primary Heating and Cooling System | AC6: AFUE 92% (as long as not prohibited by local codes). Furnaces with ECM Motor allowed. | AD6: 18 | AH6: Replacement Windows | AI6: Building Shell | AJ6: ENERGY STAR for climate/region | AK6: 20
AA7: Furnace – LP **1,2 | AB7: Primary Heating and Cooling System | AC7: AFUE 92% (as long as not prohibited by local codes). Furnaces with ECM Motor allowed. | AD7: 18 | AH7: Storm Windows and Storm Doors | AI7: Building Shell | AJ7: No minimum efficiency requirement | AK7: 20
AA8: Furnace – Fuel Oil **1,2 | AB8: Primary Heating and Cooling System | AC8: AFUE 85% | AD8: 18 | AH8: Movable Window Insulation | AI8: Building Shell | AJ8: R-3 | AK8: 20
AA10: Duct Sealing **1 | AB10: Primary Heating and Cooling System | AC10: UL 181B Mastic or other permanent sealant; use of duct tape is disallowed | AD10: 20 | AH10: Distribution Improvements in Natural Gas or Electrically Heated Homes **1,3 | AI10: Primary Heating and Cooling System | AJ10: Installed in accordance with all applicable state and local codes | AK10: 20
C11: Project Type | AA11: Air Sealing | AB11: Building Shell | AC11: Supervised by professional; blower door assisted per BPI and program guidelines | AD11: 20 | AH11: Hot Water Tank Insulation - Natural Gas or Electric | AI11: Water Heater | AJ11: R-10 | AK11: 20
AA12: Water Heater - Propane or Oil | AB12: Water Heater | AC12: <51 gallon EF.63 / >51 gallon EF.53 | AD12: 15 | AH12: Dishwasher | AI12: Appliances & Lighting | AJ12: ENERGY STAR Qualified | AK12: 15
AA13: Water Heater - Propane or Oil Instantaneous | AB13: Water Heater | AC13: Instantaneous: EF .78 | AD13: 15 | AH13: Clothes washer | AI13: Appliances & Lighting | AJ13: ENERGY STAR Qualified | AK13: 15
C14: Market Rate | AA14: Water Heater - Indirect-Fired Tank | AB14: Water Heater | AC14: UL Approved | AD14: 20 | AH14: LEDs **5 | AI14: Appliances & Lighting | AJ14: ENERGY STAR Qualified | AK14: 15
K15: Check | AA15: Low Flow Showerhead | AB15: Conservation | AC15: Maximum flow rate of 1.5 gallons per minute. Aerating type showerheads not eligible. | AD15: 15 | AH15: Ventilation Fans (Whole house fans or similar attic exhaust fans are not eligible) | AI15: Health and Safety | AJ15: ENERGY STAR Qualified (must vent to exterior of building shell) | AK15: 15
B16: Measures Eligible for Loans | D16: Efficiency Requirements | E16: Measure Life (Years) | F16: Notes | G16: Cost | H16: Savings ($) | K16: =IF(H44="",0,E44*(H44/SUM($H$43:$H$82,#REF!))) | P16: HIDE | AA16: Refrigerator **5 | AB16: Appliances & Lighting | AC16: ENERGY STAR Qualified. Existing refrigerators must be greater than 10 years old to be eligible for replacement. | AD16: 15 | AH16: Repairs/upgrades to heating and/or DHW systems (including power venting kits) to correct spillage, inadequate draft, carbon monoxide failures | AI16: Health and Safety | AJ16: Per code and/or manufacturer specifications, as appropriate | AK16: 15
J17: Cash back | K17: Weighted average measure life | L17: Health and Safety | M17: Savings with 0.008 fuel rate escalation) | N17: Non Energy Saving Measure Costs (OBR) | O17: Loan Only Costs | P17: Preapproved | AA17: Freezer **5 | AB17: Appliances & Lighting | AC17: ENERGY STAR Qualified | AD17: 15 | AH17: Measures to provide sufficient combustion air and prevent Combustion Appliance Zone (CAZ) depressurization, spillage or inadequate draft | AI17: Health and Safety | AJ17: Allowed when BPI-required combustion safety tests indicate problem(s) with CAZ depressurization, draft or spillage, per BPI standards | AK17: 15
J18: =IF(5="HEMI",0.1*SUM(G43:G82),IF(PTypeSelect="Assisted",0.5*SUM(G43:G82),IF(PTypeSelect="Market Rate",0))) -> 0 | K18: =SUM(K43:K82) -> 0 | L18: =SUM(L43:L82) -> 0 | M18: =SUM(M43:M82) ->  | N18: =SUM(N43:N82) -> 0 | O18: =SUM(O43:O82) ->  | AA18: Dehumidifier **5 | AB18: Appliances & Lighting | AC18: ENERGY STAR Qualified | AD18: 15 | AH18: Gas leak repair | AI18: Health and Safety | AJ18: Repaired in compliance with applicable codes | AK18: 15
C19: Furnace – Natural Gas **1,2
C20: Furnace – LP **1,2
C21: Furnace – Fuel Oil **1,2
C22: Boiler - Condensing **1
C23: Boiler – Hot Water **1
C24: Boiler – Steam **1
C25: Distribution Improvements in Oil or Propane Heated Homes **1,3
C26: Duct Sealing **1
C27: Pipe Insulation **1
C28: Central Air Conditioner (split system) **1,4
C29: Programmable Thermostat **1
C30: Insulation (attic, wall, floor, band joist, basement, crawl space)
C31: Air Sealing
C32: Water Heater - Propane or Oil
C33: Water Heater - Propane or Oil, Instantaneous
C34: Water Heater - Indirect-Fired Tank
C35: Hot Water Tank Insulation – Oil or Propane
C36: Faucet Aerator
C37: Low Flow Showerhead
C38: Refrigerator **5
C39: Freezer **5
C40: Dehumidifier **5
C41: Room Air Conditioner **5
C42: CFLs **5
B43: 1 | D43: =IF(C43<>"",(INDEX(Fin_Measure_Requirements,MATCH(C43,Proforma_Measure_Names,),1)),"") ->  | E43: =IF(C43<>"",(INDEX(Fin_Measure_Life,MATCH(C43,Proforma_Measure_Names,),1)),"") ->  | H43: =IF(C43="","",INDEX(Proforma_Measure_Total_Savings_DLRS,MATCH(C43,Proforma_Measure_Names,),1)) ->  | K43: =IF(H43="",0,E43*(H43/SUM($H$43:$H$82))) -> 0 | L43: =IFERROR(IF(C43="",0,IF(VLOOKUP(C43,MLifeFinance,2,FALSE)="Health and Safety",G43,0)),0) -> 0 | M43: =FV(Fuel_Escalation_Rate,E43,-H43,,0) ->  | N43: =IFERROR(IF(C43="",0,IF(VLOOKUP(C43,MLifeFinance,5,FALSE)="NonEnergy",G43,0)),0) -> 0 | O43: =H43*E43 ->  | P43: =VLOOKUP(C43,'Fin ProForma Calcs'!$A$3:$V$61,22,FALSE) ->  | AA43: Room Air Conditioner **5 | AB43: Appliances & Lighting | AC43: ENERGY STAR Qualified | AD43: 15 | AH43: Dry vent repair | AI43: Health and Safety | AJ43: Repaired in compliance with applicable codes | AK43: 15
B44: =B43+1 -> 2 | K44: =IF(H44="",0,E44*(H44/SUM($H$43:$H$82))) -> 0 | L44: 0 | M44: =FV(Fuel_Escalation_Rate,E44,-H44,,0) ->  | N44: 0 | P44: =VLOOKUP(C44,'Fin ProForma Calcs'!$A$3:$V$61,22,FALSE) ->  | AA44: CFLs **5 | AB44: Appliances & Lighting | AC44: ENERGY STAR Qualified | AD44: 15 | AH44: Heat/Energy Recovery Ventilator | AI44: Health and Safety | AJ44: No minimum efficiency requirement | AK44: 15
B45: 3 | K45: 0 | L45: 0 | N45: 0 | P45: =VLOOKUP(C45,'Fin ProForma Calcs'!$A$3:$V$61,22,FALSE) ->  | AH45: Gas Oven Replacements, venting repairs and repairs to reduce carbon monoxide | AI45: Health and Safety | AJ45: UL Listed Gas Ovens | AK45: 15
B46: 4 | K46: 0 | L46: 0 | N46: 0 | P46: =VLOOKUP(C46,'Fin ProForma Calcs'!$A$3:$V$61,22,FALSE) ->  | AA46: Replacement Windows | AC46: ENERGY STAR for climate/region
B47: 5 | K47: 0 | L47: 0 | N47: 0 | P47: =VLOOKUP(C47,'Fin ProForma Calcs'!$A$3:$V$61,22,FALSE) ->  | AA47: Storm Windows and Storm Doors | AC47: No minimum efficiency requirement
B48: 6 | K48: 0 | L48: 0 | N48: 0 | P48: =VLOOKUP(C48,'Fin ProForma Calcs'!$A$3:$V$61,22,FALSE) ->  | AA48: Movable Window Insulation | AC48: R-3
B49: =B48+1 -> 7 | K49: 0 | L49: 0 | M49: =FV(Fuel_Escalation_Rate,E49,-H49,,0) ->  | N49: =IFERROR(IF(C49="",0,IF(VLOOKUP(C49,MLifeFinance,5,FALSE)="NonEnergy",G49,0)),0) -> 0 | O49: =H49*E49 ->  | P49: =VLOOKUP(C49,'Fin ProForma Calcs'!$A$3:$V$61,22,FALSE) ->  | AA49: Exterior Doors | AC49: ENERGY STAR for climate/region
B50: 8 | K50: 0 | L50: 0 | N50: 0 | P50: =VLOOKUP(C50,'Fin ProForma Calcs'!$A$3:$V$61,22,FALSE) ->  | AA50: Air Source Heat Pump (electric split systems) **1,2 | AC50: 14.5 SEER / 12 EER / 8.5 HSPF
B51: 9 | K51: 0 | L51: 0 | N51: 0 | P51: =VLOOKUP(C51,'Fin ProForma Calcs'!$A$3:$V$61,22,FALSE) ->  | AA51: Ground Source Heat Pump **1,2 | AC51: ENERGY STAR Qualified (closed-loop, open-loop, or direct expansion)
B52: 10 | K52: 0 | L52: 0 | N52: 0 | P52: =VLOOKUP(C52,'Fin ProForma Calcs'!$A$3:$V$61,22,FALSE) ->  | AA52: Wood/or Solid Fuel Pellet Stove **1 | AC52: EPA phase 2 (Solid fuel pellet stoves are exempt from EPA Phase 2)
B53: 11 | K53: 0 | L53: 0 | N53: 0 | P53: =VLOOKUP(C53,'Fin ProForma Calcs'!$A$3:$V$61,22,FALSE) ->  | AA53: Distribution Improvements in Natural Gas or Electrically Heated Homes **1,3 | AC53: Installed in accordance with all applicable state and local codes
B54: 12 | K54: 0 | L54: 0 | N54: 0 | P54: =VLOOKUP(C54,'Fin ProForma Calcs'!$A$3:$V$61,22,FALSE) ->  | AA54: Solar Thermal **1 | AC54: OG-300 certification from SRCC. SF 0.5. Warranty: 10 years-collector, 6 years-storage tank. 2 years-control. 1 year-piping and parts.
B55: 13 | K55: 0 | L55: 0 | N55: 0 | P55: =VLOOKUP(C55,'Fin ProForma Calcs'!$A$3:$V$61,22,FALSE) ->  | AA55: Water Heater - Natural Gas | AC55: <51 gallon EF.63 / >51 gallon EF.53
B56: 14 | K56: 0 | L56: 0 | N56: 0 | P56: =VLOOKUP(C56,'Fin ProForma Calcs'!$A$3:$V$61,22,FALSE) ->  | AA56: Water Heater - Natural Gas | AC56: Instantaneous: EF .78
B57: 15 | K57: 0 | L57: 0 | N57: 0 | P57: =VLOOKUP(C57,'Fin ProForma Calcs'!$A$3:$V$61,22,FALSE) ->  | AA57: Water Heater - Electric | AC57: EF .93
B58: 16 | K58: 0 | L58: 0 | N58: 0 | P58: =VLOOKUP(C58,'Fin ProForma Calcs'!$A$3:$V$61,22,FALSE) ->  | AA58: Hot Water Tank Insulation - Natural Gas or Electric | AC58: R-10
B59: 17 | K59: 0 | L59: 0 | N59: 0 | P59: =VLOOKUP(C59,'Fin ProForma Calcs'!$A$3:$V$61,22,FALSE) ->  | AA59: Dishwasher | AC59: ENERGY STAR Qualified
B60: 18 | K60: 0 | L60: 0 | N60: 0 | P60: =VLOOKUP(C60,'Fin ProForma Calcs'!$A$3:$V$61,22,FALSE) ->  | AA60: Clothes washer | AC60: ENERGY STAR Qualified
B61: 19 | K61: 0 | L61: 0 | N61: 0 | P61: =VLOOKUP(C61,'Fin ProForma Calcs'!$A$3:$V$61,22,FALSE) ->  | AA61: LEDs **5 | AC61: ENERGY STAR Qualified
B62: 20 | K62: 0 | L62: 0 | N62: 0 | P62: =VLOOKUP(C62,'Fin ProForma Calcs'!$A$3:$V$61,22,FALSE) -> 
B63: 21 | K63: 0 | L63: 0 | N63: 0 | P63: =VLOOKUP(C63,'Fin ProForma Calcs'!$A$3:$V$61,22,FALSE) -> 
B64: 22 | K64: 0 | L64: 0 | N64: 0 | P64: =VLOOKUP(C64,'Fin ProForma Calcs'!$A$3:$V$61,22,FALSE) -> 
B65: 23 | K65: 0 | L65: 0 | N65: 0 | P65: =VLOOKUP(C65,'Fin ProForma Calcs'!$A$3:$V$61,22,FALSE) -> 
B66: 24 | K66: 0 | L66: 0 | N66: 0 | P66: =VLOOKUP(C66,'Fin ProForma Calcs'!$A$3:$V$61,22,FALSE) -> 
B67: 25 | K67: 0 | L67: 0 | N67: 0 | P67: =VLOOKUP(C67,'Fin ProForma Calcs'!$A$3:$V$61,22,FALSE) -> 
B68: 26 | K68: 0 | L68: 0 | N68: 0 | P68: =VLOOKUP(C68,'Fin ProForma Calcs'!$A$3:$V$61,22,FALSE) -> 
B69: 27 | K69: 0 | L69: 0 | N69: 0 | P69: =VLOOKUP(C69,'Fin ProForma Calcs'!$A$3:$V$61,22,FALSE) -> 
B70: 28 | K70: 0 | L70: 0 | N70: 0 | P70: =VLOOKUP(C70,'Fin ProForma Calcs'!$A$3:$V$61,22,FALSE) -> 
B71: 29 | K71: 0 | L71: 0 | N71: 0 | P71: =VLOOKUP(C71,'Fin ProForma Calcs'!$A$3:$V$61,22,FALSE) -> 
B72: 30 | K72: 0 | L72: 0 | N72: 0 | P72: =VLOOKUP(C72,'Fin ProForma Calcs'!$A$3:$V$61,22,FALSE) -> 
B73: 31 | K73: 0 | L73: 0 | N73: 0 | P73: =VLOOKUP(C73,'Fin ProForma Calcs'!$A$3:$V$61,22,FALSE) -> 
B74: 32 | K74: 0 | L74: 0 | N74: 0 | P74: =VLOOKUP(C74,'Fin ProForma Calcs'!$A$3:$V$61,22,FALSE) -> 
B75: 33 | K75: 0 | L75: 0 | N75: 0 | P75: =VLOOKUP(C75,'Fin ProForma Calcs'!$A$3:$V$61,22,FALSE) -> 
B76: 34 | K76: 0 | L76: 0 | N76: 0 | P76: =VLOOKUP(C76,'Fin ProForma Calcs'!$A$3:$V$61,22,FALSE) -> 
B77: 35 | K77: 0 | L77: 0 | N77: 0 | P77: =VLOOKUP(C77,'Fin ProForma Calcs'!$A$3:$V$61,22,FALSE) -> 
B78: 36 | K78: 0 | L78: 0 | N78: 0 | P78: =VLOOKUP(C78,'Fin ProForma Calcs'!$A$3:$V$61,22,FALSE) -> 
B79: 37 | K79: 0 | L79: 0 | N79: 0 | P79: =VLOOKUP(C79,'Fin ProForma Calcs'!$A$3:$V$61,22,FALSE) -> 
B80: 38 | K80: 0 | L80: 0 | N80: 0 | P80: =VLOOKUP(C80,'Fin ProForma Calcs'!$A$3:$V$61,22,FALSE) -> 
B81: 39 | K81: 0 | L81: 0 | N81: 0 | P81: =VLOOKUP(C81,'Fin ProForma Calcs'!$A$3:$V$61,22,FALSE) -> 
B82: 40 | K82: 0 | L82: 0 | N82: 0 | P82: =VLOOKUP(C82,'Fin ProForma Calcs'!$A$3:$V$61,22,FALSE) ->  | AA82: Light Fixtures **5 | AC82: ENERGY STAR Qualified for compact fluorescent, or electronic ballast for fluorescent tubes

Sheet Loan Application - Step 2
O5: sum of costs | P5: sum of savings $
N6: Pre-Approved | O6: =SUMIF('Loan Application - Step 1'!P43:P82,"Y",'Loan Application - Step 1'!G43:G82) -> 0 | P6: =SUMIF('Loan Application - Step 1'!P43:P82,"Y",'Loan Application - Step 1'!H43:H82) -> 0
C7: Project Information | H7: Customer Information | N7: Non-PreApproved | O7: =SUMIF('Loan Application - Step 1'!P43:P82,"N",'Loan Application - Step 1'!G43:G82) -> 0 | P7: =SUMIF('Loan Application - Step 1'!P43:P82,"N",'Loan Application - Step 1'!H43:H82) -> 0
C9: Proposed Project Costs | E9: =IF(SUM('Loan Application - Step 1'!G43:G82)>0,SUM('Loan Application - Step 1'!G43:G82),0) -> 0
C11: $150 Processing Fee Financed? | E11: Yes | H11: Name: | I11: =Customer_Name -> 0
C13: Project Cost | E13: =IF(SUM('Loan Application - Step 1'!G43:G82)>0,SUM('Loan Application - Step 1'!G43:G82)+IF(FinFee="Yes",150,0),0) -> 0 | H13: Address: | I13: =Customer_Address -> 0
C15: HEMI | E15: =SUM('Loan Application - Step 1'!#REF!)+IF(FinFee="Yes",150,0) -> 
C17: Total AHP Amount
C19: Customer Contribution | D19: – | H19: City: | I19: =Customer_City -> 0
C21: Total Loan Amount | E21: =PCost-CustCont -> 0 | H21: State: | I21: =Customer_State -> NY
C23: Other Incentives | E23: 0
C25: Non Energy Saving Measure Costs (OBR) | E25: =SUM('Loan Application - Step 1'!N43:N82) -> 0
C27: FY Energy Cost Savings | E27: =SUM('Loan Application - Step 1'!H43:H82) -> 0
C29: Average Measure Life (years) | E29: =IF(PCost=0,"",((SUMPRODUCT('Loan Application - Step 1'!E43:E82,'Loan Application - Step 1'!G43:G82))/SUM('Loan Application - Step 1'!G43:G82))) -> 
C31: Interest Rate | E31: 0.0349
C33: Fuel Escalation Rate | E33: 0.0124
C34: Terms In Years | E34: =E102 -> 15
C35: Savings Period | E35: Monthly
C37: Loan Amount | E37: =IF(PCost=0,"",PCost-CustCont) -> 
C38: Dollar Savings | E38: =IF(SavingsPeriod= "Monthly", FV(0.0124,TermInYears,-SavingsAnnual)/(TermInYears*12), IF(SavingsPeriod="Annual", FV(0.0124,TermInYears,-SavingsAnnual)/(TermInYears), IF(SavingsPeriod="Loan Term", FV(0.0124,TermInYears,-SavingsAnnual), "Error"))) -> 0 | H38: low | I38: high
C39: Max Non Prequalified Allowance | E39: 0 | I39: =VLOOKUP(E31,H42:J48,3) -> 
D40: LC_Psavings | E40: =-FV(Fuel_Escalation_Rate,WeightedAvgMLife,SavingsAnnual,,) -> 
C41: On Bill Recovery Loan Information | H41: 0.0349 | I41: 0.0349 | J41: 0.0399
C42: Loan Payment Amount | E42: =IF(SavingsPeriod= "Monthly", E107, IF(SavingsPeriod="Annual", E107*12, IF(SavingsPeriod="Loan Term", E107*(TermInYears*12), "Error"))) ->  | H42: 0.0399 | I42: 0.0349 | J42: 0.0399
C43: Net | E43: =E38-E42 ->  | H43: 0.0699 | I43: 0.0699 | J43: 0.0749
C44: Project Lifetime Energy Savings | E44: =LC_PSavings ->  | H44: 0.0749 | I44: 0.0699 | J44: 0.0749
C45: On Bill Recovery Loan Interest Rate | E45: =VLOOKUP(E31,H41:J48,2) -> 0.0349
C48: Smart Energy Loan Information
C49: Loan Payment Amount | E49: =IF(SavingsPeriod= "Monthly", H107, IF(SavingsPeriod="Annual", H107*12, IF(SavingsPeriod="Loan Term", H107*(TermInYears*12), "Error"))) -> 
C50: Net | E50: =E38-E49 -> 
C51: Project Lifetime Energy Savings | E51: =LC_PSavings -> 
C52: Smart Energy Loan Interest Rate | E52: =E45 -> 0.0349
C53: Smart Energy Loan Rate 2 | E53: =VLOOKUP(E31,H41:J48,3) -> 0.0399
C55: Personal Loan Interest Rate | E55: =IF(K104="","",K104) -> 
C56: Loan Payment Amount | E56: =IF(SavingsPeriod= "Monthly", K107, IF(SavingsPeriod="Annual", K107*12, IF(SavingsPeriod="Loan Term", K107*(TermInYears*12), "Error"))) -> 
C57: Net | E57: =E38-E56 -> 
C59: Simple Payback Period (Years) | E59: =IF(OR(SavingsAnnual=0,PCost=0),"N/A",loanAmount/SavingsAnnual) -> N/A
D61: =D70 -> On Bill Recovery Loan at 3.49% APR | G61: =G70 -> Smart Energy Loan at 3.49% APR | J61: =J70 -> Smart Energy Loan at 3.99% APR
D62: 5 Year | E62: 10 Year | F62: 15 Year | G62: 5 Year | H62: 10 Year | I62: 15 Year | J62: 5 Year | K62: 10 Year | L62: 15 Year
C63: Does loan meet cost effectiveness? | D63: =IF(OR(Total_Loan_Amount>25000,Total_Loan_Amount<1500,NonEnergyCosts>2000,NonEnergyCosts>0.15*PCost),"No",IF(AND(D90>=0,WeightedAvgMLife>=5,D93<=15),"Yes","No")) -> No | E63: =IF(OR(Total_Loan_Amount>25000,Total_Loan_Amount<1500,NonEnergyCosts>2000,NonEnergyCosts>0.15*PCost),"No",IF(AND(E90>=0,WeightedAvgMLife>=10,E93<=15),"Yes","No")) -> No | F63: =IF(OR(Total_Loan_Amount>25000,Total_Loan_Amount<1500,NonEnergyCosts>2000,NonEnergyCosts>0.15*PCost),"No",IF(AND(F90>=0,WeightedAvgMLife>=15,F93<=15),"Yes","No")) -> No | G63: =IF(OR(Total_Loan_Amount>25000,Total_Loan_Amount<1500,NonEnergyCosts>2000,NonEnergyCosts>0.15*PCost),"No",IF(AND(loanAmount<=13000,NonEnergyCosts<=MIN(PCost*0.15,2000)),"Yes",IF(AND(loanAmount <= 13000, G80>=0.8,WeightedAvgMLife>=5),"Yes",IF(AND(G80>=0.8,G90<=15,WeightedAvgMLife>=5),"Yes","No")))) -> No | H63: =IF(OR(Total_Loan_Amount>25000,Total_Loan_Amount<1500,NonEnergyCosts>2000,NonEnergyCosts>0.15*PCost),"No",IF(AND(loanAmount<=13000,NonEnergyCosts<=MIN(PCost*0.15,2000)),"Yes",IF(AND(loanAmount <= 13000, H80>=0.8,WeightedAvgMLife>=10),"Yes",IF(AND(H80>=0.8,H90<=15,WeightedAvgMLife>=10),"Yes","No")))) -> No | I63: =IF(OR(Total_Loan_Amount>25000,Total_Loan_Amount<1500,NonEnergyCosts>2000,NonEnergyCosts>0.15*PCost),"No",IF(AND(loanAmount<=13000,NonEnergyCosts<=MIN(PCost*0.15,2000)),"Yes",IF(AND(loanAmount <= 13000, I80>=0.8,WeightedAvgMLife>=15),"Yes",IF(AND(I80>=0.8,I90<=15,WeightedAvgMLife>=15),"Yes","No")))) -> No | J63: =IF(OR(Total_Loan_Amount>25000,Total_Loan_Amount<1500,NonEnergyCosts>2000,NonEnergyCosts>0.15*PCost),"No",IF(AND(loanAmount<=13000,NonEnergyCosts<=MIN(PCost*0.15,2000)),"Yes",IF(AND(loanAmount <= 13000, J80>=0.8,WeightedAvgMLife>=5),"Yes",IF(AND(J80>=0.8,J90<=15,WeightedAvgMLife>=5),"Yes","No")))) -> No | K63: =IF(OR(Total_Loan_Amount>25000,Total_Loan_Amount<1500,NonEnergyCosts>2000,NonEnergyCosts>0.15*PCost),"No",IF(AND(loanAmount<=13000,NonEnergyCosts<=MIN(PCost*0.15,2000)),"Yes",IF(AND(loanAmount <= 13000, K80>=0.8,WeightedAvgMLife>=10),"Yes",IF(AND(K80>=0.8,K90<=15,WeightedAvgMLife>=10),"Yes","No")))) -> No | L63: =IF(OR(Total_Loan_Amount>25000,Total_Loan_Amount<1500,NonEnergyCosts>2000,NonEnergyCosts>0.15*PCost),"No",IF(AND(loanAmount<=13000,NonEnergyCosts<=MIN(PCost*0.15,2000)),"Yes",IF(AND(loanAmount <= 13000, L80>=0.8,WeightedAvgMLife>=15),"Yes",IF(AND(L80>=0.8,L90<=15,WeightedAvgMLife>=15),"Yes","No")))) -> No
C64: Loan Eligibility Criteria | D64: On Bill Recover Loan at 3.49% APR | G64: Smart Energy Loan at 3.49% APR | J64: Smart Energy Loan at 3.99% APR
D65: 5 Year | E65: 10 Year | F65: 15 Year | G65: 5 Year | H65: 10 Year | I65: 15 Year | J65: 5 Year | K65: 10 Year | L65: 15 Year
C66: Cash Flow | D66: =IF(D$90="Error!","Error!",IF(D$90>=0,"YES","NO")) -> Error! | E66: =IF(E$90="Error!","Error!",IF(E$90>=0,"YES","NO")) -> Error! | F66: =IF(F$90="Error!","Error!",IF(F$90>=0,"YES","NO")) -> Error! | G66: =IF(G$90="Error!","Error!",IF(loanAmount<=13000,"N/A",IF(G$90<=5,"YES","NO"))) -> Error! | H66: Error! | I66: Error! | J66: Error! | K66: Error! | L66: Error!
C67: Highlight SIR?
C68: Message | D68: =IF(D63="No","I am sorry but this project is not eligible for the selected loan product. However, if the customer contributes "&DOLLAR(MAX(D75,D85),0)&" or the first year savings increases to "& DOLLAR(MAX(D77,D87),0) & " then it will.", "") -> I am sorry but this project is not eligible for the selected loan product. However, if the customer contributes $0 or the first year savings increases to $0 then it will. | E68: =IF(E63="No","I am sorry but this project is not eligible for the selected loan product. However, if the customer contributes "&DOLLAR(MAX(E75,E85),0)&" or the first year savings increases to "& DOLLAR(MAX(E77,E87),0) & " then it will.", "") -> I am sorry but this project is not eligible for the selected loan product. However, if the customer contributes $0 or the first year savings increases to $0 then it will. | F68: I am sorry but this project is not eligible for the selected loan product. However, if the customer contributes $0 or the first year savings increases to $0 then it will. | G68: I am sorry but this project is not eligible for the selected loan product. However, if the customer contributes $0 or the first year savings increases to $0 then it will. | H68: I am sorry but this project is not eligible for the selected loan product. However, if the customer contributes $0 or the first year savings increases to $0 then it will. | I68: I am sorry but this project is not eligible for the selected loan product. However, if the customer contributes $0 or the first year savings increases to $0 then it will. | J68: I am sorry but this project is not eligible for the selected loan product. However, if the customer contributes $0 or the first year savings increases to $0 then it will. | K68: I am sorry but this project is not eligible for the selected loan product. However, if the customer contributes $0 or the first year savings increases to $0 then it will. | L68: I am sorry but this project is not eligible for the selected loan product. However, if the customer contributes $0 or the first year savings increases to $0 then it will.
B70: Loan Eligibilitity Criteria | D70: =CONCATENATE("On Bill Recovery Loan at ",E52*100,"% APR") -> On Bill Recovery Loan at 3.49% APR | G70: =CONCATENATE("Smart Energy Loan at ",E52*100,"% APR") -> Smart Energy Loan at 3.49% APR | J70: =CONCATENATE("Smart Energy Loan at ",E53*100,"% APR") -> Smart Energy Loan at 3.99% APR
D71: 5 Year | E71: 10 Year | F71: 15 Year | G71: 5 Year | H71: 10 Year | I71: 15 Year | J71: 5 Year | K71: 10 Year | L71: 15 Year
C72: Passes All Criteria? | D72: =D63 -> No | E72: =E63 -> No | F72: =F63 -> No | G72: No | H72: No | I72: No | J72: No | K72: No | L72: No
C74: SIR | D74: =IF(ISERROR(IF(OR(PCost<0,AND(projLifetimeEnergySavingsOnBill<0,OR(SavingsAnnual<0,WeightedAvgMLife<0))),"Error!",D80)),"",IF(OR(PCost<0,AND(projLifetimeEnergySavingsOnBill<0,OR(SavingsAnnual<0,WeightedAvgMLife<0))),"Error!",D80)) ->  | E74: =IF(ISERROR(IF(OR(PCost<0,AND(projLifetimeEnergySavingsOnBill<0,OR(SavingsAnnual<0,WeightedAvgMLife<0))),"Error!",E80)),"",IF(OR(PCost<0,AND(projLifetimeEnergySavingsOnBill<0,OR(SavingsAnnual<0,WeightedAvgMLife<0))),"Error!",E80)) ->  | F74: =IF(ISERROR(IF(OR(PCost<0,AND(projLifetimeEnergySavingsOnBill<0,OR(SavingsAnnual<0,WeightedAvgMLife<0))),"Error!",F80)),"",IF(OR(PCost<0,AND(projLifetimeEnergySavingsOnBill<0,OR(SavingsAnnual<0,WeightedAvgMLife<0))),"Error!",F80)) ->  | G74: =IF(ISERROR(IF(OR(PCost<0,AND(projLifetimeEnergySavingsSmartEnergy<0,OR(SavingsAnnual<0,WeightedAvgMLife<0))),"Error!",G80)),"",IF(OR(PCost<0,AND(projLifetimeEnergySavingsSmartEnergy<0,OR(SavingsAnnual<0,WeightedAvgMLife<0))),"Error!",G80)) -> 
C75: Required Customer Contribution | D75: =IF(D74="Error!","Error!",IF(D78>=(loanAmount),"",CEILING((loanAmount)-D78+CustCont,1))) ->  | E75: =IF(E74="Error!","Error!",IF(E78>=(loanAmount),"",CEILING((loanAmount)-E78+CustCont,1))) -> 
C76: -or-
C77: Required FY Savings | D77: =IF(OR(D74="Error!",D74=""),"Error!",IF(SavingsAnnual>=D79,"",CEILING(D79,1))) -> Error! | E77: =IF(OR(E74="Error!",E74=""),"Error!",IF(SavingsAnnual>=E79,"",CEILING(E79,1))) -> Error! | F77: =IF(OR(F74="",F74="Error!"),"Error!",IF(SavingsAnnual>=F79,"",CEILING(F79,1))) -> Error! | G77: =IF(OR(G74="Error!",G74=""),"Error!",IF(SavingsAnnual>=G79,"",CEILING(G79,1))) -> Error! | H77: =IF(OR(H74="",H74="Error!"),"Error!",IF(SavingsAnnual>=H79,"",CEILING(H79,1))) -> Error! | I77: =IF(OR(I74="Error!",I74=""),"Error!",IF(SavingsAnnual>=I79,"",CEILING(I79,1))) -> Error! | J77: =IF(OR(J74="Error!",J74=""),"Error!",IF(SavingsAnnual>=J79,"",CEILING(J79,1))) -> Error! | K77: =IF(OR(K74="Error!",K74=""),"Error!",IF(SavingsAnnual>=K79,"",CEILING(K79,1))) -> Error! | L77: =IF(OR(L74="Error!",L74=""),"Error!",IF(SavingsAnnual>=L79,"",CEILING(L79,1))) -> Error!
C78: LoanPrincipal Compliance Value | D78: =IF(ISERROR(IF(OR((loanAmount)<0,WeightedAvgMLife<0),"N/A",PV((BillRecoveryLoan)/12,5*12,-((FV(0.0124,WeightedAvgMLife,-SavingsAnnual)/0.8)/(5*12))))),"",IF(OR((loanAmount)<0,WeightedAvgMLife<0),"N/A",PV((BillRecoveryLoan)/12,5*12,-((FV(0.0124,WeightedAvgMLife,-SavingsAnnual)/0.8)/(5*12))))) ->  | E78: =IF(ISERROR(IF(OR((loanAmount)<0,WeightedAvgMLife<0),"N/A",PV((BillRecoveryLoan)/12,10*12,-((FV(0.0124,WeightedAvgMLife,-SavingsAnnual)/0.8)/(10*12))))),"",IF(OR((loanAmount)<0,WeightedAvgMLife<0),"N/A",PV((BillRecoveryLoan)/12,10*12,-((FV(0.0124,WeightedAvgMLife,-SavingsAnnual)/0.8)/(10*12))))) ->  | F78: =IF(ISERROR(IF(OR((loanAmount)<0,WeightedAvgMLife<0),"N/A",PV((BillRecoveryLoan)/12,15*12,-((FV(0.0124,WeightedAvgMLife,-SavingsAnnual)/0.8)/(15*12))))),"",IF(OR((loanAmount)<0,WeightedAvgMLife<0),"N/A",PV((BillRecoveryLoan)/12,15*12,-((FV(0.0124,WeightedAvgMLife,-SavingsAnnual)/0.8)/(15*12))))) ->  | G78: =IF(ISERROR(IF(OR((loanAmount)<0,WeightedAvgMLife<0),"N/A",PV((UnsecuredLoanInterest)/12,5*12,-((FV(0.0124,WeightedAvgMLife,-SavingsAnnual)/0.8)/(5*12))))),"",IF(OR((loanAmount)<0,WeightedAvgMLife<0),"N/A",PV((UnsecuredLoanInterest)/12,5*12,-((FV(0.0124,WeightedAvgMLife,-SavingsAnnual)/0.8)/(5*12))))) ->  | H78: =IF(ISERROR(IF(OR((loanAmount)<0,WeightedAvgMLife<0),"N/A",PV((UnsecuredLoanInterest)/12,10*12,-((FV(0.0124,WeightedAvgMLife,-SavingsAnnual)/0.8)/(10*12))))),"",IF(OR((loanAmount)<0,WeightedAvgMLife<0),"N/A",PV((UnsecuredLoanInterest)/12,10*12,-((FV(0.0124,WeightedAvgMLife,-SavingsAnnual)/0.8)/(10*12))))) ->  | I78: =IF(ISERROR(IF(OR((loanAmount)<0,WeightedAvgMLife<0),"N/A",PV((UnsecuredLoanInterest)/12,15*12,-((FV(0.0124,WeightedAvgMLife,-SavingsAnnual)/0.8)/(15*12))))),"",IF(OR((loanAmount)<0,WeightedAvgMLife<0),"N/A",PV((UnsecuredLoanInterest)/12,15*12,-((FV(0.0124,WeightedAvgMLife,-SavingsAnnual)/0.8)/(15*12))))) ->  | J78: =IF(ISERROR(IF(OR((loanAmount)<0,WeightedAvgMLife<0),"N/A",PV((UnsecuredLoanInterest2)/12,5*12,-((FV(0.0124,WeightedAvgMLife,-SavingsAnnual)/0.8)/(5*12))))),"",IF(OR((loanAmount)<0,WeightedAvgMLife<0),"N/A",PV((UnsecuredLoanInterest2)/12,5*12,-((FV(0.0124,WeightedAvgMLife,-SavingsAnnual)/0.8)/(5*12))))) ->  | K78: =IF(ISERROR(IF(OR((loanAmount)<0,WeightedAvgMLife<0),"N/A",PV(((UnsecuredLoanInterest2)/100)/12,10*12,-((FV(0.0124,WeightedAvgMLife,-SavingsAnnual)/0.8)/(10*12))))),"",IF(OR((loanAmount)<0,WeightedAvgMLife<0),"N/A",PV(((UnsecuredLoanInterest2)/100)/12,10*12,-((FV(0.0124,WeightedAvgMLife,-SavingsAnnual)/0.8)/(10*12))))) ->  | L78: =IF(ISERROR(IF(OR((loanAmount)<0,WeightedAvgMLife<0),"N/A",PV((UnsecuredLoanInterest2)/12,15*12,-((FV(0.0124,WeightedAvgMLife,-SavingsAnnual)/0.8)/(15*12))))),"",IF(OR((loanAmount)<0,WeightedAvgMLife<0),"N/A",PV((UnsecuredLoanInterest2)/12,15*12,-((FV(0.0124,WeightedAvgMLife,-SavingsAnnual)/0.8)/(15*12))))) -> 
C79: Savings Compliance value | D79: =IF(ISERROR(IF(OR((loanAmount)<0,WeightedAvgMLife<0),"N/A",PMT(Fuel_Escalation_Rate,WeightedAvgMLife,,0.8*(-PMT((BillRecoveryLoan)/12,5*12,-(loanAmount))*5*12)))),"",IF(OR((loanAmount)<0,WeightedAvgMLife<0),"N/A",PMT(Fuel_Escalation_Rate,WeightedAvgMLife,,0.8*(-PMT((BillRecoveryLoan)/12,5*12,-(loanAmount))*5*12)))) ->  | E79: =IF(ISERROR(IF(OR((loanAmount)<0,WeightedAvgMLife<0),"N/A",PMT(Fuel_Escalation_Rate,WeightedAvgMLife,,0.8*(-PMT((BillRecoveryLoan)/12,10*12,-(loanAmount))*10*12)))),"",IF(OR((loanAmount)<0,WeightedAvgMLife<0),"N/A",PMT(Fuel_Escalation_Rate,WeightedAvgMLife,,0.8*(-PMT((BillRecoveryLoan)/12,10*12,-(loanAmount))*10*12)))) ->  | F79: =IF(ISERROR(IF(OR((loanAmount)<0,WeightedAvgMLife<0),"N/A",PMT(Fuel_Escalation_Rate,WeightedAvgMLife,,0.8*(-PMT((BillRecoveryLoan)/12,15*12,-(loanAmount))*15*12)))),"",IF(OR((loanAmount)<0,WeightedAvgMLife<0),"N/A",PMT(Fuel_Escalation_Rate,WeightedAvgMLife,,0.8*(-PMT((BillRecoveryLoan)/12,15*12,-(loanAmount))*15*12)))) ->  | G79: =IF(ISERROR(IF(OR((loanAmount-MaxHandS)<0,WeightedAvgMLife<0),"N/A",PMT(Fuel_Escalation_Rate,WeightedAvgMLife,,0.8*(-PMT((UnsecuredLoanInterest)/12,5*12,-(loanAmount-MaxHandS))*5*12)))),"",IF(OR((loanAmount-MaxHandS)<0,WeightedAvgMLife<0),"N/A",PMT(Fuel_Escalation_Rate,WeightedAvgMLife,,0.8*(-PMT((UnsecuredLoanInterest)/12,5*12,-(loanAmount-MaxHandS))*5*12)))) ->  | H79: =IF(ISERROR(IF(OR((loanAmount-MaxHandS)<0,WeightedAvgMLife<0),"N/A",PMT(Fuel_Escalation_Rate,WeightedAvgMLife,,0.8*(-PMT((UnsecuredLoanInterest)/12,10*12,-(loanAmount-MaxHandS))*10*12)))),"",IF(OR((loanAmount-MaxHandS)<0,WeightedAvgMLife<0),"N/A",PMT(Fuel_Escalation_Rate,WeightedAvgMLife,,0.8*(-PMT((UnsecuredLoanInterest)/12,10*12,-(loanAmount-MaxHandS))*10*12)))) ->  | I79: =IF(ISERROR(IF(OR((loanAmount-MaxHandS)<0,WeightedAvgMLife<0),"N/A",PMT(Fuel_Escalation_Rate,WeightedAvgMLife,,0.8*(-PMT((UnsecuredLoanInterest)/12,15*12,-(loanAmount-MaxHandS))*15*12)))),"",IF(OR((loanAmount-MaxHandS)<0,WeightedAvgMLife<0),"N/A",PMT(Fuel_Escalation_Rate,WeightedAvgMLife,,0.8*(-PMT((UnsecuredLoanInterest)/12,15*12,-(loanAmount-MaxHandS))*15*12)))) ->  | J79: =IF(ISERROR(IF(OR((loanAmount-MaxHandS)<0,WeightedAvgMLife<0),"N/A",PMT(Fuel_Escalation_Rate,WeightedAvgMLife,,0.8*(-PMT((UnsecuredLoanInterest2)/12,5*12,-(loanAmount-MaxHandS))*5*12)))),"",IF(OR((loanAmount-MaxHandS)<0,WeightedAvgMLife<0),"N/A",PMT(Fuel_Escalation_Rate,WeightedAvgMLife,,0.8*(-PMT((UnsecuredLoanInterest2)/12,5*12,-(loanAmount-MaxHandS))*5*12)))) ->  | K79: =IF(ISERROR(IF(OR((loanAmount-MaxHandS)<0,WeightedAvgMLife<0),"N/A",PMT(Fuel_Escalation_Rate,WeightedAvgMLife,,0.8*(-PMT((UnsecuredLoanInterest2)/12,10*12,-(loanAmount-MaxHandS))*10*12)))),"",IF(OR((loanAmount-MaxHandS)<0,WeightedAvgMLife<0),"N/A",PMT(Fuel_Escalation_Rate,WeightedAvgMLife,,0.8*(-PMT((UnsecuredLoanInterest2)/12,10*12,-(loanAmount-MaxHandS))*10*12)))) ->  | L79: =IF(ISERROR(IF(OR((loanAmount-MaxHandS)<0,WeightedAvgMLife<0),"N/A",PMT(Fuel_Escalation_Rate,WeightedAvgMLife,,0.8*(-PMT((UnsecuredLoanInterest2)/12,15*12,-(loanAmount-MaxHandS))*15*12)))),"",IF(OR((loanAmount-MaxHandS)<0,WeightedAvgMLife<0),"N/A",PMT(Fuel_Escalation_Rate,WeightedAvgMLife,,0.8*(-PMT((UnsecuredLoanInterest2)/12,15*12,-(loanAmount-MaxHandS))*15*12)))) -> 
C80: SIR | D80: =IF(ISERROR(IF(projLifetimeEnergySavingsOnBill>0,ROUND((projLifetimeEnergySavingsOnBill)/(PMT(BillRecoveryLoan/12,5*12,-(loanAmount))*5*12),2),ROUND((FV(0.0124,WeightedAvgMLife,-SavingsAnnual)/(PMT((BillRecoveryLoan)/12,5*12,-(loanAmount))*5*12)),2))),"",IF(projLifetimeEnergySavingsOnBill>0,ROUND((projLifetimeEnergySavingsOnBill)/(PMT(BillRecoveryLoan/12,5*12,-(loanAmount))*5*12),2),ROUND((FV(0.0124,WeightedAvgMLife,-SavingsAnnual)/(PMT((BillRecoveryLoan)/12,5*12,-(loanAmount))*5*12)),2))) ->  | E80: =IF(ISERROR(IF(projLifetimeEnergySavingsOnBill>0,ROUND((projLifetimeEnergySavingsOnBill)/(PMT((BillRecoveryLoan)/12,10*12,-(loanAmount))*10*12),2),ROUND((FV(0.0124,WeightedAvgMLife,-SavingsAnnual)/(PMT((BillRecoveryLoan)/12,10*12,-(loanAmount))*10*12)),2))),"",IF(projLifetimeEnergySavingsOnBill>0,ROUND((projLifetimeEnergySavingsOnBill)/(PMT((BillRecoveryLoan)/12,10*12,-(loanAmount))*10*12),2),ROUND((FV(0.0124,WeightedAvgMLife,-SavingsAnnual)/(PMT((BillRecoveryLoan)/12,10*12,-(loanAmount))*10*12)),2))) ->  | F80: =IF(ISERROR(IF(projLifetimeEnergySavingsOnBill>0,ROUND((projLifetimeEnergySavingsOnBill)/(PMT((BillRecoveryLoan)/12,15*12,-(loanAmount))*15*12),2),ROUND((FV(0.0124,WeightedAvgMLife,-SavingsAnnual)/(PMT((BillRecoveryLoan)/12,15*12,-(loanAmount))*15*12)),2))),"",IF(projLifetimeEnergySavingsOnBill>0,ROUND((projLifetimeEnergySavingsOnBill)/(PMT((BillRecoveryLoan)/12,15*12,-(loanAmount))*15*12),2),ROUND((FV(0.0124,WeightedAvgMLife,-SavingsAnnual)/(PMT((BillRecoveryLoan)/12,15*12,-(loanAmount))*15*12)),2))) ->  | G80: =IF(ISERROR(IF(projLifetimeEnergySavingsSmartEnergy>0,ROUND((projLifetimeEnergySavingsSmartEnergy)/(PMT((UnsecuredLoanInterest)/12,5*12,-(loanAmount-MaxHandS))*5*12),2),ROUND((FV(0.0124,WeightedAvgMLife,-SavingsAnnual)/(PMT((UnsecuredLoanInterest)/12,5*12,-(loanAmount-MaxHandS))*5*12)),2))),"",IF(projLifetimeEnergySavingsSmartEnergy>0,ROUND((projLifetimeEnergySavingsSmartEnergy)/(PMT((UnsecuredLoanInterest)/12,5*12,-(loanAmount-MaxHandS))*5*12),2),ROUND((FV(0.0124,WeightedAvgMLife,-SavingsAnnual)/(PMT((UnsecuredLoanInterest)/12,5*12,-(loanAmount-MaxHandS))*5*12)),2))) ->  | H80: =IF(ISERROR(IF(projLifetimeEnergySavingsSmartEnergy>0,ROUND((projLifetimeEnergySavingsSmartEnergy)/(PMT((UnsecuredLoanInterest)/12,10*12,-(loanAmount-MaxHandS))*10*12),2),ROUND((FV(0.0124,WeightedAvgMLife,-SavingsAnnual)/(PMT((UnsecuredLoanInterest)/12,10*12,-(loanAmount-MaxHandS))*10*12)),2))),"",IF(projLifetimeEnergySavingsSmartEnergy>0,ROUND((projLifetimeEnergySavingsSmartEnergy)/(PMT((UnsecuredLoanInterest)/12,10*12,-(loanAmount-MaxHandS))*10*12),2),ROUND((FV(0.0124,WeightedAvgMLife,-SavingsAnnual)/(PMT((UnsecuredLoanInterest)/12,10*12,-(loanAmount-MaxHandS))*10*12)),2))) ->  | I80: =IF(ISERROR(IF(projLifetimeEnergySavingsSmartEnergy>0,ROUND((projLifetimeEnergySavingsSmartEnergy)/(PMT((UnsecuredLoanInterest)/12,15*12,-(loanAmount-MaxHandS))*15*12),2),ROUND((FV(0.0124,WeightedAvgMLife,-SavingsAnnual)/(PMT((UnsecuredLoanInterest)/12,15*12,-(loanAmount-MaxHandS))*15*12)),2))),"",IF(projLifetimeEnergySavingsSmartEnergy>0,ROUND((projLifetimeEnergySavingsSmartEnergy)/(PMT((UnsecuredLoanInterest)/12,15*12,-(loanAmount-MaxHandS))*15*12),2),ROUND((FV(0.0124,WeightedAvgMLife,-SavingsAnnual)/(PMT((UnsecuredLoanInterest)/12,15*12,-(loanAmount-MaxHandS))*15*12)),2))) ->  | J80: =IF(ISERROR(IF(projLifetimeEnergySavingsSmartEnergy>0,ROUND((projLifetimeEnergySavingsSmartEnergy)/(PMT((UnsecuredLoanInterest2)/12,5*12,-(loanAmount-MaxHandS))*5*12),2),ROUND((FV(0.0124,WeightedAvgMLife,-SavingsAnnual)/(PMT((UnsecuredLoanInterest2)/12,5*12,-(loanAmount-MaxHandS))*5*12)),2))),"",IF(projLifetimeEnergySavingsSmartEnergy>0,ROUND((projLifetimeEnergySavingsSmartEnergy)/(PMT((UnsecuredLoanInterest2)/12,5*12,-(loanAmount-MaxHandS))*5*12),2),ROUND((FV(0.0124,WeightedAvgMLife,-SavingsAnnual)/(PMT((UnsecuredLoanInterest2)/12,5*12,-(loanAmount-MaxHandS))*5*12)),2))) ->  | K80: =IF(ISERROR(IF(projLifetimeEnergySavingsSmartEnergy>0,ROUND((projLifetimeEnergySavingsSmartEnergy)/(PMT((UnsecuredLoanInterest2)/12,10*12,-(loanAmount-MaxHandS))*10*12),2),ROUND((FV(0.0124,WeightedAvgMLife,-SavingsAnnual)/(PMT((UnsecuredLoanInterest2)/12,10*12,-(loanAmount-MaxHandS))*10*12)),2))),"",IF(projLifetimeEnergySavingsSmartEnergy>0,ROUND((projLifetimeEnergySavingsSmartEnergy)/(PMT((UnsecuredLoanInterest2)/12,10*12,-(loanAmount-MaxHandS))*10*12),2),ROUND((FV(0.0124,WeightedAvgMLife,-SavingsAnnual)/(PMT((UnsecuredLoanInterest2)/12,10*12,-(loanAmount-MaxHandS))*10*12)),2))) ->  | L80: =IF(ISERROR(IF(projLifetimeEnergySavingsSmartEnergy>0,ROUND((projLifetimeEnergySavingsSmartEnergy)/(PMT((UnsecuredLoanInterest2)/12,15*12,-(loanAmount-MaxHandS))*15*12),2),ROUND((FV(0.0124,WeightedAvgMLife,-SavingsAnnual)/(PMT((UnsecuredLoanInterest2)/12,15*12,-(loanAmount-MaxHandS))*15*12)),2))),"",IF(projLifetimeEnergySavingsSmartEnergy>0,ROUND((projLifetimeEnergySavingsSmartEnergy)/(PMT((UnsecuredLoanInterest2)/12,15*12,-(loanAmount-MaxHandS))*15*12),2),ROUND((FV(0.0124,WeightedAvgMLife,-SavingsAnnual)/(PMT((UnsecuredLoanInterest2)/12,15*12,-(loanAmount-MaxHandS))*15*12)),2))) -> 
C82: Cash Flow Eligibility | D82: =IF(D$90="Error!","Error!",IF(D$90>=0,"YES","NO")) -> Error! | E82: =IF(E$90="Error!","Error!",IF(E$90>=0,"YES","NO")) -> Error! | F82: =IF(F$90="Error!","Error!",IF(F$90>=0,"YES","NO")) -> Error! | G82: =IF(G$90="Error!","Error!",IF(loanAmount<=13000,"YES",IF(AND(G85="",G87=""),"YES","NO"))) -> Error! | H82: Error! | I82: Error! | J82: Error! | K82: Error! | L82: Error!
C83: OBR must meet 1/12 Rule; Loans >$13,000 must have Simple Payback <=15 Yrs; All Smart Energy Loans (SEL) require loan term <= average measure life
C85: Required Customer Contribution | D85: =IF(D90="Error!","Error!",IF(D88>=(loanAmount),"",CEILING((loanAmount)-D88+CustCont,1))) -> Error! | E85: =IF(E90="Error!","Error!",IF(E88>=(loanAmount),"",CEILING((loanAmount)-E88+CustCont,1))) -> Error! | F85: =IF(F90="Error!","Error!",IF(F88>=(loanAmount),"",CEILING((loanAmount)-F88+CustCont,1))) -> Error! | G85: =IF(G90="Error!","Error!",IF((loanAmount)<=13000,"N/A",IF(G90<=15,"",IF(G88<=13000,CEILING(loanAmount-13000+CustCont,1),CEILING(loanAmount-G88+CustCont,1))))) -> Error! | H85: Error! | I85: Error! | J85: Error! | K85: Error! | L85: Error!
C86: -or-
C87: Required FY Savings | D87: =IF(D90="Error!","Error!",IF(D89<=SavingsAnnual,"",CEILING(D89,1))) -> Error! | E87: =IF(E90="Error!","Error!",IF(E89<=SavingsAnnual,"",CEILING(E89,1))) -> Error! | F87: =IF(F90="Error!","Error!",IF(F89<=SavingsAnnual,"",CEILING(F89,1))) -> Error! | G87: =IF(G90="Error!","Error!",IF((loanAmount)<=13000,"N/A",IF(G90<=15,"",CEILING(G89,1)))) -> Error! | H87: Error! | I87: Error! | J87: Error! | K87: Error! | L87: Error!
B88: OBR 1/12 | C88: LoanPrincipal Compliance Value (1/12) | D88: =PV(UnsecuredLoanInterest/12,5*12,-(FV(0.0124,5,-(SavingsAnnual))/(5*12))) -> 0 | E88: =PV(UnsecuredLoanInterest/12,10*12,-(FV(0.0124,10,-(SavingsAnnual))/(10*12))) -> 0 | F88: =PV(UnsecuredLoanInterest/12,15*12,-(FV(0.0124,15,-(SavingsAnnual))/(15*12))) -> 0 | G88: =IF(G90="Error!","Error!",(SavingsAnnual*15)+MaxHandS) -> Error! | H88: Error! | I88: Error! | J88: Error! | K88: Error! | L88: Error!
C89: FY Savings Compliance value (1/12) | D89: =IF(ISERROR(PMT(0.0124,5,,-PMT((BillRecoveryLoan)/12,5*12,-(loanAmount))*5*12)),"",PMT(0.0124,5,,-PMT((BillRecoveryLoan)/12,5*12,-(loanAmount))*5*12)) ->  | E89: =IF(ISERROR(PMT(0.0124,10,,-PMT((BillRecoveryLoan)/12,10*12,-(loanAmount))*10*12)),"",PMT(0.0124,10,,-PMT((BillRecoveryLoan)/12,10*12,-(loanAmount))*10*12)) ->  | F89: =IF(ISERROR(PMT(0.0124,15,,-PMT((BillRecoveryLoan)/12,15*12,-(loanAmount))*15*12)),"",PMT(0.0124,15,,-PMT((BillRecoveryLoan)/12,15*12,-(loanAmount))*15*12)) ->  | G89: =IF(G90="Error!","Error!",(loanAmount-MaxHandS)/15) -> Error! | H89: Error! | I89: Error! | J89: Error! | K89: Error! | L89: Error!
C90: Monthly Cash flow (1/12) | D90: =IFERROR((FV(0.0124,5,-SavingsAnnual)/(5*12))-PMT(BillRecoveryLoan/12,5*12,-(loanAmount)),"Error!") -> Error! | E90: =IFERROR((FV(0.0124,10,-SavingsAnnual)/(10*12))-PMT(BillRecoveryLoan/12,10*12,-(loanAmount)),"Error!") -> Error! | F90: =IFERROR((FV(0.0124,15,-SavingsAnnual)/(15*12))-PMT(BillRecoveryLoan/12,15*12,-(loanAmount)),"Error!") -> Error! | G90: =IFERROR((loanAmount-MaxHandS)/SavingsAnnual,"Error!") -> Error! | H90: =IFERROR((loanAmount-MaxHandS)/SavingsAnnual,"Error!") -> Error! | I90: Error! | J90: Error! | K90: Error! | L90: Error!
B91: Simple Payback | C91: LoanPrincipal Compliance Value (Payback) | D91: =IF(D93="Error!","Error!",(SavingsAnnual*15)) -> Error! | E91: =IF(E93="Error!","Error!",(SavingsAnnual*15)) -> Error! | F91: =IF(F93="Error!","Error!",(SavingsAnnual*15)) -> Error!
C92: FY Savings Compliance value (Payback) | D92: =IF(D93="Error!","Error!",(loanAmount)/5) -> Error! | E92: =IF(E93="Error!","Error!",(loanAmount)/10) -> Error! | F92: =IF(F93="Error!","Error!",(loanAmount)/15) -> Error!
C93: Payback Period | D93: =IFERROR((loanAmount)/SavingsAnnual,"Error!") -> Error! | E93: =IFERROR((loanAmount)/SavingsAnnual,"Error!") -> Error! | F93: =IFERROR((loanAmount)/SavingsAnnual,"Error!") -> Error!
B97: Loan Calculator
D98: On-Bill Recovery Loan & Smart Energy Loan – Autopay | G98: Smart Energy Loan – Pay by Check | J98: Personal Loan
B99: Loan Information
C100: Loan Amount (Above) | E100: =loanAmount -> 
C102: Term in Years | E102: 15
C104: Interest | E104: =UnsecuredLoanInterest -> 0.0349 | H104: =E53 -> 0.0399
B106: Payment Information
C107: Monthly Payment | E107: =IF(ISERROR(PMT((BillRecoveryLoan)/12,TermInYears*12,-loanAmount)),"",PMT((BillRecoveryLoan)/12,TermInYears*12,-loanAmount)) ->  | H107: =IF(ISERROR(PMT((H104)/12,TermInYears*12,-loanAmount)),"",PMT((H104)/12,TermInYears*12,-loanAmount)) ->  | K107: =IF(ISERROR(PMT((PersonalLoanInterest)/12,TermInYears*12,-loanAmount)),"",PMT((PersonalLoanInterest)/12,TermInYears*12,-loanAmount)) -> 
C109: Total Invested | E109: =IF(ISERROR((E107*(TermInYears*12))),"",(E107*(TermInYears*12))) ->  | H109: =IF(ISERROR(($H$107*(TermInYears*12))),"",($H$107*(TermInYears*12))) ->  | K109: =IF(ISERROR((K107*(TermInYears*12))),"",(K107*(TermInYears*12))) -> 
C111: Interest Accrued | E111: =IF(ISERROR(E109-loanAmount),"",E109-loanAmount) ->  | H111: =IF(ISERROR(H109-loanAmount),"",H109-loanAmount) ->  | K111: =IF(ISERROR(K109-loanAmount),"",K109-loanAmount) -> 
B113: Savings After Improvement
C114: Monthly
C116: Dollar Savings | E116: =IF(C114= "Monthly", FV(0.0124,E102,-SavingsAnnual)/(E102*12), IF(C114="Annual", FV(0.0124,E102,-SavingsAnnual)/(E102), IF(C114="Loan Term", FV(0.0124,E102,-SavingsAnnual), "Error"))) -> 0
C118: Loan Payment Amount | E118: =IF($C$114= "Monthly", E107, IF($C$114="Annual", E107*12, IF($C$114="Loan Term", E107*(E102*12), "Error"))) ->  | H118: =IF($C$114= "Monthly", H107, IF($C$114="Annual", H107*12, IF($C$114="Loan Term", H107*(E102*12), "Error"))) ->  | K118: =IF(C114= "Monthly", K107, IF(C114="Annual", K107*12, IF(C114="Loan Term", K107*(E102*12), "Error"))) -> 
C120: Net | E120: =IF(ISERROR($E$116-E118),"",$E$116-E118) ->  | H120: =IF(ISERROR($E$116-H118),"",$E$116-H118) ->  | K120: =IF(ISERROR($E$116-K118),"",$E$116-K118) -> 
C122: Project Lifetime Energy Savings | E122: =IF(ISERROR(projLifetimeEnergySavingsOnBill),"",projLifetimeEnergySavingsOnBill) ->  | H122: =IF(ISERROR(projLifetimeEnergySavingsSmartEnergy),"",projLifetimeEnergySavingsSmartEnergy) ->  | K122: =IF(ISERROR(projLifetimeEnergySavingsSmartEnergy),"",projLifetimeEnergySavingsSmartEnergy) -> 
C124: Simple Payback Period (Years) | E124: =IF(OR(SavingsAnnual=0,PCost=0),"N/A",LoanPrincipal/SavingsAnnual) -> N/A | H124: =IF(OR(SavingsAnnual=0,PCost=0),"N/A",LoanPrincipal/SavingsAnnual) -> N/A | K124: =IF(OR(SavingsAnnual=0,PCost=0),"N/A",LoanPrincipal/SavingsAnnual) -> N/A
L126: ='Audit Data Collection'!A141 -> Version 3-11-2020

Sheet AdminUse ONLY - EFS Inputs
A1: Auditors - Please leave this tab alone
A2: EFS Use Only
A4: Total Project Cost | B4: ='Loan Application - Step 2'!PCost -> 0
A5: Installed Capacity
A6: MWh Generation
A7: MWH Savings | B7: =SUMIFS(Conversion[Units of Energy Savings],Conversion[Heating Fuel Consumed by Home],"Electricity",Conversion[Input from Loan Step 1],"Yes",Conversion[Units of Energy Savings],"<>#N/A",Conversion[Heating Fuel Consumed by Home],"<>#N/A")*0.001 -> 0
A8: Natural Gas MMBTU Savings | B8: =(SUMIFS(Conversion[Units of Energy Savings],Conversion[Heating Fuel Consumed by Home],"Natural Gas",Conversion[Input from Loan Step 1],"Yes",Conversion[Units of Energy Savings],"<>#N/A",Conversion[Heating Fuel Consumed by Home],"<>#N/A")+SUMIFS(Conversion[Units of Energy Savings],Conversion[Heating Fuel Consumed by Home],"NaturalGas",Conversion[Input from Loan Step 1],"Yes",Conversion[Units of Energy Savings],"<>#N/A",Conversion[Heating Fuel Consumed by Home],"<>#N/A"))*0.00341214 -> 0
A9: Propane MMBTU Savings | B9: =SUMIFS(Conversion[Units of Energy Savings],Conversion[Heating Fuel Consumed by Home],"Propane",Conversion[Input from Loan Step 1],"Yes",Conversion[Units of Energy Savings],"<>#N/A",Conversion[Heating Fuel Consumed by Home],"<>#N/A")*0.00341214 -> 0
A10: #2/Distillate Oil MMBTU Savings
A11: Oil MMBTU Savings | B11: =SUMIFS(Conversion[Units of Energy Savings],Conversion[Heating Fuel Consumed by Home],"Oil",Conversion[Units of Energy Savings],"<>#N/A",Conversion[Heating Fuel Consumed by Home],"<>#N/A",Conversion[Input from Loan Step 1],"Yes")*0.00341214 -> 0
A12: Gasoline MMBTU Savings
A13: Wood MMBTU Savings | B13: =SUMIFS(Conversion[Units of Energy Savings],Conversion[Heating Fuel Consumed by Home],"Wood",Conversion[Input from Loan Step 1],"Yes",Conversion[Units of Energy Savings],"<>#N/A",Conversion[Heating Fuel Consumed by Home],"<>#N/A")*0.00341214 -> 0
A14: Steam MMBTU Savings
A15: Kerosene MMBTU Savings | B15: =SUMIFS(Conversion[Units of Energy Savings],Conversion[Heating Fuel Consumed by Home],"Kerosene",Conversion[Input from Loan Step 1],"Yes",Conversion[Units of Energy Savings],"<>#N/A",Conversion[Heating Fuel Consumed by Home],"<>#N/A")*0.00341214 -> 0
A16: Coal MMBTU Savings
A17: Pellets MMBTU Savings | B17: =SUMIFS(Conversion[Units of Energy Savings],Conversion[Heating Fuel Consumed by Home],"Pellets",Conversion[Input from Loan Step 1],"Yes",Conversion[Units of Energy Savings],"<>#N/A",Conversion[Heating Fuel Consumed by Home],"<>#N/A")*0.00341214 -> 0
A18: Other MMBTU Savings
A19: Total MMBTU Savings | B19: =SUM(B8:B18) -> 0
A20: Space Heating Fuel Switch: (Y/N) | B20: =IF((COUNTIFS('Loan Application - Step 1'!$C$43:$C$82,"Upgrade Heating System to Air Source Heat Pump (ducted or ductless)")+COUNTIFS('Loan Application - Step 1'!$C$43:$C$82,"Upgrade oil heat to gas heat"))>0,"Yes","No") -> No
A21: Water Heating Fuel Switch: (Y/N) | B21: =IF(AND(Raw_Water_Heating_Fuel_New<>Raw_Water_Heating_Fuel_Existing,Raw_Water_Heating_Fuel_New<>""),"Yes","No") -> No

Sheet AdminUse ONLY-Evaluation Output
A1: Savings | B1: Audit Company Name | C1: Customer Name | D1: Customer Phone Number | E1: Customer E-Mail Address | F1: Fuel Type | G1: Air Leakage - kWh Savings | H1: Air Leakage - MMBTU Savings | I1: Air Leakage - Recommended Upgrade | J1: Attic/Roof Insulation; kWh Savings | K1: Attic/Roof Insulation; MMBTU Savings | L1: Attic/Roof Insulation; Recommended Upgrade | M1: Floor Insulation; kWh Savings | N1: Floor Insulation; MMBTU Savings | O1: Floor Insulation; Recommended Upgrade | P1: Foundation Insulation; kWh Savings | Q1: Foundation Insulation; MMBTU Savings | R1: Foundation Insulation; Recommended Upgrade | S1: Wall Insulation; kWh Savings | T1: Wall Insulation; MMBTU Savings | U1: Wall Insulation; Recommended Upgrade | V1: Central Cooling: kWh Savings | W1: Central Cooling: MMBTU Savings | X1: Central Cooling: Recommended Upgrade | Y1: Clothes Washer - kWh Savings | Z1: Clothes Washer - Recommended Upgrade | AA1: Dehumidifier - kWh Savings | AB1: Dehumidifier - Recommended Upgrade | AC1: Dishwasher - kWh Savings | AD1: Dishwasher - Recommended Upgrade | AE1: Duct Leakage - kWh Savings | AF1: Duct Leakage - MMBTU Savings | AG1: Duct Leakage - Recommended Upgrade | AH1: Faucet Aerators - kWh Savings | AI1: Faucet Aerators - MMBTU Savings | AJ1: Faucet Aerators - Recommended Upgrade | AK1: Lighting - kWh Savings | AL1: Lighting - MMBTU Savings | AM1: Lighting - Recommended Upgrade | AN1: Option: Upgrade heating system with same fuel type: kWh Savings | AO1: Option: Upgrade heating system with same fuel type: MMBTU Savings | AP1: Option: Upgrade heating system with same fuel type: Recommended Upgrade | AQ1: Option: Upgrade oil heat to gas heat: kWh Savings | AR1: Option: Upgrade oil heat to gas heat: MMBTU Savings | AS1: Option: Upgrade oil heat to gas heat: Recommended Upgrade | AT1: Option: Upgrade to ASHP: kWh Savings | AU1: Option: Upgrade to ASHP: MMBTU Savings | AV1: Option: Upgrade to ASHP: Recommended Upgrade | AW1: Primary Refrigerator - kWh Savings | AX1: Primary Refrigerator - Recommended Upgrade | AY1: Replacement Windows - kWh Savings | AZ1: Replacement Windows - MMBTU Savings | BA1: Replacement Windows - Recommended Upgrade | BB1: Room / Window Air Conditioner - kWh Savings | BC1: Room / Window Air Conditioner - MMBTU Savings | BD1: Room / Window Air Conditioner - Recommended Upgrade | BE1: Secondary Heating: kWh Savings | BF1: Secondary Heating: MMBTU Savings | BG1: Secondary Heating: Recommended Upgrade | BH1: Secondary Refrigerator / Standalone Freezer - kWh Savings | BI1: Secondary Refrigerator / Standalone Freezer - Recommended Upgrade | BJ1: Showerheads - kWh Savings | BK1: Showerheads - MMBTU Savings | BL1: Showerheads - Recommended Upgrade | BM1: Thermostat - kWh Savings | BN1: Thermostat - MMBTU Savings | BO1: Thermostat - Recommended Upgrade | BP1: Water Heater Efficiency - kWh Savings | BQ1: Water Heater Efficiency - MMBTU Savings | BR1: Water Heater Efficiency - Recommended Upgrade
A2: Heating Savings | G2: =IF(Raw_HVAC_1_Heating_Fuel="electricity",'Fin ProForma Calcs'!C3*Calc_Heat_as_Prc_Total_Load,"n/a") -> n/a | H2: =IF(Raw_HVAC_1_Heating_Fuel<>"electricity",('Fin ProForma Calcs'!C3*Calc_Heat_as_Prc_Total_Load*0.003412),"n/a") ->  | J2: =IF(Raw_HVAC_1_Heating_Fuel="electricity",((Output!D19-Output!J19)+(Output!E19-Output!K19)),"n/a") -> n/a | K2: =IF(Raw_HVAC_1_Heating_Fuel<>"electricity",(SUM(Output!D19:E19)-SUM(Output!J19:K19))*0.003412,"n/a") ->  | M2: =IF(Raw_HVAC_1_Heating_Fuel="electricity",((Output!D22+Output!E22)-(Output!K22+Output!J22)),"n/a") -> n/a | N2: =IF(Raw_HVAC_1_Heating_Fuel<>"electricity",((Output!D22+Output!E22)-(Output!J22+Output!K22))*0.003412,"n/a") ->  | P2: =IF(Raw_HVAC_1_Heating_Fuel="electricity",((Output!D21+Output!E21)-(Output!K21+Output!J21)),"n/a") -> n/a | Q2: =IF(Raw_HVAC_1_Heating_Fuel<>"electricity",((Output!D21+Output!E21)-(Output!J21+Output!K21))*0.003412,"n/a") ->  | S2: =IF(Raw_HVAC_1_Heating_Fuel="electricity",(Output!$L$20+Output!$M$20),"n/a") -> n/a | T2: =IF(Raw_HVAC_1_Heating_Fuel<>"electricity",(Output!$L$20+Output!$M$20)*0.003412,"n/a") ->  | V2: n/a | W2: n/a | X2: n/a | AE2: =IF(Raw_HVAC_1_Heating_Fuel="electricity",'Fin ProForma Calcs'!C21*Calc_Heat_as_Prc_Total_Load,"n/a") -> n/a | AF2: =IF(Raw_HVAC_1_Heating_Fuel<>"electricity",('Fin ProForma Calcs'!C21*0.003412),"n/a") ->  | AO2: ='Fin ProForma Calcs'!C12*0.003412 -> 0 | AQ2: 0 | AR2: ='Fin ProForma Calcs'!C13*0.003412 -> 0 | AT2: ='Fin ProForma Calcs'!C14 -> 0 | AU2: =IF(Raw_HVAC_1_Heating_Fuel<>"Electricity",'ASHP Calculator'!F31*0.1,0) ->  | AY2: =IF(Raw_HVAC_1_Heating_Fuel="electricity",(Output!$L$23+Output!$M$23)*3.41215409287883,"n/a") -> n/a | AZ2: ='Fin ProForma Calcs'!C8*0.003412 ->  | BB2: n/a | BC2: n/a | BE2: =IF(System2_Type<>"",(IF(Raw_HVAC_1_Heating_Fuel="Electricity",(PercentLoad_h_Sys2 * (Total_kWh_h_Post / (Heat_SysEff_Pre_Sys2 * Heat_DistEff_Post_Sys2) - Total_kWh_h_Post / (Heat_SysEff_Post_Sys2 * Heat_DistEff_Post_Sys2)) /Total_kWh_Input_Pre),"n/a")),"n/a") -> n/a | BF2: =IF(System2_Type<>"",(IF(Raw_HVAC_1_Heating_Fuel<>"Electricity",(PercentLoad_h_Sys2 * (Total_kWh_h_Post / (Heat_SysEff_Pre_Sys2 * Heat_DistEff_Post_Sys2) - Total_kWh_h_Post / (Heat_SysEff_Post_Sys2 * Heat_DistEff_Post_Sys2)) /Total_kWh_Input_Pre)*0.003412,"n/a")),"n/a") -> n/a | BH2: n/a | BM2: =IF(Raw_HVAC_1_Heating_Fuel="Electricity",('Fin ProForma Calcs'!$C$26)*Calc_Heat_as_Prc_Total_Load,"n/a") -> n/a | BN2: =IF(Raw_HVAC_1_Heating_Fuel<>"Electricity",('Fin ProForma Calcs'!$C$26)*Calc_Heat_as_Prc_Total_Load*0.003412,"n/a") -> 
A3: Cooling Savings | G3: =IF(System1_Capacity_c>0,('Fin ProForma Calcs'!C3*Calc_Cool_as_Prc_Total_Load),"n/a") -> n/a | H3: n/a | J3: =IF(System1_Capacity_c>0,((Output!$D$29)-Output!$J$29),"n/a") -> n/a | K3: n/a | M3: =IF(System1_Capacity_c>0,(Output!D32-Output!J32)*3.41215409287883,"n/a") -> n/a | N3: n/a | P3: =IF(System1_Capacity_c>0,(Output!D31-Output!J31),"n/a") -> n/a | Q3: n/a | S3: =IF(System1_Capacity_c>0,Output!$K$30,"n/a") -> n/a | T3: n/a | V3: =MAX('Fin ProForma Calcs'!K14,'Fin ProForma Calcs'!$K$19) ->  | W3: n/a | AE3: =IF(System1_Capacity_c>0,('Fin ProForma Calcs'!C21*Calc_Cool_as_Prc_Total_Load),"n/a") -> n/a | AI3: n/a | AL3: n/a | AN3: n/a | AO3: n/a | AQ3: 0 | AR3: 0 | AT3: ='Fin ProForma Calcs'!K14 -> 0 | AU3: n/a | AY3: =IF(System1_Capacity_c>0,Output!$K$33,"n/a") -> n/a | AZ3: n/a | BB3: =IF(Raw_Room_AC_Present="Yes",'Fin ProForma Calcs'!C27,"n/a") -> n/a | BC3: n/a | BE3: n/a | BF3: n/a | BH3: n/a | BK3: n/a | BM3: =IF(Raw_HVAC_1_Heating_Fuel="Electricity",('Fin ProForma Calcs'!$C$26)*Calc_Cool_as_Prc_Total_Load,"n/a") -> n/a | BN3: =IF(Raw_HVAC_1_Heating_Fuel<>"Electricity",('Fin ProForma Calcs'!$C$26)*Calc_Cool_as_Prc_Total_Load*0.003412,"n/a") ->  | BQ3: n/a
A4: TOTAL SAVINGS | B4: =IF(Auditor_Company_Name="","",Auditor_Company_Name) ->  | C4: =IF(Customer_Name="","",Customer_Name) ->  | D4: =IF(Customer_Phone_Number__Primary="","",Customer_Phone_Number__Primary) ->  | E4: =IF(Customer_Email_Address__Primary="","",Customer_Email_Address__Primary) ->  | F4: =IF(Raw_HVAC_1_Heating_Fuel="","",Raw_HVAC_1_Heating_Fuel) ->  | G4: =IF(I4="Not Recommended",0,SUM(G2:G3)) -> 0 | H4: =IF(I4="Not Recommended",0,SUM(H2:H3)) -> 0 | I4: ='Audit Summary Report'!L14 -> Not Recommended | J4: =IF(Summary_Report_Attic_Roof_Insulation="n/a",0,SUM(J2:J3)) -> 0 | K4: =IF(Summary_Report_Attic_Roof_Insulation="n/a",0,SUM(K2:K3)) -> 0 | L4: =CONCATENATE("Area #1","- ",'Audit Summary Report'!L17,"; ","Area #2","- ",'Audit Summary Report'!L18,"; ","Area #3","- ",'Audit Summary Report'!L19) -> Area #1- Not Recommended; Area #2- Not Recommended; Area #3- Not Recommended | M4: =IF(AND('Audit Summary Report'!L25="Not Recommended",'Audit Summary Report'!L26="Not Recommended"),0,SUM(M2:M3)) -> 0 | N4: =IF(AND('Audit Summary Report'!L25="Not Recommended",'Audit Summary Report'!L26="Not Recommended"),0,SUM(N2:N3)) -> 0 | O4: =CONCATENATE("Over Exterior","- ",'Audit Summary Report'!L25,"; ","Over Enclosed Space","- ",'Audit Summary Report'!L26) -> Over Exterior- Not Recommended; Over Enclosed Space- Not Recommended | P4: =IF(AND('Audit Summary Report'!L28="Not Recommended",'Audit Summary Report'!L30="Not Recommended"),0,SUM(P2:P3)) -> 0 | Q4: =IF(AND('Audit Summary Report'!L28="Not Recommended",'Audit Summary Report'!L30="Not Recommended"),0,SUM(Q2:Q3)) -> 0 | R4: =CONCATENATE("Basement","- ",'Audit Summary Report'!L28,"; ","Crawlspace","- ",'Audit Summary Report'!L30) -> Basement- Not Recommended; Crawlspace- Not Recommended | S4: =IF(Summary_Report_Wall_Insulation="n/a",0,SUM(S2:S3)) -> 0 | T4: =IF(Summary_Report_Wall_Insulation="n/a",0,SUM(T2:T3)) -> 0 | U4: =CONCATENATE('Audit Summary Report'!B21,"- ",'Audit Summary Report'!L21,"; ",'Audit Summary Report'!B23,"- ",'Audit Summary Report'!L23) -> Exposed to Exterior & Rim Joist- Not Recommended; Adjoining Enclosed Space- Not Recommended | V4: =IF(X4="Not Recommended",0,SUM(V2:V3)) -> 0 | W4: n/a | X4: ='Audit Summary Report'!$L$57 -> Not Recommended | Y4: =IF(Z4="Not Recommended",0,'Fin ProForma Calcs'!C38) -> 0 | Z4: ='Audit Summary Report'!L97 -> Not Recommended | AA4: =IF(AB4="Not Recommended",0,'Fin ProForma Calcs'!C40) -> n/a | AB4: =CONCATENATE("Energy Factor: ",'Audit Summary Report'!L100) -> Energy Factor: Not Recommended | AC4: =IF(AD4="Not Recommended",0,'Fin ProForma Calcs'!C39) -> 0 | AD4: ='Audit Summary Report'!L91 -> Not Recommended | AE4: =IF(AG4="Not Recommended",0,SUM(AE2:AE3)) -> 0 | AF4: =IF(AG4="Not Recommended",0,SUM(AF2:AF3)) -> 0 | AG4: ='Audit Summary Report'!L48 -> Not Recommended | AH4: =IF(AJ4="Not Recommended",0,IF(Raw_Water_Heating_Fuel_Existing="Electricity",Savings_Faucet_DHW_kWh,"n/a")) -> 0 | AI4: =IF(AJ4="Not Recommended",0,IF(Raw_Water_Heating_Fuel_Existing<>"Electricity",Savings_Faucet_DHW_kWh*0.003412,"n/a")) -> 0 | AJ4: ='Audit Summary Report'!L77 -> Not Recommended | AK4: =IF(AM4="Not Recommended",0,'Fin ProForma Calcs'!C41) -> 0 | AL4: n/a | AM4: ='Audit Summary Report'!L94 -> Incandescent:0% CFL:0% LED:0% | AN4: =IF(AP4="Not Recommended",0,SUM(AN2:AN3)) -> 0 | AO4: =IF(AP4="Not Recommended",0,SUM(AO2:AO3)) -> 0 | AP4: =IF(Raw_Sys1_H_Efficiency_New="","Not Recommended",(CONCATENATE(Raw_HVAC_1_Heating_Fuel,", ",System1_Type,", ",System1_Capacity_H," BTU",", ",Raw_Sys1_H_Efficiency_Existing,"% efficient",", ","Upgrade to ",Raw_Sys1_H_Efficiency_New,"% efficient"))) -> Not Recommended | AQ4: =IF(AS4="Not Recommended",0,SUM(AQ2:AQ3)) -> 0 | AR4: =IF(AS4="Not Recommended",0,SUM(AR2:AR3)) -> 0 | AS4: =IF(Raw_AFUE_New_Switch_To_Gas="","Not Recommended",(CONCATENATE(Raw_HVAC_1_Heating_Fuel,", ",System1_Type,", ",System1_Capacity_H," BTU",", ",Raw_Sys1_H_Efficiency_Existing,"% efficient",", ","Upgrade to Natural Gas",", ",Raw_AFUE_New_Switch_To_Gas,"% efficient"))) -> Not Recommended | AT4: =IF(AV4="Not Recommended",0,SUM(AT2:AT3)) -> 0 | AU4: =IF(AV4="Not Recommended",0,SUM(AU2:AU3)) -> 0 | AV4: =IF(Raw_ASHP_Size_New="","Not Recommended",(CONCATENATE(Raw_HVAC_1_Heating_Fuel,", ",System1_Type,", ",System1_Capacity_H," BTU",", ",Raw_Sys1_H_Efficiency_Existing,"% efficient",", ","Upgrade to ASHP",", ",Raw_ASHP_COP_New," COP"))) -> Not Recommended | AW4: =IF(AX4="Not Recommended",0,'Fin ProForma Calcs'!C36) -> 0 | AX4: ='Audit Summary Report'!L85 -> Not Recommended | AY4: =IF(Summary_Report_Replacement_Windows="n/a",0,SUM(AY2:AY3)) -> 0 | AZ4: =IF(Summary_Report_Replacement_Windows="n/a",0,SUM(AZ2:AZ3)) -> 0 | BA4: =CONCATENATE('Audit Summary Report'!$L$32,"; ","U-Factor-",'Audit Summary Report'!$L$33,"; ","SHGC-",'Audit Summary Report'!$L$34) -> ; U-Factor-Not Recommended; SHGC-Not Recommended | BB4: =IF(BD4="Not Recommended",0,SUM(BB2:BB3)) -> 0 | BC4: n/a | BD4: ='Audit Summary Report'!L60 -> Not Recommended | BE4: =IF(BG4="Not Recommended",0,SUM(BE2:BE3)) -> 0 | BF4: =IF(BG4="Not Recommended",0,SUM(BF2:BF3)) -> 0 | BG4: ='Audit Summary Report'!$L$54 -> Not Recommended | BH4: =IF(BI4="Not Recommended",0,IF(Raw_Secondary_New_Fridge_Efficiency<>"",'Fin ProForma Calcs'!C37,"n/a")) -> n/a | BI4: =Raw_Secondary_New_Fridge_Efficiency -> 0 | BJ4: =IF(BL4="Not Recommended",0,IF(Raw_Water_Heating_Fuel_Existing="Electricity",('Fin ProForma Calcs'!C43),"n/a")) -> 0 | BK4: =IF(BL4="Not Recommended",0,IF(AND(Raw_Water_Heating_Fuel_Existing<>"Electricity",Raw_Water_Heating_Fuel_Existing<>""),('Fin ProForma Calcs'!C43*0.003412),"n/a")) -> 0 | BL4: ='Audit Summary Report'!L71 -> Not Recommended | BM4: =IF(BO4="Not Recommended",0,SUM(BM2:BM3)) -> 0 | BN4: =IF(BO4="Not Recommended",0,SUM(BN2:BN3)) -> 0 | BO4: ='Audit Summary Report'!L51 -> Not Recommended | BP4: =IF(BR4="Not Recommended",0,IF(Raw_Water_Heating_Fuel_Existing="Electricity",'DHW Savings'!$B$15,"n/a")) -> n/a | BQ4: =IF(BR4="Not Recommended",0,IF(Raw_Water_Heating_Fuel_Existing<>"Electricity",'DHW Savings'!$B$15*0.003412,"n/a")) ->  | BR4: =CONCATENATE("Efficiency Rating- ",'Audit Summary Report'!L68) -> Efficiency Rating- Not Recommended

Sheet Fin ProForma Calcs (hidden)
B1: Heating | K1: Cooling | Q1: Total
A2: GJGNY Measure | B2: Label | C2: Units of Energy Savings | D2: Savings Unit Type | E2: Heating Fuel Consumed by Home | F2: Unit Type Consumed by Home | G2: Heating Savings in Units Consumed by Home | H2: Fuel Rate | I2: Dollar Savings | K2: Units of Energy Savings2 | L2: Savings Unit Type3 | M2: Cooling Savings in Units Consumed by Home | N2: Fuel Rate2 | O2: Dollar Savings9 | P2: Savings Calculated By Audit | Q2: Column1 | R2: Input from Loan Step 1 | S2: Useful Life | T2: Requirements | U2: Input from Loan Step 1 | V2: Pre-Qualified Measure | W2: Types of Units | AC2: From | AD2: To
A3: Air Sealing | B3: =CONCATENATE(Conversion[[#This Row],[Savings Unit Type]],Conversion[[#This Row],[Unit Type Consumed by Home]],IF(OR(Conversion[[#This Row],[Heating Fuel Consumed by Home]]="Oil",Conversion[[#This Row],[Heating Fuel Consumed by Home]]="Propane")," - "&Conversion[[#This Row],[Heating Fuel Consumed by Home]],"")) ->  | C3: =(Output!D18+Output!E18)-(Output!J18+Output!K18) ->  | D3: kWh | E3: =Raw_HVAC_1_Heating_Fuel -> 0 | F3: =INDEX(Lookups_Heating_Fuel_Selling_Units,MATCH(E3,Lookups_HVAC_1_Heating_Fuel,),1) ->  | G3: =IF(OR(Conversion[[#This Row],[Units of Energy Savings]]="",Conversion[[#This Row],[Units of Energy Savings]]="n/a"),"n/a",Calc) ->  | H3: =INDEX(Lookups_Heating_Fuel_Prices,MATCH(Conversion[[#This Row],[Heating Fuel Consumed by Home]],Lookups_Heating_Fuel_For_Price,),1) ->  | I3: =IF(ISERROR(H3*G3),"n/a",H3*G3) -> n/a | K3: =Output!$D$28-Output!$J$28 -> 0 | L3: kWh | M3: Electricity | N3: =Lookups_Electric_Rate ->  | O3: =IF(ISERROR(K3*N3),"n/a",K3*N3) -> n/a | P3: Y | Q3: =SUM(Conversion[[#This Row],[Dollar Savings9]],Conversion[[#This Row],[Dollar Savings]]) -> 0 | R3: =IF(ISERROR(VLOOKUP(Conversion[[#This Row],[GJGNY Measure]],'Loan Application - Step 1'!$C$43:$C$82,1,)),"","Yes") ->  | S3: 20 | T3: Supervised by professional; blower door assisted per BPI and program guidelines | U3: =IF(ISERROR(VLOOKUP(Conversion[[#This Row],[GJGNY Measure]],'Loan Application - Step 1'!$C$43:$C$82,1,)),"","Yes") ->  | V3: Y | W3: kWh | Y3: =(VLOOKUP(B3,Lookups_Conversion_Table,7,0)) ->  | AB3: =CONCATENATE(AC3,AD3) -> ThermTherm | AC3: Therm | AD3: Therm | AE3: Conversion[@[Units of Energy Savings]] | AG3: 1 | AH3: =CONCATENATE(AE3,"*",AG3) -> Conversion[@[Units of Energy Savings]]*1
A4: Insulation (attic, wall, floor, band joist, basement, crawl space) | B4: =CONCATENATE(Conversion[[#This Row],[Savings Unit Type]],Conversion[[#This Row],[Unit Type Consumed by Home]],IF(OR(Conversion[[#This Row],[Heating Fuel Consumed by Home]]="Oil",Conversion[[#This Row],[Heating Fuel Consumed by Home]]="Propane")," - "&Conversion[[#This Row],[Heating Fuel Consumed by Home]],"")) ->  | C4: =(SUM(Output!D19:'Output'!E22)-(SUM(Output!J19:'Output'!K22))) ->  | D4: kWh | E4: 0 | G4: =IF(OR(Conversion[[#This Row],[Units of Energy Savings]]="",Conversion[[#This Row],[Units of Energy Savings]]="n/a"),"n/a",Calc) ->  | H4: =INDEX(Lookups_Heating_Fuel_Prices,MATCH(Conversion[[#This Row],[Heating Fuel Consumed by Home]],Lookups_Heating_Fuel_For_Price,),1) ->  | I4: n/a | K4: =(SUM(Output!D29:D32))-(SUM(Output!J29:J32)) -> 0 | L4: kWh | M4: Electricity | O4: n/a | P4: Y | Q4: =SUM(Conversion[[#This Row],[Dollar Savings9]],Conversion[[#This Row],[Dollar Savings]]) -> 0 | R4: =IF(ISERROR(VLOOKUP(Conversion[[#This Row],[GJGNY Measure]],'Loan Application - Step 1'!$C$43:$C$82,1,)),"","Yes") ->  | S4: 30 | T4: Refer to Insulation Program Policy for homes heated with natural gas or electricity. Must be accompanied by blower door assisted air sealing per BPI and program guidelines | U4: =IF(ISERROR(VLOOKUP(Conversion[[#This Row],[GJGNY Measure]],'Loan Application - Step 1'!$C$43:$C$82,1,)),"","Yes") ->  | V4: Y | W4: MBTU | AB4: =CONCATENATE(AC4,AD4) -> ThermkWh | AC4: Therm | AD4: kWh | AE4: Conversion[@[Units of Energy Savings]] | AF4: x | AG4: 29.3001 | AH4: Conversion[@[Units of Energy Savings]]*29.3001
A5: Thermal barriers for spray foam | B5: =CONCATENATE(Conversion[[#This Row],[Savings Unit Type]],Conversion[[#This Row],[Unit Type Consumed by Home]],IF(OR(Conversion[[#This Row],[Heating Fuel Consumed by Home]]="Oil",Conversion[[#This Row],[Heating Fuel Consumed by Home]]="Propane")," - "&Conversion[[#This Row],[Heating Fuel Consumed by Home]],"")) ->  | E5: 0 | G5: =IF(OR(Conversion[[#This Row],[Units of Energy Savings]]="",Conversion[[#This Row],[Units of Energy Savings]]="n/a"),"n/a",Calc) -> n/a | H5: =INDEX(Lookups_Heating_Fuel_Prices,MATCH(Conversion[[#This Row],[Heating Fuel Consumed by Home]],Lookups_Heating_Fuel_For_Price,),1) ->  | I5: n/a | M5: Electricity | O5: n/a | P5: N | Q5: =SUM(Conversion[[#This Row],[Dollar Savings9]],Conversion[[#This Row],[Dollar Savings]]) -> 0 | R5: =IF(ISERROR(VLOOKUP(Conversion[[#This Row],[GJGNY Measure]],'Loan Application - Step 1'!$C$43:$C$82,1,)),"","Yes") ->  | S5: 0 | T5: Drywall, intumescent paint application | U5: =IF(ISERROR(VLOOKUP(Conversion[[#This Row],[GJGNY Measure]],'Loan Application - Step 1'!$C$43:$C$82,1,)),"","Yes") ->  | V5: N | AB5: ThermGallon - Oil | AC5: Therm | AD5: Gallon - Oil | AE5: Conversion[@[Units of Energy Savings]] | AF5: x | AG5: 0.6675878891 | AH5: Conversion[@[Units of Energy Savings]]*0.66758788914199
A6: Crawlspace Moisture barrier | B6: =CONCATENATE(Conversion[[#This Row],[Savings Unit Type]],Conversion[[#This Row],[Unit Type Consumed by Home]],IF(OR(Conversion[[#This Row],[Heating Fuel Consumed by Home]]="Oil",Conversion[[#This Row],[Heating Fuel Consumed by Home]]="Propane")," - "&Conversion[[#This Row],[Heating Fuel Consumed by Home]],"")) ->  | E6: 0 | G6: =IF(OR(Conversion[[#This Row],[Units of Energy Savings]]="",Conversion[[#This Row],[Units of Energy Savings]]="n/a"),"n/a",Calc) -> n/a | H6: =INDEX(Lookups_Heating_Fuel_Prices,MATCH(Conversion[[#This Row],[Heating Fuel Consumed by Home]],Lookups_Heating_Fuel_For_Price,),1) ->  | I6: n/a | M6: Electricity | O6: n/a | P6: N | Q6: =SUM(Conversion[[#This Row],[Dollar Savings9]],Conversion[[#This Row],[Dollar Savings]]) -> 0 | R6: =IF(ISERROR(VLOOKUP(Conversion[[#This Row],[GJGNY Measure]],'Loan Application - Step 1'!$C$43:$C$82,1,)),"","Yes") ->  | S6: 0 | U6: =IF(ISERROR(VLOOKUP(Conversion[[#This Row],[GJGNY Measure]],'Loan Application - Step 1'!$C$43:$C$82,1,)),"","Yes") ->  | V6: N | AB6: ThermGallon - Propane | AC6: Therm | AD6: Gallon - Propane | AE6: Conversion[@[Units of Energy Savings]] | AG6: 1.047120419 | AH6: Conversion[@[Units of Energy Savings]]*1.04712041884816
A7: Attic soffit, gable, or ridge vents | B7: =CONCATENATE(Conversion[[#This Row],[Savings Unit Type]],Conversion[[#This Row],[Unit Type Consumed by Home]],IF(OR(Conversion[[#This Row],[Heating Fuel Consumed by Home]]="Oil",Conversion[[#This Row],[Heating Fuel Consumed by Home]]="Propane")," - "&Conversion[[#This Row],[Heating Fuel Consumed by Home]],"")) ->  | E7: 0 | G7: =IF(OR(Conversion[[#This Row],[Units of Energy Savings]]="",Conversion[[#This Row],[Units of Energy Savings]]="n/a"),"n/a",Calc) -> n/a | H7: =INDEX(Lookups_Heating_Fuel_Prices,MATCH(Conversion[[#This Row],[Heating Fuel Consumed by Home]],Lookups_Heating_Fuel_For_Price,),1) ->  | I7: n/a | M7: Electricity | O7: n/a | P7: N | Q7: =SUM(Conversion[[#This Row],[Dollar Savings9]],Conversion[[#This Row],[Dollar Savings]]) -> 0 | R7: =IF(ISERROR(VLOOKUP(Conversion[[#This Row],[GJGNY Measure]],'Loan Application - Step 1'!$C$43:$C$82,1,)),"","Yes") ->  | S7: 0 | U7: =IF(ISERROR(VLOOKUP(Conversion[[#This Row],[GJGNY Measure]],'Loan Application - Step 1'!$C$43:$C$82,1,)),"","Yes") ->  | V7: N | AB7: kWhTherm | AC7: kWh | AD7: Therm | AE7: Conversion[@[Units of Energy Savings]] | AG7: 0.0341296 | AH7: Conversion[@[Units of Energy Savings]]*0.0341296
A8: Replacement Windows | B8: =CONCATENATE(Conversion[[#This Row],[Savings Unit Type]],Conversion[[#This Row],[Unit Type Consumed by Home]],IF(OR(Conversion[[#This Row],[Heating Fuel Consumed by Home]]="Oil",Conversion[[#This Row],[Heating Fuel Consumed by Home]]="Propane")," - "&Conversion[[#This Row],[Heating Fuel Consumed by Home]],"")) ->  | C8: =IF(Raw_Storm_Windows_New<>"Yes",SUM(Output!D23:E23)-SUM(Output!J23:K23),0) ->  | D8: kWh | E8: 0 | G8: =IF(OR(Conversion[[#This Row],[Units of Energy Savings]]="",Conversion[[#This Row],[Units of Energy Savings]]="n/a"),"n/a",Calc) ->  | H8: =INDEX(Lookups_Heating_Fuel_Prices,MATCH(Conversion[[#This Row],[Heating Fuel Consumed by Home]],Lookups_Heating_Fuel_For_Price,),1) ->  | I8: n/a | K8: =Output!D33-Output!J33 -> 0 | L8: kWh | M8: Electricity | O8: n/a | P8: Y | Q8: =SUM(Conversion[[#This Row],[Dollar Savings9]],Conversion[[#This Row],[Dollar Savings]]) -> 0 | R8: =IF(ISERROR(VLOOKUP(Conversion[[#This Row],[GJGNY Measure]],'Loan Application - Step 1'!$C$43:$C$82,1,)),"","Yes") ->  | S8: 20 | T8: ENERGY STAR for climate/region | U8: =IF(ISERROR(VLOOKUP(Conversion[[#This Row],[GJGNY Measure]],'Loan Application - Step 1'!$C$43:$C$82,1,)),"","Yes") ->  | V8: N | AB8: kWhkWh | AC8: kWh | AD8: kWh | AE8: Conversion[@[Units of Energy Savings]] | AG8: 1 | AH8: Conversion[@[Units of Energy Savings]]*1
A9: Storm Windows and Storm Doors | B9: =CONCATENATE(Conversion[[#This Row],[Savings Unit Type]],Conversion[[#This Row],[Unit Type Consumed by Home]],IF(OR(Conversion[[#This Row],[Heating Fuel Consumed by Home]]="Oil",Conversion[[#This Row],[Heating Fuel Consumed by Home]]="Propane")," - "&Conversion[[#This Row],[Heating Fuel Consumed by Home]],"")) ->  | C9: =IF(Raw_Storm_Windows_New="Yes",SUM(Output!D23:E23)-SUM(Output!J23:K23),0) -> 0 | D9: kWh | E9: 0 | G9: =IF(OR(Conversion[[#This Row],[Units of Energy Savings]]="",Conversion[[#This Row],[Units of Energy Savings]]="n/a"),"n/a",Calc) ->  | H9: =INDEX(Lookups_Heating_Fuel_Prices,MATCH(Conversion[[#This Row],[Heating Fuel Consumed by Home]],Lookups_Heating_Fuel_For_Price,),1) ->  | I9: n/a | K9: =Output!D33-Output!J33 -> 0 | L9: kWh | M9: Electricity | O9: n/a | P9: Y | Q9: =SUM(Conversion[[#This Row],[Dollar Savings9]],Conversion[[#This Row],[Dollar Savings]]) -> 0 | R9: =IF(ISERROR(VLOOKUP(Conversion[[#This Row],[GJGNY Measure]],'Loan Application - Step 1'!$C$43:$C$82,1,)),"","Yes") ->  | S9: 20 | T9: No minimum efficiency requirement | U9: =IF(ISERROR(VLOOKUP(Conversion[[#This Row],[GJGNY Measure]],'Loan Application - Step 1'!$C$43:$C$82,1,)),"","Yes") ->  | V9: N | AB9: kWhGallon - Oil | AC9: kWh | AD9: Gallon - Oil | AE9: Conversion[@[Units of Energy Savings]] | AG9: 0.02277904328 | AH9: Conversion[@[Units of Energy Savings]]*0.0227790432801822
A10: Movable Window Insulation | B10: =CONCATENATE(Conversion[[#This Row],[Savings Unit Type]],Conversion[[#This Row],[Unit Type Consumed by Home]],IF(OR(Conversion[[#This Row],[Heating Fuel Consumed by Home]]="Oil",Conversion[[#This Row],[Heating Fuel Consumed by Home]]="Propane")," - "&Conversion[[#This Row],[Heating Fuel Consumed by Home]],"")) ->  | E10: 0 | G10: =IF(OR(Conversion[[#This Row],[Units of Energy Savings]]="",Conversion[[#This Row],[Units of Energy Savings]]="n/a"),"n/a",Calc) -> n/a | H10: =INDEX(Lookups_Heating_Fuel_Prices,MATCH(Conversion[[#This Row],[Heating Fuel Consumed by Home]],Lookups_Heating_Fuel_For_Price,),1) ->  | I10: n/a | M10: Electricity | O10: n/a | P10: N | Q10: =SUM(Conversion[[#This Row],[Dollar Savings9]],Conversion[[#This Row],[Dollar Savings]]) -> 0 | R10: =IF(ISERROR(VLOOKUP(Conversion[[#This Row],[GJGNY Measure]],'Loan Application - Step 1'!$C$43:$C$82,1,)),"","Yes") ->  | S10: 20 | T10: R-3 | U10: =IF(ISERROR(VLOOKUP(Conversion[[#This Row],[GJGNY Measure]],'Loan Application - Step 1'!$C$43:$C$82,1,)),"","Yes") ->  | V10: N | AB10: kWhGallon - Propane | AC10: kWh | AD10: Gallon - Propane | AE10: Conversion[@[Units of Energy Savings]] | AG10: 0.03572923016 | AH10: Conversion[@[Units of Energy Savings]]*0.035729230155989
A11: Attic pull-down stairs | B11: =CONCATENATE(Conversion[[#This Row],[Savings Unit Type]],Conversion[[#This Row],[Unit Type Consumed by Home]],IF(OR(Conversion[[#This Row],[Heating Fuel Consumed by Home]]="Oil",Conversion[[#This Row],[Heating Fuel Consumed by Home]]="Propane")," - "&Conversion[[#This Row],[Heating Fuel Consumed by Home]],"")) ->  | E11: 0 | G11: =IF(OR(Conversion[[#This Row],[Units of Energy Savings]]="",Conversion[[#This Row],[Units of Energy Savings]]="n/a"),"n/a",Calc) -> n/a | H11: =INDEX(Lookups_Heating_Fuel_Prices,MATCH(Conversion[[#This Row],[Heating Fuel Consumed by Home]],Lookups_Heating_Fuel_For_Price,),1) ->  | I11: =(IF(ISERROR(H11*G11),"n/a",H11*G11)) -> n/a | M11: Electricity | O11: n/a | P11: N | Q11: =SUM(Conversion[[#This Row],[Dollar Savings9]],Conversion[[#This Row],[Dollar Savings]]) -> 0 | R11: =IF(ISERROR(VLOOKUP(Conversion[[#This Row],[GJGNY Measure]],'Loan Application - Step 1'!$C$43:$C$82,1,)),"","Yes") ->  | S11: 0 | U11: =IF(ISERROR(VLOOKUP(Conversion[[#This Row],[GJGNY Measure]],'Loan Application - Step 1'!$C$43:$C$82,1,)),"","Yes") ->  | V11: N | AB11: Gallon - OilkWh | AC11: Gallon - Oil | AD11: kWh | AE11: Conversion[@[Units of Energy Savings]] | AG11: =1/AG9 -> 43.9 | AH11: Conversion[@[Units of Energy Savings]]*43.9000000000001
A12: Upgrade heating system with same fuel type | B12: =CONCATENATE(Conversion[[#This Row],[Savings Unit Type]],Conversion[[#This Row],[Unit Type Consumed by Home]],IF(OR(Conversion[[#This Row],[Heating Fuel Consumed by Home]]="Oil",Conversion[[#This Row],[Heating Fuel Consumed by Home]]="Propane")," - "&Conversion[[#This Row],[Heating Fuel Consumed by Home]],"")) ->  | C12: =IF(Summary_Report_Primary_Heating<>"n/a",(Summary_Report_Primary_Heating*Total_kWh_Input_Pre),0) -> 0 | D12: kWh | E12: 0 | F12: =INDEX(Lookups_Heating_Fuel_Selling_Units,MATCH(E12,Lookups_HVAC_1_Heating_Fuel,),1) ->  | G12: =IF(OR(Conversion[[#This Row],[Units of Energy Savings]]="",Conversion[[#This Row],[Units of Energy Savings]]="n/a"),"n/a",Calc) ->  | H12: =INDEX(Lookups_Heating_Fuel_Prices,MATCH(Conversion[[#This Row],[Heating Fuel Consumed by Home]],Lookups_Heating_Fuel_For_Price,),1) ->  | I12: =IF(ISERROR(H12*G12),"n/a",H12*G12) -> n/a | N12: =Lookups_Electric_Rate ->  | O12: =IF(ISERROR(K12*N12),"n/a",K12*N12) -> n/a | Q12: =SUM(Conversion[[#This Row],[Dollar Savings9]],Conversion[[#This Row],[Dollar Savings]]) -> 0 | R12: =IF(ISERROR(VLOOKUP(Conversion[[#This Row],[GJGNY Measure]],'Loan Application - Step 1'!$C$43:$C$82,1,)),"","Yes") ->  | S12: =IF(System1_Type="Furnace",20,25) -> 25 | T12: =IF(Raw_HVAC_1_Heating_Fuel="Oil","AFUE >= 85","AFUE >= 90") -> AFUE >= 90 | U12: =IF(ISERROR(VLOOKUP(Conversion[[#This Row],[GJGNY Measure]],'Loan Application - Step 1'!$C$43:$C$82,1,)),"","Yes") ->  | V12: Y
A13: Upgrade oil heat to gas heat | B13: =CONCATENATE(Conversion[[#This Row],[Savings Unit Type]],Conversion[[#This Row],[Unit Type Consumed by Home]],IF(OR(Conversion[[#This Row],[Heating Fuel Consumed by Home]]="Oil",Conversion[[#This Row],[Heating Fuel Consumed by Home]]="Propane")," - "&Conversion[[#This Row],[Heating Fuel Consumed by Home]],"")) ->  | C13: =IF('Audit Summary Report'!N45<>"n/a",('Audit Summary Report'!N45*Total_kWh_Input_Pre),0) -> 0 | D13: kWh | E13: 0 | F13: =INDEX(Lookups_Heating_Fuel_Selling_Units,MATCH(E13,Lookups_HVAC_1_Heating_Fuel,),1) ->  | G13: =IF(OR(Conversion[[#This Row],[Units of Energy Savings]]="",Conversion[[#This Row],[Units of Energy Savings]]="n/a"),"n/a",Calc) ->  | H13: =INDEX(Lookups_Heating_Fuel_Prices,MATCH(Conversion[[#This Row],[Heating Fuel Consumed by Home]],Lookups_Heating_Fuel_For_Price,),1) ->  | I13: =IF(ISERROR(H13*G13),"n/a",H13*G13) -> n/a | N13: =Lookups_Electric_Rate ->  | O13: n/a | Q13: =SUM(Conversion[[#This Row],[Dollar Savings9]],Conversion[[#This Row],[Dollar Savings]]) -> 0 | R13: =IF(ISERROR(VLOOKUP(Conversion[[#This Row],[GJGNY Measure]],'Loan Application - Step 1'!$C$43:$C$82,1,)),"","Yes") ->  | S13: =IF(System1_Type="Furnace",20,25) -> 25 | T13: =IF(Raw_HVAC_1_Heating_Fuel="Oil","AFUE >= 85","AFUE >= 90") -> AFUE >= 90 | U13: =IF(ISERROR(VLOOKUP(Conversion[[#This Row],[GJGNY Measure]],'Loan Application - Step 1'!$C$43:$C$82,1,)),"","Yes") ->  | V13: Y
A14: Upgrade Heating System to Air Source Heat Pump (ducted or ductless) | B14: =CONCATENATE(Conversion[[#This Row],[Savings Unit Type]],Conversion[[#This Row],[Unit Type Consumed by Home]],IF(OR(Conversion[[#This Row],[Heating Fuel Consumed by Home]]="Oil",Conversion[[#This Row],[Heating Fuel Consumed by Home]]="Propane")," - "&Conversion[[#This Row],[Heating Fuel Consumed by Home]],"")) ->  | C14: =IF(AND(Raw_ASHP_Size_New<>"",Raw_ASHP_Unit_Count_New<>"",Raw_ASHP_COP_New<>""),(Savings_ASHP_Heat_kWh),0) -> 0 | D14: kWh | E14: 0 | F14: =INDEX(Lookups_Heating_Fuel_Selling_Units,MATCH(E14,Lookups_HVAC_1_Heating_Fuel,),1) ->  | G14: =IF(AND(Raw_ASHP_Size_New<>"",Raw_ASHP_Unit_Count_New<>"",Raw_ASHP_COP_New<>""),Savings_ASHP_Heat_Therms,0) -> 0 | H14: ='ASHP Calculator'!H23 ->  | I14: =IF(ISERROR('ASHP Calculator'!G33),"n/a",'ASHP Calculator'!G33) -> n/a | K14: =IF(AND(Raw_ASHP_Size_New<>"",Raw_ASHP_Unit_Count_New<>"",Raw_ASHP_COP_New<>""),Savings_ASHP_Cool_kWh,0) -> 0 | M14: Electricity | O14: =IF(ISERROR('ASHP Calculator'!H33),"n/a",'ASHP Calculator'!H33) -> n/a | P14: Y | Q14: =SUM(Conversion[[#This Row],[Dollar Savings9]],Conversion[[#This Row],[Dollar Savings]]) -> 0 | R14: =IF(ISERROR(VLOOKUP(Conversion[[#This Row],[GJGNY Measure]],'Loan Application - Step 1'!$C$43:$C$82,1,)),"","Yes") ->  | S14: 15 | T14: See Air Source Heat Pump Program manual for requirements | U14: =IF(ISERROR(VLOOKUP(Conversion[[#This Row],[GJGNY Measure]],'Loan Application - Step 1'!$C$43:$C$82,1,)),"","Yes") ->  | V14: Y | AB14: =CONCATENATE(AC14,AD14) -> Gallon - OilGallon - Oil | AC14: Gallon - Oil | AD14: Gallon - Oil | AE14: Conversion[@[Units of Energy Savings]] | AG14: 1 | AH14: =CONCATENATE(AE14,"*",AG14) -> Conversion[@[Units of Energy Savings]]*1
A15: Fuel conversion accessory items | B15: =CONCATENATE(Conversion[[#This Row],[Savings Unit Type]],Conversion[[#This Row],[Unit Type Consumed by Home]],IF(OR(Conversion[[#This Row],[Heating Fuel Consumed by Home]]="Oil",Conversion[[#This Row],[Heating Fuel Consumed by Home]]="Propane")," - "&Conversion[[#This Row],[Heating Fuel Consumed by Home]],"")) ->  | E15: 0 | G15: =IF(OR(Conversion[[#This Row],[Units of Energy Savings]]="",Conversion[[#This Row],[Units of Energy Savings]]="n/a"),"n/a",Calc) -> n/a | H15: =INDEX(Lookups_Heating_Fuel_Prices,MATCH(Conversion[[#This Row],[Heating Fuel Consumed by Home]],Lookups_Heating_Fuel_For_Price,),1) ->  | I15: n/a | M15: Electricity | O15: n/a | P15: N | Q15: =SUM(Conversion[[#This Row],[Dollar Savings9]],Conversion[[#This Row],[Dollar Savings]]) -> 0 | R15: =IF(ISERROR(VLOOKUP(Conversion[[#This Row],[GJGNY Measure]],'Loan Application - Step 1'!$C$43:$C$82,1,)),"","Yes") ->  | S15: 0 | T15: New gas piping installed after the meter | U15: =IF(ISERROR(VLOOKUP(Conversion[[#This Row],[GJGNY Measure]],'Loan Application - Step 1'!$C$43:$C$82,1,)),"","Yes") ->  | V15: N | AB15: Gallon - PropanekWh | AC15: Gallon - Propane | AD15: kWh | AE15: Conversion[@[Units of Energy Savings]] | AG15: =1/AG10 -> 27.98828846 | AH15: Conversion[@[Units of Energy Savings]]*27.9882884583333
A16: Boiler Reset Controls | B16: =CONCATENATE(Conversion[[#This Row],[Savings Unit Type]],Conversion[[#This Row],[Unit Type Consumed by Home]],IF(OR(Conversion[[#This Row],[Heating Fuel Consumed by Home]]="Oil",Conversion[[#This Row],[Heating Fuel Consumed by Home]]="Propane")," - "&Conversion[[#This Row],[Heating Fuel Consumed by Home]],"")) ->  | E16: 0 | G16: =IF(OR(Conversion[[#This Row],[Units of Energy Savings]]="",Conversion[[#This Row],[Units of Energy Savings]]="n/a"),"n/a",Calc) -> n/a | H16: =INDEX(Lookups_Heating_Fuel_Prices,MATCH(Conversion[[#This Row],[Heating Fuel Consumed by Home]],Lookups_Heating_Fuel_For_Price,),1) ->  | I16: n/a | M16: Electricity | O16: n/a | P16: N | Q16: =SUM(Conversion[[#This Row],[Dollar Savings9]],Conversion[[#This Row],[Dollar Savings]]) -> 0 | R16: =IF(ISERROR(VLOOKUP(Conversion[[#This Row],[GJGNY Measure]],'Loan Application - Step 1'!$C$43:$C$82,1,)),"","Yes") ->  | S16: 15 | T16: Programmed properly per manufacturer’s specifications and site conditions. Maximum price of $500. | U16: =IF(ISERROR(VLOOKUP(Conversion[[#This Row],[GJGNY Measure]],'Loan Application - Step 1'!$C$43:$C$82,1,)),"","Yes") ->  | V16: Y
A17: Oil burner replacement | B17: =CONCATENATE(Conversion[[#This Row],[Savings Unit Type]],Conversion[[#This Row],[Unit Type Consumed by Home]],IF(OR(Conversion[[#This Row],[Heating Fuel Consumed by Home]]="Oil",Conversion[[#This Row],[Heating Fuel Consumed by Home]]="Propane")," - "&Conversion[[#This Row],[Heating Fuel Consumed by Home]],"")) ->  | E17: 0 | G17: =IF(OR(Conversion[[#This Row],[Units of Energy Savings]]="",Conversion[[#This Row],[Units of Energy Savings]]="n/a"),"n/a",Calc) -> n/a | H17: =INDEX(Lookups_Heating_Fuel_Prices,MATCH(Conversion[[#This Row],[Heating Fuel Consumed by Home]],Lookups_Heating_Fuel_For_Price,),1) ->  | I17: n/a | M17: Electricity | O17: n/a | P17: N | Q17: =SUM(Conversion[[#This Row],[Dollar Savings9]],Conversion[[#This Row],[Dollar Savings]]) -> 0 | R17: =IF(ISERROR(VLOOKUP(Conversion[[#This Row],[GJGNY Measure]],'Loan Application - Step 1'!$C$43:$C$82,1,)),"","Yes") ->  | S17: 0 | U17: =IF(ISERROR(VLOOKUP(Conversion[[#This Row],[GJGNY Measure]],'Loan Application - Step 1'!$C$43:$C$82,1,)),"","Yes") ->  | V17: N
A18: Wood/or Solid Fuel Pellet Stove | B18: =CONCATENATE(Conversion[[#This Row],[Savings Unit Type]],Conversion[[#This Row],[Unit Type Consumed by Home]],IF(OR(Conversion[[#This Row],[Heating Fuel Consumed by Home]]="Oil",Conversion[[#This Row],[Heating Fuel Consumed by Home]]="Propane")," - "&Conversion[[#This Row],[Heating Fuel Consumed by Home]],"")) ->  | E18: n/a | G18: =IF(OR(Conversion[[#This Row],[Units of Energy Savings]]="",Conversion[[#This Row],[Units of Energy Savings]]="n/a"),"n/a",Calc) -> n/a | H18: =INDEX(Lookups_Heating_Fuel_Prices,MATCH(Conversion[[#This Row],[Heating Fuel Consumed by Home]],Lookups_Heating_Fuel_For_Price,),1) ->  | I18: n/a | M18: Electricity | O18: n/a | P18: N | Q18: =SUM(Conversion[[#This Row],[Dollar Savings9]],Conversion[[#This Row],[Dollar Savings]]) -> 0 | R18: =IF(ISERROR(VLOOKUP(Conversion[[#This Row],[GJGNY Measure]],'Loan Application - Step 1'!$C$43:$C$82,1,)),"","Yes") ->  | S18: 20 | T18: EPA certified for particulate matter output of 4.5 grams per hour or less | U18: =IF(ISERROR(VLOOKUP(Conversion[[#This Row],[GJGNY Measure]],'Loan Application - Step 1'!$C$43:$C$82,1,)),"","Yes") ->  | V18: N
A19: Central Air Conditioner (ducted or ductless) | B19: =CONCATENATE(Conversion[[#This Row],[Savings Unit Type]],Conversion[[#This Row],[Unit Type Consumed by Home]],IF(OR(Conversion[[#This Row],[Heating Fuel Consumed by Home]]="Oil",Conversion[[#This Row],[Heating Fuel Consumed by Home]]="Propane")," - "&Conversion[[#This Row],[Heating Fuel Consumed by Home]],"")) -> kWhkWh | D19: kWh | E19: Electricity | F19: kWh | G19: =IF(OR(Conversion[[#This Row],[Units of Energy Savings]]="",Conversion[[#This Row],[Units of Energy Savings]]="n/a"),"n/a",Calc) -> n/a | H19: =INDEX(Lookups_Heating_Fuel_Prices,MATCH(Conversion[[#This Row],[Heating Fuel Consumed by Home]],Lookups_Heating_Fuel_For_Price,),1) ->  | I19: n/a | K19: =(Total_kWh_c_Post / (Cool_DistEff_Pre * Cool_SysEff_Post) - Total_kWh_c_Post / (Cool_DistEff_Post * Cool_SysEff_Post)) ->  | L19: kWh | M19: Electricity | O19: n/a | P19: Y | Q19: =SUM(Conversion[[#This Row],[Dollar Savings9]],Conversion[[#This Row],[Dollar Savings]]) -> 0 | R19: =IF(ISERROR(VLOOKUP(Conversion[[#This Row],[GJGNY Measure]],'Loan Application - Step 1'!$C$43:$C$82,1,)),"","Yes") ->  | S19: 15 | T19: AHRI Certificate Required. 14.5 SEER / 12 EER. Air Source Heat Pump (for Cooling). See Air Source Heat Pump Program manual for requirements. | U19: =IF(ISERROR(VLOOKUP(Conversion[[#This Row],[GJGNY Measure]],'Loan Application - Step 1'!$C$43:$C$82,1,)),"","Yes") ->  | V19: Y
A20: AC coil when not installed with condenser | B20: =CONCATENATE(Conversion[[#This Row],[Savings Unit Type]],Conversion[[#This Row],[Unit Type Consumed by Home]],IF(OR(Conversion[[#This Row],[Heating Fuel Consumed by Home]]="Oil",Conversion[[#This Row],[Heating Fuel Consumed by Home]]="Propane")," - "&Conversion[[#This Row],[Heating Fuel Consumed by Home]],"")) -> kWh | E20: Electricity | F20: kWh | G20: =IF(OR(Conversion[[#This Row],[Units of Energy Savings]]="",Conversion[[#This Row],[Units of Energy Savings]]="n/a"),"n/a",Calc) -> n/a | H20: =INDEX(Lookups_Heating_Fuel_Prices,MATCH(Conversion[[#This Row],[Heating Fuel Consumed by Home]],Lookups_Heating_Fuel_For_Price,),1) ->  | I20: n/a | M20: Electricity | O20: n/a | P20: N | Q20: =SUM(Conversion[[#This Row],[Dollar Savings9]],Conversion[[#This Row],[Dollar Savings]]) -> 0 | R20: =IF(ISERROR(VLOOKUP(Conversion[[#This Row],[GJGNY Measure]],'Loan Application - Step 1'!$C$43:$C$82,1,)),"","Yes") ->  | S20: 0 | U20: =IF(ISERROR(VLOOKUP(Conversion[[#This Row],[GJGNY Measure]],'Loan Application - Step 1'!$C$43:$C$82,1,)),"","Yes") ->  | V20: N
A21: Duct Sealing | B21: =CONCATENATE(Conversion[[#This Row],[Savings Unit Type]],Conversion[[#This Row],[Unit Type Consumed by Home]],IF(OR(Conversion[[#This Row],[Heating Fuel Consumed by Home]]="Oil",Conversion[[#This Row],[Heating Fuel Consumed by Home]]="Propane")," - "&Conversion[[#This Row],[Heating Fuel Consumed by Home]],"")) ->  | C21: =Output!C2*Output!D25 ->  | D21: kWh | E21: =Raw_HVAC_1_Heating_Fuel -> 0 | G21: =IF(OR(Conversion[[#This Row],[Units of Energy Savings]]="",Conversion[[#This Row],[Units of Energy Savings]]="n/a"),"n/a",Calc) ->  | H21: =INDEX(Lookups_Heating_Fuel_Prices,MATCH(Conversion[[#This Row],[Heating Fuel Consumed by Home]],Lookups_Heating_Fuel_For_Price,),1) ->  | I21: n/a | K21: =(Total_kWh_c_Post / (Cool_DistEff_Pre * Cool_SysEff_Post) - Total_kWh_c_Post / (Cool_DistEff_Post * Cool_SysEff_Post)) ->  | L21: kWh | M21: Electricity | O21: n/a | P21: Y | Q21: =SUM(Conversion[[#This Row],[Dollar Savings9]],Conversion[[#This Row],[Dollar Savings]]) -> 0 | R21: =IF(ISERROR(VLOOKUP(Conversion[[#This Row],[GJGNY Measure]],'Loan Application - Step 1'!$C$43:$C$82,1,)),"","Yes") ->  | S21: 20 | T21: UL 181B Mastic or other permanent sealant; use of duct tape is disallowed | U21: =IF(ISERROR(VLOOKUP(Conversion[[#This Row],[GJGNY Measure]],'Loan Application - Step 1'!$C$43:$C$82,1,)),"","Yes") ->  | V21: Y
A22: Duct Insulation | B22: =CONCATENATE(Conversion[[#This Row],[Savings Unit Type]],Conversion[[#This Row],[Unit Type Consumed by Home]],IF(OR(Conversion[[#This Row],[Heating Fuel Consumed by Home]]="Oil",Conversion[[#This Row],[Heating Fuel Consumed by Home]]="Propane")," - "&Conversion[[#This Row],[Heating Fuel Consumed by Home]],"")) ->  | G22: =IF(OR(Conversion[[#This Row],[Units of Energy Savings]]="",Conversion[[#This Row],[Units of Energy Savings]]="n/a"),"n/a",Calc) -> n/a | H22: =INDEX(Lookups_Heating_Fuel_Prices,MATCH(Conversion[[#This Row],[Heating Fuel Consumed by Home]],Lookups_Heating_Fuel_For_Price,),1) ->  | I22: n/a | M22: Electricity | O22: n/a | P22: N | Q22: =SUM(Conversion[[#This Row],[Dollar Savings9]],Conversion[[#This Row],[Dollar Savings]]) -> 0 | R22: =IF(ISERROR(VLOOKUP(Conversion[[#This Row],[GJGNY Measure]],'Loan Application - Step 1'!$C$43:$C$82,1,)),"","Yes") ->  | S22: 20 | T22: Installed in accordance with all applicable state and local codes | U22: =IF(ISERROR(VLOOKUP(Conversion[[#This Row],[GJGNY Measure]],'Loan Application - Step 1'!$C$43:$C$82,1,)),"","Yes") ->  | V22: Y
A23: Boiler Pipe Insulation | B23: =CONCATENATE(Conversion[[#This Row],[Savings Unit Type]],Conversion[[#This Row],[Unit Type Consumed by Home]],IF(OR(Conversion[[#This Row],[Heating Fuel Consumed by Home]]="Oil",Conversion[[#This Row],[Heating Fuel Consumed by Home]]="Propane")," - "&Conversion[[#This Row],[Heating Fuel Consumed by Home]],"")) ->  | G23: =IF(OR(Conversion[[#This Row],[Units of Energy Savings]]="",Conversion[[#This Row],[Units of Energy Savings]]="n/a"),"n/a",Calc) -> n/a | H23: =INDEX(Lookups_Heating_Fuel_Prices,MATCH(Conversion[[#This Row],[Heating Fuel Consumed by Home]],Lookups_Heating_Fuel_For_Price,),1) ->  | I23: n/a | M23: Electricity | O23: n/a | P23: N | Q23: =SUM(Conversion[[#This Row],[Dollar Savings9]],Conversion[[#This Row],[Dollar Savings]]) -> 0 | R23: =IF(ISERROR(VLOOKUP(Conversion[[#This Row],[GJGNY Measure]],'Loan Application - Step 1'!$C$43:$C$82,1,)),"","Yes") ->  | S23: 11 | T23: R-3 | U23: =IF(ISERROR(VLOOKUP(Conversion[[#This Row],[GJGNY Measure]],'Loan Application - Step 1'!$C$43:$C$82,1,)),"","Yes") ->  | V23: Y
A24: New ductwork or boiler distribution for Oil or Propane Heating System | B24: =CONCATENATE(Conversion[[#This Row],[Savings Unit Type]],Conversion[[#This Row],[Unit Type Consumed by Home]],IF(OR(Conversion[[#This Row],[Heating Fuel Consumed by Home]]="Oil",Conversion[[#This Row],[Heating Fuel Consumed by Home]]="Propane")," - "&Conversion[[#This Row],[Heating Fuel Consumed by Home]],"")) ->  | G24: =IF(OR(Conversion[[#This Row],[Units of Energy Savings]]="",Conversion[[#This Row],[Units of Energy Savings]]="n/a"),"n/a",Calc) -> n/a | H24: =INDEX(Lookups_Heating_Fuel_Prices,MATCH(Conversion[[#This Row],[Heating Fuel Consumed by Home]],Lookups_Heating_Fuel_For_Price,),1) ->  | I24: n/a | M24: Electricity | O24: n/a | P24: N | Q24: =SUM(Conversion[[#This Row],[Dollar Savings9]],Conversion[[#This Row],[Dollar Savings]]) -> 0 | R24: =IF(ISERROR(VLOOKUP(Conversion[[#This Row],[GJGNY Measure]],'Loan Application - Step 1'!$C$43:$C$82,1,)),"","Yes") ->  | S24: 20 | T24: Installed in accordance with all applicable state and local codes | U24: =IF(ISERROR(VLOOKUP(Conversion[[#This Row],[GJGNY Measure]],'Loan Application - Step 1'!$C$43:$C$82,1,)),"","Yes") ->  | V24: Y
A25: New ductwork or boiler distribution for NG or Electric Heating/Cooling Systems | B25: =CONCATENATE(Conversion[[#This Row],[Savings Unit Type]],Conversion[[#This Row],[Unit Type Consumed by Home]],IF(OR(Conversion[[#This Row],[Heating Fuel Consumed by Home]]="Oil",Conversion[[#This Row],[Heating Fuel Consumed by Home]]="Propane")," - "&Conversion[[#This Row],[Heating Fuel Consumed by Home]],"")) ->  | G25: =IF(OR(Conversion[[#This Row],[Units of Energy Savings]]="",Conversion[[#This Row],[Units of Energy Savings]]="n/a"),"n/a",Calc) -> n/a | H25: =INDEX(Lookups_Heating_Fuel_Prices,MATCH(Conversion[[#This Row],[Heating Fuel Consumed by Home]],Lookups_Heating_Fuel_For_Price,),1) ->  | I25: n/a | M25: Electricity | O25: n/a | P25: N | Q25: =SUM(Conversion[[#This Row],[Dollar Savings9]],Conversion[[#This Row],[Dollar Savings]]) -> 0 | R25: =IF(ISERROR(VLOOKUP(Conversion[[#This Row],[GJGNY Measure]],'Loan Application - Step 1'!$C$43:$C$82,1,)),"","Yes") ->  | S25: 20 | T25: Installed in accordance with all applicable state and local codes | U25: =IF(ISERROR(VLOOKUP(Conversion[[#This Row],[GJGNY Measure]],'Loan Application - Step 1'!$C$43:$C$82,1,)),"","Yes") ->  | V25: Y
A26: ="Thermostat Upgrade: "&Raw_Existing_Thermostat&" to "&Raw_New_Thermostat -> Thermostat Upgrade: to | B26: =CONCATENATE(Conversion[[#This Row],[Savings Unit Type]],Conversion[[#This Row],[Unit Type Consumed by Home]],IF(OR(Conversion[[#This Row],[Heating Fuel Consumed by Home]]="Oil",Conversion[[#This Row],[Heating Fuel Consumed by Home]]="Propane")," - "&Conversion[[#This Row],[Heating Fuel Consumed by Home]],"")) ->  | C26: =IF(Raw_HVAC_1_Heating_Fuel="electricity",Savings_Thermostat_kWh,Savings_Thermostat_Therms*29.3) ->  | D26: kWh | E26: =Raw_HVAC_1_Heating_Fuel -> 0 | G26: =IF(OR(Conversion[[#This Row],[Units of Energy Savings]]="",Conversion[[#This Row],[Units of Energy Savings]]="n/a"),"n/a",Calc) ->  | H26: =INDEX(Lookups_Heating_Fuel_Prices,MATCH(Conversion[[#This Row],[Heating Fuel Consumed by Home]],Lookups_Heating_Fuel_For_Price,),1) ->  | I26: n/a | K26: =Savings_Thermostat_kWh_Prc*Output!D35 ->  | L26: kWh | M26: Electricity | O26: n/a | P26: Y | Q26: =SUM(Conversion[[#This Row],[Dollar Savings9]],Conversion[[#This Row],[Dollar Savings]]) -> 0 | R26: =IF(ISERROR(VLOOKUP(Conversion[[#This Row],[GJGNY Measure]],'Loan Application - Step 1'!$C$43:$C$82,1,)),"","Yes") ->  | S26: 11 | T26: 5+2 day programmable thermostat including smart thermostat. | U26: =IF(ISERROR(VLOOKUP(Conversion[[#This Row],[GJGNY Measure]],'Loan Application - Step 1'!$C$43:$C$82,1,)),"","Yes") ->  | V26: Y
A27: Room Air Conditioner | B27: =CONCATENATE(Conversion[[#This Row],[Savings Unit Type]],Conversion[[#This Row],[Unit Type Consumed by Home]],IF(OR(Conversion[[#This Row],[Heating Fuel Consumed by Home]]="Oil",Conversion[[#This Row],[Heating Fuel Consumed by Home]]="Propane")," - "&Conversion[[#This Row],[Heating Fuel Consumed by Home]],"")) ->  | I27: n/a | K27: =Savings_Room_AC_kWh ->  | L27: kWh | M27: Electricity | O27: n/a | P27: Y | Q27: =SUM(Conversion[[#This Row],[Dollar Savings9]],Conversion[[#This Row],[Dollar Savings]]) -> 0 | R27: =IF(ISERROR(VLOOKUP(Conversion[[#This Row],[GJGNY Measure]],'Loan Application - Step 1'!$C$43:$C$82,1,)),"","Yes") ->  | S27: 9 | T27: ENERGY STAR for climate/region. | U27: =IF(ISERROR(VLOOKUP(Conversion[[#This Row],[GJGNY Measure]],'Loan Application - Step 1'!$C$43:$C$82,1,)),"","Yes") ->  | V27: Y
A28: Water Heater Tank Insulation - Electric Only | B28: =CONCATENATE(Conversion[[#This Row],[Savings Unit Type]],Conversion[[#This Row],[Unit Type Consumed by Home]],IF(OR(Conversion[[#This Row],[Heating Fuel Consumed by Home]]="Oil",Conversion[[#This Row],[Heating Fuel Consumed by Home]]="Propane")," - "&Conversion[[#This Row],[Heating Fuel Consumed by Home]],"")) -> kWh | E28: Electricity | F28: kWh | G28: =IF(OR(Conversion[[#This Row],[Units of Energy Savings]]="",Conversion[[#This Row],[Units of Energy Savings]]="n/a"),"n/a",Calc) -> n/a | H28: =INDEX(Lookups_Heating_Fuel_Prices,MATCH(Conversion[[#This Row],[Heating Fuel Consumed by Home]],Lookups_Heating_Fuel_For_Price,),1) ->  | I28: n/a | M28: Electricity | O28: n/a | P28: N | Q28: =SUM(Conversion[[#This Row],[Dollar Savings9]],Conversion[[#This Row],[Dollar Savings]]) -> 0 | R28: =IF(ISERROR(VLOOKUP(Conversion[[#This Row],[GJGNY Measure]],'Loan Application - Step 1'!$C$43:$C$82,1,)),"","Yes") ->  | S28: 20 | T28: R-10 | U28: =IF(ISERROR(VLOOKUP(Conversion[[#This Row],[GJGNY Measure]],'Loan Application - Step 1'!$C$43:$C$82,1,)),"","Yes") ->  | V28: N
A29: Water Heater - Tank: Heat Pump | B29: =CONCATENATE(Conversion[[#This Row],[Savings Unit Type]],Conversion[[#This Row],[Unit Type Consumed by Home]],IF(OR(Conversion[[#This Row],[Heating Fuel Consumed by Home]]="Oil",Conversion[[#This Row],[Heating Fuel Consumed by Home]]="Propane")," - "&Conversion[[#This Row],[Heating Fuel Consumed by Home]],"")) ->  | C29: ='DHW Savings'!$B$15 ->  | D29: kWh | E29: =Raw_Water_Heating_Fuel_Existing -> 0 | G29: =IF(OR(Conversion[[#This Row],[Units of Energy Savings]]="",Conversion[[#This Row],[Units of Energy Savings]]="n/a"),"n/a",Calc) ->  | H29: =INDEX(Lookups_Heating_Fuel_Prices,MATCH(Conversion[[#This Row],[Heating Fuel Consumed by Home]],Lookups_Heating_Fuel_For_Price,),1) ->  | I29: =IF(ISERROR(H29*G29),"n/a",H29*G29) -> n/a | M29: Electricity | N29: =Lookups_Electric_Rate ->  | O29: =IF(ISERROR(K29*N29),"n/a",K29*N29) -> n/a | P29: Y | Q29: =SUM(Conversion[[#This Row],[Dollar Savings9]],Conversion[[#This Row],[Dollar Savings]]) -> 0 | R29: =IF(ISERROR(VLOOKUP(Conversion[[#This Row],[GJGNY Measure]],'Loan Application - Step 1'!$C$43:$C$82,1,)),"","Yes") ->  | S29: 10 | T29: ≤ 55 gallon tank UEF > 2.0; >55 gallon tank UEF > 2.2; ENERGY STAR Qualified, Must be installed in an unconditioned space. | U29: =IF(ISERROR(VLOOKUP(Conversion[[#This Row],[GJGNY Measure]],'Loan Application - Step 1'!$C$43:$C$82,1,)),"","Yes") ->  | V29: Y
A30: Water Heater - Tank: Natural Gas or LP | B30: =CONCATENATE(Conversion[[#This Row],[Savings Unit Type]],Conversion[[#This Row],[Unit Type Consumed by Home]],IF(OR(Conversion[[#This Row],[Heating Fuel Consumed by Home]]="Oil",Conversion[[#This Row],[Heating Fuel Consumed by Home]]="Propane")," - "&Conversion[[#This Row],[Heating Fuel Consumed by Home]],"")) ->  | C30: ='DHW Savings'!$B$15 ->  | D30: kWh | E30: 0 | F30: =INDEX(Lookups_Heating_Fuel_Selling_Units,MATCH(E30,Lookups_HVAC_1_Heating_Fuel,),1) ->  | G30: =IF(OR(Conversion[[#This Row],[Units of Energy Savings]]="",Conversion[[#This Row],[Units of Energy Savings]]="n/a"),"n/a",Calc) ->  | H30: =INDEX(Lookups_Heating_Fuel_Prices,MATCH(Conversion[[#This Row],[Heating Fuel Consumed by Home]],Lookups_Heating_Fuel_For_Price,),1) ->  | I30: =IF(ISERROR(H30*G30),"n/a",H30*G30) -> n/a | M30: Electricity | O30: =IF(ISERROR(K30*N30),"n/a",K30*N30) -> n/a | P30: Y | Q30: =SUM(Conversion[[#This Row],[Dollar Savings9]],Conversion[[#This Row],[Dollar Savings]]) -> 0 | R30: =IF(ISERROR(VLOOKUP(Conversion[[#This Row],[GJGNY Measure]],'Loan Application - Step 1'!$C$43:$C$82,1,)),"","Yes") ->  | S30: 20 | T30: ENERGY STAR Qualified. 40-100 gallons | U30: =IF(ISERROR(VLOOKUP(Conversion[[#This Row],[GJGNY Measure]],'Loan Application - Step 1'!$C$43:$C$82,1,)),"","Yes") ->  | V30: Y
A31: Water Heater - Tank: Electric Resistance | B31: =CONCATENATE(Conversion[[#This Row],[Savings Unit Type]],Conversion[[#This Row],[Unit Type Consumed by Home]],IF(OR(Conversion[[#This Row],[Heating Fuel Consumed by Home]]="Oil",Conversion[[#This Row],[Heating Fuel Consumed by Home]]="Propane")," - "&Conversion[[#This Row],[Heating Fuel Consumed by Home]],"")) ->  | C31: ='DHW Savings'!$B$15 ->  | D31: kWh | E31: 0 | F31: =INDEX(Lookups_Heating_Fuel_Selling_Units,MATCH(E31,Lookups_HVAC_1_Heating_Fuel,),1) ->  | G31: =IF(OR(Conversion[[#This Row],[Units of Energy Savings]]="",Conversion[[#This Row],[Units of Energy Savings]]="n/a"),"n/a",Calc) ->  | H31: =INDEX(Lookups_Heating_Fuel_Prices,MATCH(Conversion[[#This Row],[Heating Fuel Consumed by Home]],Lookups_Heating_Fuel_For_Price,),1) ->  | I31: =IF(ISERROR(H31*G31),"n/a",H31*G31) -> n/a | M31: Electricity | O31: =IF(ISERROR(K31*N31),"n/a",K31*N31) -> n/a | P31: Y | Q31: =SUM(Conversion[[#This Row],[Dollar Savings9]],Conversion[[#This Row],[Dollar Savings]]) -> 0 | R31: =IF(ISERROR(VLOOKUP(Conversion[[#This Row],[GJGNY Measure]],'Loan Application - Step 1'!$C$43:$C$82,1,)),"","Yes") ->  | S31: 15 | T31: ENERGY STAR Qualified | U31: =IF(ISERROR(VLOOKUP(Conversion[[#This Row],[GJGNY Measure]],'Loan Application - Step 1'!$C$43:$C$82,1,)),"","Yes") ->  | V31: N
A32: Water Heater - Tank: Oil | B32: =CONCATENATE(Conversion[[#This Row],[Savings Unit Type]],Conversion[[#This Row],[Unit Type Consumed by Home]],IF(OR(Conversion[[#This Row],[Heating Fuel Consumed by Home]]="Oil",Conversion[[#This Row],[Heating Fuel Consumed by Home]]="Propane")," - "&Conversion[[#This Row],[Heating Fuel Consumed by Home]],"")) ->  | C32: ='DHW Savings'!$B$15 ->  | D32: kWh | E32: 0 | G32: =IF(OR(Conversion[[#This Row],[Units of Energy Savings]]="",Conversion[[#This Row],[Units of Energy Savings]]="n/a"),"n/a",Calc) ->  | H32: =INDEX(Lookups_Heating_Fuel_Prices,MATCH(Conversion[[#This Row],[Heating Fuel Consumed by Home]],Lookups_Heating_Fuel_For_Price,),1) ->  | I32: n/a | M32: Electricity | O32: n/a | P32: Y | Q32: =SUM(Conversion[[#This Row],[Dollar Savings9]],Conversion[[#This Row],[Dollar Savings]]) -> 0 | R32: =IF(ISERROR(VLOOKUP(Conversion[[#This Row],[GJGNY Measure]],'Loan Application - Step 1'!$C$43:$C$82,1,)),"","Yes") ->  | S32: 15 | T32: 20-100 gallons, UEF > 0.68 | U32: =IF(ISERROR(VLOOKUP(Conversion[[#This Row],[GJGNY Measure]],'Loan Application - Step 1'!$C$43:$C$82,1,)),"","Yes") ->  | V32: Y
A33: Water Heater - Tank: Indirect | B33: =CONCATENATE(Conversion[[#This Row],[Savings Unit Type]],Conversion[[#This Row],[Unit Type Consumed by Home]],IF(OR(Conversion[[#This Row],[Heating Fuel Consumed by Home]]="Oil",Conversion[[#This Row],[Heating Fuel Consumed by Home]]="Propane")," - "&Conversion[[#This Row],[Heating Fuel Consumed by Home]],"")) ->  | C33: ='DHW Savings'!$B$15 ->  | D33: kWh | E33: 0 | F33: =INDEX(Lookups_Heating_Fuel_Selling_Units,MATCH(E33,Lookups_HVAC_1_Heating_Fuel,),1) ->  | G33: =IF(OR(Conversion[[#This Row],[Units of Energy Savings]]="",Conversion[[#This Row],[Units of Energy Savings]]="n/a"),"n/a",Calc) ->  | H33: =INDEX(Lookups_Heating_Fuel_Prices,MATCH(Conversion[[#This Row],[Heating Fuel Consumed by Home]],Lookups_Heating_Fuel_For_Price,),1) ->  | I33: =IF(ISERROR(H33*G33),"n/a",H33*G33) -> n/a | M33: Electricity | O33: =IF(ISERROR(K33*N33),"n/a",K33*N33) -> n/a | P33: Y | Q33: =SUM(Conversion[[#This Row],[Dollar Savings9]],Conversion[[#This Row],[Dollar Savings]]) -> 0 | R33: =IF(ISERROR(VLOOKUP(Conversion[[#This Row],[GJGNY Measure]],'Loan Application - Step 1'!$C$43:$C$82,1,)),"","Yes") ->  | S33: 13 | T33: UL Approved | U33: =IF(ISERROR(VLOOKUP(Conversion[[#This Row],[GJGNY Measure]],'Loan Application - Step 1'!$C$43:$C$82,1,)),"","Yes") ->  | V33: Y
A34: Water Heater - On-Demand/Tankless: Natural Gas or LP | B34: =CONCATENATE(Conversion[[#This Row],[Savings Unit Type]],Conversion[[#This Row],[Unit Type Consumed by Home]],IF(OR(Conversion[[#This Row],[Heating Fuel Consumed by Home]]="Oil",Conversion[[#This Row],[Heating Fuel Consumed by Home]]="Propane")," - "&Conversion[[#This Row],[Heating Fuel Consumed by Home]],"")) ->  | C34: ='DHW Savings'!$B$15 ->  | D34: kWh | E34: 0 | F34: =INDEX(Lookups_Heating_Fuel_Selling_Units,MATCH(E34,Lookups_HVAC_1_Heating_Fuel,),1) ->  | G34: =IF(OR(Conversion[[#This Row],[Units of Energy Savings]]="",Conversion[[#This Row],[Units of Energy Savings]]="n/a"),"n/a",Calc) ->  | H34: =INDEX(Lookups_Heating_Fuel_Prices,MATCH(Conversion[[#This Row],[Heating Fuel Consumed by Home]],Lookups_Heating_Fuel_For_Price,),1) ->  | I34: =IF(ISERROR(H34*G34),"n/a",H34*G34) -> n/a | M34: Electricity | O34: =IF(ISERROR(K34*N34),"n/a",K34*N34) -> n/a | P34: Y | Q34: =SUM(Conversion[[#This Row],[Dollar Savings9]],Conversion[[#This Row],[Dollar Savings]]) -> 0 | R34: =IF(ISERROR(VLOOKUP(Conversion[[#This Row],[GJGNY Measure]],'Loan Application - Step 1'!$C$43:$C$82,1,)),"","Yes") ->  | S34: 20 | T34: ENERGY STAR Qualified. Must replace a conventional 40 or 50 gallon tank. | U34: =IF(ISERROR(VLOOKUP(Conversion[[#This Row],[GJGNY Measure]],'Loan Application - Step 1'!$C$43:$C$82,1,)),"","Yes") ->  | V34: Y
A35: DHW Pipe Insulation | B35: =CONCATENATE(Conversion[[#This Row],[Savings Unit Type]],Conversion[[#This Row],[Unit Type Consumed by Home]],IF(OR(Conversion[[#This Row],[Heating Fuel Consumed by Home]]="Oil",Conversion[[#This Row],[Heating Fuel Consumed by Home]]="Propane")," - "&Conversion[[#This Row],[Heating Fuel Consumed by Home]],"")) ->  | E35: 0 | G35: =IF(OR(Conversion[[#This Row],[Units of Energy Savings]]="",Conversion[[#This Row],[Units of Energy Savings]]="n/a"),"n/a",Calc) -> n/a | H35: =INDEX(Lookups_Heating_Fuel_Prices,MATCH(Conversion[[#This Row],[Heating Fuel Consumed by Home]],Lookups_Heating_Fuel_For_Price,),1) ->  | I35: n/a | M35: Electricity | O35: n/a | P35: N | Q35: =SUM(Conversion[[#This Row],[Dollar Savings9]],Conversion[[#This Row],[Dollar Savings]]) -> 0 | R35: =IF(ISERROR(VLOOKUP(Conversion[[#This Row],[GJGNY Measure]],'Loan Application - Step 1'!$C$43:$C$82,1,)),"","Yes") ->  | S35: 11 | T35: R-3 | U35: =IF(ISERROR(VLOOKUP(Conversion[[#This Row],[GJGNY Measure]],'Loan Application - Step 1'!$C$43:$C$82,1,)),"","Yes") ->  | V35: Y
A36: Primary Refrigerator | B36: =CONCATENATE(Conversion[[#This Row],[Savings Unit Type]],Conversion[[#This Row],[Unit Type Consumed by Home]],IF(OR(Conversion[[#This Row],[Heating Fuel Consumed by Home]]="Oil",Conversion[[#This Row],[Heating Fuel Consumed by Home]]="Propane")," - "&Conversion[[#This Row],[Heating Fuel Consumed by Home]],"")) -> kWhkWh | C36: =Savings_Primary_Refrigerator_kWh -> n/a | D36: kWh | E36: Electricity | F36: kWh | G36: =IF(OR(Conversion[[#This Row],[Units of Energy Savings]]="",Conversion[[#This Row],[Units of Energy Savings]]="n/a"),"n/a",Calc) -> n/a | H36: =INDEX(Lookups_Heating_Fuel_Prices,MATCH(Conversion[[#This Row],[Heating Fuel Consumed by Home]],Lookups_Heating_Fuel_For_Price,),1) ->  | I36: n/a | M36: Electricity | O36: n/a | P36: Y | Q36: =SUM(Conversion[[#This Row],[Dollar Savings9]],Conversion[[#This Row],[Dollar Savings]]) -> 0 | R36: =IF(ISERROR(VLOOKUP(Conversion[[#This Row],[GJGNY Measure]],'Loan Application - Step 1'!$C$43:$C$82,1,)),"","Yes") ->  | S36: 17 | T36: CEE Tier 2 or 3. | U36: =IF(ISERROR(VLOOKUP(Conversion[[#This Row],[GJGNY Measure]],'Loan Application - Step 1'!$C$43:$C$82,1,)),"","Yes") ->  | V36: Y
A37: Secondary Refrigerator/Freezer | B37: =CONCATENATE(Conversion[[#This Row],[Savings Unit Type]],Conversion[[#This Row],[Unit Type Consumed by Home]],IF(OR(Conversion[[#This Row],[Heating Fuel Consumed by Home]]="Oil",Conversion[[#This Row],[Heating Fuel Consumed by Home]]="Propane")," - "&Conversion[[#This Row],[Heating Fuel Consumed by Home]],"")) -> kWhkWh | C37: =Savings_Secondary_Refrigerator_Freezer_kWh -> n/a | D37: kWh | E37: Electricity | F37: kWh | G37: =IF(OR(Conversion[[#This Row],[Units of Energy Savings]]="",Conversion[[#This Row],[Units of Energy Savings]]="n/a"),"n/a",Calc) -> n/a | H37: =INDEX(Lookups_Heating_Fuel_Prices,MATCH(Conversion[[#This Row],[Heating Fuel Consumed by Home]],Lookups_Heating_Fuel_For_Price,),1) ->  | I37: n/a | M37: Electricity | O37: n/a | P37: Y | Q37: =SUM(Conversion[[#This Row],[Dollar Savings9]],Conversion[[#This Row],[Dollar Savings]]) -> 0 | R37: =IF(ISERROR(VLOOKUP(Conversion[[#This Row],[GJGNY Measure]],'Loan Application - Step 1'!$C$43:$C$82,1,)),"","Yes") ->  | S37: 15 | T37: ENERGY STAR Qualified | U37: =IF(ISERROR(VLOOKUP(Conversion[[#This Row],[GJGNY Measure]],'Loan Application - Step 1'!$C$43:$C$82,1,)),"","Yes") ->  | V37: Y
A38: Clothes washer | B38: =CONCATENATE(Conversion[[#This Row],[Savings Unit Type]],Conversion[[#This Row],[Unit Type Consumed by Home]],IF(OR(Conversion[[#This Row],[Heating Fuel Consumed by Home]]="Oil",Conversion[[#This Row],[Heating Fuel Consumed by Home]]="Propane")," - "&Conversion[[#This Row],[Heating Fuel Consumed by Home]],"")) -> kWhkWh | C38: =Savings_Clothes_Washer_kWh -> n/a | D38: kWh | E38: Electricity | F38: kWh | G38: =IF(OR(Conversion[[#This Row],[Units of Energy Savings]]="",Conversion[[#This Row],[Units of Energy Savings]]="n/a"),"n/a",Calc) -> n/a | H38: =INDEX(Lookups_Heating_Fuel_Prices,MATCH(Conversion[[#This Row],[Heating Fuel Consumed by Home]],Lookups_Heating_Fuel_For_Price,),1) ->  | I38: n/a | M38: Electricity | O38: n/a | P38: Y | Q38: =SUM(Conversion[[#This Row],[Dollar Savings9]],Conversion[[#This Row],[Dollar Savings]]) -> 0 | R38: =IF(ISERROR(VLOOKUP(Conversion[[#This Row],[GJGNY Measure]],'Loan Application - Step 1'!$C$43:$C$82,1,)),"","Yes") ->  | S38: 15 | T38: ENERGY STAR Qualified | U38: =IF(ISERROR(VLOOKUP(Conversion[[#This Row],[GJGNY Measure]],'Loan Application - Step 1'!$C$43:$C$82,1,)),"","Yes") ->  | V38: N
A39: Dishwasher | B39: =CONCATENATE(Conversion[[#This Row],[Savings Unit Type]],Conversion[[#This Row],[Unit Type Consumed by Home]],IF(OR(Conversion[[#This Row],[Heating Fuel Consumed by Home]]="Oil",Conversion[[#This Row],[Heating Fuel Consumed by Home]]="Propane")," - "&Conversion[[#This Row],[Heating Fuel Consumed by Home]],"")) -> kWhkWh | C39: =Savings_Dishwasher_kWh -> 0 | D39: kWh | E39: Electricity | F39: kWh | G39: =IF(OR(Conversion[[#This Row],[Units of Energy Savings]]="",Conversion[[#This Row],[Units of Energy Savings]]="n/a"),"n/a",Calc) -> 0 | H39: =INDEX(Lookups_Heating_Fuel_Prices,MATCH(Conversion[[#This Row],[Heating Fuel Consumed by Home]],Lookups_Heating_Fuel_For_Price,),1) ->  | I39: n/a | M39: Electricity | O39: n/a | P39: Y | Q39: =SUM(Conversion[[#This Row],[Dollar Savings9]],Conversion[[#This Row],[Dollar Savings]]) -> 0 | R39: =IF(ISERROR(VLOOKUP(Conversion[[#This Row],[GJGNY Measure]],'Loan Application - Step 1'!$C$43:$C$82,1,)),"","Yes") ->  | S39: 15 | T39: ENERGY STAR Qualified | U39: =IF(ISERROR(VLOOKUP(Conversion[[#This Row],[GJGNY Measure]],'Loan Application - Step 1'!$C$43:$C$82,1,)),"","Yes") ->  | V39: N
A40: Dehumidifier | B40: =CONCATENATE(Conversion[[#This Row],[Savings Unit Type]],Conversion[[#This Row],[Unit Type Consumed by Home]],IF(OR(Conversion[[#This Row],[Heating Fuel Consumed by Home]]="Oil",Conversion[[#This Row],[Heating Fuel Consumed by Home]]="Propane")," - "&Conversion[[#This Row],[Heating Fuel Consumed by Home]],"")) -> kWhkWh | C40: =Savings_Dehumidifier_kWh -> n/a | D40: kWh | E40: Electricity | F40: kWh | G40: =IF(OR(Conversion[[#This Row],[Units of Energy Savings]]="",Conversion[[#This Row],[Units of Energy Savings]]="n/a"),"n/a",Calc) -> n/a | H40: =INDEX(Lookups_Heating_Fuel_Prices,MATCH(Conversion[[#This Row],[Heating Fuel Consumed by Home]],Lookups_Heating_Fuel_For_Price,),1) ->  | I40: n/a | M40: Electricity | O40: n/a | P40: Y | Q40: =SUM(Conversion[[#This Row],[Dollar Savings9]],Conversion[[#This Row],[Dollar Savings]]) -> 0 | R40: =IF(ISERROR(VLOOKUP(Conversion[[#This Row],[GJGNY Measure]],'Loan Application - Step 1'!$C$43:$C$82,1,)),"","Yes") ->  | S40: 15 | T40: ENERGY STAR Qualified | U40: =IF(ISERROR(VLOOKUP(Conversion[[#This Row],[GJGNY Measure]],'Loan Application - Step 1'!$C$43:$C$82,1,)),"","Yes") ->  | V40: Y
A41: Lighting Upgrade | B41: =CONCATENATE(Conversion[[#This Row],[Savings Unit Type]],Conversion[[#This Row],[Unit Type Consumed by Home]],IF(OR(Conversion[[#This Row],[Heating Fuel Consumed by Home]]="Oil",Conversion[[#This Row],[Heating Fuel Consumed by Home]]="Propane")," - "&Conversion[[#This Row],[Heating Fuel Consumed by Home]],"")) -> kWhkWh | C41: =IF('Audit Summary Report'!N94<>"n/a",Savings_Lighting_kWh,0) -> 0 | D41: kWh | E41: Electricity | F41: kWh | G41: =IF(OR(Conversion[[#This Row],[Units of Energy Savings]]="",Conversion[[#This Row],[Units of Energy Savings]]="n/a"),"n/a",Calc) -> 0 | H41: =INDEX(Lookups_Heating_Fuel_Prices,MATCH(Conversion[[#This Row],[Heating Fuel Consumed by Home]],Lookups_Heating_Fuel_For_Price,),1) ->  | I41: n/a | M41: Electricity | O41: n/a | P41: Y | Q41: =SUM(Conversion[[#This Row],[Dollar Savings9]],Conversion[[#This Row],[Dollar Savings]]) -> 0 | R41: =IF(ISERROR(VLOOKUP(Conversion[[#This Row],[GJGNY Measure]],'Loan Application - Step 1'!$C$43:$C$82,1,)),"","Yes") ->  | S41: 15 | T41: ENERGY STAR Qualified | U41: =IF(ISERROR(VLOOKUP(Conversion[[#This Row],[GJGNY Measure]],'Loan Application - Step 1'!$C$43:$C$82,1,)),"","Yes") ->  | V41: Y
A42: Light Fixtures | B42: =CONCATENATE(Conversion[[#This Row],[Savings Unit Type]],Conversion[[#This Row],[Unit Type Consumed by Home]],IF(OR(Conversion[[#This Row],[Heating Fuel Consumed by Home]]="Oil",Conversion[[#This Row],[Heating Fuel Consumed by Home]]="Propane")," - "&Conversion[[#This Row],[Heating Fuel Consumed by Home]],"")) -> kWh | E42: Electricity | F42: kWh | G42: =IF(OR(Conversion[[#This Row],[Units of Energy Savings]]="",Conversion[[#This Row],[Units of Energy Savings]]="n/a"),"n/a",Calc) -> n/a | H42: =INDEX(Lookups_Heating_Fuel_Prices,MATCH(Conversion[[#This Row],[Heating Fuel Consumed by Home]],Lookups_Heating_Fuel_For_Price,),1) ->  | I42: n/a | M42: Electricity | O42: n/a | P42: Y | Q42: =SUM(Conversion[[#This Row],[Dollar Savings9]],Conversion[[#This Row],[Dollar Savings]]) -> 0 | R42: =IF(ISERROR(VLOOKUP(Conversion[[#This Row],[GJGNY Measure]],'Loan Application - Step 1'!$C$43:$C$82,1,)),"","Yes") ->  | S42: 20 | T42: ENERGY STAR Qualified for compact fluorescent, or electronic ballast for fluorescent tubes | U42: =IF(ISERROR(VLOOKUP(Conversion[[#This Row],[GJGNY Measure]],'Loan Application - Step 1'!$C$43:$C$82,1,)),"","Yes") ->  | V42: N
A43: Low Flow Showerhead | B43: =CONCATENATE(Conversion[[#This Row],[Savings Unit Type]],Conversion[[#This Row],[Unit Type Consumed by Home]],IF(OR(Conversion[[#This Row],[Heating Fuel Consumed by Home]]="Oil",Conversion[[#This Row],[Heating Fuel Consumed by Home]]="Propane")," - "&Conversion[[#This Row],[Heating Fuel Consumed by Home]],"")) ->  | C43: =IF(ISERROR(Savings_Showerhead_DHW_kWh),"n/a",Savings_Showerhead_DHW_kWh) -> n/a | D43: kWh | E43: =Raw_Water_Heating_Fuel_Existing -> 0 | G43: =IF(OR(Conversion[[#This Row],[Units of Energy Savings]]="",Conversion[[#This Row],[Units of Energy Savings]]="n/a"),"n/a",Calc) -> n/a | H43: =INDEX(Lookups_Heating_Fuel_Prices,MATCH(Conversion[[#This Row],[Heating Fuel Consumed by Home]],Lookups_Heating_Fuel_For_Price,),1) ->  | I43: n/a | M43: Electricity | O43: n/a | P43: Y | Q43: =SUM(Conversion[[#This Row],[Dollar Savings9]],Conversion[[#This Row],[Dollar Savings]]) -> 0 | R43: =IF(ISERROR(VLOOKUP(Conversion[[#This Row],[GJGNY Measure]],'Loan Application - Step 1'!$C$43:$C$82,1,)),"","Yes") ->  | S43: 10 | T43: Maximum flow rate of 1.5 gallons per minute. Aerating type showerheads not eligible. | U43: =IF(ISERROR(VLOOKUP(Conversion[[#This Row],[GJGNY Measure]],'Loan Application - Step 1'!$C$43:$C$82,1,)),"","Yes") ->  | V43: Y
A44: Faucet Aerator | B44: =CONCATENATE(Conversion[[#This Row],[Savings Unit Type]],Conversion[[#This Row],[Unit Type Consumed by Home]],IF(OR(Conversion[[#This Row],[Heating Fuel Consumed by Home]]="Oil",Conversion[[#This Row],[Heating Fuel Consumed by Home]]="Propane")," - "&Conversion[[#This Row],[Heating Fuel Consumed by Home]],"")) ->  | C44: =Savings_Faucet_DHW_kWh -> 70 | D44: kWh | E44: =Raw_Water_Heating_Fuel_Existing -> 0 | G44: =IF(OR(Conversion[[#This Row],[Units of Energy Savings]]="",Conversion[[#This Row],[Units of Energy Savings]]="n/a"),"n/a",Calc) ->  | H44: =INDEX(Lookups_Heating_Fuel_Prices,MATCH(Conversion[[#This Row],[Heating Fuel Consumed by Home]],Lookups_Heating_Fuel_For_Price,),1) ->  | I44: n/a | M44: Electricity | O44: n/a | P44: Y | Q44: =SUM(Conversion[[#This Row],[Dollar Savings9]],Conversion[[#This Row],[Dollar Savings]]) -> 0 | R44: =IF(ISERROR(VLOOKUP(Conversion[[#This Row],[GJGNY Measure]],'Loan Application - Step 1'!$C$43:$C$82,1,)),"","Yes") ->  | S44: 10 | T44: No minimum efficiency requirement | U44: =IF(ISERROR(VLOOKUP(Conversion[[#This Row],[GJGNY Measure]],'Loan Application - Step 1'!$C$43:$C$82,1,)),"","Yes") ->  | V44: Y
A45: Knob and tube wiring | B45: =CONCATENATE(Conversion[[#This Row],[Savings Unit Type]],Conversion[[#This Row],[Unit Type Consumed by Home]],IF(OR(Conversion[[#This Row],[Heating Fuel Consumed by Home]]="Oil",Conversion[[#This Row],[Heating Fuel Consumed by Home]]="Propane")," - "&Conversion[[#This Row],[Heating Fuel Consumed by Home]],"")) ->  | G45: =IF(OR(Conversion[[#This Row],[Units of Energy Savings]]="",Conversion[[#This Row],[Units of Energy Savings]]="n/a"),"n/a",Calc) -> n/a | H45: =INDEX(Lookups_Heating_Fuel_Prices,MATCH(Conversion[[#This Row],[Heating Fuel Consumed by Home]],Lookups_Heating_Fuel_For_Price,),1) ->  | I45: n/a | M45: Electricity | O45: n/a | P45: N | Q45: =SUM(Conversion[[#This Row],[Dollar Savings9]],Conversion[[#This Row],[Dollar Savings]]) -> 0 | R45: =IF(ISERROR(VLOOKUP(Conversion[[#This Row],[GJGNY Measure]],'Loan Application - Step 1'!$C$43:$C$82,1,)),"","Yes") ->  | S45: 0 | T45: If necessary in order to install insulation | U45: =IF(ISERROR(VLOOKUP(Conversion[[#This Row],[GJGNY Measure]],'Loan Application - Step 1'!$C$43:$C$82,1,)),"","Yes") ->  | V45: N
A46: Gas leak repair | B46: =CONCATENATE(Conversion[[#This Row],[Savings Unit Type]],Conversion[[#This Row],[Unit Type Consumed by Home]],IF(OR(Conversion[[#This Row],[Heating Fuel Consumed by Home]]="Oil",Conversion[[#This Row],[Heating Fuel Consumed by Home]]="Propane")," - "&Conversion[[#This Row],[Heating Fuel Consumed by Home]],"")) ->  | G46: =IF(OR(Conversion[[#This Row],[Units of Energy Savings]]="",Conversion[[#This Row],[Units of Energy Savings]]="n/a"),"n/a",Calc) -> n/a | H46: =INDEX(Lookups_Heating_Fuel_Prices,MATCH(Conversion[[#This Row],[Heating Fuel Consumed by Home]],Lookups_Heating_Fuel_For_Price,),1) ->  | I46: n/a | M46: Electricity | O46: n/a | P46: N | Q46: =SUM(Conversion[[#This Row],[Dollar Savings9]],Conversion[[#This Row],[Dollar Savings]]) -> 0 | R46: =IF(ISERROR(VLOOKUP(Conversion[[#This Row],[GJGNY Measure]],'Loan Application - Step 1'!$C$43:$C$82,1,)),"","Yes") ->  | S46: 0 | T46: Repaired in compliance with applicable codes | U46: =IF(ISERROR(VLOOKUP(Conversion[[#This Row],[GJGNY Measure]],'Loan Application - Step 1'!$C$43:$C$82,1,)),"","Yes") ->  | V46: N
A47: CAZ Spillage Repairs | B47: =CONCATENATE(Conversion[[#This Row],[Savings Unit Type]],Conversion[[#This Row],[Unit Type Consumed by Home]],IF(OR(Conversion[[#This Row],[Heating Fuel Consumed by Home]]="Oil",Conversion[[#This Row],[Heating Fuel Consumed by Home]]="Propane")," - "&Conversion[[#This Row],[Heating Fuel Consumed by Home]],"")) ->  | G47: =IF(OR(Conversion[[#This Row],[Units of Energy Savings]]="",Conversion[[#This Row],[Units of Energy Savings]]="n/a"),"n/a",Calc) -> n/a | H47: =INDEX(Lookups_Heating_Fuel_Prices,MATCH(Conversion[[#This Row],[Heating Fuel Consumed by Home]],Lookups_Heating_Fuel_For_Price,),1) ->  | I47: n/a | M47: Electricity | O47: n/a | P47: N | Q47: =SUM(Conversion[[#This Row],[Dollar Savings9]],Conversion[[#This Row],[Dollar Savings]]) -> 0 | R47: =IF(ISERROR(VLOOKUP(Conversion[[#This Row],[GJGNY Measure]],'Loan Application - Step 1'!$C$43:$C$82,1,)),"","Yes") ->  | S47: 0 | T47: Allowed when combustion safety tests indicate problem(s) with CAZ, per BPI 1200 standards | U47: =IF(ISERROR(VLOOKUP(Conversion[[#This Row],[GJGNY Measure]],'Loan Application - Step 1'!$C$43:$C$82,1,)),"","Yes") ->  | V47: N
A48: CO Mitigation Repairs | B48: =CONCATENATE(Conversion[[#This Row],[Savings Unit Type]],Conversion[[#This Row],[Unit Type Consumed by Home]],IF(OR(Conversion[[#This Row],[Heating Fuel Consumed by Home]]="Oil",Conversion[[#This Row],[Heating Fuel Consumed by Home]]="Propane")," - "&Conversion[[#This Row],[Heating Fuel Consumed by Home]],"")) ->  | G48: =IF(OR(Conversion[[#This Row],[Units of Energy Savings]]="",Conversion[[#This Row],[Units of Energy Savings]]="n/a"),"n/a",Calc) -> n/a | H48: =INDEX(Lookups_Heating_Fuel_Prices,MATCH(Conversion[[#This Row],[Heating Fuel Consumed by Home]],Lookups_Heating_Fuel_For_Price,),1) ->  | I48: n/a | M48: Electricity | O48: n/a | P48: N | Q48: =SUM(Conversion[[#This Row],[Dollar Savings9]],Conversion[[#This Row],[Dollar Savings]]) -> 0 | R48: =IF(ISERROR(VLOOKUP(Conversion[[#This Row],[GJGNY Measure]],'Loan Application - Step 1'!$C$43:$C$82,1,)),"","Yes") ->  | S48: 0 | T48: Per BPI 1200 limits and/or manufacturer specifications, as appropriate | U48: =IF(ISERROR(VLOOKUP(Conversion[[#This Row],[GJGNY Measure]],'Loan Application - Step 1'!$C$43:$C$82,1,)),"","Yes") ->  | V48: N
A49: Dryer vent repair | B49: =CONCATENATE(Conversion[[#This Row],[Savings Unit Type]],Conversion[[#This Row],[Unit Type Consumed by Home]],IF(OR(Conversion[[#This Row],[Heating Fuel Consumed by Home]]="Oil",Conversion[[#This Row],[Heating Fuel Consumed by Home]]="Propane")," - "&Conversion[[#This Row],[Heating Fuel Consumed by Home]],"")) ->  | G49: =IF(OR(Conversion[[#This Row],[Units of Energy Savings]]="",Conversion[[#This Row],[Units of Energy Savings]]="n/a"),"n/a",Calc) -> n/a | H49: =INDEX(Lookups_Heating_Fuel_Prices,MATCH(Conversion[[#This Row],[Heating Fuel Consumed by Home]],Lookups_Heating_Fuel_For_Price,),1) ->  | I49: n/a | M49: Electricity | O49: n/a | P49: N | Q49: =SUM(Conversion[[#This Row],[Dollar Savings9]],Conversion[[#This Row],[Dollar Savings]]) -> 0 | R49: =IF(ISERROR(VLOOKUP(Conversion[[#This Row],[GJGNY Measure]],'Loan Application - Step 1'!$C$43:$C$82,1,)),"","Yes") ->  | S49: 0 | T49: Repaired in compliance with applicable codes | U49: =IF(ISERROR(VLOOKUP(Conversion[[#This Row],[GJGNY Measure]],'Loan Application - Step 1'!$C$43:$C$82,1,)),"","Yes") ->  | V49: N
A50: Electrical service upgrade | B50: =CONCATENATE(Conversion[[#This Row],[Savings Unit Type]],Conversion[[#This Row],[Unit Type Consumed by Home]],IF(OR(Conversion[[#This Row],[Heating Fuel Consumed by Home]]="Oil",Conversion[[#This Row],[Heating Fuel Consumed by Home]]="Propane")," - "&Conversion[[#This Row],[Heating Fuel Consumed by Home]],"")) ->  | G50: =IF(OR(Conversion[[#This Row],[Units of Energy Savings]]="",Conversion[[#This Row],[Units of Energy Savings]]="n/a"),"n/a",Calc) -> n/a | H50: =INDEX(Lookups_Heating_Fuel_Prices,MATCH(Conversion[[#This Row],[Heating Fuel Consumed by Home]],Lookups_Heating_Fuel_For_Price,),1) ->  | I50: n/a | M50: Electricity | O50: n/a | P50: N | Q50: =SUM(Conversion[[#This Row],[Dollar Savings9]],Conversion[[#This Row],[Dollar Savings]]) -> 0 | R50: =IF(ISERROR(VLOOKUP(Conversion[[#This Row],[GJGNY Measure]],'Loan Application - Step 1'!$C$43:$C$82,1,)),"","Yes") ->  | S50: 0 | T50: If necessary when installing a new heating / cooling unit | U50: =IF(ISERROR(VLOOKUP(Conversion[[#This Row],[GJGNY Measure]],'Loan Application - Step 1'!$C$43:$C$82,1,)),"","Yes") ->  | V50: N
A51: Furnace humidifier | B51: =CONCATENATE(Conversion[[#This Row],[Savings Unit Type]],Conversion[[#This Row],[Unit Type Consumed by Home]],IF(OR(Conversion[[#This Row],[Heating Fuel Consumed by Home]]="Oil",Conversion[[#This Row],[Heating Fuel Consumed by Home]]="Propane")," - "&Conversion[[#This Row],[Heating Fuel Consumed by Home]],"")) ->  | G51: =IF(OR(Conversion[[#This Row],[Units of Energy Savings]]="",Conversion[[#This Row],[Units of Energy Savings]]="n/a"),"n/a",Calc) -> n/a | H51: =INDEX(Lookups_Heating_Fuel_Prices,MATCH(Conversion[[#This Row],[Heating Fuel Consumed by Home]],Lookups_Heating_Fuel_For_Price,),1) ->  | I51: n/a | M51: Electricity | O51: n/a | P51: N | Q51: =SUM(Conversion[[#This Row],[Dollar Savings9]],Conversion[[#This Row],[Dollar Savings]]) -> 0 | R51: =IF(ISERROR(VLOOKUP(Conversion[[#This Row],[GJGNY Measure]],'Loan Application - Step 1'!$C$43:$C$82,1,)),"","Yes") ->  | S51: 0 | U51: =IF(ISERROR(VLOOKUP(Conversion[[#This Row],[GJGNY Measure]],'Loan Application - Step 1'!$C$43:$C$82,1,)),"","Yes") ->  | V51: N
A52: Bathroom or kitchen ventilation fan | B52: =CONCATENATE(Conversion[[#This Row],[Savings Unit Type]],Conversion[[#This Row],[Unit Type Consumed by Home]],IF(OR(Conversion[[#This Row],[Heating Fuel Consumed by Home]]="Oil",Conversion[[#This Row],[Heating Fuel Consumed by Home]]="Propane")," - "&Conversion[[#This Row],[Heating Fuel Consumed by Home]],"")) ->  | G52: =IF(OR(Conversion[[#This Row],[Units of Energy Savings]]="",Conversion[[#This Row],[Units of Energy Savings]]="n/a"),"n/a",Calc) -> n/a | H52: =INDEX(Lookups_Heating_Fuel_Prices,MATCH(Conversion[[#This Row],[Heating Fuel Consumed by Home]],Lookups_Heating_Fuel_For_Price,),1) ->  | I52: n/a | M52: Electricity | O52: n/a | P52: N | Q52: =SUM(Conversion[[#This Row],[Dollar Savings9]],Conversion[[#This Row],[Dollar Savings]]) -> 0 | R52: =IF(ISERROR(VLOOKUP(Conversion[[#This Row],[GJGNY Measure]],'Loan Application - Step 1'!$C$43:$C$82,1,)),"","Yes") ->  | S52: 0 | T52: ENERGY STAR Qualified (must vent to exterior of building shell). Whole house fans or similar attic exhaust fans are not eligible. | U52: =IF(ISERROR(VLOOKUP(Conversion[[#This Row],[GJGNY Measure]],'Loan Application - Step 1'!$C$43:$C$82,1,)),"","Yes") ->  | V52: N
A53: Heat/Energy Recovery Ventilator | B53: =CONCATENATE(Conversion[[#This Row],[Savings Unit Type]],Conversion[[#This Row],[Unit Type Consumed by Home]],IF(OR(Conversion[[#This Row],[Heating Fuel Consumed by Home]]="Oil",Conversion[[#This Row],[Heating Fuel Consumed by Home]]="Propane")," - "&Conversion[[#This Row],[Heating Fuel Consumed by Home]],"")) ->  | G53: =IF(OR(Conversion[[#This Row],[Units of Energy Savings]]="",Conversion[[#This Row],[Units of Energy Savings]]="n/a"),"n/a",Calc) -> n/a | H53: =INDEX(Lookups_Heating_Fuel_Prices,MATCH(Conversion[[#This Row],[Heating Fuel Consumed by Home]],Lookups_Heating_Fuel_For_Price,),1) ->  | I53: n/a | M53: Electricity | O53: n/a | P53: N | Q53: =SUM(Conversion[[#This Row],[Dollar Savings9]],Conversion[[#This Row],[Dollar Savings]]) -> 0 | R53: =IF(ISERROR(VLOOKUP(Conversion[[#This Row],[GJGNY Measure]],'Loan Application - Step 1'!$C$43:$C$82,1,)),"","Yes") ->  | S53: 0 | T53: No minimum efficiency requirement | U53: =IF(ISERROR(VLOOKUP(Conversion[[#This Row],[GJGNY Measure]],'Loan Application - Step 1'!$C$43:$C$82,1,)),"","Yes") ->  | V53: N
A54: Germicidal UV lights or HEPA filters | B54: =CONCATENATE(Conversion[[#This Row],[Savings Unit Type]],Conversion[[#This Row],[Unit Type Consumed by Home]],IF(OR(Conversion[[#This Row],[Heating Fuel Consumed by Home]]="Oil",Conversion[[#This Row],[Heating Fuel Consumed by Home]]="Propane")," - "&Conversion[[#This Row],[Heating Fuel Consumed by Home]],"")) ->  | G54: =IF(OR(Conversion[[#This Row],[Units of Energy Savings]]="",Conversion[[#This Row],[Units of Energy Savings]]="n/a"),"n/a",Calc) -> n/a | H54: =INDEX(Lookups_Heating_Fuel_Prices,MATCH(Conversion[[#This Row],[Heating Fuel Consumed by Home]],Lookups_Heating_Fuel_For_Price,),1) ->  | I54: n/a | M54: Electricity | O54: n/a | P54: N | Q54: =SUM(Conversion[[#This Row],[Dollar Savings9]],Conversion[[#This Row],[Dollar Savings]]) -> 0 | R54: =IF(ISERROR(VLOOKUP(Conversion[[#This Row],[GJGNY Measure]],'Loan Application - Step 1'!$C$43:$C$82,1,)),"","Yes") ->  | S54: 0 | U54: =IF(ISERROR(VLOOKUP(Conversion[[#This Row],[GJGNY Measure]],'Loan Application - Step 1'!$C$43:$C$82,1,)),"","Yes") ->  | V54: N
A55: Air Cleaners | B55: =CONCATENATE(Conversion[[#This Row],[Savings Unit Type]],Conversion[[#This Row],[Unit Type Consumed by Home]],IF(OR(Conversion[[#This Row],[Heating Fuel Consumed by Home]]="Oil",Conversion[[#This Row],[Heating Fuel Consumed by Home]]="Propane")," - "&Conversion[[#This Row],[Heating Fuel Consumed by Home]],"")) ->  | G55: =IF(OR(Conversion[[#This Row],[Units of Energy Savings]]="",Conversion[[#This Row],[Units of Energy Savings]]="n/a"),"n/a",Calc) -> n/a | H55: =INDEX(Lookups_Heating_Fuel_Prices,MATCH(Conversion[[#This Row],[Heating Fuel Consumed by Home]],Lookups_Heating_Fuel_For_Price,),1) ->  | I55: n/a | M55: Electricity | O55: n/a | P55: N | Q55: =SUM(Conversion[[#This Row],[Dollar Savings9]],Conversion[[#This Row],[Dollar Savings]]) -> 0 | R55: =IF(ISERROR(VLOOKUP(Conversion[[#This Row],[GJGNY Measure]],'Loan Application - Step 1'!$C$43:$C$82,1,)),"","Yes") ->  | S55: 0 | T55: Furnace filters, IAQ items | U55: =IF(ISERROR(VLOOKUP(Conversion[[#This Row],[GJGNY Measure]],'Loan Application - Step 1'!$C$43:$C$82,1,)),"","Yes") ->  | V55: N
A56: Home repairs due to mold, mildew, or ice dams | B56: =CONCATENATE(Conversion[[#This Row],[Savings Unit Type]],Conversion[[#This Row],[Unit Type Consumed by Home]],IF(OR(Conversion[[#This Row],[Heating Fuel Consumed by Home]]="Oil",Conversion[[#This Row],[Heating Fuel Consumed by Home]]="Propane")," - "&Conversion[[#This Row],[Heating Fuel Consumed by Home]],"")) ->  | G56: =IF(OR(Conversion[[#This Row],[Units of Energy Savings]]="",Conversion[[#This Row],[Units of Energy Savings]]="n/a"),"n/a",Calc) -> n/a | H56: =INDEX(Lookups_Heating_Fuel_Prices,MATCH(Conversion[[#This Row],[Heating Fuel Consumed by Home]],Lookups_Heating_Fuel_For_Price,),1) ->  | I56: n/a | M56: Electricity | O56: n/a | P56: N | Q56: =SUM(Conversion[[#This Row],[Dollar Savings9]],Conversion[[#This Row],[Dollar Savings]]) -> 0 | R56: =IF(ISERROR(VLOOKUP(Conversion[[#This Row],[GJGNY Measure]],'Loan Application - Step 1'!$C$43:$C$82,1,)),"","Yes") ->  | S56: 0 | T56: Cause of moisture problem must also be addressed | U56: =IF(ISERROR(VLOOKUP(Conversion[[#This Row],[GJGNY Measure]],'Loan Application - Step 1'!$C$43:$C$82,1,)),"","Yes") ->  | V56: N
A57: Asbestos, lead, or radon abatement | B57: =CONCATENATE(Conversion[[#This Row],[Savings Unit Type]],Conversion[[#This Row],[Unit Type Consumed by Home]],IF(OR(Conversion[[#This Row],[Heating Fuel Consumed by Home]]="Oil",Conversion[[#This Row],[Heating Fuel Consumed by Home]]="Propane")," - "&Conversion[[#This Row],[Heating Fuel Consumed by Home]],"")) ->  | G57: =IF(OR(Conversion[[#This Row],[Units of Energy Savings]]="",Conversion[[#This Row],[Units of Energy Savings]]="n/a"),"n/a",Calc) -> n/a | H57: =INDEX(Lookups_Heating_Fuel_Prices,MATCH(Conversion[[#This Row],[Heating Fuel Consumed by Home]],Lookups_Heating_Fuel_For_Price,),1) ->  | I57: n/a | M57: Electricity | O57: n/a | P57: N | Q57: =SUM(Conversion[[#This Row],[Dollar Savings9]],Conversion[[#This Row],[Dollar Savings]]) -> 0 | R57: =IF(ISERROR(VLOOKUP(Conversion[[#This Row],[GJGNY Measure]],'Loan Application - Step 1'!$C$43:$C$82,1,)),"","Yes") ->  | S57: 0 | T57: May be performed by licensed abatement company | U57: =IF(ISERROR(VLOOKUP(Conversion[[#This Row],[GJGNY Measure]],'Loan Application - Step 1'!$C$43:$C$82,1,)),"","Yes") ->  | V57: N
A58: Chimney liners and caps | B58: =CONCATENATE(Conversion[[#This Row],[Savings Unit Type]],Conversion[[#This Row],[Unit Type Consumed by Home]],IF(OR(Conversion[[#This Row],[Heating Fuel Consumed by Home]]="Oil",Conversion[[#This Row],[Heating Fuel Consumed by Home]]="Propane")," - "&Conversion[[#This Row],[Heating Fuel Consumed by Home]],"")) ->  | F58: =INDEX(Lookups_Heating_Fuel_Selling_Units,MATCH(E58,Lookups_HVAC_1_Heating_Fuel,),1) ->  | G58: =IF(OR(Conversion[[#This Row],[Units of Energy Savings]]="",Conversion[[#This Row],[Units of Energy Savings]]="n/a"),"n/a",Calc) -> n/a | H58: =INDEX(Lookups_Heating_Fuel_Prices,MATCH(Conversion[[#This Row],[Heating Fuel Consumed by Home]],Lookups_Heating_Fuel_For_Price,),1) ->  | I58: =IF(ISERROR(H58*G58),"n/a",H58*G58) -> n/a | M58: Electricity | N58: =Lookups_Electric_Rate ->  | O58: =IF(ISERROR(K58*N58),"n/a",K58*N58) -> n/a | P58: N | Q58: =SUM(Conversion[[#This Row],[Dollar Savings9]],Conversion[[#This Row],[Dollar Savings]]) -> 0 | R58: =IF(ISERROR(VLOOKUP(Conversion[[#This Row],[GJGNY Measure]],'Loan Application - Step 1'!$C$43:$C$82,1,)),"","Yes") ->  | S58: 0 | U58: =IF(ISERROR(VLOOKUP(Conversion[[#This Row],[GJGNY Measure]],'Loan Application - Step 1'!$C$43:$C$82,1,)),"","Yes") ->  | V58: N
A59: Attic storage areas / mechanical access | B59: =CONCATENATE(Conversion[[#This Row],[Savings Unit Type]],Conversion[[#This Row],[Unit Type Consumed by Home]],IF(OR(Conversion[[#This Row],[Heating Fuel Consumed by Home]]="Oil",Conversion[[#This Row],[Heating Fuel Consumed by Home]]="Propane")," - "&Conversion[[#This Row],[Heating Fuel Consumed by Home]],"")) ->  | G59: =IF(OR(Conversion[[#This Row],[Units of Energy Savings]]="",Conversion[[#This Row],[Units of Energy Savings]]="n/a"),"n/a",Calc) -> n/a | H59: =INDEX(Lookups_Heating_Fuel_Prices,MATCH(Conversion[[#This Row],[Heating Fuel Consumed by Home]],Lookups_Heating_Fuel_For_Price,),1) ->  | I59: n/a | M59: Electricity | O59: n/a | P59: N | Q59: =SUM(Conversion[[#This Row],[Dollar Savings9]],Conversion[[#This Row],[Dollar Savings]]) -> 0 | R59: =IF(ISERROR(VLOOKUP(Conversion[[#This Row],[GJGNY Measure]],'Loan Application - Step 1'!$C$43:$C$82,1,)),"","Yes") ->  | S59: 0 | U59: =IF(ISERROR(VLOOKUP(Conversion[[#This Row],[GJGNY Measure]],'Loan Application - Step 1'!$C$43:$C$82,1,)),"","Yes") ->  | V59: N
A60: Drywall Repairs | B60: =CONCATENATE(Conversion[[#This Row],[Savings Unit Type]],Conversion[[#This Row],[Unit Type Consumed by Home]],IF(OR(Conversion[[#This Row],[Heating Fuel Consumed by Home]]="Oil",Conversion[[#This Row],[Heating Fuel Consumed by Home]]="Propane")," - "&Conversion[[#This Row],[Heating Fuel Consumed by Home]],"")) ->  | G60: =IF(OR(Conversion[[#This Row],[Units of Energy Savings]]="",Conversion[[#This Row],[Units of Energy Savings]]="n/a"),"n/a",Calc) -> n/a | H60: =INDEX(Lookups_Heating_Fuel_Prices,MATCH(Conversion[[#This Row],[Heating Fuel Consumed by Home]],Lookups_Heating_Fuel_For_Price,),1) ->  | I60: n/a | M60: Electricity | O60: n/a | P60: N | Q60: =SUM(Conversion[[#This Row],[Dollar Savings9]],Conversion[[#This Row],[Dollar Savings]]) -> 0 | R60: =IF(ISERROR(VLOOKUP(Conversion[[#This Row],[GJGNY Measure]],'Loan Application - Step 1'!$C$43:$C$82,1,)),"","Yes") ->  | S60: 0 | T60: If needed for air sealing repairs (such as a drop ceiling), or to replace drywall that was removed to install insulation | U60: =IF(ISERROR(VLOOKUP(Conversion[[#This Row],[GJGNY Measure]],'Loan Application - Step 1'!$C$43:$C$82,1,)),"","Yes") ->  | V60: N
A61: Oil tank removal or replacement | B61: =CONCATENATE(Conversion[[#This Row],[Savings Unit Type]],Conversion[[#This Row],[Unit Type Consumed by Home]],IF(OR(Conversion[[#This Row],[Heating Fuel Consumed by Home]]="Oil",Conversion[[#This Row],[Heating Fuel Consumed by Home]]="Propane")," - "&Conversion[[#This Row],[Heating Fuel Consumed by Home]],"")) ->  | G61: =IF(OR(Conversion[[#This Row],[Units of Energy Savings]]="",Conversion[[#This Row],[Units of Energy Savings]]="n/a"),"n/a",Calc) -> n/a | H61: =INDEX(Lookups_Heating_Fuel_Prices,MATCH(Conversion[[#This Row],[Heating Fuel Consumed by Home]],Lookups_Heating_Fuel_For_Price,),1) ->  | I61: n/a | M61: Electricity | O61: n/a | P61: N | Q61: =SUM(Conversion[[#This Row],[Dollar Savings9]],Conversion[[#This Row],[Dollar Savings]]) -> 0 | R61: =IF(ISERROR(VLOOKUP(Conversion[[#This Row],[GJGNY Measure]],'Loan Application - Step 1'!$C$43:$C$82,1,)),"","Yes") ->  | S61: 0 | T61: When done in conjunction with a heating system replacement | U61: =IF(ISERROR(VLOOKUP(Conversion[[#This Row],[GJGNY Measure]],'Loan Application - Step 1'!$C$43:$C$82,1,)),"","Yes") ->  | V61: N
B62: =CONCATENATE(Conversion[[#This Row],[Savings Unit Type]],Conversion[[#This Row],[Unit Type Consumed by Home]],IF(OR(Conversion[[#This Row],[Heating Fuel Consumed by Home]]="Oil",Conversion[[#This Row],[Heating Fuel Consumed by Home]]="Propane")," - "&Conversion[[#This Row],[Heating Fuel Consumed by Home]],"")) ->  | R62: =IF(ISERROR(VLOOKUP(Conversion[[#This Row],[GJGNY Measure]],'Loan Application - Step 1'!$C$43:$C$82,1,)),"","Yes") ->  | U62: =IF(ISERROR(VLOOKUP(Conversion[[#This Row],[GJGNY Measure]],'Loan Application - Step 1'!$C$43:$C$82,1,)),"","Yes") -> 
B63: =CONCATENATE(Conversion[[#This Row],[Savings Unit Type]],Conversion[[#This Row],[Unit Type Consumed by Home]],IF(OR(Conversion[[#This Row],[Heating Fuel Consumed by Home]]="Oil",Conversion[[#This Row],[Heating Fuel Consumed by Home]]="Propane")," - "&Conversion[[#This Row],[Heating Fuel Consumed by Home]],"")) ->  | R63: =IF(ISERROR(VLOOKUP(Conversion[[#This Row],[GJGNY Measure]],'Loan Application - Step 1'!$C$43:$C$82,1,)),"","Yes") ->  | U63: =IF(ISERROR(VLOOKUP(Conversion[[#This Row],[GJGNY Measure]],'Loan Application - Step 1'!$C$43:$C$82,1,)),"","Yes") -> 
B64: =CONCATENATE(Conversion[[#This Row],[Savings Unit Type]],Conversion[[#This Row],[Unit Type Consumed by Home]],IF(OR(Conversion[[#This Row],[Heating Fuel Consumed by Home]]="Oil",Conversion[[#This Row],[Heating Fuel Consumed by Home]]="Propane")," - "&Conversion[[#This Row],[Heating Fuel Consumed by Home]],"")) ->  | R64: =IF(ISERROR(VLOOKUP(Conversion[[#This Row],[GJGNY Measure]],'Loan Application - Step 1'!$C$43:$C$82,1,)),"","Yes") ->  | U64: =IF(ISERROR(VLOOKUP(Conversion[[#This Row],[GJGNY Measure]],'Loan Application - Step 1'!$C$43:$C$82,1,)),"","Yes") -> 
A67: Heating as % of Total kWh | B67: =Total_kWh_h_Pre/(Total_kWh_h_Pre+Total_kWh_c_Pre) -> 
A68: Cooling as % of Total kWh | B68: =1-B67 -> 
A81: Other | B81: =CONCATENATE(Conversion[[#This Row],[Savings Unit Type]],Conversion[[#This Row],[Unit Type Consumed by Home]]) ->  | F81: =INDEX(Lookups_Heating_Fuel_Selling_Units,MATCH(E81,Lookups_HVAC_1_Heating_Fuel,),1) ->  | G81: =IF(OR(Conversion[[#This Row],[Units of Energy Savings]]="",Conversion[[#This Row],[Units of Energy Savings]]="n/a"),"n/a",Calc) ->  | H81: =INDEX(Lookups_Heating_Fuel_Prices,MATCH(Conversion[[#This Row],[Heating Fuel Consumed by Home]],Lookups_Heating_Fuel_For_Price,),1) ->  | I81: =IF(ISERROR(H81*G81),"n/a",H81*G81) -> n/a | M81: Electricity | O81: =IF(ISERROR(K81*N81),"n/a",K81*N81) -> n/a | P81: N | Q81: =SUM(Conversion[[#This Row],[Dollar Savings9]],Conversion[[#This Row],[Dollar Savings]]) -> 
A82: Oven replacement – natural gas or LP | B82: =CONCATENATE(Conversion[[#This Row],[Savings Unit Type]],Conversion[[#This Row],[Unit Type Consumed by Home]]) ->  | G82: =IF(OR(Conversion[[#This Row],[Units of Energy Savings]]="",Conversion[[#This Row],[Units of Energy Savings]]="n/a"),"n/a",Calc) ->  | H82: =INDEX(Lookups_Heating_Fuel_Prices,MATCH(Conversion[[#This Row],[Heating Fuel Consumed by Home]],Lookups_Heating_Fuel_For_Price,),1) ->  | I82: n/a | M82: Electricity | O82: n/a | P82: N | Q82: =SUM(Conversion[[#This Row],[Dollar Savings9]],Conversion[[#This Row],[Dollar Savings]]) ->  | S82: 0 | T82: UL Listed Gas Ovens. If existing oven has CO level above 225ppm or a dangerous gas leak and cannot be repaired.
A83: Exterior Doors | B83: =CONCATENATE(Conversion[[#This Row],[Savings Unit Type]],Conversion[[#This Row],[Unit Type Consumed by Home]]) ->  | E83: 0 | G83: =IF(OR(Conversion[[#This Row],[Units of Energy Savings]]="",Conversion[[#This Row],[Units of Energy Savings]]="n/a"),"n/a",Calc) ->  | H83: =INDEX(Lookups_Heating_Fuel_Prices,MATCH(Conversion[[#This Row],[Heating Fuel Consumed by Home]],Lookups_Heating_Fuel_For_Price,),1) ->  | I83: n/a | M83: Electricity | O83: n/a | P83: N | Q83: =SUM(Conversion[[#This Row],[Dollar Savings9]],Conversion[[#This Row],[Dollar Savings]]) ->  | S83: 20 | T83: ENERGY STAR for climate/region | AB83: =CONCATENATE(AC83,AD83) -> Gallon - OilTherm | AC83: Gallon - Oil | AD83: Therm | AE83: Conversion[@[Units of Energy Savings]] | AG83: 1.49793011 | AH83: =CONCATENATE(AE83,"*",AG83) -> Conversion[@[Units of Energy Savings]]*1.49793010967476
A84: CO, Smoke, or Radon Detectors | B84: =CONCATENATE(Conversion[[#This Row],[Savings Unit Type]],Conversion[[#This Row],[Unit Type Consumed by Home]]) ->  | G84: =IF(OR(Conversion[[#This Row],[Units of Energy Savings]]="",Conversion[[#This Row],[Units of Energy Savings]]="n/a"),"n/a",Calc) ->  | H84: =INDEX(Lookups_Heating_Fuel_Prices,MATCH(Conversion[[#This Row],[Heating Fuel Consumed by Home]],Lookups_Heating_Fuel_For_Price,),1) ->  | I84: n/a | M84: Electricity | O84: n/a | P84: N | Q84: =SUM(Conversion[[#This Row],[Dollar Savings9]],Conversion[[#This Row],[Dollar Savings]]) ->  | S84: 0 | T84: Hard wired or battery operated
A85: DHW pressure relief valve | B85: =CONCATENATE(Conversion[[#This Row],[Savings Unit Type]],Conversion[[#This Row],[Unit Type Consumed by Home]]) ->  | G85: =IF(OR(Conversion[[#This Row],[Units of Energy Savings]]="",Conversion[[#This Row],[Units of Energy Savings]]="n/a"),"n/a",Calc) ->  | H85: =INDEX(Lookups_Heating_Fuel_Prices,MATCH(Conversion[[#This Row],[Heating Fuel Consumed by Home]],Lookups_Heating_Fuel_For_Price,),1) ->  | I85: n/a | M85: Electricity | O85: n/a | P85: N | Q85: =SUM(Conversion[[#This Row],[Dollar Savings9]],Conversion[[#This Row],[Dollar Savings]]) ->  | S85: 0
A86: Ground Source Heat Pump | B86: =CONCATENATE(Conversion[[#This Row],[Savings Unit Type]],Conversion[[#This Row],[Unit Type Consumed by Home]]) ->  | E86: 0 | G86: =IF(OR(Conversion[[#This Row],[Units of Energy Savings]]="",Conversion[[#This Row],[Units of Energy Savings]]="n/a"),"n/a",Calc) ->  | H86: =INDEX(Lookups_Heating_Fuel_Prices,MATCH(Conversion[[#This Row],[Heating Fuel Consumed by Home]],Lookups_Heating_Fuel_For_Price,),1) ->  | I86: n/a | M86: Electricity | O86: n/a | P86: N | Q86: =SUM(Conversion[[#This Row],[Dollar Savings9]],Conversion[[#This Row],[Dollar Savings]]) ->  | S86: 20 | T86: ENERGY STAR Qualified (closed-loop, open-loop, or direct expansion) | AB86: =CONCATENATE(AC86,AD86) -> Gallon - PropaneTherm | AC86: Gallon - Propane | AD86: Therm | AE86: Conversion[@[Units of Energy Savings]] | AG86: =1/AG6 -> 0.955 | AH86: =CONCATENATE(AE86,"*",AG86) -> Conversion[@[Units of Energy Savings]]*0.955000000000007
A87: Solar Photovoltaic (PV) | B87: =CONCATENATE(Conversion[[#This Row],[Savings Unit Type]],Conversion[[#This Row],[Unit Type Consumed by Home]]) ->  | G87: =IF(OR(Conversion[[#This Row],[Units of Energy Savings]]="",Conversion[[#This Row],[Units of Energy Savings]]="n/a"),"n/a",Calc) ->  | H87: =INDEX(Lookups_Heating_Fuel_Prices,MATCH(Conversion[[#This Row],[Heating Fuel Consumed by Home]],Lookups_Heating_Fuel_For_Price,),1) ->  | I87: n/a | M87: Electricity | O87: n/a | P87: N | Q87: =SUM(Conversion[[#This Row],[Dollar Savings9]],Conversion[[#This Row],[Dollar Savings]]) ->  | S87: 20 | T87: Warranty: 5 years on the system. System needs to be reviewed and approved by PSEGLI Solar Pioneer Program or the NYSERDA Solar PV Incentive Program prior to submission to HPwES.
A88: Solar Thermal | B88: =CONCATENATE(Conversion[[#This Row],[Savings Unit Type]],Conversion[[#This Row],[Unit Type Consumed by Home]]) ->  | G88: =IF(OR(Conversion[[#This Row],[Units of Energy Savings]]="",Conversion[[#This Row],[Units of Energy Savings]]="n/a"),"n/a",Calc) ->  | H88: =INDEX(Lookups_Heating_Fuel_Prices,MATCH(Conversion[[#This Row],[Heating Fuel Consumed by Home]],Lookups_Heating_Fuel_For_Price,),1) ->  | I88: n/a | M88: Electricity | O88: n/a | P88: N | Q88: =SUM(Conversion[[#This Row],[Dollar Savings9]],Conversion[[#This Row],[Dollar Savings]]) ->  | S88: 20 | T88: OG-100 or OG-300 certification from SRCC. SF 0.5. Warranty: 10 years-collector,5 years on the system. System Needs to be reviewed and approved by the NYSERDA or PSEGLI Solar Thermal Program prior to submission to HPwES.

Sheet Notes (hidden)
A3: Tab | B3: Cell
A4: Audit Data Collection | B4: A141 | C4: Edit the formula in 'Audit Data Collection'!$A$141 | E4: Version 2-4-2020 | G4: =CONCATENATE("Version ",MONTH(TODAY()),"-",DAY(TODAY()),"-",YEAR(TODAY())) -> Version 3-11-2020
A5: AdminUse ONLY-Evaluation Output | B5: Rows 2 and 3 | C5: Hide
A6: Audit Data Collection | B6: All Input | C6: Clear/Delete
A7: (Whole workbook) | C7: Update Entire workbook name/date
A8: All Unused | C8: Hide
A9: All Visible Tabs | C9: Password Protect
A10: (Whole workbook) | C10: Protect Structure
A11: Audit Data Collection | B11: B52:B55 | C11: Ensure that "15%" is inputted into each of these cells

Sheet ASHP Calculator (hidden)
S1: BASE CASE TOOLS -These calculation tools can be used to estimate efficiency and energy use for the base case systems | U1: Room AC | V1: 10 SEER | W1: 13 SEER | X1: 14.5 SEER | AR1: MBTU to CF conversion | AS1: 1.032 | BB1: Lookup by Fuel Type | BE1: Unit | BF1: Cost per | BG1: MBtu per | BI1: additional | BL1: Old way for Rates to be calculated
T2: Base Case Cooling Systems | V2: Unit | W2: Unit | X2: Const Spd | Y2: Reference | AY2: Room AC | BA2: Fuels From Data Collection | BB2: Fuels | BD2: eff | BE2: Name | BF2: Unit | BG2: Unit | BH2: Electric Utility/Source | BI2: elect factor | BK2: kWh Savings
T3: Rated SEER (Btu/Wh) | V3: 10 | W3: 13 | X3: 14.5 | Y3: Rudd, A., H.I. Henderson, D. Bergey & D. Shirey. 2013. ‘Energy Efficiency and Cost Assessment of Humidity Control Options for Residential Buildings’. ASHRAE Research Report RP1449, April. Table 5. | AX3: 0 | AY3: 10 SEER | BA3: Electricity | BB3: Elect Resist | BC3: per kWh | BD3: =IF($D$24=$BC$17,BC18,BD18) -> 1 | BE3: (kWh) | BF3: =VLOOKUP(Customer_Zip,'Lookups (2)'!CJ:CS,6,) ->  | BG3: 3.413 | BI3: 0 | BJ3: Electric | BK3: =F33 ->  | BL3: ='Fuel 1 - Savings Calculator'!H7 -> 
H4: Values that "Override" default values | T4: Rated fan power (W/cfm) | V4: 0.25 | W4: 0.25 | X4: 0.18 | AX4: 12 | AY4: 13 SEER | BA4: Oil | BB4: Fuel Oil | BC4: per gal | BD4: 0.79 | BE4: (gal) | BF4: =VLOOKUP(Customer_Zip,'Lookups (2)'!CJ:CS,8,) ->  | BG4: 139 | BH4: NY 3 yr avg | BI4: 1 | BJ4: Oil | BK4: =F33*43.9000000000001 ->  | BL4: =AK19 -> 
H5: Light grey text are values used in calculations | T5: Actual fan power (W/cfm) | V5: 0.5 | W5: 0.5 | X5: 0.35 | AX5: 14 | AY5: 14.5 SEER | BA5: NaturalGas | BB5: Natural Gas | BC5: per therm | BD5: 0.79 | BE5: (therms) | BF5: =VLOOKUP(Customer_Zip,'Lookups (2)'!CJ:CS,7,) ->  | BG5: 100 | BH5: National Grid | BI5: 1 | BJ5: Natural Gas | BK5: =F33*29.3001 ->  | BL5: ='Fuel 1 - Savings Calculator'!H4/10 -> 
T6: Rated airflow (cfm per ton) | V6: 375 | W6: 375 | X6: 375 | AF6: LOOKUP TABLE BY REGION | BA6: Propane | BB6: Propane | BC6: per gal | BD6: 0.77 | BE6: (gal) | BF6: =VLOOKUP(Customer_Zip,'Lookups (2)'!CJ:CS,10,) ->  | BG6: 92 | BH6: NY 3 yr avg | BI6: 1 | BJ6: Propane | BK6: =F33*27.9882884583333 ->  | BL6: =AL19 -> 
C7: Air Source Heat Pump | M7: Customer Information | T7: Rated power (kW per ton) | V7: =12/V3 -> 1.2 | W7: =12/W3 -> 0.9230769231 | X7: =12/X3 -> 0.8275862069 | BA7: Wood | BB7: Wood | BC7: per cord | BD7: 0.7 | BE7: (cord) | BF7: 225 | BG7: 24000 | BH7: Statewide Dec-18 | BI7: 0 | BJ7: Cord Wood | BK7: =F33*3690 ->  | BL7: 225
C8: Will this ASHP project satisfy a whole house full load? (90-120% of full load) | G8: Yes | T8: Additional fan power (W per ton) | V8: =(V5-V4)*V6 -> 93.75 | W8: =(W5-W4)*W6 -> 93.75 | X8: 63.75 | AF8: FROM: Bruce Harley Table (assuming UL is 1.5). | AJ8: From Nov 16 Memo, Tables 3, 4,5 | AV8: 25 | AX8: =VLOOKUP(AV8,AX3:AY5,2,TRUE) -> 14.5 SEER | BA8: Pellets | BB8: Wood Pellets | BC8: per ton | BD8: 0.77 | BE8: (ton) | BF8: =AM19 ->  | BG8: =16500 -> 16500 | BH8: Dec-18 40# bags | BI8: 1 | BJ8: Wood Pellets | BK8: =F33*4800 ->  | BL8: =AM19 -> 
T9: Actual power (kW per ton) | V9: =V7+V8/1000 -> 1.29375 | W9: =W7+W8/1000 -> 1.016826923 | X9: =X7+X8/1000 -> 0.8913362069 | AF9: AND: Eight Regions from Appendix B of Nov 16, 2018 Memo | AJ9: Gas | AK9: Fuel Oil | AL9: Propane | AM9: Pellets | AN9: Electric | AO9: Default Gas | AP9: Default Electric | AQ9: COOLING | AT9: Base Calcs | BA9: Coal | BB9: Coal
B10: ASHP System | C10: ASHP Size (rated cooling capacity) | E10: =Raw_ASHP_Size_New -> 0 | F10: Btu/h | H10: No. of Outdoor Units: | I10: =Raw_ASHP_Unit_Count_New -> 0 | M10: Name: | N10: =Customer_Name -> 0 | T10: Actual capacity (tons) | V10: =(12-V8*3.413/1000)/12 -> 0.9733359375 | W10: =(12-W8*3.413/1000)/12 -> 0.9733359375 | X10: =(12-X8*3.413/1000)/12 -> 0.9818684375 | AG10: MMBtu/size | AH10: kWh/size | AI10: Implied COP | AJ10: $/therm | AK10: $/gal | AL10: $/gal | AM10: $/ton | AN10: $/kWh | AQ10: MMBtu/size | AR10: kWh/size | AS10: Implied EER | AT10: City | AX10: =INDEX(Lookups_ASHP_SEER,MATCH(AV8,Lookups_Data_Collection_SEER,1),1) -> 14.5 SEER | BA10: Kerosene | BB10: Kerosene | BF10: =VLOOKUP(Customer_Zip,'Lookups (2)'!$CJ$4:$CR$2189,9,) -> 
H11: Total Installed Cost: | I11: ='Loan Application - Step 1'!G43 -> 0 | T11: Avg EER (Corrected SEER) | U11: 10 | V11: =V10*12/V9 -> 9.028043478 | W11: =W10*12/W9 -> 11.48674468 | X11: 13.21882939 | AF11: NYC | AG11: 0.9 | AH11: 104 | AI11: =AG11*1000/3.413/AH11 -> 2.535554103 | AJ11: No longer used. Prices from "Fuel 1…." Sheet | AK11: 2.7547 | AL11: 2.9581 | AM11: 350 | AN11: No Longer used. Prices from "Fuel 1…." sheet | AQ11: 1.05 | AR11: =787/12 -> 65.58333333 | AS11: =AQ11*1000/AR11 -> 16.01016518 | AT11: New York
E12: Weather Region: | F12: =VLOOKUP(N16,'Fuel 1 - Savings Calculator'!M:W,11,) ->  | M12: Address: | N12: =Customer_Address -> 0 | V12: =V11/V3 -> 0.9028043478 | W12: =W11/W3 -> 0.8835957447 | X12: =X11/X3 -> 0.9116434064 | AF12: Western | AG12: 1.1 | AH12: 111 | AI12: 2.903577471 | AK12: 2.6776 | AL12: 2.2052 | AM12: 249.56 | AQ12: =AQ13 -> 0.38 | AR12: =AR13 -> 23.25 | AS12: 16.34408602 | AT12: Rochester
D13: Key Load Assumptions - | G13: =AH19 ->  | H13: =AG19 ->  | I13: =IF(G26,I26,IF(I14<>"",I14,E10*H13/1000)) ->  | J13: MBtu/yr | K13: =IF(G26,"(Meas Fuel)",IF(I14,"(Override)","(default)")) -> (default) | AF13: Central | AG13: 1.1 | AH13: 111 | AI13: 2.903577471 | AK13: 2.4471 | AL13: 2.2436 | AM13: 243.16 | AQ13: 0.38 | AR13: =279/12 -> 23.25 | AS13: =AQ13*1000/AR13 -> 16.34408602 | AT13: Binghamton
H14: Htg Load Override: | J14: Annual MBtu | M14: City, State: | N14: =Customer_City&", "&Customer_State -> , NY | T14: Base Case Fan/Pump Power | V14: Basis: 150 Watts for 40 MBtu/h Furnace | AF14: North Country | AG14: 1.1 | AH14: 123 | AI14: 2.620301621 | AK14: 2.5133 | AL14: 2.8854 | AM14: 253.64 | AQ14: 0.39 | AR14: =289/12 -> 24.08333333 | AS14: =AQ14*1000/AR14 -> 16.19377163 | AT14: Massena
I15: =IF(I16,I16,AI19) ->  | J15: Avg COP | K15: =IF(I16,"(Override)","(default)") -> (default) | Z15: Based on bin analysis using heating load line with NY Locations | AF15: Capital District | AG15: 1.1 | AH15: 111 | AI15: 2.903577471 | AK15: 2.4871 | AL15: 2.6608 | AM15: 261.08 | AQ15: =AQ13 -> 0.38 | AR15: =AR13 -> 23.25 | AS15: 16.34408602 | AT15: Albany
C16: Seasonal AVG HEATING COP (including unit, fan) | H16: COP Override: | I16: =Raw_ASHP_COP_New -> 0 | J16: Avg COP | M16: Zip: | N16: =Customer_Zip -> 0 | T16: Fan/Pump Power (W) | V16: =150*E10/40000 -> 0 | W16: Seasonal hrs = | X16: =HLOOKUP($V$20,$V$21:$Z$28,8) ->  | AF16: Lower Hudson | AG16: 0.9 | AH16: 104 | AI16: 2.535554103 | AK16: 2.6862 | AL16: 2.4398 | AM16: 275.11 | AQ16: =AQ11 -> 1.05 | AR16: =AR11 -> 65.58333333 | AS16: 16.01016518 | AT16: New York | BC16: Efficiency based on Equipment Life
C17: Annual COOLING Load (MMBtu/yr): | E17: =I17/I13 ->  | G17: of Htg Clg Load Override: | H17: =Total_Btu_c_Pre -> 0 | I17: =IF(H17<>"",H17,E10*AQ19/1000) -> 0 | J17: MMBtu/yr | K17: =IF(H17,"(Override)","(default)") -> (default) | T17: =AT19 ->  | W17: Seasonal kWh= | X17: =V16*X16/1000 ->  | AF17: Upper Hudson | AG17: 1.1 | AH17: 111 | AI17: 2.903577471 | AK17: 2.5346 | AL17: 2.4398 | AM17: 275.11 | AQ17: =AQ13 -> 0.38 | AR17: =AR13 -> 23.25 | AS17: 16.34408602 | AT17: Albany | BC17: ≤10 yrs | BD17: 11+ yrs
C18: Seasonal COOLING Efficiency (avg EER w/ fan; not Rated) | G18: (set to zero for no clg) | I18: =IF(I19,I19,AS19) ->  | J18: Btu/Wh | K18: =IF(I19,"(Override)","(default)") -> (default) | M18: County: | N18: =VLOOKUP(Customer_Zip,'Lookups (2)'!A10:C2290,3,FALSE) ->  | AF18: Long Island | AG18: 0.9 | AH18: 104 | AI18: 2.535554103 | AK18: 2.7887 | AL18: 2.9581 | AM18: 307.89 | AQ18: =AQ11 -> 1.05 | AR18: =AR11 -> 65.58333333 | AS18: 16.01016518 | AT18: New York | BB18: Elect Resist | BC18: 1 | BD18: 1
H19: EER Override: | J19: Avg Btu/Wh | T19: Heating Balance Point | V19: 55F | AE19: CURRENT | AF19: =VLOOKUP($F$12,$AF$11:$AT$18,1,FALSE) ->  | AG19: =VLOOKUP($F$12,$AF$11:$AT$18,2,FALSE) ->  | AH19: =VLOOKUP($F$12,$AF$11:$AT$18,3,FALSE) ->  | AI19: =VLOOKUP($F$12,$AF$11:$AT$18,4,FALSE) ->  | AK19: =VLOOKUP($F$12,$AF$11:$AT$18,6,FALSE) ->  | AL19: =VLOOKUP($F$12,$AF$11:$AT$18,7,FALSE) ->  | AM19: =VLOOKUP($F$12,$AF$11:$AT$18,8,FALSE) ->  | AQ19: =VLOOKUP($F$12,$AF$11:$AT$18,12,FALSE) ->  | AR19: =VLOOKUP($F$12,$AF$11:$AT$18,13,FALSE) ->  | AS19: =VLOOKUP($F$12,$AF$11:$AT$18,14,FALSE) ->  | AT19: =VLOOKUP($F$12,$AF$11:$AT$18,15,FALSE) ->  | BB19: Fuel Oil | BC19: 0.85 | BD19: 0.79
C20: Electric Cost ($/kWh): | H20: =BF3 ->  | I20: per kWh | M20: Electric Utility: | N20: =VLOOKUP(Customer_Zip,'Lookups (2)'!CJ:CN,4,) ->  | T20: Furnace/Boiler Oversizing | V20: 0.5 | W20: Full Load Hours (using Manual J Design Load at Local Design Temp) | BB20: Natural Gas | BC20: 0.92 | BD20: 0.79
I21: =BH3 ->  | T21: (relative to htg load @ 0F) | V21: 0 | W21: 0.25 | X21: 0.5 | Y21: 0.75 | Z21: 1 | AA21: 55F | AB21: 60F | AC21: 65F | AD21: Design Pt (F) | BB21: Propane | BC21: 0.92 | BD21: 0.77
B22: Base Case System | C22: Base Case Fuel/System (choose one): | M22: Gas Utility: | N22: =VLOOKUP(Customer_Zip,'Lookups (2)'!CJ:CN,5,) ->  | T22: Albany | V22: =HLOOKUP($V$19,$AA$21:$AC$26,2) -> 2144.5 | W22: =$V22/(1+W$21) -> 1715.6 | X22: 1429.666667 | Y22: 1225.428571 | Z22: 1072.25 | AA22: 2144.5 | AB22: 2448.9 | AC22: 2760.6 | AD22: 3.9 | BB22: Wood | BC22: 0.7 | BD22: 0.7
C23: =INDEX(Lookups_ASHP_Fuels,MATCH(Raw_HVAC_1_Heating_Fuel,Lookups_Fuels_From_Data_Collection,),1) ->  | G23: Fuel Cost: | H23: =VLOOKUP(C23,BB3:BF10,5) ->  | I23: =VLOOKUP(C23,BB3:BC10,2) ->  | T23: Binghamton | V23: =HLOOKUP($V$19,$AA$21:$AC$26,3) -> 2284.1 | W23: 1827.28 | X23: 1522.733333 | Y23: 1305.2 | Z23: 1142.05 | AA23: 2284.1 | AB23: 2604.2 | AC23: 2937.9 | AD23: 4.1 | BB23: Wood Pellets | BC23: 0.77 | BD23: 0.77
C24: Equipment Age: | D24: =IF(YEAR(TODAY())-'Audit Data Collection'!B63>=11,"11+ yrs","≤10 yrs") -> 11+ yrs | E24: (sets equipment efficiency) | I24: =VLOOKUP(C23,BB3:BH10,7) ->  | T24: Massena | V24: =HLOOKUP($V$19,$AA$21:$AC$26,4) -> 2272.9 | W24: 1818.32 | X24: 1515.266667 | Y24: 1298.8 | Z24: 1136.45 | AA24: 2272.9 | AB24: 2560.2 | AC24: 2850.2 | AD24: -5.1
C25: Base Case factors & Seasonal Combustion Efficiency | G25: =VLOOKUP(C23,BB3:$BG$10,6) ->  | H25: ="MBtu "&I23 ->  | I25: =IF(System1_Type="Electric Baseboard or Wall",100,Raw_Sys1_H_Efficiency_Existing)/100 -> 0 | J25: eff | T25: New York | V25: =HLOOKUP($V$19,$AA$21:$AC$26,5) -> 1888.1 | W25: 1510.48 | X25: 1258.733333 | Y25: 1078.914286 | Z25: 944.05 | AA25: 1888.1 | AB25: 2230 | AC25: 2578.7 | AD25: 18
C26: MEASURED Annual Fuel Use (for Space Heating ONLY) Override: | H26: =MID(I23,4,6)&" per yr" ->  | I26: =IF(G26,G26*G25/1000*I25,"") ->  | J26: =IF(G26,"MMBtu","") ->  | M26: ASHP Installer/Contractor Information | T26: Rochester | V26: =HLOOKUP($V$19,$AA$21:$AC$26,6) -> 2136.3 | W26: 1709.04 | X26: 1424.2 | Y26: 1220.742857 | Z26: 1068.15 | AA26: 2136.3 | AB26: 2445.8 | AC26: 2764.9 | AD26: 6.9
C27: Base Case Boiler/Furnace Electric Use (fans, pumps, etc) | G27: Base Case AC: | I27: =VLOOKUP(C23,$BB$3:$BI$10,8,FALSE)*X17 ->  | J27: kWh/yr | V27: 3 | W27: 4 | X27: 5 | Y27: 6 | Z27: =Y27+1 -> 7 | AA27: =Z27+1 -> 8 | AB27: =AA27+1 -> 9 | AC27: =AB27+1 -> 10 | AD27: =AC27+1 -> 11
C28: Base Case Cooling Efficiency (avg EER w/ extra fan for Central AC) | G28: =IF(System1_Capacity_c>0,INDEX(Lookups_ASHP_SEER,MATCH(Raw_Sys1_C_Efficiency_Existing,Lookups_Data_Collection_SEER,1),1),IF(Raw_Room_AC_Present="Yes","Room AC","")) ->  | H28: Avg EER: | I28: =HLOOKUP(G28,$U$1:$X$11,11,FALSE) ->  | J28: Btu/Wh | M28: Name: | N28: =Auditor -> 0 | T28: =VLOOKUP($T$17,$T$22:$Z$26,1,FALSE) ->  | V28: =VLOOKUP($T$17,$T$22:$AD$26,V27) ->  | W28: =VLOOKUP($T$17,$T$22:$AD$26,W27) ->  | X28: =VLOOKUP($T$17,$T$22:$AD$26,X27) ->  | Y28: =VLOOKUP($T$17,$T$22:$AD$26,Y27) ->  | Z28: =VLOOKUP($T$17,$T$22:$AD$26,Z27) ->  | AD28: =VLOOKUP($T$17,$T$22:$AD$26,AD27) -> 
S29: CURRENT:
D30: Heating Elect (kWh/yr) | E30: Cooling Elect (kWh/yr) | F30: ="Displaced Annual Htg Fuel "&VLOOKUP(C23,BB3:BE10,4) ->  | G30: Annual Heating Cost | H30: Annual Cooling Cost | I30: Total Annual Cost | K30: Fuel Energy (MMBtu/yr) | M30: Address: | N30: 345 Heat Pump Lane
C31: Base Case | D31: =I27 ->  | E31: =IF(ISERROR((I17*1000/I28)),0,(I17*1000/I28)) -> 0 | F31: =I13*1000/I25/G25 ->  | G31: =D31*$H$20+F31*$H$23 ->  | H31: =E31*$H$20 ->  | I31: =G31+H31 ->  | K31: =F31*G25/1000 -> 
C32: ASHP System | D32: =(I13*1000/3.413/I15) ->  | E32: =(I17*1000/I18) ->  | G32: =D32*$H$20+F32*$H$23 ->  | H32: =E32*$H$20 ->  | I32: =G32+H32 ->  | M32: City, State, Zip: | N32: Pipetown, NY 22222
C33: Savings | D33: =D31-D32 ->  | E33: =E31-E32 ->  | F33: =F31-F32 ->  | G33: =G31-G32 ->  | H33: =H31-H32 -> 
C34: Savings (kWh) | D34: =Savings_ASHP_Heat_kWh ->  | E34: =Savings_ASHP_Cool_kWh ->  | F34: =VLOOKUP(C23,BB3:BZ10,10) -> 
C35: Total Rebate | D35: ($500 per outdoor unit for ductless units) | I35: =500*I10 -> 0
C36: Net kWh Savings | I36: =SUMIF(D34:F34,"<>#N/A") -> 0 | J36: =Savings_ASHP_Net_kWh/F34 -> 
C37: Post-Incentive Costs: | I37: =I11-I35 -> 0 | M37: NaturalGas | N37: 29.3001
M38: Electricity | N38: 1
C39: Simple Payback Based on Total Costs | I39: =I11/I33 ->  | J39: years | M39: Oil | N39: 43.9
C40: Simple Payback After Rebate | I40: =I37/I33 ->  | J40: years | M40: Kerosene | N40: 39.5
M41: Propane | N41: 27.98828846
C42: Expected ASHP System Life | I42: 15 | J42: years | M42: Wood | N42: 3690
J43: v4 (9/11/2019) | M43: Pellets | N43: 4800
M44: Coal
F46: Old | G46: New | I46: Old | J46: New
D47: Fuel | F47: =F31*(VLOOKUP(C23,$D$55:$H$60,4,)) ->  | G47: 0 | H47: =F47-G47 -> 
D48: Electricity - Heating | F48: =D31*G56 ->  | G48: =D32*G56 ->  | H48: =F48-G48 ->  | I48: =D31/1000 ->  | J48: =D32/1000 ->  | K48: =I48-J48 -> 
D49: Electricity - Cooling | F49: =E31*G56 -> 0 | G49: =E32*G56 ->  | H49: =F49-G49 ->  | I49: =E31/1000 -> 0 | J49: =E32/1000 ->  | K49: =I49-J49 -> 
D50: Total | H50: =SUM(H48:H49) ->  | I50: =SUM(I48:I49) ->  | J50: =SUM(J48:J49) ->  | K50: =I50-J50 -> 
G51: Total MMBTU Savings | H51: =SUM(H50,H47) -> 
D55: Wood | E55: 5500000 | F55: Btu / cord | G55: =E55/1000000 -> 5.5 | H55: MMBtu / cord
D56: Elect Resist | E56: 3412 | F56: Btu / kWh | G56: =E56/1000000 -> 0.003412 | H56: MMBtu / kWh
D57: Fuel Oil | E57: 111200 | F57: Btu / gallon | G57: 0.1112 | H57: MMBtu / gallon
D58: Wood Pellets | E58: 7200000 | F58: Btu / ton | G58: 7.2 | H58: MMBtu / ton
D59: Propane | E59: 77775 | F59: Btu / gallon | G59: 0.077775 | H59: MMBtu / gallon
D60: Natural Gas | F60: Btu / gallon | H60: MMBtu / gallon
I61: Base Case Load | J61: =SUM(D31,E31,(F31*VLOOKUP(Raw_HVAC_1_Heating_Fuel,$M$37:$N$44,2,)),Output!D45,Output!D46) -> 
I62: Savings | J62: =Savings_ASHP_Net_kWh/J61 -> 

Sheet Instructions (hidden)
B2: ProForma Financial Workbook (v2) Instructions
B4: Step 1: Model the home and proposed improvements using a NYSERDA approved energy modeling tool. Please ensure that the model has been trued-up to the customer’s actual fuel bills, if possible, and the correct fuel rates were entered. It is very important that the savings predictions are accurate. There should be a reasonable expectation that the customer will actually realize the projected dollar savings. Spot check the total percentage of energy savings, as well. The average realized savings of most Home Performance projects is 20% - 30%.
B9: Step 2: Enter project information in the “Measures” tab.
B11: a) Select project type from the drop down menu (HEMI/AHP/Market Rate).
B13: b) Enter prequalified measures in the first section, “Eligible for Incentives (if Applicable)”. When you click on a yellow cell in column “C”, a drop down box will appear with a list of the prequalified measures. Once you’ve selected an improvement, enter the measure cost and interactive* dollar savings from the energy modeling software in the yellow columns “G” and “H”. Like measures (such as insulation) may be grouped together on a single row, as long as the entire cost will be receiving the same incentive(s). You may add notes in column “F” if you wish.
B19: c) For insulation and central AC, you must also indicate whether the measure passes the Insulation Rules or the CAC electric utility requirements for pre-approval (column I). If the answer is “No”, then the measure information will automatically move to the “Loan Eligible Measures (if Applicable)” section below.
B23: d) Enter measures which are eligible for financing only in the second section, “Loan Eligible Measures (if Applicable)”.
B25: e) The “Other” option allows you to enter a measure that may not appear in the drop down menu. You must enter the effective useful life and a brief description to continue.
B28: Step 3: Check that project meet loan eligibility criteria in the “2. Loan Calculator” tab.
B30: a) Once the “Measures” tab has been filled out, then the total project cost, incentives, loan only costs, non-energy saving measure costs, FY energy savings, and average measure life on the “Loan Calculator” tab will auto-populate. Select the applicable interest rate, loan term, and enter any additional incentives the customer is receiving, such as utility rebates or 3rd party grants.
B34: b) Verify that the project “Passes All Criteria” on row 70 for the desired loan type (OBR or Smart Energy), interest rate, and length of term (5, 10, or 15 years). A green “YES” or red “NO” indicates whether or not the project passes.
B36: Click here for a description of the loan Cost Effectiveness Requirements.
B38: SIR = Savings-to-Investment Ratio. The minimum 0.80 requirement is waived for Smart Energy Loans under $13,000 if loan only costs are also less than 15% up to $2000 of the total project cost.
B41: Cash Flow = 1/12th rule for OBR Loans or Simple Payback Period (Years) for Smart Energy Loans. The minimum 15 year payback requirement is waived for Smart Energy Loans less than or equal to $13,000.
B44: c) If the project fails one or both of the criteria, check the “Required Customer Contribution” and “Required FY Savings” for the appropriate loan type and term. The options are to increase the annual savings of the proposal, ask the customer to contribute the required out of pocket costs, or reduce the amount of the workscope. Please revise the Measures tab, or enter the Customer Contribution to reflect a passing result. A project that fails for OBR may switch loan products if it “Passes All Criteria” for the Smart Energy Loan.
B47: *Interactive savings are the measure level savings when calculated as part of the whole proposed workscope, not as a standalone measure. For example, insulation by itself will save more energy if the existing furnace is low efficiency. However, if the furnace is also replaced, then the subsequent insulation measures will have lower savings because the new furnace is using less energy. The interactive savings will almost always be slightly lower than the standalone savings. Make sure to use the appropriate savings numbers from the modeling tool.

Sheet Published Fuel Rates (hidden)
A1: Customer Bill Savings Rates
A3: Electricity Rates
B4: Residential
A5: Utility | B5: Basis: 600 kWh/month
A6: Units of Measure | B6: $/kWh
A7: Central Hudson | B7: 0.1337
A8: ConEdison NYC | B8: 0.2211
A9: ConEdison Westchester | B9: 0.2126
A10: National Grid | B10: 0.1041
A11: NYSEG | B11: 0.105
A12: Rochester Gas & Electric | B12: 0.0958
A13: PSEG Long Island | B13: 0.1833
A14: Orange & Rockland | B14: 0.1782
G16: Biomass (Cord Wood and Pellets)
A18: Natural Gas Rates | G18: Cord Wood: Dec 2018 | H18: Statewide: $225/cord
B19: Residential | D19: Assumption: One thousand cu ft (Mcf) natural gas equals 1.032 million Btu (MMBtu), 10.32 therms | G19: Pellets
A20: Utility | B20: Basis: 1,000 therms/yr (100 MMBtu) | G20: Hardwood (bagged - 40 lbs) | H20: Region | I20: Average (Mar 2017 - Dec 2018)
A21: Units of Measure | B21: $/mmBtu | D21: $/McF | E21: $/therm | I21: $/ton
A22: Central Hudson G&E | B22: 14.686 | D22: 15.156 | E22: 1.469 | H22: Capital District | I22: 261.0823734
A23: ConEdison | B23: 14.032 | D23: 14.481 | E23: 1.403
A24: National Grid | B24: 8.263 | D24: 8.527 | E24: 0.826 | H24: Central Region | I24: 243.1623315
A25: NYSEG | B25: 9.581 | D25: 9.888 | E25: 0.958
A26: Rochester Gas & Electric | B26: 8.411 | D26: 8.68 | E26: 0.841 | H26: Hudson Valley | I26: 275.1102865
A27: Orange & Rockland | B27: 11.577 | D27: 11.947 | E27: 1.158
A28: National Fuel Gas | B28: 7.358 | D28: 7.594 | E28: 0.736 | H28: Long Island | I28: 307.8940806
A29: KEDLI [Keyspan Energy (National Grid)] | B29: 12.152 | D29: 12.541 | E29: 1.215
A30: KEDNY [Brooklyn Union Gas (National Grid)] | B30: 11.326 | D30: 11.688 | E30: 1.133 | H30: North Country | I30: 253.6394958
A31: St. Lawrence* | B31: 11.342 | D31: 11.705 | E31: 1.134
A32: Corning Natural Gas* | B32: 9 | D32: 9.288 | E32: 0.9 | H32: Western Region | I32: 249.5610188
A36: HEATING OIL | B36: Source: NYSERDA New York Home Heating Oil Price Monitoring Program | D36: KEROSENE | E36: Source: NYSERDA New York Home Kerosene Price Monitoring Program | G36: PROPANE | H36: Source: NYSERDA New York Home Propane Price Monitoring Program
B37: 3-year Average (2015-2017) | E37: 3-year Average (2015-2017) | H37: 3-year Average (2015-2017)
A38: Units of Measure | B38: $/gallon | D38: Units of Measure | E38: $/gallon | G38: Units of Measure | H38: $/gallon
A39: Long Island | B39: 2.788741333 | G39: Long Island | H39: 2.95810878
A40: NYC | B40: 2.754668333
A41: Lower Hudson | B41: 2.686218704 | D41: Mid-Hudson | E41: 3.184905918 | G41: Middle Hudson | H41: 2.439836558
A42: Upper Hudson | B42: 2.534561508
A43: Capital District | B43: 2.487116026 | D43: Capital District | E43: 2.996602083 | G43: Capital District | H43: 2.660757652
A44: North County | B44: 2.513302381 | D44: North Country | E44: 3.092900694 | G44: North Country | H44: 2.885440817
A45: Central | B45: 2.447074444 | D45: Central | E45: 2.982949359 | G45: Central | H45: 2.243559518
A46: Western | B46: 2.677611364 | D46: Western | E46: 3.051622222 | G46: Western | H46: 2.205150735

Sheet Output (hidden)
A1: System 1 | B1: Overall Power Savings | C1: Season Savings (Based on pre) | D1: Season Savings (Based on post) | E1: $avings (based on post) | P1: =1/0.29307 -> 3.412154093
A2: Heat_Dist_Save | B2: =PercentLoad_h * (Total_kWh_h_Post / (Heat_DistEff_Pre * Heat_SysEff_Post) - Total_kWh_h_Post / (Heat_DistEff_Post * Heat_SysEff_Post)) / Total_kWh_Input_Pre ->  | C2: =PercentLoad_h * (Total_kWh_h_Post / (Heat_DistEff_Pre * Heat_SysEff_Pre) - Total_kWh_h_Post / (Heat_DistEff_Post * Heat_SysEff_Pre)) / Total_kWh_h_Pre ->  | D2: =PercentLoad_h * (Total_kWh_h_Post / (Heat_DistEff_Pre * Heat_SysEff_Post) - Total_kWh_h_Post / (Heat_DistEff_Post * Heat_SysEff_Post)) / Total_kWh_h_Pre ->  | E2: =(D2)*Total_kWh_h_Post*N16 ->  | G2: =SUM('Audit Summary Report'!M14:N59) -> 0 | H2: Sum all thermal/HVAC above
A3: Heat_Sys_Save | B3: =PercentLoad_h * (Total_kWh_h_Post / (Heat_SysEff_Pre * Heat_DistEff_Post) - Total_kWh_h_Post / (Heat_SysEff_Post * Heat_DistEff_Post)) / Total_kWh_Input_Pre ->  | C3: =PercentLoad_h * Total_kWh_h_Post *((1/ (Heat_SysEff_Pre * Heat_DistEff_Pre)) - (1 / (Heat_SysEff_Post * Heat_DistEff_Pre))) / Total_kWh_h_Pre ->  | D3: =PercentLoad_h * (Total_kWh_h_Post / (Heat_SysEff_Pre * Heat_DistEff_Post) - Total_kWh_h_Post / (Heat_SysEff_Post * Heat_DistEff_Post)) / Total_kWh_h_Pre ->  | E3: =(D3)*Total_kWh_h_Post*N16 ->  | G3: ='Inputs-Results'!K22 ->  | H3: total all heating&cooling from model | P3: 3.412154093
A4: Cool_Dist_Save | B4: =IF(System1_Capacity_c="",0, PercentLoad_c * (Total_kWh_c_Post / (Cool_DistEff_Pre * Cool_SysEff_Post) - Total_kWh_c_Post / (Cool_DistEff_Post * Cool_SysEff_Post)) / Total_kWh_Input_Pre) -> 0 | C4: =PercentLoad_c * (Total_kWh_c_Post / (Cool_DistEff_Pre * Cool_SysEff_Pre) - Total_kWh_c_Post / (Cool_DistEff_Post * Cool_SysEff_Pre)) / Total_kWh_c_Pre ->  | D4: =PercentLoad_c * (Total_kWh_c_Post / (Cool_DistEff_Pre * Cool_SysEff_Post) - Total_kWh_c_Post / (Cool_DistEff_Post * Cool_SysEff_Post)) / Total_kWh_c_Pre ->  | E4: =(D4)*Total_kWh_c_Post*N16 ->  | M4: Total_kWh_Input_Pre
A5: Cool_Sys_Save | B5: =IF(System1_Capacity_c="",0, PercentLoad_c * (Total_kWh_c_Post / (Cool_SysEff_Pre * Cool_DistEff_Post) - Total_kWh_c_Post / (Cool_SysEff_Post * Cool_DistEff_Post)) / Total_kWh_Input_Pre) -> 0 | C5: =PercentLoad_c * (Total_kWh_c_Post / (Cool_SysEff_Pre * Cool_DistEff_Pre) - Total_kWh_c_Post / (Cool_SysEff_Post * Cool_DistEff_Pre)) / Total_kWh_c_Pre ->  | D5: =PercentLoad_c * (Total_kWh_c_Post / (Cool_SysEff_Pre * Cool_DistEff_Post) - Total_kWh_c_Post / (Cool_SysEff_Post * Cool_DistEff_Post)) / Total_kWh_c_Pre ->  | E5: =(D5)*Total_kWh_c_Post*N16 ->  | G5: Deemed Savings From Tech Manual (therms) - For Comparison | K5: =0.5 * (4774.310623292 / (1.46541617819461 * 0.948326029147136) - 4774.310623292 / (5.86166471277843 * 0.948326029147136)) / 73262.3262743385 -> 0.01758500847 | M5: Total_kWh_c_Post
G6: =Ecap*0.8*((1/(Heat_DistEff_Pre*Heat_SysEff_Pre))-(1/(Heat_DistEff_Post*Heat_SysEff_Post)))*1076/1000/100 ->  | H6: Therm
A7: Systems 2 | G7: =G6*29.30722 ->  | H7: kwh
A8: Heat_Dist_Save | B8: =PercentLoad_h_Sys2 * (Total_kWh_h_Post / (Heat_DistEff_Pre_Sys2 * Heat_SysEff_Post_Sys2) - Total_kWh_h_Post / (Heat_DistEff_Post_Sys2 * Heat_SysEff_Post_Sys2)) / Total_kWh_Input_Pre ->  | C8: =PercentLoad_h_Sys2 * (Total_kWh_h_Post / (Heat_DistEff_Pre_Sys2 * Heat_SysEff_Pre_Sys2) - Total_kWh_h_Post / (Heat_DistEff_Post_Sys2 * Heat_SysEff_Pre_Sys2)) / Total_kWh_h_Pre ->  | D8: =PercentLoad_h_Sys2 * (Total_kWh_h_Post / (Heat_DistEff_Pre_Sys2 * Heat_SysEff_Post_Sys2) - Total_kWh_h_Post / (Heat_DistEff_Post_Sys2 * Heat_SysEff_Post_Sys2)) / Total_kWh_h_Pre ->  | E8: =(D8)*Total_kWh_h_Post*N16 ->  | G8: =G7*N16 ->  | H8: $ | I8: not used
A9: Heat_Sys_Save | B9: =PercentLoad_h_Sys2 * (Total_kWh_h_Post / (Heat_SysEff_Pre_Sys2 * Heat_DistEff_Post_Sys2) - Total_kWh_h_Post / (Heat_SysEff_Post_Sys2 * Heat_DistEff_Post_Sys2)) /Total_kWh_Input_Pre ->  | C9: =PercentLoad_h_Sys2 * (Total_kWh_h_Post / (Heat_SysEff_Pre_Sys2 * Heat_DistEff_Pre_Sys2) - Total_kWh_h_Post / (Heat_SysEff_Post_Sys2 * Heat_DistEff_Pre_Sys2)) / Total_kWh_h_Pre ->  | D9: =PercentLoad_h_Sys2 * (Total_kWh_h_Post / (Heat_SysEff_Pre_Sys2 * Heat_DistEff_Post_Sys2) - Total_kWh_h_Post / (Heat_SysEff_Post_Sys2 * Heat_DistEff_Post_Sys2)) /Total_kWh_h_Pre ->  | E9: =(D9)*Total_kWh_h_Post*N16 -> 
A10: Cool_Dist_Save | B10: =PercentLoad_c_Sys2 * (Total_kWh_c_Post / (Cool_DistEff_Pre_Sys2 * Cool_SysEff_Post_Sys2) - Total_kWh_c_Post / (Cool_DistEff_Post_Sys2 * Cool_SysEff_Post_Sys2)) /Total_kWh_Input_Pre ->  | C10: =PercentLoad_c_Sys2 * (Total_kWh_c_Post / (Cool_DistEff_Pre_Sys2 * Cool_SysEff_Pre_Sys2) - Total_kWh_c_Post / (Cool_DistEff_Post_Sys2 * Cool_SysEff_Pre_Sys2)) / Total_kWh_c_Pre ->  | D10: =PercentLoad_c_Sys2 * (Total_kWh_c_Post / (Cool_DistEff_Pre_Sys2 * Cool_SysEff_Post_Sys2) - Total_kWh_c_Post / (Cool_DistEff_Post_Sys2 * Cool_SysEff_Post_Sys2)) /Total_kWh_c_Pre ->  | E10: =(D10)*Total_kWh_c_Post*N16 -> 
A11: Cool_Sys_Save | B11: =PercentLoad_c_Sys2 * (Total_kWh_c_Post / (Cool_SysEff_Pre_Sys2 * Cool_DistEff_Post_Sys2) - Total_kWh_c_Post / (Cool_SysEff_Post_Sys2 * Cool_DistEff_Post_Sys2)) / Total_kWh_Input_Pre ->  | C11: =PercentLoad_c_Sys2 * (Total_kWh_c_Post / (Cool_SysEff_Pre_Sys2 * Cool_DistEff_Pre_Sys2) - Total_kWh_c_Post / (Cool_SysEff_Post_Sys2 * Cool_DistEff_Pre_Sys2)) / Total_kWh_c_Pre ->  | D11: =PercentLoad_c_Sys2 * (Total_kWh_c_Post / (Cool_SysEff_Pre_Sys2 * Cool_DistEff_Post_Sys2) - Total_kWh_c_Post / (Cool_SysEff_Post_Sys2 * Cool_DistEff_Post_Sys2)) / Total_kWh_c_Pre ->  | E11: =(D11)*Total_kWh_c_Post*N16 ->  | G11: =DistEff_h -> 
G12: =Heat_DistEff_Pre ->  | L12: =PRE-((PRE-post)*Raw_Window_Prc_Upgraded) -> 
A13: DHW_save | B13: =('Inputs-Results'!F19-'Inputs-Results'!H19)/'Inputs-Results'!F19 -> 0 | C13: not used | I13: IF(Ecap_c=0,0,Building!I116+Building!M133) | P13: IF(Ecap_c=0,0,'Building-2'!I116+'Building-2'!M133)
A14: C18/Net_Eff_h_Sys1*PercentLoad_h*1000/3.413 | D14: HEATING SYSTEM and DHW kWh are adjusted for relative cost of gas when fossil equipment is chosen
A15: Pre | D15: =C18/0.37313775574796*0.5*1000/3.413 ->  | E15: =IF(System2_Type<>"",C18/0.0126228644508775*0.5*1000/3.413,0) -> 0 | G15: Post | J15: Building Input load @ old efficiency | L15: Savings (KWh) | N15: Savings ($)
A16: IF(System2_Type<>"",C18/Net_Eff_h_Sys2*PercentLoad_h_Sys2*1000/3.413,0) | D16: System 1 | E16: System 2 | J16: System 1 | K16: System 2 | L16: System 1 | M16: System 2 | N16: =IF('Audit Data Collection'!B58="Electricity",ElectricKWH,IF(OR('Audit Data Collection'!B58="Natural Gas",'Audit Data Collection'!B58="NaturalGas"),gasKWH,IF('Audit Data Collection'!B58="Oil",oilKWH,IF('Audit Data Collection'!B58="Propane",propaneKWH)))) -> FALSE | O16: =N16 -> FALSE | R16: kWh Input Based on Proforma Work Sold
A17: Heating | B17: % losses | C17: Mbtu load | D17: Input kWh_sys 1 | E17: Input kWh_sys 2 | G17: Heating | H17: % losses | I17: MBtu | J17: Input kWh_sys 1 | K17: Input kWh_sys 2 | L17: Input kWh_sys 1 | M17: Input kWh_sys 2
A18: Air leakage | B18: =C18/SUM($C$18:$C$23) ->  | C18: =Building!L141 ->  | D18: =C18/Net_Eff_h_Sys1*PercentLoad_h*1000/3.413 ->  | E18: =IF(System2_Type<>"",C18/Net_Eff_h_Sys2*PercentLoad_h_Sys2*1000/3.413,0) -> 0 | G18: Air leakage | H18: =I18/SUM($I$18:$I$23) ->  | I18: ='Building-2'!L141 ->  | J18: =I18/Net_Eff_h_Sys1*PercentLoad_h*1000/3.413 ->  | K18: =IF(System2_Type<>"",I18/Net_Eff_h_Sys2*PercentLoad_h_Sys2*1000/3.413,0) -> 0 | L18: =D18-J18 ->  | M18: 0 | N18: =L18*$N$16 ->  | O18: =M18*$O$16 -> 0 | R18: =IF(COUNTIFS('Loan Application - Step 1'!C43:C82,"*"&S18&"*")>0,I18,C18) ->  | S18: Air Sealing
A19: Roof | C19: =SUM(Building!H109:'Building'!H112) ->  | D19: =C19/Net_Eff_h_Sys1*PercentLoad_h*1000/3.413 ->  | E19: =IF(System2_Type<>"",C19/Net_Eff_h_Sys2*PercentLoad_h_Sys2*1000/3.413,0) -> 0 | G19: Roof | I19: =SUM('Building-2'!H109 : 'Building-2'!H112) ->  | J19: =I19/Net_Eff_h_Sys1*PercentLoad_h*1000/3.413 ->  | K19: 0 | M19: 0 | N19: =L19*$N$16 ->  | O19: =M19*$O$16 -> 0 | R19: =IF(COUNTIFS('Loan Application - Step 1'!C44:C83,"*"&S19&"*")>0,I19,C19) ->  | S19: Insulation (att
A20: Walls | C20: =Building!H113+Building!H114+Building!H115 -> 0 | D20: =C20/Net_Eff_h_Sys1*PercentLoad_h*1000/3.413 ->  | E20: =IF(System2_Type<>"",C20/Net_Eff_h_Sys2*PercentLoad_h_Sys2*1000/3.413,0) -> 0 | G20: Walls | I20: ='Building-2'!H113+'Building-2'!H114+'Building-2'!H115 -> 0 | K20: 0 | M20: 0 | O20: 0 | R20: =IF(COUNTIFS('Loan Application - Step 1'!C45:C84,"*"&S20&"*")>0,I20,C20) -> 0 | S20: Insulation (att
A21: Foundation | C21: =Building!H120+Building!H121+Building!H122 ->  | D21: =C21/Net_Eff_h_Sys1*PercentLoad_h*1000/3.413 ->  | E21: =IF(System2_Type<>"",C21/Net_Eff_h_Sys2*PercentLoad_h_Sys2*1000/3.413,0) -> 0 | G21: Foundation | I21: ='Building-2'!H120+'Building-2'!H121+'Building-2'!H122 ->  | K21: 0 | M21: 0 | O21: 0 | R21: =IF(COUNTIFS('Loan Application - Step 1'!C46:C85,"*"&S21&"*")>0,I21,C21) ->  | S21: Insulation (att
A22: Floors | C22: =Building!H117+Building!H118 -> 0 | D22: =C22/Net_Eff_h_Sys1*PercentLoad_h*1000/3.413 ->  | E22: =IF(System2_Type<>"",C22/Net_Eff_h_Sys2*PercentLoad_h_Sys2*1000/3.413,0) -> 0 | G22: Floors | I22: ='Building-2'!H117+'Building-2'!H118 -> 0 | K22: 0 | M22: 0 | O22: 0 | R22: =IF(COUNTIFS('Loan Application - Step 1'!C47:C86,"*"&S22&"*")>0,I22,C22) -> 0 | S22: Insulation (att
A23: Windows and Doors | B23: =C23/SUM($C$18:$C$23) ->  | C23: =Building!H116+Building!L133 ->  | D23: =C23/Net_Eff_h_Sys1*PercentLoad_h*1000/3.413 ->  | E23: =IF(System2_Type<>"",C23/Net_Eff_h_Sys2*PercentLoad_h_Sys2*1000/3.413,0) -> 0 | G23: Windows and Doors | I23: =(Building!H116+Building!L133)-(((Building!H116+Building!L133)-('Building-2'!H116+'Building-2'!L133))*Raw_Window_Prc_Upgraded) ->  | J23: =I23/Net_Eff_h_Sys1*PercentLoad_h*1000/3.413 ->  | K23: 0 | M23: 0 | O23: 0 | R23: =IF(COUNTIFS('Loan Application - Step 1'!C48:C87,"*"&S23&"*")>0,I23,C23) ->  | S23: Replacement Windows
A24: Internal Gains | C24: =Building!C10 -> -2.732152754 | E24: 0 | G24: Internal Gains | I24: ='Building-2'!C10 -> -2.732152754 | K24: 0 | L24: =D24-J24 ->  | M24: 0 | O24: 0 | R24: =IF(COUNTIFS('Loan Application - Step 1'!C49:C88,"*"&S24&"*")>0,I24,C24) -> -2.732152754
B25: Total_Btu_Pre | C25: =SUM(C18:C24) ->  | D25: =SUM(D18:D24) ->  | E25: =SUM(E18:E24) -> 0 | H25: Total_Btu_Post | I25: =SUM(I18:I24) ->  | J25: =SUM(J18:J24) ->  | K25: 0 | M25: 0 | O25: 0 | P25: =D25-J25 ->  | R25: =SUM(R18:R24) -> 
B26: Total_kWh_h_Pre | C26: =IFERROR(D25,0)+IFERROR(E25,0) -> 0 | H26: Total_kWh_Post | I26: =Total_Btu_h_Post*1000000/3413 ->  | R26: =R25*1000000/3413 -> 
A27: Cooling | B27: % losses | C27: Mbtu load | D27: kWh input | G27: Cooling | H27: % losses | I27: Mbtu load | J27: kWh input | K27: Savings (KWh) | L27: Savings($)
A28: Air leakage | B28: =C28/SUM($C$28:$C$33) ->  | C28: =IF(Ecap_c=0,0,Building!M140) -> 0 | D28: =IF(Ecap_c=0,0,C28/Net_Eff_c)*1000/3.413 -> 0 | G28: Air leakage | H28: =I28/SUM($I$28:$I$33) ->  | I28: =IF(Ecap_c=0,0,'Building-2'!M140) -> 0 | J28: =IF(Ecap_c=0,0,I28/Net_Eff_c)*1000/3.413 -> 0 | K28: =D28-J28 -> 0 | L28: =Lookups_Electric_Rate*K28 -> 
A29: Roof | C29: =IF(Ecap_c=0,0,SUM(Building!I109:'Building'!I112)) -> 0 | D29: 0 | G29: Roof | I29: =IF(Ecap_c=0,0,SUM('Building-2'!I109:'Building-2'!I112)) -> 0 | J29: 0 | K29: =D29-J29 -> 0
A30: Walls | C30: =IF(Ecap_c=0,0,Building!I113+Building!I114+Building!I115) -> 0 | D30: 0 | G30: Walls | I30: =IF(Ecap_c=0,0,'Building-2'!I113+'Building-2'!I114+'Building-2'!I115) -> 0 | J30: 0 | K30: 0
A31: Foundation | C31: =IF(Ecap_c=0,0,Building!I120+Building!I121+Building!I122) -> 0 | D31: 0 | G31: Foundation | I31: =IF(Ecap_c=0,0,'Building-2'!I120+'Building-2'!I121+'Building-2'!I122) -> 0 | J31: 0 | K31: 0
A32: Floors | C32: =IF(Ecap_c=0,0,Building!I117+Building!I118) -> 0 | D32: 0 | G32: Floors | I32: =IF(Ecap_c=0,0,'Building-2'!I117+'Building-2'!I118) -> 0 | J32: 0 | K32: 0
A33: Windows and Doors | C33: =IF(Ecap_c=0,0,Building!I116+Building!M133) -> 0 | D33: 0 | G33: Windows and Doors | I33: =(IF(Ecap_c=0,0,Building!I116+Building!M133))-(((IF(Ecap_c=0,0,Building!I116+Building!M133))-(IF(Ecap_c=0,0,'Building-2'!I116+'Building-2'!M133)))*Raw_Window_Prc_Upgraded) -> 0 | J33: =IF(Ecap_c=0,0,I33/Net_Eff_c)*1000/3.413 -> 0 | K33: =(D33-J33) -> 0
A34: Internal Gains | C34: =IF(Ecap_c=0,0,Building!B10) -> 0 | D34: 0 | G34: Internal Gains | I34: =IF(Ecap_c=0,0,'Building-2'!B10) -> 0 | J34: 0 | K34: 0
B35: Total_Btu_Pre | C35: =SUM(C28:C34) -> 0 | D35: =SUM(D28:D34) -> 0 | H35: Total_Btu_Post | I35: =SUM(I28:I34) -> 0 | J35: =SUM(J28:J34) -> 0 | K35: =SUM(K28:K34) -> 0 | L35: =SUM(L28:L34) -> 
B36: Total_kWh_c_Pre | C36: =Total_Btu_c_Pre*1000000/3413 -> 0 | H36: Total_kWh_Post | I36: =Total_Btu_c_Post*1000000/3413 -> 0 | P36: Lighting
A37: Both | B37: % losses | C37: Mbtu load | D37: kWh input | G37: Both | H37: % losses | I37: Mbtu load | J37: kWh input | K37: % Save-load | L37: % save-input | M37: $ save | P37: Blubs Replaced | Q37: ='Rpt#3 HVAC DHW'!D46 -> 0
A38: Air leakage | B38: =C38/SUM($C$38:$C$43) ->  | C38: =C18+C28 ->  | D38: =D18+E18+D28 ->  | G38: Air leakage | H38: =I38/SUM($I$38:$I$43) ->  | I38: =I18+I28 ->  | J38: =J18+K18+J28 ->  | K38: =(C38-I38)/Total_Btu_Pre ->  | L38: =(D38-J38)/Total_kWh_Input_Pre ->  | M38: =N18+O18+L28 ->  | P38: Watts / Bulb (existing) | Q38: 60
A39: Roof | G39: Roof | J39: =J19+K19+J29 ->  | M39: =N19+O19+L29 ->  | P39: Watts / Bulb (replaced) | Q39: 15
A40: Walls | C40: 0 | G40: Walls | I40: 0 | P40: Hours Per Day | Q40: 2
A41: Foundation | G41: Foundation | P41: KWh / day (saved) | Q41: =Q37*(Q38-Q39)*Q40/1000 -> 0
A42: Floors | C42: 0 | G42: Floors | I42: 0 | P42: KWh / year (saved) | Q42: =Q41*365 -> 0
A43: Windows and Doors | C43: =C23+C33 ->  | G43: Windows and Doors | P43: $ / year (saved) | Q43: =Q42*Lookups_Electric_Rate -> 
A44: Internal Gains | C44: -2.732152754 | D44: =D24+E24+D34 ->  | G44: Internal Gains | I44: -2.732152754 | K44: =(C44-I44)/Total_Btu_Pre -> 
A45: Water heating (adjusted if gas) | D45: ='Inputs-Results'!F19 -> 2092.946353 | G45: Water heating | J45: ='Inputs-Results'!H19 -> 2092.946353 | L45: 0
A46: Misc. lights/appliances | D46: =MIN(0.59*SUM(D38:D45),10000) ->  | G46: Misc. lights/appliances | J46: =D46 -> 
B47: Total_kWh_Pre (adjusted) | C47: =SUM(C38:C44) ->  | D47: =SUMIFS(D38:D46,D38:D46,"<>#N/A",D38:D46,"<>#DIV/0!") -> 2092.946353 | E47: =D45/Total_kWh_Input_Pre -> 1 | H47: Total_kWh_Post (adjusted) | I47: =SUM(I38:I44) ->  | J47: =SUM(J38:J46) ->  | L47: =SUM(L38:L44) -> 
B48: (cost adjusted for gas heating) | J48: =(Total_kWh_Input_Pre-J47)/Total_kWh_Input_Pre ->  | K48: check
D49: =Total_kWh_Input_Pre*0.003412 -> 7.141132957 | M49: =(D45-J45)/Total_kWh_Input_Pre -> 0
A50: Airsealing_Pre | B50: =AVERAGE(Building!I140:I141) ->  | D50: =D49*0.055 -> 0.3927623126 | G50: Airsealing_Post | H50: =AVERAGE('Building-2'!I140:I141) -> 
A51: Roof_Rvalue_Pre | B51: =Building!C90 ->  | G51: Roof_Rvalue_Post | H51: ='Building-2'!C90 -> 
A52: Roof_Area | B52: =Building!F90 ->  | G52: Roof_Message | H52: ="Insulate approximately " & Roof_Area & " square feet of attic / roof " & IF('Audit Data Collection'!B35 = Roof_RVal_unknown, "to achieve at least R-" & Roof_Rvalue_Post, "with at least R-" & Roof_Rvalue_Post - Roof_Rvalue_Pre & " insulation") -> 
A53: Roof2_Rvalue_Pre | B53: =IF(Building!C91<>"", Building!C91, 0) -> 0 | G53: Roof2_Rvalue_Post | H53: ='Building-2'!C91 -> 
A54: Roof2_Area | B54: =Building!F91 -> 0 | G54: Roof2_Message | H54: ="Insulate approximately " & Roof2_Area & " square feet of attic / roof " & IF('Audit Data Collection'!B36 = Roof_RVal_unknown, "to achieve at least R-" & Roof2_Rvalue_Post, "with at least R-" & Roof2_Rvalue_Post - Roof2_Rvalue_Pre & " insulation") -> 
A55: Roof3_Rvalue_Pre | B55: =IF(Building!C92<>"", Building!C92, 0) -> 0 | G55: Roof3_Rvalue_Post | H55: ='Building-2'!C92 -> 
A56: Roof3_Area | B56: =Building!F92 -> 0 | G56: Roof3_Message | H56: ="Insulate approximately " & Roof3_Area & " square feet of attic / roof " & IF('Audit Data Collection'!B36 = Roof_RVal_unknown, "to achieve at least R-" & Roof3_Rvalue_Post, "with at least R-" & Roof3_Rvalue_Post - Roof3_Rvalue_Pre & " insulation") -> 
A57: Wall_Rvalue_Pre | B57: =IF(OR(Building!C94 = 1, Building!C94 = ""), 0, Building!C94) -> 0 | G57: Wall_Rvalue_Post | H57: =IF(OR('Building-2'!C94=1, 'Building-2'!C94=""), 0, 'Building-2'!C94) -> 0
A58: Wall_Area | B58: =Building!F94 -> 0 | G58: Wall_Message | H58: ="Insulate approximately "&Wall_Area&" square feet of exterior framed walls "&IF('Audit Data Collection'!B38=Wall_RVal_Unknown,"to achieve at least R-"&Wall_Rvalue_Post,"with at least R-"&Wall_Rvalue_Post-Wall_Rvalue_Pre&" insulation") -> Insulate approximately 0 square feet of exterior framed walls with at least R-0 insulation
A59: WallMasonary_Rvalue_Pre | B59: =IF(Building!C95 = 1, 0, Building!C95) ->  | G59: WallMasonary_Rvalue_Post | H59: =IF('Building-2'!C95=1, 0, 'Building-2'!C95) -> 
A60: WallMasonary_Area | B60: =Building!F95 -> 0 | G60: WallMasonary_Message | H60: ="Insulate approximately "&WallMasonary_Area&" square feet of exterior masonry walls "&IF('Audit Data Collection'!B39=Wall_RVal_Unknown,"to achieve at least R-"&WallMasonary_Rvalue_Post,"with at least R-"&WallMasonary_Rvalue_Post-WallMasonary_Rvalue_Pre&" insulation") -> 
A61: BufferedWall_Rvalue_Pre | B61: =IF(Building!C96="",0,Building!C96) -> 0 | G61: BufferedWall_Rvalue_Post | H61: =IF('Building-2'!C96="",0,'Building-2'!C96) -> 0
A62: BufferedWall_Area | B62: =Building!B115 -> 0 | G62: BufferedWall_Message | H62: ="Insulate approximately "&BufferedWall_Area&" square feet of buffered walls "&IF('Audit Data Collection'!B40=Wall_RVal_Unknown,"to achieve at least R-"&BufferedWall_Rvalue_Post,"with at least R-"& BufferedWall_Rvalue_Post&" insulation") -> Insulate approximately 0 square feet of buffered walls with at least R-0 insulation
A64: Floor_Exposed_Rvalue_Pre | B64: =IF(Building!C98=1, 0, Building!C98) ->  | G64: Floor_Exposed_Rvalue_Post | H64: =IF('Building-2'!C98=1,0,'Building-2'!C98) -> 
A65: Floor_Exposed_Area | B65: =Building!B98 ->  | G65: Floor_Exposed_Message | H65: ="Insulate approximately " & Floor_Exposed_Area & " square feet of exposed floors "&IF('Audit Data Collection'!B41=Wall_RVal_Unknown,"to achieve at least R-"& Floor_Exposed_Rvalue_Post,"with at least R-" & Floor_Exposed_Rvalue_Post - Floor_Exposed_Rvalue_Pre & " insulation") -> 
A66: Floor_Over_Rvalue_Pre | B66: =IF(Building!C99=1, 0, Building!C99) ->  | G66: Floor_Over_Rvalue_Post | H66: =IF('Building-2'!C99=1,0,'Building-2'!C99) -> 
A67: Floor_Over_Area | B67: =Building!B99 ->  | G67: Floor_Over_Message | H67: ="Insulate approximately "&Floor_Over_Area&" square feet of buffered floors "&IF('Audit Data Collection'!B42=Wall_RVal_Unknown,"to achieve at least R-"&Floor_Over_Rvalue_Post,"with at least R-"&Floor_Over_Rvalue_Post-Floor_Over_Rvalue_Pre&" insulation") -> 
A69: Foundation_Basement_Rvalue_Pre | B69: =IF(Building!C101=1, 0, Building!C101) ->  | G69: Foundation_Basement_Rvalue_Post | H69: =IF('Building-2'!C101=1,0,'Building-2'!C101) -> 
A70: Foundation_Basement_Perim | B70: =Building!B101 ->  | G70: Foundation_Basement_Message | H70: ="Insulate approximately "&Foundation_Basement_Perim&" linear feet of basement perimeter "&IF('Audit Data Collection'!B44=Wall_RVal_Unknown,"to achieve at least R-"&Foundation_Basement_Rvalue_Post,"with at least R-"&Foundation_Basement_Rvalue_Post-Foundation_Basement_Rvalue_Pre&" insulation") -> 
A71: Foundation_Slab_Rvalue_Pre | B71: =IF( Building!C102 = 1, 0, Building!C102) ->  | G71: Foundation_Slab_Rvalue_Post | H71: =IF('Building-2'!C102=1,0,'Building-2'!C102) -> 
A72: Foundation_Slab_Perim | B72: =Building!B102 ->  | G72: Foundation_Slab_Message | H72: ="Insulate approximately "&Foundation_Slab_Perim&" linear feet of basement perimeter "&IF('Audit Data Collection'!B45=Wall_RVal_Unknown,"to achieve at least R-"&Foundation_Slab_Rvalue_Post,"with at least R-"&Foundation_Slab_Rvalue_Post-Foundation_Slab_Rvalue_Pre&" insulation") -> 
A73: Foundation_Crawlspace_Rvalue_Pre | B73: =IF( Building!C103 = 1, 0, Building!C103) ->  | G73: Foundation_Crawlspace_Rvalue_Post | H73: =IF('Building-2'!C103=1,0,'Building-2'!C103) -> 
A74: Foundation_Crawlspace_Perim | B74: =Building!B103 ->  | G74: Foundation_Crawlspace_Message | H74: ="Insulate approximately "&Foundation_Crawlspace_Perim&" linear feet of basement perimeter "&IF('Audit Data Collection'!B46=Wall_RVal_Unknown,"to achieve at least R-" & Foundation_Crawlspace_Rvalue_Post,"with at least R-"&Foundation_Crawlspace_Rvalue_Post-Foundation_Crawlspace_Rvalue_Pre&" insulation") -> 
A76: Window_SHGC_Pre | B76: =rWin_shgcadj_n -> 
A77: Window_U_Pre | B77: =Building!C129 -> 
B108: 57637
B109: kwh to therm
B110: 0.034129
B111: =B108*B110 -> 1967.093173

Sheet 2019 Measures (hidden)
M1: =Raw_HVAC_1_Heating_Fuel -> 0
D2: ='Audit Data Collection'!C28 ->  | O2: Total Usage
L3: =978*System1_Capacity_H -> 0 | O3: kWh | P3: Therm | Q3: MMBTU
A4: Thermostat | O4: =Household_Electric_Consumption -> 6961 | P4: =Total_Btu_Pre -> 
A6: Inputs | G6: Calculations | O6: Outputs (units) | S6: Outputs (%)
G7: Calc Vintage | H7: Calc F EH | I7: Calc F CEC | J7: Calc F GH | K7: Climate Zone | L7: TRM Nearest City | M7: Cooling System Capacity | O7: kWh | P7: Therm | Q7: MMBTU | S7: kWh | T7: Therm
G8: =IF(Raw_Home_Construction_Vintage="Before 1979","Old",IF(Raw_Home_Construction_Vintage="Between 1979 and 2007","Average","New")) -> New | H8: =IF(ISNUMBER(SEARCH("electricity",Raw_HVAC_1_Heating_Fuel,1)),1,0) -> 0 | I8: =IF(Calc_CAC_capacity__tons>0,1,0) -> 0 | J8: =IF(OR(ISNUMBER(SEARCH("Gas",Raw_HVAC_1_Heating_Fuel,1)),ISNUMBER(SEARCH("Oil",Raw_HVAC_1_Heating_Fuel,1))),1,0) -> 0 | K8: =INDEX(Lookups_TRM_Climate_Zone,MATCH(Customer_Zip,Lookups_TRM_Zipcode,),1) ->  | L8: =INDEX(Lookups_TRM_City,MATCH(Customer_Zip,Lookups_TRM_Zipcode,),1) ->  | M8: =IF(System2_Capacity_c<>"",System2_Capacity_c/12000,IF(Is_cooling_1,(INDEX(Lookups_CAC_Avg_Cap_SF,MATCH(Calc_Climate_Zone,Lookups_CAC_Capacity_CZ,),1)*Raw_SF)/12000,0)) -> 0 | O8: =IF(AND(Raw_Existing_Thermostat="Manual",Raw_New_Thermostat="Programmable"),0.06*(Total_kWh_h_Pre+Total_kWh_c_Pre),(IF(Raw_New_Thermostat="","n/a",(IF(Raw_New_Thermostat="Learning",((Calc_CAC_capacity__tons*12)/12*12/EER*INDEX(Lookups_EFLH_Cooling_Table,MATCH(Calc_TRM_City_Nearest,Lookup_EFLH_Cooling_City,),MATCH(Calc_Vintage,Lookups_EFLH_Cooling_Vintage,))*Lookups_ESFcooling_learning_Constant*Calc_F_CEC)+IF(Raw_HVAC_1_Heating_Fuel="Electricity",((Calc_Heating_1_Capacity/1000)/Lookups_TRM_HSPF_Baseline*INDEX(Lookups_EFLH_Heating_Table,MATCH(Calc_TRM_City_Nearest,Lookups_EFLH_Heating_City,),MATCH(Calc_Vintage,Lookups_EFLH_Heating_Vintage,))*Lookups_ESFheating_learning_Constant*Calc_F_EH),0),IF(AND( Raw_New_Thermostat="WiFi",OR(Raw_Existing_Thermostat="Manual",Raw_Existing_Thermostat="Programmable")),104,"n/a")))))) -> n/a | P8: =IF(AND(Raw_Existing_Thermostat="Manual",Raw_New_Thermostat="Programmable"),0.06*((Total_kWh_h_Pre+Total_kWh_c_Pre)/29.3),IF(Raw_New_Thermostat="","n/a",(IF(Raw_New_Thermostat="Learning",((Calc_Heating_0_Capacity/1000)/Calc_Heating_Efficiency)/100*INDEX(Lookups_EFLH_Heating_Table,MATCH(Calc_TRM_City_Nearest,Lookups_EFLH_Heating_City,),MATCH(Calc_Vintage,Lookups_EFLH_Heating_Vintage,))*Lookups_ESFheating_learning_Constant*Calc_F_GH,IF(AND( Raw_New_Thermostat="WiFi",OR(Raw_Existing_Thermostat="Manual",Raw_Existing_Thermostat="Programmable")),66,"n/a"))))) -> n/a | Q8: =IF(Raw_New_Thermostat="","n/a",(IF((AND(Savings_Thermostat_Therms<>"n/a",Savings_Thermostat_Therms<>"Not Upgraded")),Savings_Thermostat_Therms/10,Savings_Thermostat_Therms))) -> n/a | S8: =IF(AND(Raw_HVAC_1_Heating_Fuel="electricity", Raw_Existing_Thermostat="manual",Raw_New_Thermostat="programmable"),6*(Total_kWh_h_Pre+Total_kWh_c_Pre)/Total_kWh_Input_Pre&"%",IF(Savings_Thermostat_kWh="n/a","n/a",IF(Savings_Thermostat_kWh=0,"n/a",Savings_Thermostat_kWh/Total_kWh_Input_Pre))) -> n/a | T8: =IF(AND(OR(Raw_HVAC_1_Heating_Fuel="NaturalGas",Raw_HVAC_1_Heating_Fuel="Propane",Raw_HVAC_1_Heating_Fuel="Oil"), Raw_Existing_Thermostat="manual",Raw_New_Thermostat="programmable"),6*(Total_kWh_h_Pre+Total_kWh_c_Pre)/Total_kWh_Input_Pre&"%",IF(Q8="n/a","n/a",IF(Q8=0,"n/a",Q8*293.3/Total_kWh_Input_Pre))) -> n/a | U8: % Checked
A12: Room AC
A13: Inputs | G13: Calculations | O13: Outputs (units) | S13: Outputs (%)
G14: CEER Baseline | O14: kWh | P14: Therm | S14: kWh | T14: Therm
G15: =INDEX(Lookups_CEERbase_CZ,MATCH(Calc_Climate_Zone,Lookups_Room_AC_CZ,),1) ->  | O15: =IF(Raw_New_Room_AC_CEER="","",(Calc_CAC_capacity__tons*(12/Calc_CEER_Baseline-12/Raw_New_Room_AC_CEER)*INDEX(Lookup_EFLH_Room_AC,MATCH(Calc_TRM_City_Nearest,Lookup_EFLH_Room_AC_Cooling_City,),1))) ->  | Q15: =Savings_Room_AC_Therms/10 -> 0 | S15: =IF(OR(Savings_Room_AC_kWh="n/a",Savings_Room_AC_kWh=""),"n/a",IF(Savings_Room_AC_kWh=0,"n/a",Savings_Room_AC_kWh/Total_kWh_Input_Pre)) -> n/a | T15: =IF(P15="n/a","n/a",IF(P15=0,"n/a",P15/Total_Btu_Pre)) -> n/a | U15: % Checked
A17: Fridge and Freezer
A18: Inputs | G18: Calculations | O18: Outputs (units) | S18: Outputs (%)
O19: kWh | P19: Therm | S19: kWh | T19: Therm
O20: =IF(OR(Raw_Primary_Existing_Fridge_Efficiency="",Raw_Primary_New_Fridge_Efficiency=""),"n/a",(INDEX(Lookups_Fridge_Freezer_Efficiency_Types_Table,MATCH(Raw_Primary_Existing_Fridge_Efficiency,Lookups_Fridge_Freezer_Efficiency_Types_Old,),MATCH(Raw_Primary_New_Fridge_Efficiency,Lookups_Fridge_Freezer_Efficiency_Types_New,)))) -> n/a | Q20: =Savings_Room_AC_Therms/10 -> 0 | S20: =IF(Savings_Primary_Refrigerator_kWh="n/a","n/a",IF(Savings_Primary_Refrigerator_kWh=0,"n/a",Savings_Primary_Refrigerator_kWh/Total_kWh_Input_Pre)) -> n/a | T20: =IF(P20="n/a","n/a",IF(P20=0,"n/a",P20/Total_Btu_Pre)) -> n/a | U20: % Checked
G21: Calculations | O21: Outputs (units) | S21: Outputs (%)
O22: kWh | P22: Therm | S22: kWh | T22: Therm
O23: =IF(OR(Raw_Secondary_Existing_Fridge_Efficiency="",Raw_Secondary_New_Fridge_Efficiency=""),"n/a",(INDEX(Lookups_Fridge_Freezer_Efficiency_Types_Table,MATCH(Raw_Secondary_Existing_Fridge_Efficiency,Lookups_Fridge_Freezer_Efficiency_Types_Old,),MATCH(Raw_Secondary_New_Fridge_Efficiency,Lookups_Fridge_Freezer_Efficiency_Types_New,)))) -> n/a | S23: =IF(OR(Savings_Secondary_Refrigerator_Freezer_kWh="n/a",Savings_Secondary_Refrigerator_Freezer_kWh=""),"n/a",IF(Savings_Secondary_Refrigerator_Freezer_kWh=0,"n/a",Savings_Secondary_Refrigerator_Freezer_kWh/Total_kWh_Input_Pre)) -> n/a | T23: =IF(P23="n/a","n/a",IF(P23=0,"n/a",P23/Total_Btu_Pre)) -> n/a | U23: % Checked
A27: Lighting
A28: Inputs | G28: Calculations | O28: Outputs (units) | S28: Outputs (%)
G29: Existing NOT CFL/LED Cnt | H29: Existing CFL Cnt | I29: Existing LED Cnt | J29: New NOT CFL/LED Cnt | K29: New CFL Cnt | L29: New LED Cnt | M29: TRM Heating System | O29: kWh | P29: Therm | S29: kWh | T29: Therm
G30: =Raw_Existing_Not_CFL_LED_Prc_of_Lighting*INDEX(Lookups_Lighting_Ave_Bulbs_Cond_Sq_Ft,MATCH(Calc_Climate_Zone,Lookups_Lighting_Climate_Zone,),1)*Raw_SF ->  | H30: =Raw_Existing_CFL_Prc_of_Lighting*INDEX(Lookups_Lighting_Ave_Bulbs_Cond_Sq_Ft,MATCH(Calc_Climate_Zone,Lookups_Lighting_Climate_Zone,),1)*Raw_SF ->  | I30: =Raw_Existing_LED_Prc_of_Lighting*INDEX(Lookups_Lighting_Ave_Bulbs_Cond_Sq_Ft,MATCH(Calc_Climate_Zone,Lookups_Lighting_Climate_Zone,),1)*Raw_SF ->  | J30: =Raw_New_Not_CFL_LED_Prc_of_Lighting*INDEX(Lookups_Lighting_Ave_Bulbs_Cond_Sq_Ft,MATCH(Calc_Climate_Zone,Lookups_Lighting_Climate_Zone,),1)*Raw_SF ->  | K30: =Raw_New_CFL_Prc_of_Lighting*INDEX(Lookups_Lighting_Ave_Bulbs_Cond_Sq_Ft,MATCH(Calc_Climate_Zone,Lookups_Lighting_Climate_Zone,),1)*Raw_SF ->  | L30: =Raw_New_LED_Prc_of_Lighting*INDEX(Lookups_Lighting_Ave_Bulbs_Cond_Sq_Ft,MATCH(Calc_Climate_Zone,Lookups_Lighting_Climate_Zone,),1)*Raw_SF ->  | M30: =IF(OR(Raw_HVAC_1_Heating_Fuel="Oil",Raw_HVAC_1_Heating_Fuel="Kerosene",Raw_HVAC_1_Heating_Fuel="Coal",Raw_HVAC_1_Heating_Fuel="Pellets",Raw_HVAC_1_Heating_Fuel="Wood"),"n/a",(INDEX(Lookups_TRM_Heating_System,MATCH(CONCATENATE(System1_Type,Raw_HVAC_1_Heating_Fuel,Is_cooling_1),Lookups_Raw_Heating_System_UI,),1))) ->  | O30: =IF(SUM(Raw_New_LED_Prc_of_Lighting,Raw_New_Not_CFL_LED_Prc_of_Lighting,Raw_New_CFL_Prc_of_Lighting)>0,(SUMPRODUCT(Lookups_Lighting_Bulb_Wattage,Calc_Lighting_Existing_Bulbs)-SUMPRODUCT(Calc_Lighting_New_Bulbs,Lookups_Lighting_Bulb_Wattage))/1000*Lookups_Lighting_Hours_Of_Use_Constant*(1+IF(Calc_TRM_Heating_System="n/a",0,INDEX(Lookups_LIghting_HVACc,MATCH(CONCATENATE(Calc_TRM_City_Nearest,Calc_TRM_Heating_System),Lookups_LIghting_UI,),1))),"n/a") -> n/a | S30: =IF(OR(Savings_Lighting_kWh="n/a",Savings_Lighting_kWh=0,Savings_Lighting_kWh=""),"n/a",Savings_Lighting_kWh/Total_kWh_Input_Pre) -> n/a | T30: =IF(P30="n/a","n/a",IF(P30=0,"n/a",P30/Total_Btu_Pre)) -> n/a | U30: % Checked | V30: =(SUMPRODUCT(Lookups_Lighting_Bulb_Wattage,Calc_Lighting_Existing_Bulbs)-SUMPRODUCT(Calc_Lighting_New_Bulbs,Lookups_Lighting_Bulb_Wattage))/1000*Lookups_Lighting_Hours_Of_Use_Constant*(1+IF(Calc_TRM_Heating_System="n/a",0,INDEX(Lookups_LIghting_HVACc,MATCH(CONCATENATE(Calc_TRM_City_Nearest,Calc_TRM_Heating_System),Lookups_LIghting_UI,),1)))
G31: =G30-D30 ->  | H31: =H30-E30 ->  | I31: =I30-F30 ->  | J31: =J30-G30 ->  | K31: =K30-H30 ->  | L31: =L30-Raw_Existing_LED_Cnt ->  | V31: Heat PumpElectricityTRUE
G32: =G31*Lookups_Watts__Non_CFL_LED ->  | H32: =H31*Lookups_Watts__Non_CFL_LED ->  | I32: =I31*Lookups_Watts__Non_CFL_LED ->  | J32: =J31*Lookups_Watts__Non_CFL_LED ->  | K32: =K31*Lookups_Watts__CFL ->  | L32: =L31*Lookups_Watts__LED -> 
G33: =(G32*Lookups_Lighting_Hours_Of_Use_Constant)/1000 ->  | H33: =(H32*Lookups_Lighting_Hours_Of_Use_Constant)/1000 ->  | I33: =(I32*Lookups_Lighting_Hours_Of_Use_Constant)/1000 ->  | J33: =(J32*Lookups_Lighting_Hours_Of_Use_Constant)/1000 ->  | K33: =(K32*Lookups_Lighting_Hours_Of_Use_Constant)/1000 ->  | L33: =((L32*Lookups_Lighting_Hours_Of_Use_Constant)/1000) -> 
J34: =IF(J33<=0,"n/a",1-(J33/SUMIFS($J$33:$L$33,$J$33:$L$33,">0"))) ->  | K34: =IF(K33<=0,"n/a",1-(K33/SUMIFS($J$33:$L$33,$J$33:$L$33,">0"))) ->  | L34: =IF(L33<=0,"n/a",1-(L33/SUMIFS($J$33:$L$33,$J$33:$L$33,">0"))) -> 
E36: Bulb Count | G36: =G30 ->  | H36: =H30 -> 
E37: Watts Per | G37: =Lookups_Watts__Non_CFL_LED -> 43 | H37: =Lookups_Watts__CFL -> 13 | I37: =Lookups_Watts__LED -> 10 | J37: =Lookups_Watts__Non_CFL_LED -> 43 | K37: =Lookups_Watts__CFL -> 13 | L37: =Lookups_Watts__LED -> 10
E38: Total Watts | G38: =G36*G37 ->  | H38: =H36*H37 -> 
E39: Hours of Use | G39: =Lookups_Lighting_Hours_Of_Use_Constant -> 1040.5 | H39: 1040.5 | I39: 1040.5 | J39: 1040.5 | K39: 1040.5 | L39: 1040.5
E40: kWh | G40: =G38*G39/1000 ->  | H40: =H38*H39/1000 -> 
E41: kWh Change | J41: =G40-J40 ->  | K41: =H40-K40 -> 
I42: =SUM(G40:I40) ->  | L42: =SUM(J40:L40) -> 
E43: Net Savings kWh | L43: =I42-L42 -> 
J44: =IF(J41<0,1-(J41/SUMIFS($J$41:$L$41,$J$41:$L$41,"<0")),0) ->  | K44: =IF(K41<0,1-(K41/SUMIFS($J$41:$L$41,$J$41:$L$41,"<0")),0) ->  | L44: =IF(L41<0,1-(L41/SUMIFS($J$41:$L$41,$J$41:$L$41,"<0")),0) -> 
A47: Dishwasher | G47: Calculations | O47: Outputs (units) | S47: Outputs (%)
G48: ElectricSF wH | H48: GasSF wH | O48: kWh | P48: Therms | S48: kWh | T48: Therm
G49: =IF(Raw_Water_Heating_Fuel_Existing="Electricity",1,IF(Raw_Water_Heating_Fuel_Existing="Natural Gas",0,0.31)) -> 0.31 | H49: =IF(Raw_Water_Heating_Fuel_Existing="Electric",0,IF(Raw_Water_Heating_Fuel_Existing="Natural Gas",1,0.56)) -> 0.56 | O49: =IF(AND(Raw_Existing_Dishwasher_Efficiency="Not ENERGY STAR",OR(Raw_New_Dishwasher_Efficiency="ENERGY STAR",Raw_New_Dishwasher_Efficiency="ENERGY STAR Most Efficient")),(Lookups_TRM_Constant_DW_kWh_Baseline-Lookups_TRM_Constant_DW_kWh_New)*(Lookups_TRM_Constant_DW_F_Machine+Lookups_TRM_Constant_DW_F_wH*Calc_ElectricSF_wH),0) -> 0 | P49: =IF(AND(Raw_Existing_Dishwasher_Efficiency="Not ENERGY STAR",OR(Raw_New_Dishwasher_Efficiency="ENERGY STAR",Raw_New_Dishwasher_Efficiency="ENERGY STAR Most Efficient")),(Lookups_TRM_Constant_DW_kWh_Baseline-Lookups_TRM_Constant_DW_kWh_New)*Lookups_TRM_Constant_DW_F_wH*Calc_GasSF_wH*Lookups_Constant_DW_RE_Electric/Lookups_Constant_DW_RE_Gas*3412/100000) -> FALSE | S49: =IF(OR(Savings_Dishwasher_kWh="n/a",Savings_Dishwasher_kWh="",Savings_Dishwasher_kWh=0),"n/a",Savings_Dishwasher_kWh/Total_kWh_Input_Pre) -> n/a | T49: =IF(Savings_Dishwasher_Therm="n/a","n/a",IF(Savings_Dishwasher_Therm=0,"n/a",Savings_Dishwasher_Therm/Total_Btu_Pre)) ->  | U49: % Checked
A52: Showerheads | G52: Calculations | O52: Outputs (units) | S52: Outputs (%)
S53: Water Savings
S54: =IF(ISNUMBER((INDEX(Lookups_Showerheads_Table,MATCH(Raw_Showerhead_Existing,Lookups_Showerheads_Old,),MATCH(Raw_Showerhead_New,Lookups_Showerheads_New,)))),(INDEX(Lookups_Showerheads_Table,MATCH(Raw_Showerhead_Existing,Lookups_Showerheads_Old,),MATCH(Raw_Showerhead_New,Lookups_Showerheads_New,))),"n/a") -> n/a
A56: Clothes Washer | G56: Calculations | O56: Outputs (units) | S56: Outputs (%)
O57: kWh | P57: Therms
O58: =IF(ISNUMBER((INDEX(Lookups_Clothes_Washer_Table,MATCH(Raw_Existing_Clothes_Washer_Efficiency,Lookups_Clothes_Washer_Old,),MATCH(Raw_New_Clothes_Washer_Efficiency,Lookups_Clothes_Washer_New,)))),(INDEX(Lookups_Clothes_Washer_Table,MATCH(Raw_Existing_Clothes_Washer_Efficiency,Lookups_Clothes_Washer_Old,),MATCH(Raw_New_Clothes_Washer_Efficiency,Lookups_Clothes_Washer_New,))),"n/a") -> n/a | S58: =IF(OR(Savings_Clothes_Washer_kWh="n/a",Savings_Clothes_Washer_kWh="",Savings_Clothes_Washer_kWh=0),"n/a",Savings_Clothes_Washer_kWh/Total_kWh_Input_Pre) -> n/a | U58: % Checked
A60: Dehumidifier | G60: Calculations | O60: Outputs (units) | S60: Outputs (%)
A61: Existing Dehumidifier Efficiency | B61: Existing Dehumidifier Year of Mfg. (vintage) | C61: New Dehumidifier Efficiency | D61: New Dehumidifier Year of Mfg. (vintage) | E61: Pints / Day | G61: Existing EF | H61: New EF | O61: kWh | P61: Therms
G62: =IF(Raw_Existing_Dehumidifier_Year_of_Mfg.__vintage="Before 2019",Raw_Existing_Dehumidifier_Efficiency,(Raw_Existing_Dehumidifier_Efficiency*0.605201)+0.942308) -> 0.942308 | H62: =IF(Lookups_New_Dehumidifier_Year_of_Mfg.__vintage_Constant<2019,Raw_New_Dehumidifier_Efficiency,(Raw_New_Dehumidifier_Efficiency*0.605201)+0.942308) -> 0.942308 | O62: =IF(Raw_New_Dehumidifier_Efficiency>0,IF(ISNUMBER(((Raw_Existing_Dehumidifier_Pints_Per_Day*Lookups_Conversion_Factor_Liters_Per_Pint_Constant*Lookups_Dehumidifier_Operation_Hours_Per_Year_Constant)/24)*((1/Calc_Dehumidifier_Existing_EF)-(1/Calc_Dehumidifier_New_EF))),((Raw_Existing_Dehumidifier_Pints_Per_Day*Lookups_Conversion_Factor_Liters_Per_Pint_Constant*Lookups_Dehumidifier_Operation_Hours_Per_Year_Constant)/24)*((1/Calc_Dehumidifier_Existing_EF)-(1/Calc_Dehumidifier_New_EF)),"n/a"),"n/a") -> n/a | S62: =IF(OR(Savings_Dehumidifier_kWh="n/a",Savings_Dehumidifier_kWh="",Savings_Dehumidifier_kWh=0),"n/a",Savings_Dehumidifier_kWh/Total_kWh_Input_Pre) -> n/a | U62: % Checked
A66: Showerheads - Water Heater Savings | G66: Calculations | O66: Outputs (units) | S66: Outputs (%)
O67: kWh | P67: Therms | S67: Water Heating Savings
O68: =IF(AND(Raw_Showerhead_Existing<>"",Raw_Showerhead_New<>""),INDEX(Lookups_Showerheads_DHW_Table,MATCH(Raw_Showerhead_Existing,Lookups_Showerheads_DHW_Old,),MATCH(Raw_Showerhead_New,Lookups_Showerheads_DHW_New,)),"n/a") -> n/a | S68: =O68/Total_kWh_Input_Pre ->  | U68: % Checked
A70: Faucet Aerators | G70: Calculations | O70: Outputs (units) | S70: Outputs (%)
O71: kWh | P71: Therms | S71: Water Heating Savings
O72: 70 | P72: =350/96.7 -> 3.619441572 | Q72: =P72/10 -> 0.3619441572 | S72: =O72/Total_kWh_Input_Pre -> 0.03344567332 | T72: =Q72/Total_Btu_Pre -> 
A74: Air Infiltration | G74: Calculations
G75: CFM_Pre | H75: CFM_Post
G76: =INDEX(Lookups_CFM_Pre,MATCH(CONCATENATE(Raw_Stories,INDEX(Lookup_House_Size_Category,MATCH(Raw_SF,Lookup_House_Size_SF_Range,1),1),Raw_Infiltration),Lookups_CFM_Pre_UI,),1) ->  | H76: =Calc_CFM_Pre-(Calc_CFM_Pre*INDEX(Lookups_Infiltration_Improvement_Prc,MATCH(Raw_Target_Infiltration_Improvement,Lookups_Infiltration_Improvement_Prc_Range,),1)) -> 

Sheet HVAC (hidden)
B1: fixed defaults | D1: fixed DE_h_Sys3faults
B2: will come from somewhere | D2: will come from somewhere
B3: calculated defaults if data not measured/entered | D3: calculated DE_h_Sys3faults if data not measured/entered
A4: DO NOT EDIT THIS DATA | C4: Net heat dist | F4: Net cool dist | K4: DistEff_h_Sys3
C5: =(DistEff_h*Ecap+IF(System2_Type<>"",DistEff_h_Sys2*Ecap_Sys2,0))/(Ecap+Ecap_Sys2) ->  | F5: =(DistEff_c*Ecap_c+IF(Is_cooling_2,DistEff_c_Sys2*Ecap_c_Sys2,0))/(Ecap_c+Ecap_c_Sys2) -> 
A6: PRE | B6: Heating1 | C6: Heating2 | D6: Heating3 | E6: Cooling1 | F6: Cooling2 | G6: Cooling3 | J6: Heating Naming Columns | L6: Cooling Naming Columns
A7: DistEff | B7: =IF('Audit Data Collection'!$B$59 = "Electric Baseboard or Wall",1, IF('Audit Data Collection'!$B$59 = "Boiler", 0.87, MIN(Dec * Fequip * FloadPre * (1 - Fcycleloss), 1))) ->  | C7: =IF('Audit Data Collection'!$B$75 = Electric_Baseboard,1, IF('Audit Data Collection'!$B$75 = Fossil_Boiler, 0.87, MIN(Dec_Sys2 * Fequip_Sys2 * FloadPre_sys2 * (1 - Fcycleloss), 1))) ->  | D7: =IF(System1_Type = "Electric Baseboard or Wall",1, IF(System1_Type = "Boiler", 0.87, MIN(DE_h_Sys3c_Sys3 * Fequip_Sys3 * FloadPre_sys3 * (1 - Fcycleloss), 1))) ->  | E7: =MIN(DEc_c * Fequip_c * FloadPre_c * (1 - Fcycleloss), 1) ->  | F7: =MIN(DEc_c_Sys2 * Fequip_c_Sys2 * FloadPre_c_Sys2 * (1 - Fcycleloss), 1) ->  | G7: =MIN(DE_h_Sys3c_Sys3_c_Sys3 * Fequip_c_Sys3 * FloadPre_sys3_c_Sys3 * (1 - Fcycleloss), 1) ->  | H7: see footnote 4 and 5 | I7: 0.2540690995 | J7: DistEff_h | K7: DistEff_h_Sys3 | L7: DistEff_c | M7: DistEff_c_Sys3 | O7: MIN(0.949838100821237 * 1 * 1.01878374929585 * (1 - 0.02), 1)
A8: Dec | B8: =DE_h + Fregain_s * (1-DE_h)-(Fregain_s - Fregain_r - RcondEff * (RLeakPercent*Fregain_s-Fregain_r)) * Dtr / Dte ->  | C8: =DE_h_Sys2 + Fregain_s_Sys2 * (1-DE_h_Sys2)-(Fregain_s_Sys2 - Fregain_r_Sys2 - RcondEff_Sys2 * (RLeakPercent_Sys2*Fregain_s_Sys2-Fregain_r_Sys2)) * Dtr_Sys2 / Dte_Sys2 ->  | D8: =DE_h_Sys3_h_Sys3 + Fregain_s_Sys3 * (1-DE_h_Sys3_h_Sys3)-(Fregain_s_Sys3 - Fregain_r_Sys3 - RconDE_h_Sys3ff_Sys3 * (Rleak_Sys3Percent_Sys3*Fregain_s_Sys3-Fregain_r_Sys3)) * Dtr_Sys3 / Dte_Sys3 ->  | E8: =DE_c + Fregain_s * (1-DE_c)-(Fregain_s - Fregain_r - RcondEff_c * (RLeakPercent_c*Fregain_s-Fregain_r)) * Dtr_c / Dte_c ->  | F8: =DE_c_Sys2 + Fregain_s_Sys2 * (1 - DE_c_Sys2) - (Fregain_s_Sys2 - Fregain_r_Sys2 - RcondEff_c_Sys2 * (RLeakPercent_c_Sys2 * Fregain_s_Sys2 - Fregain_r_Sys2)) * Dtr_c_Sys2 / Dte_c_Sys2 ->  | G8: =DE_h_Sys3_c_Sys3 + Fregain_s_Sys3 * (1-DE_h_Sys3_c_Sys3)-(Fregain_s_Sys3 - Fregain_r_Sys3 - RconDE_h_Sys3ff_c_Sys3 * (Rleak_Sys3Percent_c_Sys3*Fregain_s_Sys3-Fregain_r_Sys3)) * Dtr_Sys3_c_Sys3 / Dte_Sys3_c_Sys3 ->  | I8: 0.2467006503 | J8: Dec | K8: Dec_Sys3 | L8: DEc_c | M8: DEc_c_Sys3 | O8: MIN(DEc_c * Fequip_c * FloadPre_c * (1 - Fcycleloss), 1)
A9: Fload | B9: =1 - (1.08 * (TempIn- TempEx) * (QnetPre-Qinf)/ (Ecap*DE)) ->  | C9: =1 - (1.08 * (TempIn- TempEx) * (QnetPre_Sys2-Qinf)/ (Ecap_Sys2*DE_Sys2)) ->  | D9: =1 - (1.08 * (TempIn- TempEx) * (QnetPre_Sys3-Qinf_Sys3)/(Ecap_Sys3*DE_h_Sys3_h_Sys3)) ->  | E9: =1 - (1.08 * (TempIn_c- TempEx_c) * (QnetPre-Qinf)/ (-SensibleCap*DE_c)) ->  | F9: =1 - (1.08 * (TempIn_c- TempEx_c) * (QnetPre_Sys2 - Qinf) / (-SensibleCap_Sys2 * DE_c_Sys2)) ->  | G9: =1 - (1.08 * (TempIn_c- TempEx_c) * (QnetPre_Sys3-Qinf_Sys3)/ (-SensibleCap_Sys3*DE_h_Sys3_c_Sys3)) ->  | I9: 1.05088569 | J9: FloadPre | K9: FloadPre_sys3 | L9: FloadPre_c | M9: FloadPre_c_Sys3
A10: DE | B10: =SLeakPercent * ScondEff - SLeakPercent * ScondEff * (1-RLeakPercent * RcondEff) * Dtr/Dte - SLeakPercent * (1 - ScondEff) * Dts/Dte ->  | C10: =SLeakPercent_Sys2 * ScondEff_Sys2 - SLeakPercent_Sys2 * ScondEff_Sys2 * (1-RLeakPercent_Sys2 * RcondEff_Sys2) * Dtr_Sys2/Dte_Sys2 - SLeakPercent_Sys2 * (1 - ScondEff_Sys2) * Dts_Sys2/Dte_Sys2 ->  | D10: =Sleak_Sys3Percent_Sys3 * SconDE_h_Sys3ff_Sys3 - Sleak_Sys3Percent_Sys3 * SconDE_h_Sys3ff_Sys3 * (1-Rleak_Sys3Percent_Sys3 * RconDE_h_Sys3ff_Sys3) * Dtr_Sys3/Dte_Sys3 - Sleak_Sys3Percent_Sys3 * (1 - SconDE_h_Sys3ff_Sys3) * Dts_Sys3/Dte_Sys3 ->  | E10: =SLeakPercent_c * ScondEff_c - SLeakPercent_c * ScondEff_c * (1-RLeakPercent_c * RcondEff_c) * Dtr_c/Dte_c - SLeakPercent_c * (1 - ScondEff_c) * Dts_c/Dte_c ->  | F10: =SLeakPercent_c_Sys2 * ScondEff_c_Sys2 - SLeakPercent_c_Sys2 * ScondEff_c_Sys2 * (1-RLeakPercent_c_Sys2 * RcondEff_c_Sys2) * Dtr_c_Sys2/Dte_c_Sys2 - SLeakPercent_c_Sys2 * (1 - ScondEff_c_Sys2) * Dts_c_Sys2/Dte_c_Sys2 ->  | G10: =Sleak_Sys3Percent_c_Sys3 * SconDE_h_Sys3ff_c_Sys3 - Sleak_Sys3Percent_c_Sys3 * SconDE_h_Sys3ff_c_Sys3 * (1-Rleak_Sys3Percent_c_Sys3 * RconDE_h_Sys3ff_c_Sys3) * Dtr_Sys3_c_Sys3/Dte_Sys3_c_Sys3 - Sleak_Sys3Percent_c_Sys3 * (1 - SconDE_h_Sys3ff_c_Sys3) * Dts_Sys3_c_Sys3/Dte_Sys3_c_Sys3 ->  | H10: =DE_h ->  | I10: 0.2141542061 | J10: DE | K10: DE_h_Sys3 | L10: DE_c | M10: DE_c_Sys3
A11: Qnet | B11: =ABS(Sleak-Rleak) ->  | C11: =ABS(Sleak_Sys2-Rleak_Sys2) -> 0 | D11: =ABS(Sleak_Sys3-Rleak_Sys3) -> 0 | J11: QnetPre | K11: QnetPre_Sys3
A12: SLeakPercent | B12: =1 - Sleak / Airflow1 ->  | C12: =1 - Sleak_Sys2 / Airflow1_Sys2 ->  | D12: =1 - Sleak_Sys3 / Airflow1_Sys3 ->  | E12: =1 - Sleak / Airflow1_c ->  | F12: =1 - Sleak_Sys2 / Airflow1_c_Sys2 ->  | G12: =1 - Sleak_Sys3 / Airflow1_Sys3_c_Sys3 ->  | I12: 0.5346260388 | J12: SLeakPercent | K12: SLeakPercent_Sys3 | L12: SLeakPercent_c | M12: SLeakPercent_c_Sys3
A13: RLeakPercent | B13: =1 - Rleak / Airflow1 ->  | C13: =1 - Rleak_Sys2 / Airflow1_Sys2 ->  | D13: =1 - Rleak_Sys3 / Airflow1_Sys3 ->  | E13: =1 - Rleak / Airflow1_c ->  | F13: =1 - Rleak_Sys2 / Airflow1_c_Sys2 ->  | G13: =1 - Rleak_Sys3 / Airflow1_Sys3_c_Sys3 ->  | I13: 0.4415512465 | J13: RLeakPercent | K13: RLeakPercent_Sys3 | L13: RLeakPercent_c | M13: RLeakPercent_c_Sys3
A14: Sleak | B14: =IF('Inputs-Results'!B67="",'Inputs-Results'!C67,'Inputs-Results'!B67) ->  | C14: =IF('Inputs-Results'!B87="",'Inputs-Results'!C87,'Inputs-Results'!B87) -> 0 | D14: =IF('Inputs-Results'!D67="",'Inputs-Results'!E67,'Inputs-Results'!D67) -> 0 | E14: =IF(B14="",SleakFrac*Airflow1_c,B14) ->  | F14: =C14 -> 0 | G14: =IF(D14="",Sleak_Sys3Frac*Airflow1_Sys3_c_Sys3,D14) -> 0 | I14: 336 | L14: Sleak | M14: Sleak_Sys3
A15: Rleak | B15: =IF('Inputs-Results'!B68="",'Inputs-Results'!C68,'Inputs-Results'!B68) ->  | C15: =IF('Inputs-Results'!B88="",'Inputs-Results'!C88,'Inputs-Results'!B88) -> 0 | D15: =IF('Inputs-Results'!D68="",'Inputs-Results'!E68,'Inputs-Results'!D68) -> 0 | E15: =IF(B15="",RleakFrac*Airflow1_c,B15) ->  | F15: =C15 -> 0 | G15: =IF(D15="",Rleak_Sys3Frac*Airflow1_Sys3_c_Sys3,D15) -> 0 | I15: 403.2 | L15: Rleak | M15: Rleak_Sys3
A17: ='HVAC-2'!A4 -> DistEff | B17: ='HVAC-2'!B4 ->  | C17: ='HVAC-2'!C4 ->  | D17: ='HVAC-2'!D4 ->  | E17: ='HVAC-2'!D4 ->  | F17: ='HVAC-2'!E4 ->  | G17: ='HVAC-2'!F4 -> 0 | H17: THIS IS HERE JUST SO WE CAN SEE | I17: 0.5175585736
A18: ='HVAC-2'!A5 -> Dec | B18: ='HVAC-2'!B5 ->  | C18: ='HVAC-2'!C5 ->  | D18: ='HVAC-2'!D5 ->  | E18: ='HVAC-2'!D5 ->  | F18: ='HVAC-2'!E5 ->  | G18: ='HVAC-2'!F5 -> 0 | H18: THE POST DATA. IT SHOULD NOT BE | I18: 0.5016397405
A19: ='HVAC-2'!A6 -> Fload | B19: ='HVAC-2'!B6 ->  | C19: ='HVAC-2'!C6 ->  | D19: ='HVAC-2'!D6 ->  | E19: ='HVAC-2'!D6 ->  | F19: ='HVAC-2'!E6 ->  | G19: ='HVAC-2'!F6 -> 0 | H19: USED ANYWHERE | I19: 1.052789384
A20: ='HVAC-2'!A7 -> DE | B20: ='HVAC-2'!B7 ->  | C20: ='HVAC-2'!C7 ->  | D20: ='HVAC-2'!D7 ->  | E20: ='HVAC-2'!D7 ->  | F20: ='HVAC-2'!E7 ->  | G20: ='HVAC-2'!F7 -> 0 | I20: 0.4718431201
A21: ='HVAC-2'!A8 -> Qnet | B21: ='HVAC-2'!B8 ->  | C21: ='HVAC-2'!C8 ->  | D21: ='HVAC-2'!D8 -> 0
A22: ='HVAC-2'!A9 -> SLeakPercent | B22: ='HVAC-2'!B9 ->  | C22: ='HVAC-2'!C9 ->  | D22: ='HVAC-2'!D9 ->  | E22: ='HVAC-2'!D9 ->  | F22: ='HVAC-2'!E9 ->  | G22: ='HVAC-2'!F9 -> 0 | I22: 0.7673130194
A23: ='HVAC-2'!A10 -> RLeakPercent | B23: ='HVAC-2'!B10 ->  | C23: ='HVAC-2'!C10 ->  | D23: ='HVAC-2'!D10 ->  | E23: ='HVAC-2'!D10 ->  | F23: ='HVAC-2'!E10 ->  | G23: ='HVAC-2'!F10 -> 0 | I23: 0.7207756233
A24: ='HVAC-2'!A11 -> Sleak | B24: ='HVAC-2'!B11 ->  | C24: ='HVAC-2'!C11 ->  | D24: ='HVAC-2'!D11 ->  | E24: ='HVAC-2'!D11 ->  | F24: ='HVAC-2'!E11 ->  | G24: ='HVAC-2'!F11 -> 0 | I24: 168
A25: ='HVAC-2'!A12 -> Rleak | B25: ='HVAC-2'!B12 ->  | C25: ='HVAC-2'!C12 ->  | D25: ='HVAC-2'!D12 ->  | E25: ='HVAC-2'!D12 ->  | F25: ='HVAC-2'!E12 ->  | G25: ='HVAC-2'!F12 -> 0 | I25: 201.6
A27: Airflow Measured | B27: =IF('Inputs-Results'!B65="","",'Inputs-Results'!B65) ->  | D27: =IF('Inputs-Results'!D65="","",'Inputs-Results'!D65) -> 
A28: Airflow | B28: =IF(B27="",HVAC!B81,B27) -> 0 | C28: =IF(C27="",HVAC!E81,C27) -> 0 | D28: =IF(D27="",HVAC!D81,D27) -> 0 | E28: =IF(B27="",HVAC!C81,B27) -> 0 | F28: =IF(C27="",HVAC!F81,C27) -> 0 | G28: =IF(D27="",HVAC!E81,D27) -> 0 | H28: from airflow table, see footnote 16 | I28: 722 | J28: Airflow1 | K28: Airflow1_Sys3 | L28: Airflow1_c | M28: Airflow1_c_Sys3
A30: SleakFrac | B30: =IF(ductlocation_s_id=14, 0.05, 0.25) ->  | C30: =IF(ductlocation_s_id_Sys2=14, 0.05, 0.25) -> 0.25 | D30: =IF(ductlocation_s_id=14, 0.05, 0.25) ->  | H30: fixed, see footnote 20 | J30: SleakFrac | K30: SleakFrac_Sys3
A31: RLeakFrac | B31: =IF(ductlocation_r_id=14, 0.05, 0.3) ->  | C31: =IF(ductlocation_r_id_Sys2=14, 0.05, 0.3) -> 0.3 | D31: =IF(ductlocation_r_id=14, 0.05, 0.3) ->  | H31: fixed, see footnote 18 | J31: RleakFrac | K31: RleakFrac_Sys3
A32: ScondEff | B32: =EXP(-(1/SRValPre * SAreaUncon) / (Airflow1* 0.018 * 60)) ->  | C32: =EXP(-(1/SRValPre_Sys2 * SAreaUncon_Sys2) / (Airflow1_Sys2* 0.018 * 60)) ->  | D32: =EXP(-(1/SRValPre_Sys3 * SAreaUncon_Sys3) / (Airflow1_Sys3* 0.018 * 60)) ->  | E32: =EXP(-(1/SRValPre * SAreaUncon) / (Airflow1_c* 0.018 * 60)) ->  | F32: =EXP(-(1/SRValPre_Sys2 * SAreaUncon_Sys2) / (Airflow1_c_Sys2* 0.018 * 60)) ->  | G32: =EXP(-(1/SRValPre_Sys3 * SAreaUncon_Sys3) / (Airflow1_Sys3_c_Sys3* 0.018 * 60)) ->  | I32: 0.9312318556 | J32: ScondEff | K32: ScondEff_Sys3 | L32: ScondEff_c | M32: ScondEff_c_Sys3
A33: RcondEff | B33: =EXP(-(1/RRValPre * RAreaUncon) / ( Airflow1* 0.018 * 60)) ->  | C33: =EXP(-(1/RRValPre_Sys2 * RAreaUncon_Sys2) / ( Airflow1_Sys2* 0.018 * 60)) ->  | D33: =EXP(-(1/RRValPre_Sys3 * RAreaUncon_Sys3) / ( Airflow1_Sys3* 0.018 * 60)) ->  | E33: =EXP(-(1/RRValPre * RAreaUncon) / ( Airflow1_c* 0.018 * 60)) ->  | F33: =EXP(-(1/RRValPre_Sys2 * RAreaUncon_Sys2) / ( Airflow1_c_Sys2* 0.018 * 60)) ->  | G33: =EXP(-(1/RRValPre_Sys3 * RAreaUncon_Sys3) / ( Airflow1_Sys3_c_Sys3* 0.018 * 60)) ->  | I33: 0.9479673246 | J33: RcondEff | K33: RcondEff_Sys3 | L33: RcondEff_c | M33: RcondEff_c_Sys3
A34: SAreaUncon | B34: =IF('Inputs-Results'!B69="","",'Inputs-Results'!B69) ->  | D34: =IF('Inputs-Results'!D69="","",'Inputs-Results'!D69) ->  | E34: =IF(B34="",0.2*E58,B34) -> 0 | F34: =IF(C34="",0.2*F58,C34) -> 0 | G34: =IF(D34="",0.2*G58,D34) ->  | I34: 400 | L34: SAreaUncon | M34: SAreaUncon_Sys3
A35: RAreaUncon | B35: =IF('Inputs-Results'!B70="","",'Inputs-Results'!B70) ->  | D35: =IF('Inputs-Results'!D70="","",'Inputs-Results'!D70) ->  | E35: =IF(B35="",FloorArea_Served*MIN(0.187,0.0375*NRegisters),B35) ->  | F35: =IF(C35="",FloorArea_Served_Sys2*MIN(0.187,0.0375*NRegisters_Sys2),C35) ->  | G35: =IF(D35="",FloorArea_Served_Sys3*MIN(0.187,0.0375*NRegisters_Sys3),D35) ->  | I35: 300 | L35: RAreaUncon | M35: RAreaUncon_Sys3
A36: Dtr | B36: =TempIn-TambR ->  | C36: =TempIn-TambR_Sys2 -> 25.98307465 | D36: =TempIn-TambR_Sys3 ->  | E36: =TempIn_c-TambR_c ->  | F36: =TempIn_c-TambR_c_Sys2 -> -18.87189133 | G36: =TempIn_c-TambR_Sys3_c_Sys3 ->  | I36: -21.41318681 | J36: Dtr | K36: Dtr_Sys3 | L36: Dtr_c | M36: Dtr_c_Sys3
A37: Dts | B37: =TempIn-TambS ->  | C37: =TempIn-TambS_sys2 -> 25.98307465 | D37: =TempIn-TambS_sys3 ->  | E37: =TempIn_c-TambS_c ->  | F37: =TempIn_c-TambS_c_Sys2 -> -18.87189133 | G37: =TempIn_c-TambS_sys3_c_Sys3 ->  | I37: -21.41318681 | J37: Dts | K37: Dts_Sys3 | L37: Dts_c | M37: Dts_c_Sys3
A38: UnconTempR | B38: =VLOOKUP(ductlocation_r_id,lu_ductlocation,3) ->  | C38: =VLOOKUP(ductlocation_r_id_Sys2,lu_ductlocation,3) -> 42.01692535 | D38: =VLOOKUP(ductlocation_r_id,lu_ductlocation,3) ->  | E38: =VLOOKUP(ductlocation_r_id,lu_ductlocation,4) ->  | F38: =VLOOKUP(ductlocation_r_id_Sys2,lu_ductlocation,4) -> 92.87189133 | G38: =VLOOKUP(ductlocation_r_id,lu_ductlocation,4) ->  | H38: From regain table | I38: 95.41318681 | J38: TambR | K38: TambR_Sys3 | L38: TambR_c | M38: TambR_c_Sys3
A39: UnconTempS | B39: =VLOOKUP(ductlocation_s_id,lu_ductlocation,3) ->  | C39: =VLOOKUP(ductlocation_s_id_Sys2,lu_ductlocation,3) -> 42.01692535 | D39: =VLOOKUP(ductlocation_s_id,lu_ductlocation,3) ->  | E39: =VLOOKUP(ductlocation_s_id,lu_ductlocation,4) ->  | F39: =VLOOKUP(ductlocation_s_id_Sys2,lu_ductlocation,4) -> 92.87189133 | G39: =VLOOKUP(ductlocation_s_id,lu_ductlocation,4) ->  | H39: From regain table | I39: 95.41318681 | J39: TambS | K39: TambS_sys3 | L39: TambS_c | M39: TambS_c_Sys3
A40: Fregain_s | B40: =VLOOKUP(ductlocation_s_id,lu_ductlocation,2) ->  | C40: =VLOOKUP(ductlocation_s_id_Sys2,lu_ductlocation,2) -> 0.1 | D40: =VLOOKUP(ductlocation_s_id,lu_ductlocation,2) ->  | H40: From regain table | J40: Fregain_s | K40: Fregain_s_Sys3
A41: Fregain_r | B41: =VLOOKUP(ductlocation_r_id,lu_ductlocation,2) ->  | C41: =VLOOKUP(ductlocation_r_id_Sys2,lu_ductlocation,2) -> 0.1 | D41: =VLOOKUP(ductlocation_r_id,lu_ductlocation,2) ->  | H41: From regain table | J41: Fregain_r | K41: Fregain_r_Sys3
A42: SLocUncon | B42: =ductlocation_s -> 0 | C42: =ductlocation_s_Sys2 -> Attic (Well vented) | D42: =ductlocation_s -> 0 | J42: SLocUncon | K42: SLocUncon_Sys3
A43: RLocUncon | B43: =ductlocation_r -> 0 | C43: =ductlocation_r_Sys2 -> Attic (Well vented) | D43: =ductlocation_r -> 0 | J43: RLocUncon | K43: RLocUncon_Sys3
A44: SRVal | B44: =SRValIns+DuctRVal -> 1.2 | C44: =SRValIns_Sys2+DuctRVal -> 1.2 | D44: =SRValIns_Sys3+DuctRVal -> 1.2 | J44: SRValPre | K44: SRValPre_Sys3
A45: RRVal | B45: =RRValIns+DuctRVal -> 1.2 | C45: =RRValIns_Sys2+DuctRVal -> 1.2 | D45: =RRValIns_Sys3+DuctRVal -> 1.2 | J45: RRValPre | K45: RRValPre_Sys3
A46: SRValIns | B46: ='Inputs-Results'!B73 -> 0 | C46: ='Inputs-Results'!B93 -> 0 | D46: ='Inputs-Results'!D73 -> 0 | J46: SRValIns | K46: SRValIns_Sys3
A47: RRValIns | B47: ='Inputs-Results'!B74 -> 0 | C47: ='Inputs-Results'!B94 -> 0 | D47: ='Inputs-Results'!D74 -> 0 | J47: RRValIns | K47: RRValIns_Sys3
A49: Ecap | B49: ='Inputs-Results'!B57 -> 0 | C49: ='Inputs-Results'!B77 -> 0 | D49: ='Inputs-Results'!D57 -> 0 | E49: ='Inputs-Results'!B58 -> 0 | F49: ='Inputs-Results'!B78 -> 0 | G49: ='Inputs-Results'!D58 -> 0 | I49: 24000 | J49: Ecap | K49: Ecap_Sys3 | L49: Ecap_c | M49: Ecap_c_Sys3
A50: Sensible Cap | B50: =IF('Inputs-Results'!B59="","",'Inputs-Results'!B59) ->  | D50: =IF('Inputs-Results'!D59="","",'Inputs-Results'!D59) ->  | E50: =IF(B50="",Ecap_c*0.8,B50) -> 0 | F50: =IF(C50="",Ecap_c_Sys2*0.8,C50) -> 0 | G50: =IF(D50="",Ecap_Sys3_c_Sys3*0.8,D50) ->  | H50: see footnote 11 | I50: 19200 | L50: SensibleCap | M50: SensibleCap_Sys3
A51: Percent Load | B51: =Ecap / (Ecap + Ecap_Sys2) ->  | C51: =Ecap_Sys2 / (Ecap + Ecap_Sys2) ->  | D51: =Ecap / (Ecap + Ecap_Sys2) ->  | E51: =IF(Ecap_c=0,0,Ecap_c / (Ecap_c + Ecap_c_Sys2)) -> 0 | F51: =IF(Ecap_c=0,0,Ecap_c_Sys2 / (Ecap_c + Ecap_c_Sys2)) -> 0 | G51: =IF(Ecap_Sys3_c_Sys3=0,0,Ecap_Sys3_c_Sys3 / (Ecap_Sys3_c_Sys3 + Ecap_Sys3_c_Sys3_Sys2)) ->  | I51: 1 | J51: PercentLoad_h | K51: PercentLoad_h_Sys3 | L51: PercentLoad_c | M51: PercentLoad_c_Sys3
A52: System Type | B52: =HVAC_TYPE -> 0 | C52: =HVAC_TYPE_Sys2 -> 0 | D52: =HVAC_TYPE -> 0
A53: Variable Speed | B53: =VariableSpeed -> 0 | C53: =VariableSpeed_Sys2 -> 0 | D53: =VariableSpeed -> 0
A54: SysAge | B54: ='Inputs-Results'!B64 -> 0 | C54: ='Inputs-Results'!B84 -> 0 | D54: ='Inputs-Results'!D64 -> 0
A55: Dte | B55: =Ecap/(1.08*Airflow1) ->  | C55: =Ecap_Sys2/(1.08*Airflow1_Sys2) ->  | D55: =Ecap/(1.08*Airflow1_Sys3) ->  | E55: =-SensibleCap/(1.08*Airflow1_c) ->  | F55: =-SensibleCap_Sys2/(1.08*Airflow1_c_Sys2) ->  | G55: =-SensibleCap_Sys3/(1.08*Airflow1_Sys3_c_Sys3) ->  | I55: -24.62296091 | J55: Dte | K55: Dte_Sys3 | L55: Dte_c | M55: Dte_c_Sys3
A56: Fequip | B56: =B95 ->  | C56: =C95 ->  | D56: =D95 ->  | E56: =B96 -> 1 | F56: =C96 -> 1 | G56: =D96 -> 1 | H56: From Fequip table | J56: Fequip | K56: Fequip_Sys3 | L56: Fequip_c | M56: Fequip_c_Sys3
A57: Nregisters | B57: =IF('Inputs-Results'!B75="","",'Inputs-Results'!B75) ->  | D57: =IF('Inputs-Results'!D75="","",'Inputs-Results'!D75) ->  | E57: =IF(B57="",ROUND(FloorArea_Served/500,0),B57) ->  | F57: =IF(C57="",ROUND(FloorArea_Served_Sys2/500,0),C57) ->  | G57: =IF(D57="",ROUND(FloorArea_Served_Sys3/500,0),D57) ->  | H57: see footnote 26 | L57: NRegisters | M57: NRegisters_Sys3
A58: FloorArea Served | B58: =rBldgI_FloorArea * B51 ->  | E58: 0 | F58: 0 | J58: FloorArea_Served | K58: FloorArea_Served_Sys3
A60: BUILDING RELATED
A61: TempIn | B61: =Building!$D$70 -> 68 | E61: =Building!D73 -> 74 | H61: see footnote 12
A62: TempEx | B62: =Building!$C$34 -> 40.01692535 | E62: =Building!B34 -> 83.87189133 | H62: ??, see footnote 13
A63: TempGrd | B63: =TempEx+10 -> 50.01692535 | E63: =TempEx_c-10 -> 73.87189133 | H63: ??, see footnote 14
A65: Qinf | B65: =0.35* (rBldgI_FloorArea * 8) /60 -> 0 | C65: =0.35* (rBldgI_FloorArea * 8) /60 -> 0 | D65: =0.35* (rBldgI_FloorArea * 8) /60 -> 0 | J65: Qinf | K65: Qinf_Sys3
A67: CONSTANTS
A68: Fcycleloss | B68: 0.02 | D68: 0.02
A69: DuctRVal | B69: 1.2 | D69: 1.2
A71: Duct Location
A72: Supply | B72: =VLOOKUP(ductlocation_s,lu_ductlocation_id,2) ->  | C72: =VLOOKUP(ductlocation_s_Sys2,lu_ductlocation_id,2) -> 0 | D72: =VLOOKUP(ductlocation_s,lu_ductlocation_id,2) -> 
A73: Return | B73: =VLOOKUP(ductlocation_r,lu_ductlocation_id,2) ->  | C73: =VLOOKUP(ductlocation_r_Sys2,lu_ductlocation_id,2) -> 0 | D73: =VLOOKUP(ductlocation_r,lu_ductlocation_id,2) -> 
A75: Airflow | B75: AIRFLOW_SYS1 - H | C75: - C | D75: AIRFLOW_SYS1 - H | E75: AIRFLOW_SYS2 - H | F75: - C | G75: AIRFLOW_SYS2 - H
A76: HP Heating or Electric Furnace | B76: 0 | C76: =361*Ecap/12000 -> 0 | D76: 0 | E76: 0 | F76: =361*Ecap_Sys2/12000 -> 0 | G76: 0
A77: Furnace pre 1990 | B77: 1 | C77: =0.01*Ecap -> 0 | D77: 1 | E77: 1 | F77: =0.01*Ecap_Sys2 -> 0 | G77: 1
A78: Furnace 1990+ | B78: 2 | C78: =0.0168*Ecap -> 0 | D78: 2 | E78: 2 | F78: =0.0168*Ecap_Sys2 -> 0 | G78: 2
A79: AC | B79: 3 | C79: =ROUND(361*Ecap_c/12000,0) -> 0 | D79: 3 | E79: 3 | F79: =ROUND(361*Ecap_c_Sys2/12000,0) -> 0 | G79: 3
A80: HeatID | B80: =IF(OR(System1_Type = Heat_Pump, System1_Type = Electric_Furnace), 0, IF(System1_Type = Electric_Baseboard, 0, IF('Inputs-Results'!B55<1990,1,2))) -> 1 | D80: =IF(OR(System1_Type = Heat_Pump, System1_Type = Electric_Furnace), 0, IF(System1_Type = Electric_Baseboard, 0, IF('Inputs-Results'!D55<1990,1,2))) -> 1 | E80: =IF(OR(System2_Type = Heat_Pump, System2_Type = Electric_Furnace), 0, IF(System2_Type = Electric_Baseboard, 0, IF('Inputs-Results'!B69<1990,1,2))) -> 1 | G80: =IF(OR(System2_Type = Heat_Pump, System2_Type = Electric_Furnace), 0, IF(System2_Type = Electric_Baseboard, 0, IF('Inputs-Results'!D69<1990,1,2))) -> 1
B81: =ROUND(VLOOKUP(B80,tblAirflow,2),0) -> 0 | C81: =C79 -> 0 | D81: =ROUND(VLOOKUP(D80,tblAirflow,2),0) -> 0 | E81: =ROUND(VLOOKUP(E80,tblAirflow_Sys2,2),0) -> 0 | F81: =F79 -> 0 | G81: =ROUND(VLOOKUP(G80,tblAirflow_Sys2,2),0) -> 0
A84: Fequip | B84: Sys1 | C84: Sys2 | D84: Sys1
A85: Electric Furnace | B85: 1 | C85: 1 | D85: 1
A86: Furnace - fixed speed | B86: 1 | C86: 1 | D86: 1
A87: Furnace - variable speed | B87: 1 | C87: 1 | D87: 1
A88: Heat pump | B88: 1 | C88: 1 | D88: 1
A90: Electric Furnace | B90: 0 | D90: 0
A91: Furnace | B91: 1 | D91: 1
A92: Heat pump | B92: 2 | D92: 2
B93: =VLOOKUP(HVAC_TYPE,A90:B92,2) ->  | C93: =VLOOKUP(HVAC_TYPE_Sys2,A90:B92,2) ->  | D93: =VLOOKUP(HVAC_TYPE,C90:D92,2) -> 
A95: Fequip (heat) | B95: =IF(B93=0,1,IF(B93=1,IF(VariableSpeed="Yes",B87,B86),B88)) ->  | C95: =IF(C93=0,1,IF(C93=1,IF(VariableSpeed_Sys2 = "Yes",C87,C86),C88)) ->  | D95: =IF(D93=0,1,IF(D93=1,IF(VariableSpeed="Yes",D87,D86),D88)) -> 
A96: cool | B96: 1 | C96: 1 | D96: 1
A98: Venting
A99: ID | B99: =VLOOKUP(rAtticI_VentilationList,lu_venting_id,2) -> 1 | D99: =VLOOKUP(rAtticI_VentilationList,lu_venting_id,2) -> 1
A100: 0 - High | B100: 0 | C100: 0.45 | D100: 0
A101: 1 - Code | B101: 1 | C101: 0.3 | D101: 1
A102: 2 - Low | B102: 2 | C102: 0.15 | D102: 2
A103: 3 - None | B103: 3 | C103: 0.08 | D103: 3

Sheet Fuel 1 - Savings Calculator (hidden)
A1: Inputs | E1: Project Fuel Costs
A2: Zip | B2: ='ASHP Calculator'!N16 -> 0 | E2: Price | H2: Final | K2: Unique ID for Zip/County Combo | L2: ZIP Code | M2: ZIP Code | N2: NYISO Zone | O2: Utility | P2: County | Q2: Electric REDC Name - Region | R2: Heating Oil Region-County Mapping | S2: KEROSENSE REGION_COUNTY MAPPING | T2: PROPANE REGION_COUNTY MAPPING | U2: Consolidated Edison Region | V2: NYISO Zone | W2: Mmbtu/kBtu - Added KWh/kbtu/h | X2: Pellets | Y2: Electric Rate
A3: County | B3: ='ASHP Calculator'!N18 ->  | E3: Oil | F3: =IF(ISERROR($H$90),"",OFFSET(F90,-2,0)) ->  | H3: =IF(ISERROR($H$90),"",H90) ->  | K3: =CONCATENATE(M3,P3) -> 12009Albany | L3: 12009 | M3: 12009 | N3: Zone F - Capital | O3: National Grid | P3: Albany | Q3: Capital Region | R3: Capital District | S3: Capital District | T3: Capital District | V3: Zone F - Capital | W3: =R3 -> Capital District | X3: Capital District | Y3: =VLOOKUP(L3,'Lookups (2)'!$CJ$4:$CS$2189,6,) -> 0.1167
A4: Fuel | B4: =VLOOKUP('ASHP Calculator'!C23,'ASHP Calculator'!$BB$3:$BJ$10,9,) ->  | E4: Natural Gas | H4: =IF(ISERROR(VLOOKUP($B$6,$E$65:$H$92,4,)),"",VLOOKUP($B$6,$E$65:$H$92,4,)) ->  | K4: =CONCATENATE(M4,P4) -> 12023Albany | L4: 12023 | M4: 12023 | N4: Zone F - Capital | O4: National Grid | P4: Albany | Q4: Capital Region | R4: Capital District | S4: Capital District | T4: Capital District | V4: Zone F - Capital | W4: =R4 -> Capital District | X4: Capital District | Y4: =VLOOKUP(L4,'Lookups (2)'!$CJ$4:$CS$2189,6,) -> 0.1167
A5: Electric Utility | B5: ='ASHP Calculator'!N20 ->  | E5: Propane | F5: =IF(ISERROR($H$116),"",OFFSET(F116,-2,0)) ->  | H5: =IF(ISERROR($H$116),"",H116) ->  | K5: 12041Albany | L5: 12041 | M5: 12041 | N5: Zone F - Capital | O5: National Grid | P5: Albany | Q5: Capital Region | R5: Capital District | S5: Capital District | T5: Capital District | V5: Zone F - Capital | W5: Capital District | X5: Capital District | Y5: =VLOOKUP(L5,'Lookups (2)'!$CJ$4:$CS$2189,6,) -> 0.1167
A6: Natural Gas Utility | B6: ='ASHP Calculator'!N22 ->  | E6: Kerosene | F6: =IF(ISERROR(F$101),"",F$101) ->  | H6: =IF(ISERROR(H$101),"",H$101) ->  | K6: 12047Albany | L6: 12047 | M6: 12047 | N6: Zone F - Capital | O6: National Grid | P6: Albany | Q6: Capital Region | R6: Capital District | S6: Capital District | T6: Capital District | V6: Zone F - Capital | W6: Capital District | X6: Capital District | Y6: =VLOOKUP(L6,'Lookups (2)'!$CJ$4:$CS$2189,6,) -> 0.1167
A7: Price per Unit of Energy | B7: =IF(ISERROR(VLOOKUP(B4,E3:H10,4,)),"",VLOOKUP(B4,E3:H10,4,)) ->  | E7: Electric | F7: =F22 ->  | H7: =IF(H22=0,VLOOKUP(Customer_Zip,'Lookups (2)'!$CJ$4:$CS$2189,6,),H22) ->  | K7: 12054Albany | L7: 12054 | M7: 12054 | N7: Zone F - Capital | O7: National Grid | P7: Albany | Q7: Capital Region | R7: Capital District | S7: Capital District | T7: Capital District | V7: Zone F - Capital | W7: Capital District | X7: Capital District | Y7: =VLOOKUP(L7,'Lookups (2)'!$CJ$4:$CS$2189,6,) -> 0.1167
E8: Cord Wood | F8: 225 | H8: 225 | K8: 12059Albany | L8: 12059 | M8: 12059 | N8: Zone F - Capital | O8: National Grid | P8: Albany | Q8: Capital Region | R8: Capital District | S8: Capital District | T8: Capital District | V8: Zone F - Capital | W8: Capital District | X8: Capital District | Y8: =VLOOKUP(L8,'Lookups (2)'!$CJ$4:$CS$2189,6,) -> 0.1167
E9: Wood Pellets | F9: =F127 ->  | H9: =H129 ->  | K9: 12067Albany | L9: 12067 | M9: 12067 | N9: Zone F - Capital | O9: National Grid | P9: Albany | Q9: Capital Region | R9: Capital District | S9: Capital District | T9: Capital District | V9: Zone F - Capital | W9: Capital District | X9: Capital District | Y9: =VLOOKUP(L9,'Lookups (2)'!$CJ$4:$CS$2189,6,) -> 0.1167
K10: 12077Albany | L10: 12077 | M10: 12077 | N10: Zone F - Capital | O10: National Grid | P10: Albany | Q10: Capital Region | R10: Capital District | S10: Capital District | T10: Capital District | V10: Zone F - Capital | W10: Capital District | X10: Capital District | Y10: =VLOOKUP(L10,'Lookups (2)'!$CJ$4:$CS$2189,6,) -> 0.1167
K11: 12084Albany | L11: 12084 | M11: 12084 | N11: Zone F - Capital | O11: National Grid | P11: Albany | Q11: Capital Region | R11: Capital District | S11: Capital District | T11: Capital District | V11: Zone F - Capital | W11: Capital District | X11: Capital District | Y11: =VLOOKUP(L11,'Lookups (2)'!$CJ$4:$CS$2189,6,) -> 0.1167
E12: Residential Electric Rates MTPA 2016 | K12: 12085Albany | L12: 12085 | M12: 12085 | N12: Zone F - Capital | O12: National Grid | P12: Albany | Q12: Capital Region | R12: Capital District | S12: Capital District | T12: Capital District | V12: Zone F - Capital | W12: Capital District | X12: Capital District | Y12: =VLOOKUP(L12,'Lookups (2)'!$CJ$4:$CS$2189,6,) -> 0.1167
E13: Electric Utility Company | H13: $ / kWh | K13: 12107Albany | L13: 12107 | M13: 12107 | N13: Zone F - Capital | O13: National Grid | P13: Albany | Q13: Capital Region | R13: Capital District | S13: Capital District | T13: Capital District | V13: Zone F - Capital | W13: Capital District | X13: Capital District | Y13: =VLOOKUP(L13,'Lookups (2)'!$CJ$4:$CS$2189,6,) -> 0.1167
E14: Central Hudson Gas and Electric | H14: 0.15 | K14: 12110Albany | L14: 12110 | M14: 12110 | N14: Zone F - Capital | O14: National Grid | P14: Albany | Q14: Capital Region | R14: Capital District | S14: Capital District | T14: Capital District | V14: Zone F - Capital | W14: Capital District | X14: Capital District | Y14: =VLOOKUP(L14,'Lookups (2)'!$CJ$4:$CS$2189,6,) -> 0.1167
E15: Consolidated Edison | F15: =F61 ->  | H15: =H61 ->  | K15: 12128Albany | L15: 12128 | M15: 12128 | N15: Zone F - Capital | O15: National Grid | P15: Albany | Q15: Capital Region | R15: Capital District | S15: Capital District | T15: Capital District | V15: Zone F - Capital | W15: Capital District | X15: Capital District | Y15: =VLOOKUP(L15,'Lookups (2)'!$CJ$4:$CS$2189,6,) -> 0.1167
E16: National Grid | F16: =F35 ->  | H16: =H35 ->  | K16: 12158Albany | L16: 12158 | M16: 12158 | N16: Zone F - Capital | O16: National Grid | P16: Albany | Q16: Capital Region | R16: Capital District | S16: Capital District | T16: Capital District | V16: Zone F - Capital | W16: Capital District | X16: Capital District | Y16: =VLOOKUP(L16,'Lookups (2)'!$CJ$4:$CS$2189,6,) -> 0.1167
E17: New York State Electric and Gas | F17: =F50 ->  | H17: =H52 ->  | K17: 12159Albany | L17: 12159 | M17: 12159 | N17: Zone F - Capital | O17: National Grid | P17: Albany | Q17: Capital Region | R17: Capital District | S17: Capital District | T17: Capital District | V17: Zone F - Capital | W17: Capital District | X17: Capital District | Y17: =VLOOKUP(L17,'Lookups (2)'!$CJ$4:$CS$2189,6,) -> 0.1167
E18: Orange and Rockland | H18: 0.13 | K18: 12161Albany | L18: 12161 | M18: 12161 | N18: Zone F - Capital | O18: National Grid | P18: Albany | Q18: Capital Region | R18: Capital District | S18: Capital District | T18: Capital District | V18: Zone F - Capital | W18: Capital District | X18: Capital District | Y18: =VLOOKUP(L18,'Lookups (2)'!$CJ$4:$CS$2189,6,) -> 0.1167
E19: Rochester Gas and Electric | H19: 0.09 | K19: 12186Albany | L19: 12186 | M19: 12186 | N19: Zone F - Capital | O19: National Grid | P19: Albany | Q19: Capital Region | R19: Capital District | S19: Capital District | T19: Capital District | V19: Zone F - Capital | W19: Capital District | X19: Capital District | Y19: =VLOOKUP(L19,'Lookups (2)'!$CJ$4:$CS$2189,6,) -> 0.1167
E20: PSEG Long Island | H20: 0.1833 | K20: 12189Albany | L20: 12189 | M20: 12189 | N20: Zone F - Capital | O20: National Grid | P20: Albany | Q20: Capital Region | R20: Capital District | S20: Capital District | T20: Capital District | V20: Zone F - Capital | W20: Capital District | X20: Capital District | Y20: =VLOOKUP(L20,'Lookups (2)'!$CJ$4:$CS$2189,6,) -> 0.1167
E21: Other | K21: 12201Albany | L21: 12201 | M21: 12201 | N21: Zone F - Capital | O21: National Grid | P21: Albany | Q21: Capital Region | R21: Capital District | S21: Capital District | T21: Capital District | V21: Zone F - Capital | W21: Capital District | X21: Capital District | Y21: =VLOOKUP(L21,'Lookups (2)'!$CJ$4:$CS$2189,6,) -> 0.1167
F22: =VLOOKUP(B5,$E$14:$F$21,2,) ->  | H22: =VLOOKUP(B5,$E$14:$H$21,4,) ->  | K22: 12202Albany | L22: 12202 | M22: 12202 | N22: Zone F - Capital | O22: National Grid | P22: Albany | Q22: Capital Region | R22: Capital District | S22: Capital District | T22: Capital District | V22: Zone F - Capital | W22: Capital District | X22: Capital District | Y22: =VLOOKUP(L22,'Lookups (2)'!$CJ$4:$CS$2189,6,) -> 0.1167
K23: 12203Albany | L23: 12203 | M23: 12203 | N23: Zone F - Capital | O23: National Grid | P23: Albany | Q23: Capital Region | R23: Capital District | S23: Capital District | T23: Capital District | V23: Zone F - Capital | W23: Capital District | X23: Capital District | Y23: =VLOOKUP(L23,'Lookups (2)'!$CJ$4:$CS$2189,6,) -> 0.1167
K24: 12204Albany | L24: 12204 | M24: 12204 | N24: Zone F - Capital | O24: National Grid | P24: Albany | Q24: Capital Region | R24: Capital District | S24: Capital District | T24: Capital District | V24: Zone F - Capital | W24: Capital District | X24: Capital District | Y24: =VLOOKUP(L24,'Lookups (2)'!$CJ$4:$CS$2189,6,) -> 0.1167
E25: National Grid | K25: 12205Albany | L25: 12205 | M25: 12205 | N25: Zone F - Capital | O25: National Grid | P25: Albany | Q25: Capital Region | R25: Capital District | S25: Capital District | T25: Capital District | V25: Zone F - Capital | W25: Capital District | X25: Capital District | Y25: =VLOOKUP(L25,'Lookups (2)'!$CJ$4:$CS$2189,6,) -> 0.1167
E26: National Grid Zone A | F26: Zone A - West | H26: 0.1052 | K26: 12206Albany | L26: 12206 | M26: 12206 | N26: Zone F - Capital | O26: National Grid | P26: Albany | Q26: Capital Region | R26: Capital District | S26: Capital District | T26: Capital District | V26: Zone F - Capital | W26: Capital District | X26: Capital District | Y26: =VLOOKUP(L26,'Lookups (2)'!$CJ$4:$CS$2189,6,) -> 0.1167
E27: National Grid Zone B | F27: Zone B - Genesee | H27: 0.1015 | K27: 12207Albany | L27: 12207 | M27: 12207 | N27: Zone F - Capital | O27: National Grid | P27: Albany | Q27: Capital Region | R27: Capital District | S27: Capital District | T27: Capital District | V27: Zone F - Capital | W27: Capital District | X27: Capital District | Y27: =VLOOKUP(L27,'Lookups (2)'!$CJ$4:$CS$2189,6,) -> 0.1167
E28: National Grid Zone C | F28: Zone C - Central | H28: 0.0998 | K28: 12208Albany | L28: 12208 | M28: 12208 | N28: Zone F - Capital | O28: National Grid | P28: Albany | Q28: Capital Region | R28: Capital District | S28: Capital District | T28: Capital District | V28: Zone F - Capital | W28: Capital District | X28: Capital District | Y28: =VLOOKUP(L28,'Lookups (2)'!$CJ$4:$CS$2189,6,) -> 0.1167
E29: National Grid Zone D | F29: Zone D - North | H29: 0.0985 | K29: 12209Albany | L29: 12209 | M29: 12209 | N29: Zone F - Capital | O29: National Grid | P29: Albany | Q29: Capital Region | R29: Capital District | S29: Capital District | T29: Capital District | V29: Zone F - Capital | W29: Capital District | X29: Capital District | Y29: =VLOOKUP(L29,'Lookups (2)'!$CJ$4:$CS$2189,6,) -> 0.1167
E30: National Grid Zone E | F30: Zone E - Mohawk Valley | H30: 0.103 | K30: 12210Albany | L30: 12210 | M30: 12210 | N30: Zone F - Capital | O30: National Grid | P30: Albany | Q30: Capital Region | R30: Capital District | S30: Capital District | T30: Capital District | V30: Zone F - Capital | W30: Capital District | X30: Capital District | Y30: =VLOOKUP(L30,'Lookups (2)'!$CJ$4:$CS$2189,6,) -> 0.1167
E31: National Grid Zone F | F31: Zone F - Capital | H31: 0.1167 | K31: 12211Albany | L31: 12211 | M31: 12211 | N31: Zone F - Capital | O31: National Grid | P31: Albany | Q31: Capital Region | R31: Capital District | S31: Capital District | T31: Capital District | V31: Zone F - Capital | W31: Capital District | X31: Capital District | Y31: =VLOOKUP(L31,'Lookups (2)'!$CJ$4:$CS$2189,6,) -> 0.1167
K32: 12212Albany | L32: 12212 | M32: 12212 | N32: Zone F - Capital | O32: National Grid | P32: Albany | Q32: Capital Region | R32: Capital District | S32: Capital District | T32: Capital District | V32: Zone F - Capital | W32: Capital District | X32: Capital District | Y32: =VLOOKUP(L32,'Lookups (2)'!$CJ$4:$CS$2189,6,) -> 0.1167
E33: Zip | F33: =VLOOKUP(B2,$M$2:$N$2159,2,) ->  | H33: =IF(ISERROR(VLOOKUP(F33,$F$26:$H$31,3,)),"",VLOOKUP(F33,$F$26:$H$31,3,)) ->  | K33: 12214Albany | L33: 12214 | M33: 12214 | N33: Zone F - Capital | O33: National Grid | P33: Albany | Q33: Capital Region | R33: Capital District | S33: Capital District | T33: Capital District | V33: Zone F - Capital | W33: Capital District | X33: Capital District | Y33: =VLOOKUP(L33,'Lookups (2)'!$CJ$4:$CS$2189,6,) -> 0.1167
E34: County | K34: 12220Albany | L34: 12220 | M34: 12220 | N34: Zone F - Capital | O34: National Grid | P34: Albany | Q34: Capital Region | R34: Capital District | S34: Capital District | T34: Capital District | V34: Zone F - Capital | W34: Capital District | X34: Capital District | Y34: =VLOOKUP(L34,'Lookups (2)'!$CJ$4:$CS$2189,6,) -> 0.1167
E35: Final | F35: =F33 ->  | H35: =H33 ->  | K35: 12222Albany | L35: 12222 | M35: 12222 | N35: Zone F - Capital | O35: National Grid | P35: Albany | Q35: Capital Region | R35: Capital District | S35: Capital District | T35: Capital District | V35: Zone F - Capital | W35: Capital District | X35: Capital District | Y35: =VLOOKUP(L35,'Lookups (2)'!$CJ$4:$CS$2189,6,) -> 0.1167
K36: 12223Albany | L36: 12223 | M36: 12223 | N36: Zone F - Capital | O36: National Grid | P36: Albany | Q36: Capital Region | R36: Capital District | S36: Capital District | T36: Capital District | V36: Zone F - Capital | W36: Capital District | X36: Capital District | Y36: =VLOOKUP(L36,'Lookups (2)'!$CJ$4:$CS$2189,6,) -> 0.1167
K37: 12224Albany | L37: 12224 | M37: 12224 | N37: Zone F - Capital | O37: National Grid | P37: Albany | Q37: Capital Region | R37: Capital District | S37: Capital District | T37: Capital District | V37: Zone F - Capital | W37: Capital District | X37: Capital District | Y37: =VLOOKUP(L37,'Lookups (2)'!$CJ$4:$CS$2189,6,) -> 0.1167
K38: 12225Albany | L38: 12225 | M38: 12225 | N38: Zone F - Capital | O38: National Grid | P38: Albany | Q38: Capital Region | R38: Capital District | S38: Capital District | T38: Capital District | V38: Zone F - Capital | W38: Capital District | X38: Capital District | Y38: =VLOOKUP(L38,'Lookups (2)'!$CJ$4:$CS$2189,6,) -> 0.1167
E39: NYSEG Sub Lookup | K39: 12226Albany | L39: 12226 | M39: 12226 | N39: Zone F - Capital | O39: National Grid | P39: Albany | Q39: Capital Region | R39: Capital District | S39: Capital District | T39: Capital District | V39: Zone F - Capital | W39: Capital District | X39: Capital District | Y39: =VLOOKUP(L39,'Lookups (2)'!$CJ$4:$CS$2189,6,) -> 0.1167
E40: NYSEG West (Zones A-E) | F40: Zone A - West | H40: 0.0926 | K40: 12227Albany | L40: 12227 | M40: 12227 | N40: Zone F - Capital | O40: National Grid | P40: Albany | Q40: Capital Region | R40: Capital District | S40: Capital District | T40: Capital District | V40: Zone F - Capital | W40: Capital District | X40: Capital District | Y40: =VLOOKUP(L40,'Lookups (2)'!$CJ$4:$CS$2189,6,) -> 0.1167
E41: NYSEG West (Zones A-E) | F41: Zone B - Genesee | H41: 0.0926 | K41: 12228Albany | L41: 12228 | M41: 12228 | N41: Zone F - Capital | O41: National Grid | P41: Albany | Q41: Capital Region | R41: Capital District | S41: Capital District | T41: Capital District | V41: Zone F - Capital | W41: Capital District | X41: Capital District | Y41: =VLOOKUP(L41,'Lookups (2)'!$CJ$4:$CS$2189,6,) -> 0.1167
E42: NYSEG West (Zones A-E) | F42: Zone C - Central | H42: 0.0926 | K42: 12229Albany | L42: 12229 | M42: 12229 | N42: Zone F - Capital | O42: National Grid | P42: Albany | Q42: Capital Region | R42: Capital District | S42: Capital District | T42: Capital District | V42: Zone F - Capital | W42: Capital District | X42: Capital District | Y42: =VLOOKUP(L42,'Lookups (2)'!$CJ$4:$CS$2189,6,) -> 0.1167
E43: NYSEG West (Zones A-E) | F43: Zone D - North | H43: 0.0926 | K43: 12230Albany | L43: 12230 | M43: 12230 | N43: Zone F - Capital | O43: National Grid | P43: Albany | Q43: Capital Region | R43: Capital District | S43: Capital District | T43: Capital District | V43: Zone F - Capital | W43: Capital District | X43: Capital District | Y43: =VLOOKUP(L43,'Lookups (2)'!$CJ$4:$CS$2189,6,) -> 0.1167
E44: NYSEG West (Zones A-E) | F44: Zone E - Mohawk Valley | H44: 0.0926 | K44: 12231Albany | L44: 12231 | M44: 12231 | N44: Zone F - Capital | O44: National Grid | P44: Albany | Q44: Capital Region | R44: Capital District | S44: Capital District | T44: Capital District | V44: Zone F - Capital | W44: Capital District | X44: Capital District | Y44: =VLOOKUP(L44,'Lookups (2)'!$CJ$4:$CS$2189,6,) -> 0.1167
E45: NYSEG East (Zones F) | F45: Zone F - Capital | H45: 0.106 | K45: 12232Albany | L45: 12232 | M45: 12232 | N45: Zone F - Capital | O45: National Grid | P45: Albany | Q45: Capital Region | R45: Capital District | S45: Capital District | T45: Capital District | V45: Zone F - Capital | W45: Capital District | X45: Capital District | Y45: =VLOOKUP(L45,'Lookups (2)'!$CJ$4:$CS$2189,6,) -> 0.1167
E46: NYSEG Lower Hudson (Zone G-I) | F46: Zone G - Hudson Valley | H46: 0.1163 | K46: 12233Albany | L46: 12233 | M46: 12233 | N46: Zone F - Capital | O46: National Grid | P46: Albany | Q46: Capital Region | R46: Capital District | S46: Capital District | T46: Capital District | V46: Zone F - Capital | W46: Capital District | X46: Capital District | Y46: =VLOOKUP(L46,'Lookups (2)'!$CJ$4:$CS$2189,6,) -> 0.1167
E47: NYSEG Lower Hudson (Zone G-I) | F47: Zone H - Millwood | H47: 0.1163 | K47: 12234Albany | L47: 12234 | M47: 12234 | N47: Zone F - Capital | O47: National Grid | P47: Albany | Q47: Capital Region | R47: Capital District | S47: Capital District | T47: Capital District | V47: Zone F - Capital | W47: Capital District | X47: Capital District | Y47: =VLOOKUP(L47,'Lookups (2)'!$CJ$4:$CS$2189,6,) -> 0.1167
E48: NYSEG Lower Hudson (Zone G-I) | F48: Zone I - Dunwoodie | H48: 0.1163 | K48: 12235Albany | L48: 12235 | M48: 12235 | N48: Zone F - Capital | O48: National Grid | P48: Albany | Q48: Capital Region | R48: Capital District | S48: Capital District | T48: Capital District | V48: Zone F - Capital | W48: Capital District | X48: Capital District | Y48: =VLOOKUP(L48,'Lookups (2)'!$CJ$4:$CS$2189,6,) -> 0.1167
K49: 12236Albany | L49: 12236 | M49: 12236 | N49: Zone F - Capital | O49: National Grid | P49: Albany | Q49: Capital Region | R49: Capital District | S49: Capital District | T49: Capital District | V49: Zone F - Capital | W49: Capital District | X49: Capital District | Y49: =VLOOKUP(L49,'Lookups (2)'!$CJ$4:$CS$2189,6,) -> 0.1167
E50: Zip | F50: =VLOOKUP(B2,$M$2:$N$2159,2,) ->  | H50: =VLOOKUP(F50,$F$40:$H$48,3,) ->  | K50: 12237Albany | L50: 12237 | M50: 12237 | N50: Zone F - Capital | O50: National Grid | P50: Albany | Q50: Capital Region | R50: Capital District | S50: Capital District | T50: Capital District | V50: Zone F - Capital | W50: Capital District | X50: Capital District | Y50: =VLOOKUP(L50,'Lookups (2)'!$CJ$4:$CS$2189,6,) -> 0.1167
E51: County | F51: =VLOOKUP(B3,P:W,7,) ->  | H51: =VLOOKUP(F51,$F$40:$H$48,3,) ->  | K51: 12238Albany | L51: 12238 | M51: 12238 | N51: Zone F - Capital | O51: National Grid | P51: Albany | Q51: Capital Region | R51: Capital District | S51: Capital District | T51: Capital District | V51: Zone F - Capital | W51: Capital District | X51: Capital District | Y51: =VLOOKUP(L51,'Lookups (2)'!$CJ$4:$CS$2189,6,) -> 0.1167
E52: Final | H52: =H51 ->  | K52: 12239Albany | L52: 12239 | M52: 12239 | N52: Zone F - Capital | O52: National Grid | P52: Albany | Q52: Capital Region | R52: Capital District | S52: Capital District | T52: Capital District | V52: Zone F - Capital | W52: Capital District | X52: Capital District | Y52: =VLOOKUP(L52,'Lookups (2)'!$CJ$4:$CS$2189,6,) -> 0.1167
K53: 12240Albany | L53: 12240 | M53: 12240 | N53: Zone F - Capital | O53: National Grid | P53: Albany | Q53: Capital Region | R53: Capital District | S53: Capital District | T53: Capital District | V53: Zone F - Capital | W53: Capital District | X53: Capital District | Y53: =VLOOKUP(L53,'Lookups (2)'!$CJ$4:$CS$2189,6,) -> 0.1167
K54: 12241Albany | L54: 12241 | M54: 12241 | N54: Zone F - Capital | O54: National Grid | P54: Albany | Q54: Capital Region | R54: Capital District | S54: Capital District | T54: Capital District | V54: Zone F - Capital | W54: Capital District | X54: Capital District | Y54: =VLOOKUP(L54,'Lookups (2)'!$CJ$4:$CS$2189,6,) -> 0.1167
E55: Consolidated Edison - Electric Sub Lookup | K55: 12242Albany | L55: 12242 | M55: 12242 | N55: Zone F - Capital | O55: National Grid | P55: Albany | Q55: Capital Region | R55: Capital District | S55: Capital District | T55: Capital District | V55: Zone F - Capital | W55: Capital District | X55: Capital District | Y55: =VLOOKUP(L55,'Lookups (2)'!$CJ$4:$CS$2189,6,) -> 0.1167
E56: Region | H56: $ / kWh | K56: 12243Albany | L56: 12243 | M56: 12243 | N56: Zone F - Capital | O56: National Grid | P56: Albany | Q56: Capital Region | R56: Capital District | S56: Capital District | T56: Capital District | V56: Zone F - Capital | W56: Capital District | X56: Capital District | Y56: =VLOOKUP(L56,'Lookups (2)'!$CJ$4:$CS$2189,6,) -> 0.1167
E57: ConEd NYC | H57: 0.21 | K57: 12244Albany | L57: 12244 | M57: 12244 | N57: Zone F - Capital | O57: National Grid | P57: Albany | Q57: Capital Region | R57: Capital District | S57: Capital District | T57: Capital District | V57: Zone F - Capital | W57: Capital District | X57: Capital District | Y57: =VLOOKUP(L57,'Lookups (2)'!$CJ$4:$CS$2189,6,) -> 0.1167
E58: ConEd Westchester | H58: 0.2 | K58: 12245Albany | L58: 12245 | M58: 12245 | N58: Zone F - Capital | O58: National Grid | P58: Albany | Q58: Capital Region | R58: Capital District | S58: Capital District | T58: Capital District | V58: Zone F - Capital | W58: Capital District | X58: Capital District | Y58: =VLOOKUP(L58,'Lookups (2)'!$CJ$4:$CS$2189,6,) -> 0.1167
K59: 12246Albany | L59: 12246 | M59: 12246 | N59: Zone F - Capital | O59: National Grid | P59: Albany | Q59: Capital Region | R59: Capital District | S59: Capital District | T59: Capital District | V59: Zone F - Capital | W59: Capital District | X59: Capital District | Y59: =VLOOKUP(L59,'Lookups (2)'!$CJ$4:$CS$2189,6,) -> 0.1167
E60: Zip | F60: =IF(VLOOKUP(B2,M2:U2159,9,)=0,"",VLOOKUP(B2,M2:U2159,9,)) ->  | H60: =IF(ISERROR(VLOOKUP(F60,$E$57:$H$58,4,)),"",VLOOKUP(F60,$E$57:$H$58,4,)) ->  | K60: 12247Albany | L60: 12247 | M60: 12247 | N60: Zone F - Capital | O60: National Grid | P60: Albany | Q60: Capital Region | R60: Capital District | S60: Capital District | T60: Capital District | V60: Zone F - Capital | W60: Capital District | X60: Capital District | Y60: =VLOOKUP(L60,'Lookups (2)'!$CJ$4:$CS$2189,6,) -> 0.1167
E61: Final | F61: =F60 ->  | H61: =IF(ISERROR(H60),"",H60) ->  | K61: 12248Albany | L61: 12248 | M61: 12248 | N61: Zone F - Capital | O61: National Grid | P61: Albany | Q61: Capital Region | R61: Capital District | S61: Capital District | T61: Capital District | V61: Zone F - Capital | W61: Capital District | X61: Capital District | Y61: =VLOOKUP(L61,'Lookups (2)'!$CJ$4:$CS$2189,6,) -> 0.1167
K62: 12249Albany | L62: 12249 | M62: 12249 | N62: Zone F - Capital | O62: National Grid | P62: Albany | Q62: Capital Region | R62: Capital District | S62: Capital District | T62: Capital District | V62: Zone F - Capital | W62: Capital District | X62: Capital District | Y62: =VLOOKUP(L62,'Lookups (2)'!$CJ$4:$CS$2189,6,) -> 0.1167
E63: Residential Natural Gas MTPA 2016 | K63: 12250Albany | L63: 12250 | M63: 12250 | N63: Zone F - Capital | O63: National Grid | P63: Albany | Q63: Capital Region | R63: Capital District | S63: Capital District | T63: Capital District | V63: Zone F - Capital | W63: Capital District | X63: Capital District | Y63: =VLOOKUP(L63,'Lookups (2)'!$CJ$4:$CS$2189,6,) -> 0.1167
E64: Company | H64: $ / MMBTU | K64: 12252Albany | L64: 12252 | M64: 12252 | N64: Zone F - Capital | O64: National Grid | P64: Albany | Q64: Capital Region | R64: Capital District | S64: Capital District | T64: Capital District | V64: Zone F - Capital | W64: Capital District | X64: Capital District | Y64: =VLOOKUP(L64,'Lookups (2)'!$CJ$4:$CS$2189,6,) -> 0.1167
E65: National Grid - NYC | H65: 11.326 | K65: 12255Albany | L65: 12255 | M65: 12255 | N65: Zone F - Capital | O65: National Grid | P65: Albany | Q65: Capital Region | R65: Capital District | S65: Capital District | T65: Capital District | V65: Zone F - Capital | W65: Capital District | X65: Capital District | Y65: =VLOOKUP(L65,'Lookups (2)'!$CJ$4:$CS$2189,6,) -> 0.1167
E66: Central Hudson Gas and Electric | H66: 14.686 | K66: 12256Albany | L66: 12256 | M66: 12256 | N66: Zone F - Capital | O66: National Grid | P66: Albany | Q66: Capital Region | R66: Capital District | S66: Capital District | T66: Capital District | V66: Zone F - Capital | W66: Capital District | X66: Capital District | Y66: =VLOOKUP(L66,'Lookups (2)'!$CJ$4:$CS$2189,6,) -> 0.1167
E67: Consolidated Edison | H67: 14.032 | K67: 12257Albany | L67: 12257 | M67: 12257 | N67: Zone F - Capital | O67: National Grid | P67: Albany | Q67: Capital Region | R67: Capital District | S67: Capital District | T67: Capital District | V67: Zone F - Capital | W67: Capital District | X67: Capital District | Y67: =VLOOKUP(L67,'Lookups (2)'!$CJ$4:$CS$2189,6,) -> 0.1167
E68: Corning Natural Gas | H68: 9 | K68: =CONCATENATE(M68,P68) -> 12260Albany | L68: 12260 | M68: 12260 | N68: Zone F - Capital | O68: National Grid | P68: Albany | Q68: Capital Region | R68: Capital District | S68: Capital District | T68: Capital District | V68: Zone F - Capital | W68: =R68 -> Capital District | X68: Capital District | Y68: =VLOOKUP(L68,'Lookups (2)'!$CJ$4:$CS$2189,6,) -> 0.1167
E69: National Grid - Long Island | H69: 12.152 | K69: 12261Albany | L69: 12261 | M69: 12261 | N69: Zone F - Capital | O69: National Grid | P69: Albany | Q69: Capital Region | R69: Capital District | S69: Capital District | T69: Capital District | V69: Zone F - Capital | W69: Capital District | X69: Capital District | Y69: =VLOOKUP(L69,'Lookups (2)'!$CJ$4:$CS$2189,6,) -> 0.1167
E70: National Fuel Gas Distribution | H70: 7.358 | K70: 12288Albany | L70: 12288 | M70: 12288 | N70: Zone F - Capital | O70: National Grid | P70: Albany | Q70: Capital Region | R70: Capital District | S70: Capital District | T70: Capital District | V70: Zone F - Capital | W70: Capital District | X70: Capital District | Y70: =VLOOKUP(L70,'Lookups (2)'!$CJ$4:$CS$2189,6,) -> 0.1167
E71: NYS Electric and Gas | H71: 9.581 | K71: 12183Albany | L71: 12183 | M71: 12183 | N71: Zone F - Capital | O71: Municipal Utilities | P71: Albany | Q71: Capital Region | R71: Capital District | S71: Capital District | T71: Capital District | V71: Zone F - Capital | W71: Capital District | X71: Capital District | Y71: =VLOOKUP(L71,'Lookups (2)'!$CJ$4:$CS$2189,6,) -> 0.1595
E72: National Grid | H72: 8.263 | K72: 12007Albany | L72: 12007 | M72: 12007 | N72: Zone G - Hudson Valley | O72: National Grid | P72: Albany | Q72: Capital Region | R72: Capital District | S72: Capital District | T72: Capital District | V72: Zone G - Hudson Valley | W72: Capital District | X72: Capital District | Y72: =VLOOKUP(L72,'Lookups (2)'!$CJ$4:$CS$2189,6,) -> 0.1167
E73: Orange and Rockland Utilities | H73: 11.577 | K73: 12046Albany | L73: 12046 | M73: 12046 | N73: Zone G - Hudson Valley | O73: National Grid | P73: Albany | Q73: Capital Region | R73: Capital District | S73: Capital District | T73: Capital District | V73: Zone G - Hudson Valley | W73: Capital District | X73: Capital District | Y73: =VLOOKUP(L73,'Lookups (2)'!$CJ$4:$CS$2189,6,) -> 0.1167
E74: St. Lawrence Gas | H74: 11.342 | Y74: =VLOOKUP(L74,'Lookups (2)'!$CJ$4:$CS$2189,6,) -> 
E75: Rochester Gas and Electric | H75: 8.411 | K75: 12045Albany | L75: 12045 | M75: 12045 | N75: Zone G - Hudson Valley | O75: Central Hudson Gas and Electric | P75: Albany | Q75: Capital Region | R75: Capital District | S75: Capital District | T75: Capital District | V75: Zone G - Hudson Valley | W75: Capital District | X75: Capital District | Y75: =VLOOKUP(L75,'Lookups (2)'!$CJ$4:$CS$2189,6,) -> 0.1337
K76: 12055Albany | L76: 12055 | M76: 12055 | N76: Zone G - Hudson Valley | O76: Central Hudson Gas and Electric | P76: Albany | Q76: Capital Region | R76: Capital District | S76: Capital District | T76: Capital District | V76: Zone G - Hudson Valley | W76: Capital District | X76: Capital District | Y76: =VLOOKUP(L76,'Lookups (2)'!$CJ$4:$CS$2189,6,) -> 0.1337
E77: Heating Oil (Home Monitoring Program, 2015-2017 Avg) | K77: 12120Albany | L77: 12120 | M77: 12120 | N77: Zone G - Hudson Valley | O77: Central Hudson Gas and Electric | P77: Albany | Q77: Capital Region | R77: Capital District | S77: Capital District | T77: Capital District | V77: Zone G - Hudson Valley | W77: Capital District | X77: Capital District | Y77: =VLOOKUP(L77,'Lookups (2)'!$CJ$4:$CS$2189,6,) -> 0.1337
E78: Region | H78: $ / Gal | K78: 12143Albany | L78: 12143 | M78: 12143 | N78: Zone G - Hudson Valley | O78: Central Hudson Gas and Electric | P78: Albany | Q78: Capital Region | R78: Capital District | S78: Capital District | T78: Capital District | V78: Zone G - Hudson Valley | W78: Capital District | X78: Capital District | Y78: =VLOOKUP(L78,'Lookups (2)'!$CJ$4:$CS$2189,6,) -> 0.1337
E79: Long Island | H79: 2.788741333 | K79: 12147Albany | L79: 12147 | M79: 12147 | N79: Zone G - Hudson Valley | O79: Central Hudson Gas and Electric | P79: Albany | Q79: Capital Region | R79: Capital District | S79: Capital District | T79: Capital District | V79: Zone G - Hudson Valley | W79: Capital District | X79: Capital District | Y79: =VLOOKUP(L79,'Lookups (2)'!$CJ$4:$CS$2189,6,) -> 0.1337
E80: NYC | H80: 2.754668333 | K80: 12193Albany | L80: 12193 | M80: 12193 | N80: Zone G - Hudson Valley | O80: Central Hudson Gas and Electric | P80: Albany | Q80: Capital Region | R80: Capital District | S80: Capital District | T80: Capital District | V80: Zone G - Hudson Valley | W80: Capital District | X80: Capital District | Y80: =VLOOKUP(L80,'Lookups (2)'!$CJ$4:$CS$2189,6,) -> 0.1337
E81: Lower Hudson | H81: 2.686218704 | K81: 12469Albany | L81: 12469 | M81: 12469 | N81: Zone G - Hudson Valley | O81: Central Hudson Gas and Electric | P81: Albany | Q81: Capital Region | R81: Capital District | S81: Capital District | T81: Capital District | V81: Zone G - Hudson Valley | W81: Capital District | X81: Capital District | Y81: =VLOOKUP(L81,'Lookups (2)'!$CJ$4:$CS$2189,6,) -> 0.1337
E82: Upper Hudson | H82: 2.534561508 | K82: 14029Allegany | L82: 14029 | M82: 14029 | N82: Zone A - West | O82: National Grid | P82: Allegany | Q82: Western New York | R82: Western | S82: Western | T82: Western | V82: Zone A - West | W82: Western | X82: Western Region | Y82: =VLOOKUP(L82,'Lookups (2)'!$CJ$4:$CS$2189,6,) -> 0.1052
E83: Capital District | H83: 2.487116026 | K83: 14727Allegany | L83: 14727 | M83: 14727 | N83: Zone A - West | O83: National Grid | P83: Allegany | Q83: Western New York | R83: Western | S83: Western | T83: Western | V83: Zone A - West | W83: Western | X83: Western Region | Y83: =VLOOKUP(L83,'Lookups (2)'!$CJ$4:$CS$2189,6,) -> 0.1052
E84: North County | H84: 2.513302381 | K84: 14786Allegany | L84: 14786 | M84: 14786 | N84: Zone A - West | O84: National Grid | P84: Allegany | Q84: Western New York | R84: Western | S84: Western | T84: Western | V84: Zone A - West | W84: Western | X84: Western Region | Y84: =VLOOKUP(L84,'Lookups (2)'!$CJ$4:$CS$2189,6,) -> 0.1052
E85: Central | H85: 2.447074444 | K85: 14709Allegany | L85: 14709 | M85: 14709 | N85: Zone B - Genesee | O85: Rochester Gas and Electric | P85: Allegany | Q85: Western New York | R85: Western | S85: Western | T85: Western | V85: Zone B - Genesee | W85: Western | X85: Western Region | Y85: =VLOOKUP(L85,'Lookups (2)'!$CJ$4:$CS$2189,6,) -> 0.0958
E86: Western | H86: 2.677611364 | K86: 14711Allegany | L86: 14711 | M86: 14711 | N86: Zone B - Genesee | O86: Rochester Gas and Electric | P86: Allegany | Q86: Western New York | R86: Western | S86: Western | T86: Western | V86: Zone B - Genesee | W86: Western | X86: Western Region | Y86: =VLOOKUP(L86,'Lookups (2)'!$CJ$4:$CS$2189,6,) -> 0.0958
K87: 14715Allegany | L87: 14715 | M87: 14715 | N87: Zone B - Genesee | O87: Rochester Gas and Electric | P87: Allegany | Q87: Western New York | R87: Western | S87: Western | T87: Western | V87: Zone B - Genesee | W87: Western | X87: Western Region | Y87: =VLOOKUP(L87,'Lookups (2)'!$CJ$4:$CS$2189,6,) -> 0.0958
E88: Zip | F88: =VLOOKUP(B2,$M$2:$R$2159,6,) ->  | H88: =VLOOKUP(F88,E79:H86,4,) ->  | K88: 14717Allegany | L88: 14717 | M88: 14717 | N88: Zone B - Genesee | O88: Rochester Gas and Electric | P88: Allegany | Q88: Western New York | R88: Western | S88: Western | T88: Western | V88: Zone B - Genesee | W88: Western | X88: Western Region | Y88: =VLOOKUP(L88,'Lookups (2)'!$CJ$4:$CS$2189,6,) -> 0.0958
E89: County | F89: =VLOOKUP(B3,P2:R2159,3,) ->  | H89: =VLOOKUP(F89,E79:H86,4,) ->  | K89: 14721Allegany | L89: 14721 | M89: 14721 | N89: Zone B - Genesee | O89: Rochester Gas and Electric | P89: Allegany | Q89: Western New York | R89: Western | S89: Western | T89: Western | V89: Zone B - Genesee | W89: Western | X89: Western Region | Y89: =VLOOKUP(L89,'Lookups (2)'!$CJ$4:$CS$2189,6,) -> 0.0958
F90: Final | H90: =IF(ISERROR(H88),H89,H88) ->  | K90: 14735Allegany | L90: 14735 | M90: 14735 | N90: Zone B - Genesee | O90: Rochester Gas and Electric | P90: Allegany | Q90: Western New York | R90: Western | S90: Western | T90: Western | V90: Zone B - Genesee | W90: Western | X90: Western Region | Y90: =VLOOKUP(L90,'Lookups (2)'!$CJ$4:$CS$2189,6,) -> 0.0958
K91: 14739Allegany | L91: 14739 | M91: 14739 | N91: Zone B - Genesee | O91: Rochester Gas and Electric | P91: Allegany | Q91: Western New York | R91: Western | S91: Western | T91: Western | V91: Zone B - Genesee | W91: Western | X91: Western Region | Y91: =VLOOKUP(L91,'Lookups (2)'!$CJ$4:$CS$2189,6,) -> 0.0958
K92: 14744Allegany | L92: 14744 | M92: 14744 | N92: Zone B - Genesee | O92: Rochester Gas and Electric | P92: Allegany | Q92: Western New York | R92: Western | S92: Western | T92: Western | V92: Zone B - Genesee | W92: Western | X92: Western Region | Y92: =VLOOKUP(L92,'Lookups (2)'!$CJ$4:$CS$2189,6,) -> 0.0958
E93: Kerosene (Home Monitoring Program, 2015-2017 Avg) | K93: 14745Allegany | L93: 14745 | M93: 14745 | N93: Zone B - Genesee | O93: Rochester Gas and Electric | P93: Allegany | Q93: Western New York | R93: Western | S93: Western | T93: Western | V93: Zone B - Genesee | W93: Western | X93: Western Region | Y93: =VLOOKUP(L93,'Lookups (2)'!$CJ$4:$CS$2189,6,) -> 0.0958
E94: Region | H94: $ / Gal | K94: 14754Allegany | L94: 14754 | M94: 14754 | N94: Zone B - Genesee | O94: Rochester Gas and Electric | P94: Allegany | Q94: Western New York | R94: Western | S94: Western | T94: Western | V94: Zone B - Genesee | W94: Western | X94: Western Region | Y94: =VLOOKUP(L94,'Lookups (2)'!$CJ$4:$CS$2189,6,) -> 0.0958
E95: Mid-Hudson | H95: 3.184905918 | K95: 14774Allegany | L95: 14774 | M95: 14774 | N95: Zone B - Genesee | O95: Rochester Gas and Electric | P95: Allegany | Q95: Western New York | R95: Western | S95: Western | T95: Western | V95: Zone B - Genesee | W95: Western | X95: Western Region | Y95: =VLOOKUP(L95,'Lookups (2)'!$CJ$4:$CS$2189,6,) -> 0.0958
E96: Capital District | H96: 2.996602083 | K96: 14777Allegany | L96: 14777 | M96: 14777 | N96: Zone B - Genesee | O96: Rochester Gas and Electric | P96: Allegany | Q96: Western New York | R96: Western | S96: Western | T96: Western | V96: Zone B - Genesee | W96: Western | X96: Western Region | Y96: =VLOOKUP(L96,'Lookups (2)'!$CJ$4:$CS$2189,6,) -> 0.0958
E97: North Country | H97: 3.092900694 | K97: 14813Allegany | L97: 14813 | M97: 14813 | N97: Zone B - Genesee | O97: Rochester Gas and Electric | P97: Allegany | Q97: Western New York | R97: Western | S97: Western | T97: Western | V97: Zone B - Genesee | W97: Western | X97: Western Region | Y97: =VLOOKUP(L97,'Lookups (2)'!$CJ$4:$CS$2189,6,) -> 0.0958
E98: Central | H98: 2.982949359 | K98: 14707Allegany | L98: 14707 | M98: 14707 | N98: Zone B - Genesee | O98: National Grid | P98: Allegany | Q98: Western New York | R98: Western | S98: Western | T98: Western | V98: Zone B - Genesee | W98: Western | X98: Western Region | Y98: =VLOOKUP(L98,'Lookups (2)'!$CJ$4:$CS$2189,6,) -> 0.1015
E99: Western | H99: 3.051622222 | K99: 14708Allegany | L99: 14708 | M99: 14708 | N99: Zone B - Genesee | O99: National Grid | P99: Allegany | Q99: Western New York | R99: Western | S99: Western | T99: Western | V99: Zone B - Genesee | W99: Western | X99: Western Region | Y99: =VLOOKUP(L99,'Lookups (2)'!$CJ$4:$CS$2189,6,) -> 0.1015
K100: 14714Allegany | L100: 14714 | M100: 14714 | N100: Zone B - Genesee | O100: National Grid | P100: Allegany | Q100: Western New York | R100: Western | S100: Western | T100: Western | V100: Zone B - Genesee | W100: Western | X100: Western Region | Y100: =VLOOKUP(L100,'Lookups (2)'!$CJ$4:$CS$2189,6,) -> 0.1015
E101: Zip | F101: =VLOOKUP(B2,$M$2:$S$2159,7,) ->  | H101: =VLOOKUP(F101,E95:H99,4,) ->  | K101: 14880Allegany | L101: 14880 | M101: 14880 | N101: Zone B - Genesee | O101: National Grid | P101: Allegany | Q101: Western New York | R101: Western | S101: Western | T101: Western | V101: Zone B - Genesee | W101: Western | X101: Western Region | Y101: =VLOOKUP(L101,'Lookups (2)'!$CJ$4:$CS$2189,6,) -> 0.1015
E102: County | F102: =VLOOKUP(B3,P2:S2159,4,) ->  | H102: =VLOOKUP(F102,E95:H99,4,) ->  | K102: 14897Allegany | L102: 14897 | M102: 14897 | N102: Zone C - Central | O102: National Grid | P102: Allegany | Q102: Western New York | R102: Western | S102: Western | T102: Western | V102: Zone C - Central | W102: Western | X102: Western Region | Y102: =VLOOKUP(L102,'Lookups (2)'!$CJ$4:$CS$2189,6,) -> 0.0998
F103: Final | H103: =IF(ISERROR(H101),H102,H101) ->  | K103: 14802Allegany | L103: 14802 | M103: 14802 | N103: Zone C - Central | O103: NYS Electric and Gas | P103: Allegany | Q103: Western New York | R103: Western | S103: Western | T103: Western | V103: Zone C - Central | W103: Western | X103: Western Region | Y103: =VLOOKUP(L103,'Lookups (2)'!$CJ$4:$CS$2189,6,) -> 0.0926
K104: 14803Allegany | L104: 14803 | M104: 14803 | N104: Zone C - Central | O104: NYS Electric and Gas | P104: Allegany | Q104: Western New York | R104: Western | S104: Western | T104: Western | V104: Zone C - Central | W104: Western | X104: Western Region | Y104: =VLOOKUP(L104,'Lookups (2)'!$CJ$4:$CS$2189,6,) -> 0.0926
E105: Propane (Home Monitoring Program, 2015-2017 Avg) | K105: 14804Allegany | L105: 14804 | M105: 14804 | N105: Zone C - Central | O105: NYS Electric and Gas | P105: Allegany | Q105: Western New York | R105: Western | S105: Western | T105: Western | V105: Zone C - Central | W105: Western | X105: Western Region | Y105: =VLOOKUP(L105,'Lookups (2)'!$CJ$4:$CS$2189,6,) -> 0.0926
E106: Region | H106: $ / Gal | K106: 14822Allegany | L106: 14822 | M106: 14822 | N106: Zone C - Central | O106: NYS Electric and Gas | P106: Allegany | Q106: Western New York | R106: Western | S106: Western | T106: Western | V106: Zone C - Central | W106: Western | X106: Western Region | Y106: =VLOOKUP(L106,'Lookups (2)'!$CJ$4:$CS$2189,6,) -> 0.0926
E107: Long Island | H107: 2.95810878 | K107: 14884Allegany | L107: 14884 | M107: 14884 | N107: Zone C - Central | O107: NYS Electric and Gas | P107: Allegany | Q107: Western New York | R107: Western | S107: Western | T107: Western | V107: Zone C - Central | W107: Western | X107: Western Region | Y107: =VLOOKUP(L107,'Lookups (2)'!$CJ$4:$CS$2189,6,) -> 0.0926
E108: Mid-Hudson | H108: 2.439836558 | K108: 14806Allegany | L108: 14806 | M108: 14806 | N108: Zone C - Central | O108: Municipal Utilities | P108: Allegany | Q108: Western New York | R108: Western | S108: Western | T108: Western | V108: Zone C - Central | W108: Western | X108: Western Region | Y108: =VLOOKUP(L108,'Lookups (2)'!$CJ$4:$CS$2189,6,) -> 0.1595
E109: Capital District | H109: 2.660757652 | K109: 14895Allegany | L109: 14895 | M109: 14895 | N109: Zone C - Central | O109: Municipal Utilities | P109: Allegany | Q109: Western New York | R109: Western | S109: Western | T109: Western | V109: Zone C - Central | W109: Western | X109: Western Region | Y109: =VLOOKUP(L109,'Lookups (2)'!$CJ$4:$CS$2189,6,) -> 0.1595
E110: North Country | H110: 2.885440817 | K110: 10453Bronx | L110: 10453 | M110: 10453 | N110: Zone I - Dunwoodie | O110: Consolidated Edison | P110: Bronx | Q110: New York City | R110: NYC | U110: ConEd NYC | V110: Zone I - Dunwoodie | W110: NYC | Y110: =VLOOKUP(L110,'Lookups (2)'!$CJ$4:$CS$2189,6,) -> 0.2211
E111: Central | H111: 2.243559518 | K111: 10458Bronx | L111: 10458 | M111: 10458 | N111: Zone I - Dunwoodie | O111: Consolidated Edison | P111: Bronx | Q111: New York City | R111: NYC | U111: ConEd NYC | V111: Zone I - Dunwoodie | W111: NYC | Y111: =VLOOKUP(L111,'Lookups (2)'!$CJ$4:$CS$2189,6,) -> 0.2211
E112: Western | H112: 2.205150735 | K112: 10463Bronx | L112: 10463 | M112: 10463 | N112: Zone I - Dunwoodie | O112: Consolidated Edison | P112: Bronx | Q112: New York City | R112: NYC | U112: ConEd NYC | V112: Zone I - Dunwoodie | W112: NYC | Y112: =VLOOKUP(L112,'Lookups (2)'!$CJ$4:$CS$2189,6,) -> 0.2211
K113: 10466Bronx | L113: 10466 | M113: 10466 | N113: Zone I - Dunwoodie | O113: Consolidated Edison | P113: Bronx | Q113: New York City | R113: NYC | U113: ConEd NYC | V113: Zone I - Dunwoodie | W113: NYC | Y113: =VLOOKUP(L113,'Lookups (2)'!$CJ$4:$CS$2189,6,) -> 0.2211
E114: Zip | F114: =VLOOKUP(B2,$M$2:$T$2159,8,) ->  | H114: =VLOOKUP(F114,E107:H112,4,) ->  | K114: 10467Bronx | L114: 10467 | M114: 10467 | N114: Zone I - Dunwoodie | O114: Consolidated Edison | P114: Bronx | Q114: New York City | R114: NYC | U114: ConEd NYC | V114: Zone I - Dunwoodie | W114: NYC | Y114: =VLOOKUP(L114,'Lookups (2)'!$CJ$4:$CS$2189,6,) -> 0.2211
E115: County | F115: =VLOOKUP(B3,P2:T2159,5,) ->  | H115: =VLOOKUP(F115,E107:H112,4,) ->  | K115: 10468Bronx | L115: 10468 | M115: 10468 | N115: Zone I - Dunwoodie | O115: Consolidated Edison | P115: Bronx | Q115: New York City | R115: NYC | U115: ConEd NYC | V115: Zone I - Dunwoodie | W115: NYC | Y115: =VLOOKUP(L115,'Lookups (2)'!$CJ$4:$CS$2189,6,) -> 0.2211
F116: Final | H116: =IF(ISERROR(H114),H115,H114) ->  | K116: 10469Bronx | L116: 10469 | M116: 10469 | N116: Zone I - Dunwoodie | O116: Consolidated Edison | P116: Bronx | Q116: New York City | R116: NYC | U116: ConEd NYC | V116: Zone I - Dunwoodie | W116: NYC | Y116: =VLOOKUP(L116,'Lookups (2)'!$CJ$4:$CS$2189,6,) -> 0.2211
K117: 10470Bronx | L117: 10470 | M117: 10470 | N117: Zone I - Dunwoodie | O117: Consolidated Edison | P117: Bronx | Q117: New York City | R117: NYC | U117: ConEd NYC | V117: Zone I - Dunwoodie | W117: NYC | Y117: =VLOOKUP(L117,'Lookups (2)'!$CJ$4:$CS$2189,6,) -> 0.2211
E118: Pellet Wood (Home Monitoring Program, 2015-2017 Avg) | K118: 10471Bronx | L118: 10471 | M118: 10471 | N118: Zone I - Dunwoodie | O118: Consolidated Edison | P118: Bronx | Q118: New York City | R118: NYC | U118: ConEd NYC | V118: Zone I - Dunwoodie | W118: NYC | Y118: =VLOOKUP(L118,'Lookups (2)'!$CJ$4:$CS$2189,6,) -> 0.2211
E119: Region | H119: $ / Ton | K119: 10475Bronx | L119: 10475 | M119: 10475 | N119: Zone I - Dunwoodie | O119: Consolidated Edison | P119: Bronx | Q119: New York City | R119: NYC | U119: ConEd NYC | V119: Zone I - Dunwoodie | W119: NYC | Y119: =VLOOKUP(L119,'Lookups (2)'!$CJ$4:$CS$2189,6,) -> 0.2211
E120: Long Island | H120: 307.8940806 | K120: 10451Bronx | L120: 10451 | M120: 10451 | N120: Zone J - New York City | O120: Consolidated Edison | P120: Bronx | Q120: New York City | R120: NYC | U120: ConEd NYC | V120: Zone J - New York City | W120: NYC | Y120: =VLOOKUP(L120,'Lookups (2)'!$CJ$4:$CS$2189,6,) -> 0.2211
E121: Hudson Valley | H121: 275.1102865 | K121: 10452Bronx | L121: 10452 | M121: 10452 | N121: Zone J - New York City | O121: Consolidated Edison | P121: Bronx | Q121: New York City | R121: NYC | U121: ConEd NYC | V121: Zone J - New York City | W121: NYC | Y121: =VLOOKUP(L121,'Lookups (2)'!$CJ$4:$CS$2189,6,) -> 0.2211
